Workbook

Sheet 10 (hidden)
N1: =NOW() -> 44958.55435
A2: pořadí | B2: Den | C2: Datum | D2: Expedice číslo (PDL ?) | E2: Zákazník | F2: Dopravce | G2: Destinace | H2: SPZ | I2: název výrobku | J2: balení | K2: počet balení | L2: Vratka palet (ano/ne) | M2: místo nakládky | N2: Plán. příjezd | O2: Skutečný příjezd | P2: Start nakládky | Q2: Konec nakládky | R2: Expedoval | S2: Status | T2: Naplánoval | U2: Poznámka | V2: složitost
A4: =IF(C4="","",IF(N4="",C4+1,C4+N4)) -> 44837.62569 | B4: =IF(C4="","",IF(C4>0,C4,0)) -> 2022-10-03 | C4: 2022-10-03 | D4: příjem | E4: JPP | F4: Hroza | G4: Vlkoš | K4: 12 | N4: 15:01:00 | O4: 09:00:00 | Q4: 09:00:00 | R4: Povolný L. | S4: Nakládáno | T4: Chromková L. | V4: =IF(K4="","",IF(K4<10,1,IF(K4>25,3,2))) -> 2
A5: 44837.62639 | B5: 2022-10-03 | C5: 2022-10-03 | D5: L/199/22 | E5: FrantaXXXXXX 4 | F5: PBM | G5: Eloyes | N5: 15:02:00 | P5: 14:30:00 | Q5: 16:00:00 | R5: Průša M. | S5: Dokončeno | T5: Pomichálek J.
A6: 44838.33333 | B6: 2022-10-04 | C6: 2022-10-04 | D6: Z2212191 | E6: T-NET1 | F6: BMS | G6: Eloyes | H6: 4 | N6: 08:00:00 | R6: Povolný L. | S6: Zpožděno | T6: Kollerová D. | U6: Znovu příští týden (wk 22)
A7: 44838.625 | B7: 2022-10-04 | C7: 2022-10-04 | D7: xyz | E7: OMA | F7: Logmax | G7: Černá Hora | H7: 1BS 2622 | J7: paleta | K7: 33 | L7: ne | M7: Kyjov | N7: 15:00:00 | P7: 06:35:00 | Q7: 08:00:00 | R7: Hojač M. | S7: Zpožděno | T7: Chromková L. | V7: 3
A8: 44838.66667 | B8: 2022-10-04 | C8: 2022-10-04 | D8: převoz | E8: Vlkoš 1 | F8: Hrouda | G8: Vlkoš | N8: 16:00:00 | O8: 09:00:00 | R8: Havránek M. | S8: Dokončeno | T8: Pomichálek J.
A9: 44839.29167 | B9: 2022-10-05 | C9: 2022-10-05 | D9: nakládka | E9: Bochemie 2 | F9: cosi | G9: Bohumín | K9: 8 | N9: 07:00:00 | O9: 09:00:00 | R9: Průša J. | S9: Přeplánováno | T9: Chromková L. | V9: 1
A10: 44839.625 | B10: 2022-10-05 | C10: 2022-10-05 | D10: převoz | E10: n/a | F10: Hroza | G10: Wallersdorf | H10: 3 | J10: karton | L10: ne | M10: Kyjov | N10: 15:00:00 | O10: 07:00:00 | P10: 09:20:00 | Q10: 09:00:00 | R10: Havránek M. | S10: Přeplánováno | T10: Pomichálek J.
A11: 44839.66667 | B11: 2022-10-05 | C11: 2022-10-05 | D11: převoz | E11: JPP | F11: Hroza | G11: Vlkoš | N11: 16:00:00 | R11: Průša J. | S11: Zpožděno | T11: Kollerová D.
A12: 44839.91667 | B12: 2022-10-05 | C12: 2022-10-05 | D12: nakládka | E12: Cheport | F12: TEZET | G12: Lhotsko | H12: 2 | I12: KE-20 UN | J12: paleta | K12: 18 | L12: ne | M12: Kyjov | N12: 22:00:00 | R12: Průša J. | S12: Přeplánováno | T12: Gajdošová L. | V12: 2
A13: 44840.33333 | B13: 2022-10-06 | C13: 2022-10-06 | D13: nakládka | E13: ECOABC | G13: Polsko | N13: 08:00:00 | R13: Kubáček M. | S13: Zpožděno | T13: Chromková L.
A14: 44840.375 | B14: 2022-10-06 | C14: 2022-10-06 | D14: příjem | E14: n/a | F14: - | G14: n/a | I14: EUR pal. | J14: paleta | K14: 5 | L14: ano | M14: Kyjov | N14: 09:00:00 | O14: 10:45:00 | P14: 12:00:00 | Q14: 13:00:00 | R14: Průša J. | S14: Dokončeno | T14: Chromková L. | V14: 1
A15: 44840.41667 | B15: 2022-10-06 | C15: 2022-10-06 | D15: převoz | G15: Vlkoš | N15: 10:00:00 | R15: Antoš J. | T15: Gajdošová L.
A16: 44840.52083 | B16: 2022-10-06 | C16: 2022-10-06 | D16: příjem | E16: n/a | F16: Vašek Datel | G16: n/a | H16: 1 | I16: proložky | J16: paleta | K16: 17 | L16: ano | M16: Kyjov | N16: 12:30:00 | O16: 08:40:00 | P16: 10:00:00 | Q16: 44679.41667 | R16: Hojač M. | S16: Zrušeno | T16: Kollerová D. | V16: 2
A17: 44840.5625 | B17: 2022-10-06 | C17: 2022-10-06 | D17: zzy | E17: TBA | F17: odběratel | G17: Pardubice | H17: caad | J17: sud | K17: 12 | L17: ne | M17: Kyjov | N17: 13:30:00 | O17: 13:00:00 | R17: Konečný M. | T17: Kollerová D. | V17: 2
A18: 44840.58333 | B18: 2022-10-06 | C18: 2022-10-06 | D18: nakládka | E18: T-NET 3 | F18: kdosi | G18: Eloyes | N18: 14:00:00 | R18: Benedík M. | T18: Kollerová D.
A19: 44840.58333 | B19: 2022-10-06 | C19: 2022-10-06 | D19: přeskladnění | E19: n/a | F19: - | G19: n/a | J19: pytel | K19: 9 | L19: ne | M19: Kyjov | N19: 14:00:00 | O19: 13:40:00 | R19: Hojač M. | S19: Přeplánováno | T19: Kollerová D. | V19: 1
A20: 44840.625 | B20: 2022-10-06 | C20: 2022-10-06 | D20: xxy | E20: T-NET | F20: CarMax | G20: Linz | H20: 8B2 3560 | I20: 0,25l láhev | J20: paleta | K20: 18 | L20: ano | M20: Vlkoš | N20: 15:00:00 | O20: 13:15:00 | P20: 14:00:00 | Q20: 44679.54167 | R20: Antoš J. | T20: Kollerová D. | V20: 2
A21: 44841 | B21: 2022-10-06 | C21: 2022-10-06 | D21: nakládka | E21: T-NET | F21: někdo | G21: Eloyes | R21: Svoboda L. | T21: Kollerová D.
A22: 44841.5 | B22: 2022-10-07 | C22: 2022-10-07 | D22: nakládka | E22: Puloplastic | F22: Jouda | G22: Slavošov | N22: 12:00:00 | R22: Doupovec R. | T22: Kollerová D.
A23: 44842 | B23: 2022-10-07 | C23: 2022-10-07 | D23: nakládka | E23: Walter | F23: Mrskal | G23: Ilmenau | R23: Doupovec R. | T23: Kollerová D.
A24: 44842 | B24: 2022-10-07 | C24: 2022-10-07 | E24: TEST 2 | F24: Test 3 | G24: TEST1 | K24: 5 | R24: Doupovec R. | S24: Nakládáno | T24: Kollerová D. | V24: 1
A25: 44842 | B25: 2022-10-07 | C25: 2022-10-07 | E25: Macík | F25: Jouda | R25: Doupovec R. | S25: Zrušeno
A26: 44842.29167 | B26: 2022-10-08 | C26: 2022-10-08 | D26: zxy | E26: DF | F26: TEZET | G26: Neubuz | H26: 3P4 2189 | I26: KS-3 | J26: paleta | K26: 16 | L26: ano | M26: Kyjov | N26: 07:00:00 | O26: 07:00:00 | P26: 07:00:00 | Q26: 08:30:00 | R26: Hojač M. | S26: Zpožděno | T26: Kollerová D. | U26: tel.na řidiče 773 557 142 | V26: 2
A27: 44844.35417 | B27: 2022-10-10 | C27: 2022-10-10 | D27: příjem | E27: n/a | F27: Vašek Datel | G27: n/a | I27: proložky | J27: paleta | K27: 17 | L27: ano | M27: Kyjov | N27: 08:30:00 | O27: 08:40:00 | P27: 10:00:00 | Q27: 44679.41667 | R27: Doupovec R. | S27: Přeplánováno | T27: Bilíček | V27: 2
A28: 44844.5625 | B28: 2022-10-10 | C28: 2022-10-10 | D28: xxy | E28: T-NET | F28: CarMax | G28: Linz | H28: 8B2 3560 | I28: 0,25l láhev | J28: paleta | K28: 18 | L28: ano | M28: Vlkoš | N28: 13:30:00 | O28: 13:15:00 | P28: 14:00:00 | Q28: 44679.54167 | R28: Doupovec R. | S28: Náplánováno | T28: Gajdošová | V28: 2
A29: 44845 | B29: 2022-10-10 | C29: 2022-10-10 | D29: příjem | E29: Eurest | F29: exter | G29: něco | R29: Doupovec R.
A30: 44845.5 | B30: 2022-10-11 | C30: 2022-10-11 | D30: L/195/22 | E30: T-NET | F30: BMS | G30: Eloyes | N30: 12:00:00 | R30: Doupovec R. | S30: Zpožděno
A31: 44845.58333 | B31: 2022-10-11 | C31: 2022-10-11 | D31: L/199/22 | E31: T-NET | F31: PBM | G31: Eloyes | N31: 14:00:00 | R31: Doupovec R. | S31: Náplánováno
A32: 44846.29167 | B32: 2022-10-12 | C32: 2022-10-12 | E32: Paul Fox | F32: Julia Cat | N32: 07:00:00 | R32: Doupovec R. | S32: Dokončeno
A33: 44846.33333 | B33: 2022-10-12 | C33: 2022-10-12 | E33: Franta Pepa 1. | F33: Hrouda | N33: 08:00:00 | R33: Doupovec R. | S33: Nakládáno
A34: 44847.20833 | B34: 2022-10-13 | C34: 2022-10-13 | E34: Blboun Nejapný | F34: cosi | N34: 05:00:00 | R34: Doupovec R. | S34: Náplánováno
A35: 44848 | B35: 2022-10-13 | C35: 2022-10-13 | E35: x | R35: Doupovec R. | S35: Zpožděno
A36: 44849 | B36: 2022-10-14 | C36: 2022-10-14 | E36: Walter | F36: Hrouda | S36: Dokončeno | V36: =IF(K36="","",IF(K36<10,1,IF(K36>25,3,2))) -> 
A37: 44852.20833 | B37: 2022-10-18 | C37: 2022-10-18 | E37: Blboun Nejapný | F37: cosi | N37: 05:00:00 | S37: Dokončeno
A38: 44853 | B38: 2022-10-18 | C38: 2022-10-18 | D38: 99 | E38: Faurecia | F38: vlastní | S38: Nakládáno
A39: 44853 | B39: 2022-10-18 | C39: 2022-10-18 | E39: x | S39: Přeplánováno
A40: 44853.58333 | B40: 2022-10-19 | C40: 2022-10-19 | E40: T-NET | F40: PBM | G40: Eloyes | N40: 14:00:00 | S40: Náplánováno
A41: 44855 | B41: 2022-10-20 | C41: 2022-10-20 | E41: TEST 2 | F41: Test 3 | G41: TEST1 | Q41: 10:52:00 | S41: Dokončeno
A42: 44856 | B42: 2022-10-21 | C42: 2022-10-21 | E42: Paul Fox | F42: PBM | S42: Přeplánováno
A43: 44859 | B43: 2022-10-24 | C43: 2022-10-24 | E43: T-NET | F43: PBM | S43: Nakládáno
A44: 44860 | B44: 2022-10-25 | C44: 2022-10-25 | E44: Paul Fox | F44: Julia Cat | S44: Náplánováno
A45: 44861 | B45: 2022-10-26 | C45: 2022-10-26 | E45: Franta Pepa 1. | F45: Hrouda | S45: Nakládáno
A46: 44861 | B46: 2022-10-26 | C46: 2022-10-26 | E46: Vlkoš | F46: Hrouda | G46: Vlkoš | S46: Nakládáno
A47: 44869 | B47: 2022-11-03 | C47: 2022-11-03 | E47: Puloplastic | F47: Jouda | G47: Slavošov | S47: Dokončeno
A48: 44869 | B48: 2022-11-03 | C48: 2022-11-03 | E48: Walter | F48: Mrskal | G48: Ilmenau | S48: Nakládáno
A49: 44869 | B49: 2022-11-03 | C49: 2022-11-03 | E49: Puloplastic | F49: Jouda | G49: Slavošov | S49: Nakládáno
A50: 44869 | B50: 2022-11-03 | C50: 2022-11-03 | E50: Walter | F50: Mrskal | G50: Ilmenau | S50: Nakládáno
A51: 44869 | B51: 2022-11-03 | C51: 2022-11-03 | E51: TEST 2 | F51: Test 3 | G51: TEST1 | S51: Dokončeno
A52: 44869 | B52: 2022-11-03 | C52: 2022-11-03 | E52: Macík | F52: Jouda | S52: Nakládáno
A53: 44869 | B53: 2022-11-03 | C53: 2022-11-03 | E53: T-NET | F53: CarMax | G53: Linz | S53: Nakládáno
A54: 44869 | B54: 2022-11-03 | C54: 2022-11-03 | E54: n/a | F54: Vašek Datel | G54: n/a | S54: Dokončeno
A55: 44869 | B55: 2022-11-03 | C55: 2022-11-03 | E55: T-NET | F55: BMS | G55: Eloyes | S55: Dokončeno
A56: 44869 | B56: 2022-11-03 | C56: 2022-11-03 | E56: T-NET | F56: PBM | G56: Eloyes | S56: Zrušeno
A57: 44869 | B57: 2022-11-03 | C57: 2022-11-03 | E57: Paul Fox | F57: Julia Cat | S57: Dokončeno
A58: 44870 | B58: 2022-11-04 | C58: 2022-11-04 | E58: Franta Pepa 1. | F58: Hrouda | S58: Dokončeno
A59: 44870 | B59: 2022-11-04 | C59: 2022-11-04 | E59: x | S59: Dokončeno
A60: 44870 | B60: 2022-11-04 | C60: 2022-11-04 | E60: Blboun Nejapný | F60: cosi | S60: Nakládáno
A61: 44870 | B61: 2022-11-04 | C61: 2022-11-04 | E61: Walter | F61: Hrouda
E62: Walter
E63: Blboun Nejapný
A68: =IF(C68="","",IF(N68="",C68+1,C68+N68)) ->  | B68: =IF(C68="","",IF(C68>0,C68,0)) -> 
A132: =IF(C132="","",IF(N132="",C132+1,C132+N132)) ->  | B132: =IF(C132="","",IF(C132>0,C132,0)) -> 
A196: =IF(C196="","",IF(N196="",C196+1,C196+N196)) ->  | B196: =IF(C196="","",IF(C196>0,C196,0)) -> 
A260: =IF(C260="","",IF(N260="",C260+1,C260+N260)) ->  | B260: =IF(C260="","",IF(C260>0,C260,0)) -> 

Sheet Přehledy (hidden)
A1: měsíc | B1: Σ přeprav | C1: Σ pal. míst | D1: Σ zpoždění > 60 min. | E1: Σ přeplánovaných/zrušených | F1: ø na přepravu (min)
A2: Leden | B2: 203 | C2: 884 | D2: 28 | E2: 45 | F2: 79
A3: Únor | B3: 184 | C3: 725 | D3: 27 | E3: 40 | F3: 70
A4: Březen | B4: 198 | C4: 780 | D4: 16 | E4: 33 | F4: 77
A5: Duben | B5: 206 | C5: 820 | D5: 14 | E5: 36 | F5: 80
A6: Květen | B6: 213 | C6: 831 | D6: 18 | E6: 30 | F6: 75
A7: Červen | B7: 224 | C7: 860 | D7: 17 | E7: 25 | F7: 77
A8: Červenec | B8: 160 | C8: 637 | D8: 11 | E8: 18 | F8: 82
A9: Srpen | B9: 172 | C9: 679 | D9: 10 | E9: 16 | F9: 78
A10: Září | B10: 229 | C10: 909 | D10: 16 | E10: 21 | F10: 87
A11: Říjen | B11: 230 | C11: 932 | D11: 14 | E11: 19 | F11: 89
A12: Listopad | B12: 250 | C12: 942 | D12: 17 | E12: 23 | F12: 91
A13: Prosinec | B13: 218 | C13: 900 | D13: 22 | E13: 21 | F13: 87
A14: Celkem | B14: =SUM(B2:B13) -> 2487 | C14: =SUM(C2:C13) -> 9899 | D14: =SUM(D2:D13) -> 210 | E14: =SUM(E2:E13) -> 327 | F14: =AVERAGE(F2:F13) -> 81

Sheet 11
D1: ZÁZNAMY NA TOMTO LISTU: 31.10.22 - 02.12.2022 | G1: DNEŠNÍ DATUM: | I1: =+TODAY() -> 2023-02-01 | N1: AKTUÁLNÍ ČAS: | P1: =NOW() -> 44958.55435 | S1: AKTUÁLNÍ MĚSÍC: | U1: 2022-11-01 | W1: Informace pro NÁKUP
A2: pořadí | B2: Den | C2: Datum | D2: Expedice číslo (PDL ?) | E2: Zákazník | F2: Dopravce | G2: Destinace | H2: SPZ | I2: název výrobku | J2: balení | K2: počet balení | L2: Vratka palet (ano/ne) | M2: místo nakládky | N2: Plán. příjezd | O2: Skutečný příjezd | P2: Start nakládky | Q2: Konec nakládky | R2: Expedoval | S2: Status | T2: Naplánoval | U2: Poznámka | V2: složitost | W2: Cena přepravy | X2: přefaktuace / doplňující informace
A4: =IF(C4="","",IF(N4="",C4+1,C4+N4)) -> 44866 | B4: =IF(C4="","",+TEXT(C4,"ddD")) -> po | C4: 2022-10-31 | K4: 99 | V4: =IF(K4="","",IF(K4<10,1,IF(K4<=25,2,IF(K4<=35,3,IF(K4<=70,4,5))))) -> 5
A5: 44876.27083 | B5: pá | C5: 2022-11-11 | D5: převozy | E5: JPPlast-Vlkoš | F5: Hroza | G5: Vlkoš | I5: NUFARM | J5: PA | K5: 99 | L5: ne | M5: Kyjov | N5: 06:30:00 | S5: Dokončeno | T5: Pomichálek J. | V5: 5
A6: 44876.375 | B6: pá | C6: 2022-11-11 | E6: Filmer | F6: BSG | G6: Varel | I6: KPHM-10 | J6: PA | K6: 66 | L6: ne | M6: Kyjov | N6: 09:00:00 | S6: Dokončeno | T6: Kollerová D. | V6: 4
A7: 44877 | B7: pá | C7: 2022-11-11 | E7: MPD | F7: Tezet | G7: Rakovník | I7: KE-10 | J7: PA | K7: 32 | L7: ne | M7: Kyjov | S7: Dokončeno | T7: Chromková L. | V7: 3 | W7: 10400 | X7: v ceně
A8: 44877 | B8: pá | C8: 2022-11-11 | E8: Cheport | F8: Tezet | G8: Vizovice | I8: KE-20UN | J8: PA | K8: 18 | L8: ne | M8: Kyjov | S8: Dokončeno | T8: Chromková L. | V8: 2 | W8: 4150 | X8: v ceně
A9: 44877 | B9: pá | C9: 2022-11-11 | E9: T-Net | F9: kontejner | G9: USA | I9: Maple | J9: PA | K9: 20 | L9: ne | M9: Kyjov | S9: Dokončeno | T9: Gajdošová L. | V9: 2
A10: 44877 | B10: pá | C10: 2022-11-11 | E10: DF Partner | F10: Hroza | J10: PA | K10: 32 | M10: Kyjov | S10: Dokončeno | T10: Chromková L. | V10: 3 | W10: 3700 | X10: v ceně
A11: 44877 | B11: pá | C11: 2022-11-11 | E11: Těsmat | F11: vlastní | G11: Val. Meziřící | I11: KOSH | J11: PA | M11: Kyjov | S11: Zrušeno | T11: Kollerová D.
A12: 44877 | B12: pá | C12: 2022-11-11 | E12: T-Net | F12: Legarde | G12: Eloyes | J12: PA | K12: 56 | M12: Kyjov | S12: Dokončeno | T12: Gajdošová L. | V12: 4
A13: 44877 | B13: pá | C13: 2022-11-11 | E13: T-Net | F13: Legarde | G13: Eloyes | J13: PA | K13: 38 | M13: Vlkoš | S13: Dokončeno | T13: Gajdošová L. | V13: 4
A14: 44877 | B14: pá | C14: 2022-11-11 | E14: T-Net | F14: Legarde | G14: Eloyes | J14: PA | K14: 66 | M14: Vlkoš | S14: Dokončeno | T14: Gajdošová L. | V14: 4
A15: 44877 | B15: pá | C15: 2022-11-11 | E15: Santal | F15: vlastní | J15: PA | K15: 27 | L15: ano | M15: Kyjov | S15: Dokončeno | T15: Chromková L. | V15: 3
A16: 44877 | B16: pá | C16: 2022-11-11 | E16: Nufarm | F16: Silvan | G16: Linec | I16: KA-5 | J16: PA | K16: 52 | L16: ne | M16: Kyjov | S16: Dokončeno | T16: Gajdošová L. | V16: 4
A17: 44879.45833 | B17: po | C17: 2022-11-14 | E17: Walser | F17: Dachser | G17: Tulln | I17: KPHM-20 | J17: PA | K17: 33 | L17: ano | M17: Kyjov | N17: 11:00:00 | S17: Dokončeno | T17: Kollerová D. | V17: 3
A18: 44880 | B18: po | C18: 2022-11-14 | E18: Nufarm | F18: JF LOG | G18: Linec | I18: KA-5 | J18: PA | K18: 52 | L18: ne | M18: Kyjov | S18: Dokončeno | T18: Kollerová D. | V18: 4
A19: 44880 | B19: po | C19: 2022-11-14 | E19: DF Partner | F19: Hroza | J19: PA | K19: 32 | L19: ano | M19: Kyjov | S19: Dokončeno | T19: Chromková L. | V19: 3 | W19: 4200 | X19: v ceně
A20: 44880 | B20: po | C20: 2022-11-14 | E20: DF Partner | F20: Hroza | J20: PA | K20: 32 | M20: Kyjov | S20: Dokončeno | T20: Chromková L. | V20: 3 | W20: 3700 | X20: v ceně
A21: 44880 | B21: po | C21: 2022-11-14 | E21: Seco G | F21: Tezet | J21: PA | M21: Kyjov | S21: Dokončeno | T21: Gajdošová L. | X21: přefakturace 310,-EUR fa2301276
A22: 44880 | B22: po | C22: 2022-11-14 | E22: Fagron | F22: Tezet | G22: Olomouc | I22: mix | J22: PA | K22: 32 | L22: ne | M22: Kyjov | S22: Dokončeno | T22: Kollerová D. | V22: 3 | W22: 4170 | X22: přefakturace 5200,- Kč 23010272
A23: 44880 | B23: po | C23: 2022-11-14 | D23: vykládka | E23: Vitraco | F23: p. Karpíšek | I23: materiál Histif | J23: PA | K23: 17 | M23: Kyjov | S23: Dokončeno | T23: Hochman L. | V23: 2
A24: 44880 | B24: po | C24: 2022-11-14 | E24: DCM Colagen | F24: vlastní | G24: Kyjov | J24: PY | M24: Kyjov | S24: Dokončeno | T24: Gajdošová L.
A25: 44880 | B25: po | C25: 2022-11-14 | E25: Beskydská Lik. | F25: vlastní | J25: PA | K25: 3 | L25: ano | M25: Kyjov | S25: Dokončeno | T25: Gajdošová L. | V25: 1
A26: 44880 | B26: po | C26: 2022-11-14 | E26: Nufarm | F26: Silvan | G26: Linec | I26: KA-5 | J26: PA | K26: 52 | M26: Kyjov | S26: Dokončeno | T26: Kollerová D. | V26: 4
A27: 44880 | B27: po | C27: 2022-11-14 | E27: Nufarm | F27: Silvan | G27: Linec | I27: KA-5 | J27: PA | K27: 52 | M27: Kyjov | S27: Dokončeno | T27: Kollerová D. | V27: 4
A28: 44880.64583 | B28: út | C28: 2022-11-15 | E28: Faurecie | G28: Ml.Boleslav | H28: ; | I28: BMW | J28: PA | K28: 33 | M28: Kyjov | N28: 15:30:00 | S28: Dokončeno | T28: Gajdošová L. | V28: 3
A29: 44881 | B29: út | C29: 2022-11-15 | E29: DF Partner | F29: Hroza | J29: PA | K29: 32 | L29: ano | M29: Kyjov | S29: Dokončeno | T29: Chromková L. | V29: 3 | W29: 4200 | X29: v ceně
A30: 44881 | B30: út | C30: 2022-11-15 | E30: Carrier | F30: vlastní | J30: PA | M30: Kyjov | S30: Dokončeno | T30: Gajdošová L.
A31: 44881 | B31: út | C31: 2022-11-15 | E31: Antolin | L31: ano | M31: Kyjov | S31: Dokončeno | T31: Chromková L.
A32: 44881 | B32: út | C32: 2022-11-15 | E32: Groshandel | F32: B.S.G | G32: Suhl-Sehmar | I32: mix | J32: PA | K32: 33 | M32: Kyjov | S32: Dokončeno | T32: Kollerová D. | U32: L-417-22 | V32: 3
A33: 44881 | B33: út | C33: 2022-11-15 | E33: Těsmat | F33: vlastní | I33: mix | J33: PA | K33: 3 | M33: Kyjov | S33: Dokončeno | T33: Kollerová D. | V33: 1
A34: 44881 | B34: út | C34: 2022-11-15 | E34: TBA | F34: vlastní | G34: Havl.Brod | I34: mix | J34: PA | K34: 9 | M34: Kyjov | S34: Dokončeno | T34: Chromková L. | V34: 1
A35: 44881 | B35: út | C35: 2022-11-15 | E35: Bochemie | F35: Tezet | G35: Opava | J35: PA | K35: 18 | M35: Kyjov | S35: Dokončeno | T35: Chromková L. | V35: 2 | X35: v ceně
A36: 44881 | B36: út | C36: 2022-11-15 | E36: Stachema | F36: vlastní | J36: PA | K36: 8 | M36: Kyjov | S36: Dokončeno | T36: Chromková L. | V36: =IF(K36="","",IF(K36<10,1,IF(K36<=25,2,IF(K36<=35,3,IF(K36<=70,4,5))))) -> 1
A37: 44881 | B37: út | C37: 2022-11-15 | E37: T-Net | J37: PA | K37: 38 | M37: Kyjov | S37: Dokončeno | T37: Gajdošová L. | V37: 4
A38: 44881 | B38: út | C38: 2022-11-15 | E38: Faurecie | G38: Ml.Boleslav | I38: Defender | J38: PA | K38: 33 | M38: Kyjov | S38: Dokončeno | T38: Gajdošová L. | V38: 3
A39: 44881 | B39: út | C39: 2022-11-15 | E39: T-net | J39: PA | K39: 31 | M39: Kyjov | S39: Dokončeno | T39: Chromková L. | V39: 3
A40: 44881 | B40: út | C40: 2022-11-15 | E40: Hugli | F40: Tezet | I40: KSE_5 | J40: PA | K40: 18 | M40: Kyjov | S40: Dokončeno | T40: Chromková L. | V40: 2 | X40: přef.přejezd na jiný sklad 4800,-Kč 23010287
A41: 44881 | B41: út | C41: 2022-11-15 | E41: DF Partner | F41: Hroza | G41: Neubuz | I41: KE_25 | J41: PA | K41: 32 | L41: ne | M41: Kyjov | S41: Dokončeno | T41: Chromková L. | V41: 3 | W41: 3700 | X41: v ceně
A42: 44881.29167 | B42: st | C42: 2022-11-16 | E42: Cheport | F42: Tezet | G42: Vizovice | I42: KE-20 | J42: PA | K42: 32 | L42: ne | M42: Kyjov | N42: 07:00:00 | O42: 06:00:00 | Q42: 06:30:00 | R42: Hojač M. | S42: Dokončeno | T42: Chromková L. | V42: 3 | W42: 4150 | X42: v ceně
A43: 44881.33333 | B43: st | C43: 2022-11-16 | E43: Birgma | F43: LKW | G43: Halmstadt | I43: KPHM-20 | J43: PA | L43: ne | M43: Kyjov | N43: 08:00:00 | S43: Zrušeno | T43: Kollerová D.
A44: 44881.33333 | B44: st | C44: 2022-11-16 | E44: TBA | F44: kontejner | G44: Thajsko | I44: KPHM | J44: PA+PY | K44: 99 | M44: Kyjov | N44: 08:00:00 | O44: 07:45:00 | P44: 08:10:00 | Q44: 10:00:00 | S44: Dokončeno | T44: Kollerová D. | V44: 5
A45: 44881.33333 | B45: st | C45: 2022-11-16 | E45: TBA | F45: kontejner | G45: Thajsko | I45: KPHM | J45: PA+PY | K45: 99 | M45: Kyjov | N45: 08:00:00 | O45: 08:20:00 | P45: 10:00:00 | Q45: 11:00:00 | S45: Dokončeno | T45: Kollerová D. | V45: 5
A46: 44881.41667 | B46: st | C46: 2022-11-16 | E46: DF Partner | I46: KE-25 | J46: PA | K46: 32 | L46: ano | M46: Kyjov | N46: 10:00:00 | O46: 09:30:00 | P46: 09:50:00 | Q46: 10:30:00 | R46: Hojač M. | S46: Dokončeno | T46: Kollerová D. | U46: vykládal prázdné palety | V46: 3 | X46: v ceně
A47: 44881.5 | B47: st | C47: 2022-11-16 | E47: JPPSK | F47: vlastní | G47: Prievidza | I47: mix | J47: PA | K47: 33 | M47: Kyjov | N47: 12:00:00 | O47: 09:45:00 | P47: 10:00:00 | Q47: 11:30:00 | R47: Antoš J. | S47: Dokončeno | T47: Chromková L. | V47: 3
A48: 44881.54167 | B48: st | C48: 2022-11-16 | E48: Sedata | F48: BSG | G48: Ilmenau | I48: KPHM-20 | J48: pa | K48: 33 | L48: ne | M48: Kyjov | N48: 13:00:00 | O48: 14:00:00 | Q48: 15:00:00 | R48: Antoš J. | S48: Dokončeno | T48: Kollerová D. | U48: L-414-22, vychystáno Robert | V48: 3
A49: 44881.64583 | B49: st | C49: 2022-11-16 | E49: Filmer | F49: BSG | G49: Malchow | I49: KPHM-20 | J49: PA | K49: 66 | M49: Kyjov | N49: 15:30:00 | O49: 15:40:00 | P49: 15:40:00 | S49: Dokončeno | T49: Kollerová D. | U49: L-418-22, zboží vychystáno Robert | V49: 4
A50: 44882 | B50: st | C50: 2022-11-16 | E50: Sodo Duo | F50: Hroza | I50: Luh-1, Kse-5 | J50: PA | K50: 18 | M50: Kyjov | O50: 06:30:00 | Q50: 07:00:00 | R50: Hojač M. | S50: Dokončeno | T50: Chromková L. | V50: 2 | W50: 5100 | X50: přefak1/2 dopravy 3200,- 23010288
A51: 44882 | B51: st | C51: 2022-11-16 | E51: Chemprogres | F51: vlastní | G51: Staré Město | I51: KE-20 | J51: PA | K51: 8 | L51: ano | M51: Kyjov | O51: 07:00:00 | P51: 07:20:00 | Q51: 08:00:00 | R51: Hojač M. | S51: Dokončeno | T51: Chromková L. | V51: 1
A52: 44882 | B52: st | C52: 2022-11-16 | E52: Antolin | G52: Libaň | I52: Yetti | J52: PA | K52: 30 | L52: ano | M52: Kyjov | Q52: 07:55:00 | R52: Havránek M. | S52: Dokončeno | T52: Chromková L. | V52: 3
A53: 44882 | B53: st | C53: 2022-11-16 | E53: Faurecie | G53: Ml.Boleslav | I53: BMW | J53: PA | K53: 30 | M53: Kyjov | O53: 07:45:00 | P53: 08:10:00 | Q53: 09:15:00 | R53: Kubáček M. | S53: Dokončeno | T53: Gajdošová L. | V53: 3
A54: 44882 | B54: st | C54: 2022-11-16 | E54: TBA | F54: vlastní | G54: Havl.Brod | I54: sudy | J54: PA | K54: 10 | M54: Kyjov | O54: 09:30:00 | P54: 10:15:00 | Q54: 11:00:00 | R54: Doupovec R. | S54: Dokončeno | T54: Kollerová D. | V54: 2
A55: 44882 | B55: st | C55: 2022-11-16 | E55: TBA | F55: vlastní | I55: mix | J55: PA | K55: 9 | L55: ano | M55: Kyjov | O55: 12:40:00 | P55: 12:50:00 | Q55: 13:00:00 | R55: Havránek M. | S55: Dokončeno | T55: Chromková L. | U55: předchystáno | V55: 1
A56: 44882 | B56: st | C56: 2022-11-16 | E56: Transtech | F56: vlastní | G56: Popůvky | I56: KST-10 | J56: PA | K56: 2 | M56: Kyjov | O56: 11:00:00 | P56: 12:00:00 | Q56: 12:15:00 | R56: Kubáček M. | S56: Dokončeno | T56: Chromková L. | V56: 1
A57: 44882 | B57: st | C57: 2022-11-16 | E57: Alter | F57: Tezet | G57: HK | I57: KSE-5 | J57: PA | K57: 32 | M57: Kyjov | O57: 11:30:00 | P57: 12:15:00 | Q57: 12:45:00 | R57: Hojač M. | S57: Dokončeno | T57: Chromková L. | U57: nakládka na pátek 18.11 | V57: 3 | X57: v ceně
A58: 44883 | B58: čt | C58: 2022-11-17 | E58: SVÁTEK | F58: SVÁTEK | S58: Zrušeno | T58: Hochman L.
A59: 44883.5625 | B59: pá | C59: 2022-11-18 | E59: Faurecie | F59: vlastní | G59: Mladá Boleslav | I59: mix | J59: PA | K59: 3 | L59: ne | M59: Kyjov | N59: 13:30:00 | O59: 13:30:00 | P59: 13:35:00 | Q59: 13:45:00 | R59: Kubáček M. | S59: Dokončeno | T59: Gajdošová L. | V59: 1
A60: 44883.58333 | B60: pá | C60: 2022-11-18 | E60: T-net | F60: kontejner | G60: USA | I60: WTB | J60: PA | K60: 99 | L60: ne | M60: Kyjov | N60: 14:00:00 | O60: 14:05:00 | P60: 14:10:00 | Q60: 15:05:00 | R60: Hojač M. | S60: Dokončeno | T60: Chromková L. | U60: předchystané | V60: 5
A61: 44884 | B61: pá | C61: 2022-11-18 | E61: Faurecie | G61: Ml.Boleslav | I61: BMW | J61: PA | K61: 33 | M61: Kyjov | O61: 08:10:00 | P61: 08:15:00 | Q61: 09:15:00 | R61: Kubáček M. | S61: Dokončeno | T61: Gajdošová L. | V61: 3
A62: 44884 | B62: pá | C62: 2022-11-18 | E62: Faurecie | G62: Ml.Boleslav | I62: Defender | J62: PA | K62: 33 | M62: Kyjov | O62: 08:10:00 | P62: 08:15:00 | Q62: 09:15:00 | R62: Kubáček M. | S62: Dokončeno | T62: Gajdošová L. | V62: 3
A63: 44884 | B63: pá | C63: 2022-11-18 | E63: DF Partner | F63: Hroza | G63: Neubuz | I63: KE-25 | J63: PA | M63: Kyjov | S63: Zrušeno | T63: Chromková L.
A64: 44884 | B64: pá | C64: 2022-11-18 | E64: T-Net | G64: Emmerich | J64: PA | K64: 38 | L64: ne | M64: Kyjov | O64: 11:00:00 | P64: 11:30:00 | Q64: 12:00:00 | R64: Hojač M. | S64: Dokončeno | T64: Chromková L. | U64: předchystaný | V64: 4
A65: 44884 | B65: pá | C65: 2022-11-18 | E65: TRUMF | F65: vlastní | G65: Dolní Újezd | I65: KE-10 | J65: PA | K65: 14 | L65: ano | M65: Kyjov | O65: 10:50:00 | P65: 10:55:00 | Q65: 11:15:00 | R65: Havránek M. | S65: Dokončeno | T65: Chromková L. | U65: předchystané | V65: 2
A66: 44884 | B66: pá | C66: 2022-11-18 | D66: příjem palet | E66: T-Net | G66: JPPlast | I66: EU pal | J66: PA | K66: 30 | O66: 07:00:00 | P66: 07:10:00 | Q66: 07:45:00 | R66: Havránek M. | S66: Dokončeno | T66: Pomichálek J. | V66: 3
A67: 44884 | B67: pá | C67: 2022-11-18 | E67: Birgma | G67: Halmstadt | I67: KPHM | J67: PA | K67: 66 | L67: ne | M67: Kyjov | O67: 11:10:00 | P67: 11:30:00 | Q67: 12:20:00 | R67: Doupovec R. | S67: Dokončeno | T67: Kollerová D. | V67: 4
A68: =IF(C68="","",IF(N68="",C68+1,C68+N68)) -> 44884 | B68: =IF(C68="","",+TEXT(C68,"ddD")) -> pá | C68: 2022-11-18 | E68: T-Net | F68: vlastní | I68: Earth plate | J68: PA | K68: 1 | M68: Kyjov | O68: 07:00:00 | P68: 07:10:00 | Q68: 07:45:00 | R68: Havránek M. | S68: Dokončeno | T68: Hochman L. | U68: jedna paleta s 38 kartony, připraveno ve skladu | V68: =IF(K68="","",IF(K68<10,1,IF(K68<=25,2,IF(K68<=35,3,IF(K68<=70,4,5))))) -> 1
A69: 44884 | B69: pá | C69: 2022-11-18 | E69: Faurecie | F69: vlastní | G69: Mladá Boleslav | I69: mix | J69: PA | K69: 18 | M69: Kyjov | O69: 10:30:00 | P69: 10:35:00 | Q69: 11:00:00 | R69: Kubáček M. | S69: Dokončeno | T69: Chromková L. | U69: mimořádná nakládka | V69: 2
A70: 44884 | B70: pá | C70: 2022-11-18 | D70: příjem etiket | E70: Label design | F70: PPL | I70: etikety DF | J70: KA | K70: 3 | L70: ne | M70: Kyjov | O70: 10:30:00 | P70: 10:35:00 | Q70: 10:40:00 | R70: Hojač M. | S70: Dokončeno | T70: Chromková L. | U70: Etikety PHM DF | V70: 1
A71: 44884 | B71: pá | C71: 2022-11-18 | E71: ZON | F71: Tezet | G71: Třebíč | I71: mix | J71: PA | K71: 17 | L71: ne | M71: Kyjov | O71: 11:30:00 | P71: 11:40:00 | Q71: 12:10:00 | R71: Kubáček M. | S71: Dokončeno | T71: Chromková L. | V71: 2 | W71: 3870 | X71: přefaktur. 4000,-Kč fa23010306
A72: 44886.61458 | B72: po | C72: 2022-11-21 | E72: INX | F72: Logmax | G72: Horní Počernice | I72: KA-5 | J72: PA | K72: 64 | M72: Vlkoš | N72: 14:45:00 | O72: 13:00:00 | P72: 13:10:00 | Q72: 14:20:00 | R72: Doupovec R. | S72: Dokončeno | T72: Chromková L. | U72: L-416-22 | V72: 4 | X72: fa dopravy 220105848
A73: 44887 | B73: po | C73: 2022-11-21 | E73: Birgma | F73: LKW | G73: Halmstadt | I73: KPHM-20 | J73: pa | K73: 66 | L73: ne | M73: Kyjov | O73: 11:20:00 | P73: 11:35:00 | Q73: 13:00:00 | R73: Kubáček M. | S73: Dokončeno | T73: Kollerová D. | V73: 4
A74: 44887 | B74: po | C74: 2022-11-21 | E74: T-net | F74: Legarde | G74: Eloyes | I74: mix | J74: PA | K74: 37 | L74: ne | M74: Kyjov | O74: 05:30:00 | P74: 08:20:00 | Q74: 09:20:00 | R74: Doupovec R. | S74: Dokončeno | T74: Gajdošová L. | U74: dokládka s JPSK | V74: 4
A75: 44887 | B75: po | C75: 2022-11-21 | E75: Faurecie | F75: vlastní | G75: Böblingen DE | L75: ne | M75: Kyjov | O75: 12:20:00 | P75: 12:25:00 | Q75: 12:30:00 | R75: Doupovec R. | S75: Dokončeno | T75: Chromková L.
A76: 44887 | B76: po | C76: 2022-11-21 | E76: T-Net | F76: MSB | G76: Eloyes | I76: Zeus | J76: PA | K76: 38 | M76: Kyjov | O76: 06:00:00 | P76: 06:15:00 | Q76: 08:15:00 | R76: Doupovec R. | S76: Dokončeno | T76: Gajdošová L. | U76: Laďa M172 | V76: 4
A77: 44887 | B77: po | C77: 2022-11-21 | E77: Filmer | F77: BSG | G77: Varel | I77: KPHM-10 | J77: PA | K77: 66 | M77: Kyjov | O77: 10:30:00 | P77: 10:45:00 | Q77: 11:30:00 | R77: Kubáček M. | S77: Dokončeno | T77: Kollerová D. | U77: L-419-22 | V77: 4
A78: 44887 | B78: po | C78: 2022-11-21 | E78: Nufarm | F78: JF LOG | G78: Linz | I78: KA-5 | J78: PA | K78: 52 | M78: Kyjov | O78: 06:00:00 | P78: 06:15:00 | Q78: 07:20:00 | R78: Hojač M. | S78: Dokončeno | T78: Gajdošová L. | V78: 4
A79: 44887 | B79: po | C79: 2022-11-21 | E79: DF Partner | F79: Hroza | G79: Neubuz | I79: KPHM-20 | J79: PA | K79: 18 | M79: Kyjov | O79: 07:00:00 | P79: 07:40:00 | Q79: 07:50:00 | R79: Hojač M. | S79: Dokončeno | T79: Chromková L. | U79: předchystané | V79: 2 | W79: 2800 | X79: v ceně
A80: 44887 | B80: po | C80: 2022-11-21 | E80: Groshandel | F80: Joppa | G80: Suhl-Sehmar | I80: KPHM-20 | J80: PA | K80: 38 | M80: Kyjov | O80: 11:00:00 | P80: 11:15:00 | Q80: 12:50:00 | R80: Havránek M. | S80: Dokončeno | T80: Kollerová D. | U80: L-422-22 | V80: 4
A81: 44887 | B81: po | C81: 2022-11-21 | E81: T-net | G81: Páty HU | I81: WTB | J81: PA | K81: 38 | M81: Kyjov | O81: 11:15:00 | P81: 11:20:00 | Q81: 12:00:00 | R81: Hojač M. | S81: Dokončeno | T81: Kollerová D. | V81: 4
A82: 44887 | B82: po | C82: 2022-11-21 | E82: TBA | F82: vlastní | G82: Havl.Brod | I82: mix | J82: PA | K82: 17 | M82: Kyjov | O82: 10:00:00 | P82: 10:00:00 | Q82: 10:30:00 | R82: Havránek M. | S82: Dokončeno | T82: Chromková L. | U82: předchystané | V82: 2
A83: 44887 | B83: po | C83: 2022-11-21 | E83: Filmer | F83: BSG | G83: Varel | I83: KPHM-20 | J83: PA | K83: 66 | M83: Kyjov | O83: 09:20:00 | P83: 09:30:00 | Q83: 10:20:00 | R83: Kubáček M. | S83: Dokončeno | T83: Kollerová D. | U83: L-420-22 | V83: 4
A84: 44887.58333 | B84: út | C84: 2022-11-22 | E84: Těsmat | F84: vlastní | G84: Val. Meziříčí | I84: mix | J84: PA | K84: 3 | M84: Kyjov | N84: 14:00:00 | O84: 13:35:00 | P84: 13:40:00 | Q84: 14:00:00 | R84: Hojač M. | S84: Dokončeno | T84: Chromková L. | V84: 1 | X84: xxx
A85: 44887.60417 | B85: út | C85: 2022-11-22 | E85: Cheport | F85: Tezet | G85: Vizovice | I85: mix | J85: PA | K85: 30 | M85: Kyjov | N85: 14:30:00 | O85: 14:00:00 | P85: 14:05:00 | Q85: 14:30:00 | R85: Doupovec R. | S85: Dokončeno | T85: Chromková L. | U85: vychystáno Hojač | V85: 3 | W85: 4150 | X85: v ceně/nakládka na 24.11.22
A86: 44888 | B86: út | C86: 2022-11-22 | E86: Walser | F86: vlastní | G86: Gallin | I86: Luca | J86: PA | K86: 32 | M86: Kyjov | O86: 10:15:00 | P86: 10:20:00 | Q86: 11:10:00 | R86: Doupovec R. | S86: Dokončeno | T86: Kollerová D. | U86: vychystáno Kubáček | V86: 3
A87: 44888 | B87: út | C87: 2022-11-22 | E87: Antolin | G87: Libáň | I87: seat | J87: PA | K87: 31 | M87: Kyjov | O87: 06:50:00 | P87: 07:05:00 | Q87: 07:55:00 | R87: Havránek M. | S87: Dokončeno | T87: Chromková L. | U87: předchystané Havránek | V87: 3
A88: 44888 | B88: út | C88: 2022-11-22 | E88: Nufarm | F88: Silvan | G88: Linec | I88: KA-5 | J88: PA | K88: 52 | M88: Kyjov | O88: 11:00:00 | P88: 12:00:00 | Q88: 12:45:00 | R88: Hojač M. | S88: Dokončeno | T88: Kollerová D. | U88: vychystáno Hojač | V88: 4
A89: 44888 | B89: út | C89: 2022-11-22 | E89: Cheport | F89: Tezet | G89: Vizovice | I89: Ke-20 | J89: PA | K89: 32 | M89: Kyjov | O89: 06:00:00 | P89: 06:10:00 | Q89: 06:40:00 | R89: Hojač M. | S89: Dokončeno | T89: Chromková L. | V89: 3 | W89: 4150 | X89: v ceně
A90: 44888 | B90: út | C90: 2022-11-22 | E90: T-Net | F90: MSB | G90: Eloys | I90: Zeus | J90: PA | K90: 22 | M90: Kyjov | O90: 10:50:00 | P90: 12:00:00 | Q90: 12:30:00 | R90: Doupovec R. | S90: Dokončeno | T90: Gajdošová L. | U90: M173+JPSK, předchystáno | V90: 2
A91: 44888 | B91: út | C91: 2022-11-22 | E91: SPAK | F91: Intercontact | G91: Sušice | I91: LS-2 | J91: PA | K91: 66 | M91: Kyjov | O91: 07:00:00 | P91: 07:05:00 | Q91: 08:15:00 | R91: Kubáček M. | S91: Dokončeno | T91: Kollerová D. | U91: L-421-22 | V91: 4
A92: 44888 | B92: út | C92: 2022-11-22 | E92: Faurecie | F92: vlastní | G92: Pardubice | I92: F40 | J92: PA | K92: 38 | M92: Kyjov | O92: 07:50:00 | P92: 08:05:00 | Q92: 08:30:00 | R92: Průša M. | S92: Dokončeno | T92: Gajdošová L. | U92: předchystáno Průša M. | V92: 4
A93: 44888 | B93: út | C93: 2022-11-22 | E93: Faurecie | F93: vlastní | G93: Mladá Boleslav | I93: mix | J93: PA | K93: 99 | M93: Kyjov | O93: 10:50:00 | P93: 11:00:00 | Q93: 12:00:00 | R93: Havránek M. | S93: Dokončeno | T93: Gajdošová L. | U93: předchystáno Průša M. | V93: 5
A94: 44888 | B94: út | C94: 2022-11-22 | E94: TOPTRANS | F94: SBS | I94: mix | J94: PA | K94: 4 | M94: Kyjov | O94: 13:50:00 | P94: 14:00:00 | Q94: 14:15:00 | R94: Havránek M. | S94: Dokončeno | T94: Gajdošová L. | U94: vychystáno Havránek | V94: 1
A95: 44888 | B95: út | C95: 2022-11-22 | D95: příjem obalů | E95: Sedsport | F95: vlastní | G95: Myjava | I95: 114777 | J95: PA | K95: 207 | M95: Kyjov | O95: 09:10:00 | P95: 09:15:00 | Q95: 09:45:00 | R95: Hojač M. | S95: Dokončeno | T95: Chromková L. | V95: 5
A96: 44888 | B96: út | C96: 2022-11-22 | E96: ESAB | F96: Schenker | G96: Opole PL | I96: mix | J96: PA | K96: 2 | M96: Kyjov | O96: 08:35:00 | P96: 08:41:00 | Q96: 08:45:00 | R96: Havránek M. | S96: Dokončeno | T96: Gajdošová L. | U96: vychystáno Doupovec | V96: 1
A97: 44888.25 | B97: st | C97: 2022-11-23 | E97: DF Partner | F97: Hroza | G97: Neubuz | I97: mix PHM | J97: PA | K97: 16 | M97: Kyjov | N97: 06:00:00 | O97: 08:30:00 | P97: 08:40:00 | Q97: 09:05:00 | R97: Hojač M. | S97: Dokončeno | T97: Chromková L. | U97: vychystáno | V97: 2 | W97: 2800 | X97: v ceně
A98: 44888.29167 | B98: st | C98: 2022-11-23 | E98: DF Partner | F98: Hroza | G98: Neubuz | I98: KS-3 | J98: PA | K98: 32 | M98: Kyjov | N98: 07:00:00 | O98: 06:20:00 | P98: 06:30:00 | Q98: 07:10:00 | R98: Hojač M. | S98: Dokončeno | T98: Chromková L. | V98: 3 | W98: 3700 | X98: v ceně
A99: 44888.29167 | B99: st | C99: 2022-11-23 | E99: Walser | F99: vlastní | G99: Gallin | I99: Luca | J99: PA | K99: 32 | L99: ano | M99: Kyjov | N99: 07:00:00 | O99: 06:35:00 | P99: 07:00:00 | Q99: 07:40:00 | R99: Havránek M. | S99: Dokončeno | T99: Kollerová D. | V99: 3
A100: 44888.33333 | B100: st | C100: 2022-11-23 | E100: DF Partner | F100: Hroza | G100: Neubuz | I100: KS-3 | J100: PA | K100: 32 | M100: Kyjov | N100: 08:00:00 | O100: 13:25:00 | P100: 13:35:00 | Q100: 14:00:00 | R100: Hojač M. | S100: Dokončeno | T100: Chromková L. | U100: vychystáno Hojač | V100: =IF(K100="","",IF(K100<10,1,IF(K100<=25,2,IF(K100<=35,3,IF(K100<=70,4,5))))) -> 3 | W100: 3700 | X100: v ceně
A101: 44888.375 | B101: st | C101: 2022-11-23 | E101: Faurecie | F101: vlastní | G101: Ml.Boleslav | I101: GEFCO box | J101: PA | K101: 32 | M101: Kyjov | N101: 09:00:00 | O101: 09:20:00 | P101: 09:25:00 | Q101: 09:35:00 | R101: Hojač M. | S101: Dokončeno | T101: Chromková L. | V101: 3
A102: 44888.45486 | B102: st | C102: 2022-11-23 | E102: Groshandel | F102: Joppa | G102: Suhl-Sehmar | I102: KPHM-20 | J102: PA | K102: 38 | M102: Kyjov | N102: 10:55:00 | O102: 10:30:00 | P102: 10:40:00 | Q102: 11:40:00 | R102: Hojač M. | S102: Dokončeno | T102: Kollerová D. | U102: L-423-22 | V102: 4
A103: 44888.45833 | B103: st | C103: 2022-11-23 | E103: Bochemie | F103: vlastní SBS | G103: Bohumín | I103: SDH-50 | J103: PA | K103: 5 | M103: Vlkoš | N103: 11:00:00 | O103: 10:30:00 | P103: 10:40:00 | Q103: 11:00:00 | R103: Doupovec R. | S103: Dokončeno | T103: Chromková L. | U103: předchystáno 21.11.2022 Doupovec | V103: 1
A104: 44888.45833 | B104: st | C104: 2022-11-23 | E104: J.P.Slovakia | F104: Legarde | G104: Prievidza | I104: mix | J104: PA | K104: 30 | M104: Kyjov | N104: 11:00:00 | O104: 10:00:00 | P104: 10:05:00 | Q104: 11:45:00 | R104: Průša M. | S104: Dokončeno | T104: Chromková L. | U104: vychystáno Průša M. | V104: 3
A105: 44888.45833 | B105: st | C105: 2022-11-23 | D105: příjem zboží | E105: J.P.Slovakia | F105: vlastní | G105: Prievidza | I105: mix | J105: PA | K105: 10 | M105: Kyjov | N105: 11:00:00 | O105: 10:00:00 | P105: 10:05:00 | Q105: 11:00:00 | R105: Havránek M. | S105: Dokončeno | T105: Bilíček P. | V105: 2
A106: 44888.5 | B106: st | C106: 2022-11-23 | E106: Faurecie | F106: vlastní | G106: Ml.Bolesv | I106: SE310+UKL | J106: PA | K106: 66 | M106: Kyjov | N106: 12:00:00 | O106: 11:10:00 | P106: 11:30:00 | Q106: 12:40:00 | R106: Doupovec R. | S106: Dokončeno | T106: Gajdošová L. | U106: vychystáno Průša M. | V106: 4
A107: 44888.5 | B107: st | C107: 2022-11-23 | E107: PPUH | F107: vlastní | G107: Zabrze | I107: KSTV-10 | J107: PA | K107: 55 | M107: Kyjov | N107: 12:00:00 | O107: 10:25:00 | P107: 11:20:00 | Q107: 12:30:00 | R107: Doupovec R. | S107: Dokončeno | T107: Kollerová D. | V107: 4
A108: 44888.52083 | B108: st | C108: 2022-11-23 | E108: DF Partner | F108: Hroza | G108: Neubuz | I108: KS-3 | J108: PA | K108: 32 | M108: Kyjov | N108: 12:30:00 | O108: 12:30:00 | P108: 12:35:00 | Q108: 13:00:00 | R108: Hojač M. | S108: Dokončeno | T108: Chromková L. | U108: vychystáno Hojač | V108: 3 | W108: 3700 | X108: v ceně
A109: 44888.54167 | B109: st | C109: 2022-11-23 | E109: Blasser | F109: vlastní | G109: Troubsko | I109: KE-25 | J109: PA | K109: 3 | M109: Kyjov | N109: 13:00:00 | O109: 13:10:00 | P109: 13:20:00 | Q109: 13:45:00 | R109: Hojač M. | S109: Dokončeno | T109: Gajdošová L. | V109: 1
A110: 44888.5625 | B110: st | C110: 2022-11-23 | E110: BJ Project | F110: vlastní | G110: Grodzisk Mazowiecki PL | I110: mix | J110: PA | K110: 33 | M110: Kyjov | N110: 13:30:00 | O110: 14:35:00 | P110: 07:00:00 | Q110: 08:40:00 | R110: Doupovec R. | S110: Dokončeno | T110: Chromková L. | U110: ALEKSANDER MIZERSKI WPY25571 WPY52pt tel. 502945946 | V110: 3
A111: 44888.58333 | B111: st | C111: 2022-11-23 | E111: TOPTRANS | F111: SBS | I111: mix | J111: PA | K111: 5 | M111: Kyjov | N111: 14:00:00 | O111: 14:35:00 | P111: 14:40:00 | Q111: 14:50:00 | R111: Doupovec R. | S111: Dokončeno | T111: Chromková L. | V111: 1
A112: 44888.58333 | B112: st | C112: 2022-11-23 | E112: TOPTRANS/TBA | F112: SBS | I112: LKN-1 reklamace | J112: PA | K112: 1 | M112: Kyjov | N112: 14:00:00 | O112: 13:35:00 | P112: 13:45:00 | Q112: 13:50:00 | R112: Doupovec R. | S112: Dokončeno | T112: Chromková L. | V112: 1
A113: 44889 | B113: st | C113: 2022-11-23 | D113: příjem | E113: NNR+Dacher | F113: Dacher | G113: DE | I113: ?? | J113: PA | K113: 6 | M113: Kyjov | O113: 14:15:00 | P113: 14:20:00 | Q113: 14:30:00 | R113: Průša M. | S113: Dokončeno | U113: bez DL,pouze CMR,těsnění ZEUS | V113: 1
A114: 44889.25 | B114: čt | C114: 2022-11-24 | E114: OMA | F114: TEZET | G114: Černá Hora | I114: KE-25 | J114: PA | K114: 30 | M114: Kyjov | N114: 06:00:00 | O114: 06:05:00 | P114: 06:10:00 | Q114: 06:30:00 | R114: Hojač M. | S114: Dokončeno | T114: Chromková L. | U114: vychystáno 23.11. | V114: 3 | W114: 4160 | X114: přefaktur. 4200,-Kč fa 23010334
A115: 44889.25 | B115: čt | C115: 2022-11-24 | E115: GA profi | F115: Tezet | G115: Jablonec n.N. | I115: KE-25 | J115: PA | K115: 30 | M115: Kyjov | N115: 06:00:00 | O115: 12:10:00 | P115: 12:50:00 | Q115: 13:10:00 | R115: Hojač M. | S115: Dokončeno | T115: Chromková L. | U115: vychystáno Hojač,nakl. Na 25.11.2022 | V115: 3 | W115: 11000 | X115: v ceně
A116: 44889.27083 | B116: čt | C116: 2022-11-24 | E116: Antolin | F116: vlastní | G116: Libáň | I116: YETI | J116: PA | K116: 42 | L116: ano | M116: Kyjov | N116: 06:30:00 | O116: 06:00:00 | P116: 06:10:00 | Q116: 07:10:00 | R116: Havránek M. | S116: Dokončeno | T116: Chromková L. | V116: 4
A117: 44889.38194 | B117: čt | C117: 2022-11-24 | D117: SBS | E117: Bericap | F117: vlastní | G117: Budenheim DE | I117: uzávěry | J117: PA | K117: 1 | M117: Kyjov | N117: 09:10:00 | O117: 09:10:00 | P117: 09:20:00 | Q117: 09:25:00 | R117: Havránek M. | S117: Dokončeno | T117: Bilíček P. | V117: 1
A118: 44889.38194 | B118: čt | C118: 2022-11-24 | D118: SBS | E118: Bericap | F118: vlastní | G118: Budenheim DE | I118: uzávěry | J118: PA | K118: 1 | M118: Kyjov | N118: 09:10:00 | O118: 09:10:00 | P118: 09:20:00 | Q118: 09:25:00 | R118: Havránek M. | S118: Dokončeno | T118: Bilíček P. | V118: 1
A119: 44889.41667 | B119: čt | C119: 2022-11-24 | E119: D.I.CHEM | F119: vlastní | G119: Šternberk | I119: mix | J119: PA | K119: 33 | M119: Kyjov | N119: 10:00:00 | O119: 10:20:00 | P119: 10:30:00 | Q119: 11:10:00 | R119: Havránek M. | S119: Dokončeno | T119: Chromková L. | U119: vychystáno Doupovec | V119: 3
A120: 44889.4375 | B120: čt | C120: 2022-11-24 | E120: TBA | F120: vlastní | G120: Havl.Brod | I120: mix | J120: PA | K120: 11 | L120: ne | M120: Kyjov | N120: 10:30:00 | O120: 10:20:00 | P120: 10:25:00 | Q120: 10:40:00 | R120: Kubáček M. | S120: Dokončeno | T120: Chromková L. | U120: vychystáno Havránek | V120: 2
A121: 44889.45833 | B121: čt | C121: 2022-11-24 | D121: příjem zboží | E121: VYPL | F121: TEZET | G121: Rakvice | I121: mix | J121: PA | K121: 33 | M121: Kyjov | N121: 11:00:00 | R121: Kubáček M. | S121: Dokončeno | T121: Chromková L. | V121: 3 | X121: L-428-22
A122: 44889.47917 | B122: čt | C122: 2022-11-24 | E122: DF Partner | F122: Hroza | G122: Neubuz | I122: KS-3 | J122: PA | K122: 32 | M122: Kyjov | N122: 11:30:00 | O122: 10:10:00 | P122: 10:20:00 | Q122: 10:45:00 | R122: Hojač M. | S122: Dokončeno | T122: Chromková L. | U122: vychystáno Hojač | V122: 3 | W122: 3700 | X122: v ceně
A123: 44889.5 | B123: čt | C123: 2022-11-24 | E123: Toptrans | F123: SBS/TBA | I123: reklamace | J123: PA | K123: 1 | M123: Kyjov | N123: 12:00:00 | O123: 10:55:00 | P123: 11:00:00 | Q123: 11:10:00 | R123: Hojač M. | S123: Dokončeno | T123: Chromková L. | U123: vratka | V123: 1
A124: 44889.5 | B124: čt | C124: 2022-11-24 | E124: Cheport | F124: Tezet | G124: Vizovice | I124: mix | J124: PA | K124: 30 | L124: ne | M124: Kyjov | N124: 12:00:00 | O124: 12:10:00 | P124: 12:30:00 | Q124: 13:00:00 | R124: Havránek M. | S124: Dokončeno | T124: Chromková L. | U124: nakládka na pondělí 28.11.2022 | V124: 3 | W124: 4150 | X124: v ceně
A125: 44889.54167 | B125: čt | C125: 2022-11-24 | E125: Avena | F125: vlastní | G125: Bzenec | I125: SDH-50 | J125: PA | K125: 5 | L125: ano | M125: Kyjov | N125: 13:00:00 | O125: 12:10:00 | P125: 12:30:00 | Q125: 12:45:00 | R125: Hojač M. | S125: Dokončeno | T125: Chromková L. | U125: vychystáno Doupovec | V125: 1
A126: 44889.54167 | B126: čt | C126: 2022-11-24 | E126: Faurecie | F126: vlastní | G126: Ml.Boleslav | I126: SE310+UKL | J126: PA | K126: 66 | L126: ano | M126: Kyjov | N126: 13:00:00 | O126: 11:00:00 | P126: 11:05:00 | Q126: 12:00:00 | S126: Dokončeno | T126: Gajdošová L. | U126: vychystáno Kubáček, naložil řidič | V126: 4
A127: 44889.54167 | B127: čt | C127: 2022-11-24 | E127: PK Group | F127: vlastní/TEZET | I127: KOSH50 | J127: PA | K127: 15 | L127: ano | M127: Kyjov | N127: 13:00:00 | O127: 12:00:00 | P127: 12:10:00 | Q127: 13:00:00 | R127: Kubáček M. | S127: Dokončeno | T127: Kollerová D. | U127: vychystáno Hojač | V127: 2
A128: 44889.54167 | B128: čt | C128: 2022-11-24 | D128: příjem | E128: Tichelman | F128: vlastní | I128: pytle | J128: PA | K128: 8 | L128: ano | M128: Kyjov | N128: 13:00:00 | O128: 12:21:00 | P128: 13:00:00 | Q128: 13:20:00 | R128: Havránek M. | S128: Dokončeno | T128: Chromková L. | V128: 1
A129: 44889.5625 | B129: čt | C129: 2022-11-24 | E129: DF Partner | F129: Hroza | G129: Neubuz | I129: KS-3 | J129: PA | K129: 32 | M129: Kyjov | N129: 13:30:00 | O129: 13:30:00 | P129: 13:35:00 | Q129: 13:55:00 | R129: Hojač M. | S129: Dokončeno | T129: Chromková L. | U129: vychystáno 24.11 Hojač nakl.na 25.11. | V129: 3 | W129: 3700 | X129: v ceně
A130: 44890 | B130: čt | C130: 2022-11-24 | E130: PK Group | F130: vlastní | G130: Dubňany | I130: SOT 220 | K130: 5 | M130: Kyjov | O130: 08:40:00 | P130: 08:40:00 | Q130: 09:00:00 | R130: Doupovec R. | S130: Dokončeno | T130: Kollerová D. | V130: 1
A131: 44890 | B131: čt | C131: 2022-11-24 | D131: příjem | E131: Bericap | F131: SBS | G131: Budenheim DE | I131: uzávěry | J131: PA | K131: 3 | M131: Kyjov | O131: 07:50:00 | P131: 08:00:00 | Q131: 08:05:00 | R131: Havránek M. | S131: Dokončeno | T131: Bilíček P. | V131: 1
A132: =IF(C132="","",IF(N132="",C132+1,C132+N132)) -> 44890 | B132: =IF(C132="","",+TEXT(C132,"ddD")) -> čt | C132: 2022-11-24 | E132: PK Group | F132: vlastní | G132: Dubňany | I132: SOT220 | K132: 5 | M132: Kyjov | O132: 09:45:00 | P132: 09:45:00 | Q132: 10:00:00 | R132: Doupovec R. | S132: Dokončeno | T132: Kollerová D. | V132: 1
A133: 44890 | B133: čt | C133: 2022-11-24 | E133: Pet Power | G133: Wittau | I133: KE-10 | J133: PA | K133: 15 | M133: Kyjov | O133: 13:15:00 | Q133: 14:30:00 | S133: Dokončeno | T133: Kollerová D. | V133: 2
A134: 44890.25 | B134: pá | C134: 2022-11-25 | E134: DF Partner | F134: Hroza | G134: Neubuz | I134: KS-3 | J134: PA | K134: 28 | M134: Kyjov | N134: 06:00:00 | O134: 10:30:00 | P134: 10:40:00 | Q134: 11:10:00 | R134: Hojač M. | S134: Dokončeno | T134: Chromková L. | U134: vychystáno Hojač 25.11. nakl. Na 28.11 | V134: 3 | W134: 3700 | X134: v ceně
A135: 44890.27083 | B135: pá | C135: 2022-11-25 | E135: DF Partner | F135: Hroza | G135: Neubuz | I135: KS-3 | J135: PA | K135: 32 | M135: Kyjov | N135: 06:30:00 | O135: 13:00:00 | P135: 13:15:00 | Q135: 13:45:00 | R135: Hojač M. | S135: Dokončeno | T135: Chromková L. | U135: vychystáno 24.11. Hojač | V135: =IF(K135="","",IF(K135<10,1,IF(K135<=25,2,IF(K135<=35,3,IF(K135<=70,4,5))))) -> 3 | W135: 3700 | X135: v ceně
A136: 44890.31597 | B136: pá | C136: 2022-11-25 | D136: příjem palet | E136: M.A.T. | F136: vlastní | G136: Plzeň | I136: palety | J136: PA | K136: 183 | M136: Kyjov | N136: 07:35:00 | O136: 07:35:00 | P136: 07:40:00 | Q136: 08:00:00 | R136: Havránek M. | S136: Dokončeno | T136: Chromková L. | U136: vratka palet | V136: 5
A137: 44890.33333 | B137: pá | C137: 2022-11-25 | E137: Nufarm | F137: Silvan | G137: Linz AT | H137: 2BJ3255 | I137: KA-5 | J137: PA | K137: 52 | L137: ne | M137: Kyjov | N137: 08:00:00 | O137: 11:00:00 | P137: 11:30:00 | Q137: 12:45:00 | R137: Havránek M. | S137: Dokončeno | T137: Chromková L. | U137: vychystal Hojač | V137: 4
A138: 44890.33333 | B138: pá | C138: 2022-11-25 | E138: DF Partner | F138: Hroza | G138: Neubuz | I138: KS-3 | J138: PA | K138: 32 | M138: Kyjov | N138: 08:00:00 | O138: 12:10:00 | P138: 12:15:00 | Q138: 12:30:00 | R138: Hojač M. | S138: Dokončeno | T138: Chromková L. | U138: vychystáno Hojač 25.11. nakl. na28.11. | V138: 3 | W138: 3700 | X138: v ceně
A139: 44890.41667 | B139: pá | C139: 2022-11-25 | D139: přijem | E139: M.A.T. | F139: AK servic | G139: Plzeň | I139: palety | J139: PA | K139: 84 | M139: Kyjov | N139: 10:00:00 | O139: 08:25:00 | P139: 08:30:00 | Q139: 08:45:00 | R139: Havránek M. | S139: Dokončeno | T139: Chromková L. | U139: vratka palet | V139: 5
A140: 44890.45139 | B140: pá | C140: 2022-11-25 | E140: Faurecie | F140: vlastní | G140: Ml. Boleslav | I140: UKL | J140: PA | K140: 66 | M140: Kyjov | N140: 10:50:00 | O140: 11:00:00 | P140: 11:15:00 | Q140: 11:30:00 | R140: Kubáček M. | S140: Dokončeno | T140: Gajdošová L. | U140: vychystal Kubáček | V140: 4
A141: 44890.45833 | B141: pá | C141: 2022-11-25 | E141: Fagron | F141: Tezet | G141: Olomouc | I141: mix | J141: PA | K141: 32 | M141: Kyjov | N141: 11:00:00 | O141: 11:00:00 | P141: 11:30:00 | Q141: 12:15:00 | R141: Kubáček M. | S141: Dokončeno | T141: Kollerová D. | U141: vychystáno Kubáček 25.11. | V141: 3 | W141: 4170 | X141: přefaltur. 5200,- Kč fa23010349
A142: 44890.5 | B142: pá | C142: 2022-11-25 | D142: příjem palet | E142: SOV trading | F142: M-logistic | G142: Radkov | H142: 2J86564 | I142: palety WTB | J142: PA | K142: 150 | M142: Kyjov | N142: 12:00:00 | O142: 12:10:00 | P142: 12:15:00 | Q142: 13:00:00 | R142: Doupovec R. | S142: Dokončeno | T142: Chromková L. | V142: 5
A143: 44890.5 | B143: pá | C143: 2022-11-25 | E143: TBA | F143: vlastní | G143: Havl.Brod | I143: mix | J143: PA | M143: Kyjov | N143: 12:00:00 | S143: Zrušeno | T143: Chromková L. | U143: nenahlášen ,přesměřován doKelčan
A144: 44890.54167 | B144: pá | C144: 2022-11-25 | E144: M.A.T. | F144: vlastní | G144: Plzeň | I144: mix | J144: PA | K144: 18 | L144: ano | M144: Kyjov | N144: 13:00:00 | O144: 06:00:00 | P144: 06:10:00 | Q144: 07:10:00 | R144: Doupovec R. | S144: Dokončeno | T144: Chromková L. | U144: vratka palet 33 ks | V144: 2
A145: 44891 | B145: pá | C145: 2022-11-25 | E145: Tremalin | F145: Joppa | G145: Nieuwkuijk | I145: U-SK | J145: PA | K145: 5 | M145: Kyjov | Q145: 15:30:00 | R145: Konečný M. | S145: Dokončeno | T145: Gajdošová L. | V145: 1
A146: 44891 | B146: pá | C146: 2022-11-25 | E146: Atuforma | F146: Silvan | G146: Ahaus | I146: Globus | J146: PA | K146: 32 | M146: Kyjov | O146: 08:30:00 | P146: 08:40:00 | Q146: 10:15:00 | R146: Havránek M. | S146: Dokončeno | T146: Gajdošová L. | V146: 3
A147: 44891 | B147: pá | C147: 2022-11-25 | E147: Truck Cargo | F147: vlastní | G147: Buchlovice | I147: KE-10 | J147: PA | K147: 1 | M147: Kyjov | O147: 09:20:00 | P147: 09:20:00 | Q147: 09:30:00 | R147: Hojač M. | S147: Dokončeno | T147: Gajdošová L. | V147: 1
A148: 44893.25 | B148: po | C148: 2022-11-28 | E148: Agrimex | F148: TEZET | G148: Kojetice | I148: KE-25/KE-10 | J148: PA | K148: 32 | M148: Kyjov | N148: 06:00:00 | O148: 11:45:00 | P148: 11:55:00 | Q148: 12:10:00 | R148: Svoboda L. | S148: Dokončeno | T148: Chromková L. | U148: nakládka na 29.11.2022 | V148: 3 | W148: 6080 | X148: v ceně
A149: 44893.25 | B149: po | C149: 2022-11-28 | E149: DF Partner | F149: Hroza | G149: Neubuz | I149: KE-25+LUH-2 | J149: PA | K149: 28 | L149: ano | M149: Kyjov | N149: 06:00:00 | O149: 13:50:00 | P149: 13:55:00 | Q149: 14:15:00 | R149: Hojač M. | S149: Dokončeno | T149: Chromková L. | U149: vychystáno Hojač | V149: 3 | W149: 4200 | X149: v ceně
A150: 44893.25 | B150: po | C150: 2022-11-28 | E150: Cheport | F150: Tezet | G150: Vizovice | I150: mix | J150: PA | K150: 30 | M150: Kyjov | N150: 06:00:00 | O150: 11:45:00 | P150: 11:55:00 | Q150: 12:30:00 | R150: Hojač M. | S150: Dokončeno | T150: Chromková L. | V150: 3 | W150: 4150
A151: 44893.45833 | B151: po | C151: 2022-11-28 | E151: DF Partner | F151: Hroza | G151: Neubuz | I151: KS-3 | J151: PA | K151: 32 | M151: Kyjov | N151: 11:00:00 | S151: Zrušeno | T151: Chromková L. | U151: NOZ2202707 storno obj. | V151: 3 | X151: v ceně
A152: 44893.45833 | B152: po | C152: 2022-11-28 | E152: Faurecie | F152: vlastní | G152: Hlohovec | I152: 52x | J152: PA | K152: 12 | L152: ano | M152: 2022-11-29 | N152: 11:00:00 | O152: 13:45:00 | P152: 13:50:00 | Q152: 14:15:00 | R152: Kubáček M. | S152: Dokončeno | T152: Gajdošová L. | U152: vychystal Svoboda | V152: 2
A153: 44893.5 | B153: po | C153: 2022-11-28 | E153: Merlin | F153: vlastní | G153: Hrušky | I153: mix | J153: PA | K153: 6 | L153: ano | M153: Kyjov | N153: 12:00:00 | O153: 08:30:00 | P153: 08:40:00 | Q153: 08:50:00 | R153: Havránek M. | S153: Dokončeno | T153: Chromková L. | U153: vychystáno | V153: 1
A154: 44893.5 | B154: po | C154: 2022-11-28 | E154: Novato SK | F154: vlastní | G154: Skalica | I154: SDH-40 | J154: PA | K154: 1 | L154: ano | M154: Kyjov | N154: 12:00:00 | O154: 12:30:00 | P154: 12:30:00 | Q154: 12:40:00 | R154: Havránek M. | S154: Dokončeno | T154: Chromková L. | U154: neplánovaný, vychystal Kubáček | V154: 1
A155: 44893.54167 | B155: po | C155: 2022-11-28 | D155: příjem zboží | E155: EBALEN PLUS | F155: TEZET | G155: Olomouc | I155: palety | J155: PA | M155: Kyjov | N155: 13:00:00 | O155: 11:45:00 | P155: 11:55:00 | Q155: 12:10:00 | R155: Svoboda L. | S155: Dokončeno | T155: Chromková L.
A156: 44893.54167 | B156: po | C156: 2022-11-28 | E156: Toptrans | F156: SBS | G156: Hodonín | I156: mix | J156: PA | K156: 10 | M156: Kyjov | N156: 13:00:00 | S156: Dokončeno | T156: Chromková L. | U156: chystal Svoboda | V156: 2
A157: 44893.54167 | B157: po | C157: 2022-11-28 | E157: Rhino | G157: Derby UK | I157: KPHM | J157: PA | K157: 66 | M157: Kyjov | N157: 13:00:00 | O157: 13:00:00 | P157: 13:00:00 | Q157: 13:45:00 | R157: Hojač M. | S157: Dokončeno | T157: Kollerová D. | U157: L-435-22 | V157: 4
A158: 44894 | B158: po | C158: 2022-11-28 | E158: T-net | F158: Legarde | G158: Eloys FRr | I158: mix | J158: PA | K158: 32 | M158: Kyjov | O158: 06:00:00 | P158: 06:10:00 | Q158: 06:50:00 | R158: Doupovec R. | S158: Dokončeno | T158: Gajdošová L. | U158: nakládka v pondělí | V158: 3
A159: 44894 | B159: po | C159: 2022-11-28 | E159: Walser | F159: vlastní | G159: Gallin | I159: LUCA | J159: PA | K159: 32 | L159: ano | M159: Kyjov | O159: 07:40:00 | P159: 08:00:00 | Q159: 09:00:00 | R159: Doupovec R. | S159: Dokončeno | T159: Chromková L. | U159: Dachser avizo | V159: 3
A160: 44894 | B160: po | C160: 2022-11-28 | E160: Filmer | F160: BSG | G160: Malchow | H160: 2BS6114 | I160: KPHM-20 | J160: PA | K160: 66 | M160: Kyjov | O160: 11:00:00 | P160: 11:15:00 | Q160: 11:45:00 | R160: Doupovec R. | S160: Dokončeno | T160: Kollerová D. | V160: 4
A161: 44894 | B161: po | C161: 2022-11-28 | E161: Mmcité | F161: TEZET | G161: Veselí n.Moravou | I161: koš | J161: PA | K161: 26 | M161: Kyjov | O161: 08:20:00 | P161: 08:30:00 | Q161: 09:00:00 | R161: Hojač M. | S161: Dokončeno | T161: Chromková L. | U161: vychystáno Hojač 25.11.2022 | V161: 3 | W161: 3200 | X161: přefaktur. 3300,- Kč fa 23010354
A162: 44894 | B162: po | C162: 2022-11-28 | D162: příjem | E162: Ineos | F162: vlastní | G162: Rolle SUISSE | H162: SC-924AU | I162: Liten-Ineos | J162: PA | K162: 17 | M162: Kyjov | O162: 06:15:00 | P162: 06:20:00 | Q162: 07:10:00 | R162: Havránek M. | S162: Dokončeno | T162: Chromková L. | U162: vykládali dva Havránek + Kubáček M. | V162: 2
A163: 44894 | B163: po | C163: 2022-11-28 | E163: Gabrielchem | F163: SBS | G163: Lázně Bohdaneč | I163: barva | J163: PA | K163: 1 | M163: Kyjov | O163: 10:10:00 | P163: 10:20:00 | Q163: 10:30:00 | R163: Havránek M. | S163: Dokončeno | T163: Chromková L. | V163: 1
A164: 44894 | B164: po | C164: 2022-11-28 | D164: příjem | E164: Slovnaft | F164: vlastní | G164: Bratislava SK | I164: bralen | J164: PA | K164: 2 | L164: ne | M164: Kyjov | O164: 13:35:00 | P164: 13:45:00 | Q164: 13:55:00 | R164: Havránek M. | S164: Dokončeno | T164: Chromková L. | V164: 1
A165: 44894.27083 | B165: út | C165: 2022-11-29 | E165: Antolin | F165: vlastní | G165: Lipovka | I165: SEAT | J165: PA | K165: 19 | L165: ano | M165: Kyjov | N165: 06:30:00 | O165: 06:00:00 | P165: 06:10:00 | Q165: 06:35:00 | R165: Havránek M. | S165: Dokončeno | T165: Chromková L. | U165: vychystáno Havránek 28.11.2022 | V165: 2
A166: 44894.27431 | B166: út | C166: 2022-11-29 | E166: Oma CZ | F166: TEZET | G166: Černá Hora | I166: KE-25 | J166: PA | K166: 16 | L166: ne | M166: Kyjov | N166: 06:35:00 | O166: 11:00:00 | P166: 11:15:00 | Q166: 11:30:00 | R166: Doupovec R. | S166: Dokončeno | T166: Chromková L. | V166: 2 | W166: 3660 | X166: přefaktur. 3700,- Kč fa 23010370
A167: 44894.41667 | B167: út | C167: 2022-11-29 | E167: VYPL | F167: TEZET | G167: Rakvice | I167: mix | J167: PA | M167: Kyjov | N167: 10:00:00 | O167: 08:30:00 | P167: 08:40:00 | Q167: 09:05:00 | R167: Doupovec R. | S167: Dokončeno | T167: Chromková L. | U167: vychystal
A168: 44894.45833 | B168: út | C168: 2022-11-29 | E168: DF Partner | F168: vlastní | G168: Neubuz | I168: KE-25 | J168: PA | K168: 28 | L168: ano | M168: Kyjov | N168: 11:00:00 | O168: 10:15:00 | P168: 10:20:00 | Q168: 10:35:00 | R168: Hojač M. | S168: Dokončeno | T168: Chromková L. | U168: vychystáno Hojač | V168: 3 | X168: v ceně
A169: 44894.45833 | B169: út | C169: 2022-11-29 | E169: Faurecie | F169: vlastní | G169: Pardubice | I169: F40 | J169: PA | K169: 32 | L169: ne | M169: Kyjov | N169: 11:00:00 | O169: 10:30:00 | P169: 10:35:00 | Q169: 10:55:00 | R169: Kubáček M. | S169: Dokončeno | T169: Gajdošová L. | U169: vychystal Kubáček | V169: 3
A170: 44894.47917 | B170: út | C170: 2022-11-29 | D170: příjem | E170: Luášek | F170: vlastní | I170: přípravek dokon.Symfony | J170: PA | K170: 1 | L170: ne | M170: Kyjov | N170: 11:30:00 | O170: 11:45:00 | P170: 11:50:00 | Q170: 12:10:00 | R170: Svoboda L. | S170: Dokončeno | T170: Chromková L. | U170: údržba | V170: 1
A171: 44894.5 | B171: út | C171: 2022-11-29 | E171: TRIX | F171: vlastní | G171: Klíčany | I171: KE-10 | J171: PA | K171: 4 | M171: Kyjov | N171: 12:00:00 | O171: 13:20:00 | P171: 13:30:00 | Q171: 14:00:00 | R171: Doupovec R. | S171: Dokončeno | T171: Chromková L. | U171: vychystal Doupovec | V171: 1
A172: 44894.54167 | B172: út | C172: 2022-11-29 | E172: Faurecie | F172: vlastní | G172: Mladá Boleslav | I172: SE310-UKL | J172: PA | K172: 99 | L172: ano | M172: Kyjov | N172: 13:00:00 | O172: 11:00:00 | P172: 11:15:00 | Q172: 12:00:00 | R172: Kubáček M. | S172: Dokončeno | T172: Gajdošová L. | U172: vychystal Kubáček | V172: 5
A173: 44894.54167 | B173: út | C173: 2022-11-29 | D173: příjem zboží | E173: VYPL | F173: TEZET | G173: Rakvice | I173: mix | J173: PA | K173: 32 | M173: Kyjov | N173: 13:00:00 | O173: 11:45:00 | P173: 11:50:00 | Q173: 12:30:00 | R173: Doupovec R. | S173: Dokončeno | T173: Chromková L. | U173: L-447-22 | V173: 3
A174: 44894.54167 | B174: út | C174: 2022-11-29 | E174: Birgma | F174: vlastní | G174: Halmstadt | H174: GDA9FF5 | I174: KPHM-20 | J174: PA | K174: 66 | M174: Kyjov | N174: 13:00:00 | O174: 14:00:00 | P174: 14:05:00 | Q174: 14:45:00 | R174: Kubáček M. | S174: Dokončeno | T174: Kollerová D. | U174: vychystal / polepil Kubáček | V174: 4
A175: 44894.5625 | B175: út | C175: 2022-11-29 | E175: Toptrans | F175: SBS | G175: Hodonín | I175: mix | J175: PA | K175: 8 | L175: ne | M175: Kyjov | N175: 13:30:00 | Q175: 14:00:00 | R175: Doupovec R. | S175: Dokončeno | T175: Gajdošová L. | U175: chystal Svoboda | V175: 1
A176: 44895 | B176: út | C176: 2022-11-29 | E176: NUfarm | F176: Silvan | G176: Linz | I176: KA-5 | J176: PA | K176: 52 | L176: ne | M176: Kyjov | O176: 06:50:00 | P176: 06:55:00 | Q176: 07:50:00 | R176: Doupovec R. | S176: Dokončeno | T176: Kollerová D. | U176: L-438-22 | V176: 4 | X176: v ceně fa 23020100
A177: 44895 | B177: út | C177: 2022-11-29 | E177: T-NET | F177: MSB | G177: Eloye FR | I177: mix | J177: PA | K177: 24 | M177: Kyjov | O177: 10:40:00 | P177: 10:45:00 | Q177: 11:10:00 | R177: Hojač M. | S177: Dokončeno | T177: Chromková L. | U177: vychystal Havránek | V177: 2 | X177: M177+JPSK
A178: 44895 | B178: út | C178: 2022-11-29 | E178: Nufarm | F178: Silvan | G178: Linz | I178: KA-5 | J178: PA | K178: 52 | L178: ne | M178: Kyjov | O178: 10:00:00 | P178: 10:05:00 | Q178: 11:00:00 | R178: Havránek M. | S178: Dokončeno | T178: Gajdošová L. | U178: L-445-22, vychystal Hojač | V178: 4 | X178: v ceně
A179: 44895 | B179: út | C179: 2022-11-29 | D179: příjem | E179: Bericap | F179: SBS | G179: Neieporet PL | I179: u-polyvent | J179: PA | K179: 1 | L179: ne | M179: Kyjov | O179: 10:35:00 | P179: 10:40:00 | Q179: 10:45:00 | R179: Hojač M. | S179: Dokončeno | T179: Chromková L. | V179: 1
A180: 44895 | B180: út | C180: 2022-11-29 | D180: příjem | E180: Šikuta | F180: Pulpán | G180: Kyjov | I180: etikety | J180: PA | K180: 1 | L180: ne | M180: Kyjov | O180: 13:00:00 | P180: 13:10:00 | Q180: 13:15:00 | R180: Havránek M. | S180: Dokončeno | T180: Chromková L. | V180: 1
A181: 44895.25 | B181: st | C181: 2022-11-30 | E181: Fichema | F181: Hroza | G181: Brno | I181: KE-25 | J181: PA | K181: 18 | L181: ano | M181: Kyjov | N181: 06:00:00 | O181: 06:15:00 | P181: 06:20:00 | Q181: 06:50:00 | R181: Hojač M. | S181: Dokončeno | T181: Chromková L. | U181: vychystal Hojač nakl.30.11.2022 | V181: 2 | W181: 2300 | X181: přefaktur.3300,- Kč fa 23010372
A182: 44895.27083 | B182: st | C182: 2022-11-30 | E182: Puloplastic | F182: vlastní | G182: Slavošov | H182: 2BH3275 | I182: kužel 50 | J182: PA | K182: 33 | M182: Kyjov | N182: 06:30:00 | O182: 10:20:00 | P182: 10:30:00 | Q182: 10:55:00 | R182: Kubáček M. | S182: Dokončeno | T182: Chromková L. | U182: vychystal Kubáček | V182: 3
A183: 44895.33333 | B183: st | C183: 2022-11-30 | E183: Carrier | F183: vlastní | G183: Štěnovice | I183: sifon | J183: KA | K183: 4 | M183: Kyjov | N183: 08:00:00 | S183: Přeplánováno | T183: Chromková L. | U183: vychystal Havránek 29.11.2022 | V183: 1
A184: 44895.4375 | B184: st | C184: 2022-11-30 | E184: TBA | F184: vlastní | G184: Havl.Brod | I184: mix | J184: PA | K184: 10 | M184: Kyjov | N184: 10:30:00 | S184: Zrušeno | T184: Chromková L. | V184: 2
A185: 44895.45833 | B185: st | C185: 2022-11-30 | E185: J.P.SK | F185: vlastní | G185: Prievidza SK | I185: mix | J185: PA | K185: 30 | M185: Kyjov | N185: 11:00:00 | O185: 09:30:00 | P185: 09:45:00 | Q185: 11:00:00 | R185: Svoboda L. | S185: Dokončeno | T185: Chromková L. | V185: 3
A186: 44895.45833 | B186: st | C186: 2022-11-30 | D186: příjem zboží | E186: J.P.SK | F186: vlastní | G186: Prievidza SK | I186: mix | J186: PA | K186: 13 | M186: Kyjov | N186: 11:00:00 | O186: 09:30:00 | P186: 09:45:00 | Q186: 11:00:00 | R186: Havránek M. | S186: Dokončeno | T186: Chromková L. | V186: 2
A187: 44895.45833 | B187: st | C187: 2022-11-30 | E187: Tref | F187: vlastní | G187: Znojmo | I187: KOSH-30 | J187: PA | K187: 1 | M187: Kyjov | N187: 11:00:00 | O187: 10:15:00 | P187: 10:20:00 | Q187: 10:35:00 | R187: Doupovec R. | S187: Dokončeno | T187: Chromková L. | U187: vychystal Svoboda | V187: 1
A188: 44895.5 | B188: st | C188: 2022-11-30 | E188: Faurecie | F188: vlastní | G188: Mladá Boleslav | I188: SE310-UKL | J188: PA | K188: 80 | L188: ano | M188: Kyjov | N188: 12:00:00 | O188: 11:00:00 | P188: 11:15:00 | Q188: 11:45:00 | R188: Kubáček M. | S188: Dokončeno | T188: Chromková L. | U188: vychystal Kubáček | V188: 5
A189: 44895.5 | B189: st | C189: 2022-11-30 | E189: Libors /MAT | F189: vlastní | G189: Ostrava | I189: mix | J189: PA | K189: 2 | L189: ano | M189: Kyjov | N189: 12:00:00 | O189: 11:15:00 | P189: 11:30:00 | Q189: 12:00:00 | R189: Svoboda L. | S189: Dokončeno | T189: Chromková L. | V189: 1
A190: 44895.54167 | B190: st | C190: 2022-11-30 | E190: Toptrans | F190: SBS | G190: Hodonín | I190: mix | J190: PA | L190: ne | M190: Kyjov | N190: 13:00:00 | Q190: 11:00:00 | R190: Svoboda L. | S190: Dokončeno | T190: Chromková L. | U190: vychystal Doupovec
A191: 44896 | B191: st | C191: 2022-11-30 | E191: KOVA | F191: Joppa | G191: Erfurt | I191: KPHM | J191: PA | K191: 38 | M191: Kyjov | O191: 14:00:00 | P191: 14:05:00 | Q191: 15:30:00 | R191: Havránek M. | S191: Dokončeno | T191: Kollerová D. | U191: vychystal Hojač L-434-22 | V191: 4 | W191: 27000 | X191: přefa.1120 Eur
A192: 44896 | B192: st | C192: 2022-11-30 | E192: TBA/Šebesta | F192: vlastní | G192: Kyjov | I192: KE-25 | J192: PA | K192: 10 | M192: Kyjov | O192: 10:10:00 | P192: 10:15:00 | Q192: 10:30:00 | R192: Doupovec R. | S192: Dokončeno | T192: Chromková L. | U192: vychystal Doupovec | V192: 2
A193: 44896 | B193: st | C193: 2022-11-30 | E193: Filmer | F193: BSG | G193: Varel | I193: KPHM-20 | J193: PA | K193: 64 | M193: Kyjov | O193: 13:00:00 | P193: 13:10:00 | Q193: 14:30:00 | R193: Hojač M. | S193: Dokončeno | T193: Kollerová D. | U193: nevychystáno, chyběla paleta,čekal | V193: 4
A194: 44896 | B194: st | C194: 2022-11-30 | E194: Bureš | F194: vlastní | G194: Bořetice | I194: uzávěry | J194: KA | K194: 10 | M194: Kyjov | O194: 08:55:00 | P194: 09:00:00 | Q194: 09:10:00 | R194: Doupovec R. | S194: Dokončeno | T194: Gajdošová L. | U194: vychystnál Dopovec | V194: 2
A195: 44896 | B195: st | C195: 2022-11-30 | E195: Oma CZ | F195: TEZET | G195: Kolín | I195: KE-25,KE-10 | J195: PA | K195: 30 | M195: Kyjov | O195: 10:35:00 | P195: 10:50:00 | Q195: 11:30:00 | R195: Hojač M. | S195: Dokončeno | T195: Chromková L. | U195: vychystáno na 1.12.2022 Hojač | V195: 3 | W195: 7500 | X195: přefaktur. 8200,- Kč fa 23010385
A196: =IF(C196="","",IF(N196="",C196+1,C196+N196)) -> 44896.25 | B196: =IF(C196="","",+TEXT(C196,"ddD")) -> čt | C196: 2022-12-01 | E196: DF Partner | F196: Hroza | G196: Neubuz | I196: KE-25 | J196: PA | K196: 18 | L196: ano | M196: Kyjov | N196: 06:00:00 | O196: 10:40:00 | P196: 10:45:00 | Q196: 11:00:00 | R196: Hojač M. | S196: Dokončeno | T196: Chromková L. | U196: vychystal Hojač na 1.12.2022 | V196: 2 | W196: 3300 | X196: v ceně
A197: 44896.25 | B197: čt | C197: 2022-12-01 | E197: Cheport | F197: TEZET | G197: Vizovice | I197: mix | J197: PA | K197: 30 | L197: ne | M197: Kyjov | N197: 06:00:00 | O197: 06:00:00 | P197: 06:10:00 | Q197: 07:00:00 | R197: Hojač M. | S197: Dokončeno | T197: Chromková L. | V197: 3 | W197: 4150 | X197: v ceně
A198: 44896.25694 | B198: čt | C198: 2022-12-01 | E198: Elagro | F198: TEZET | G198: Sazomín | I198: mix | J198: PA | K198: 13 | L198: ano | M198: Kyjov/Vlkoš | N198: 06:10:00 | O198: 11:15:00 | P198: 11:30:00 | Q198: 12:30:00 | R198: Doupovec R. | S198: Dokončeno | T198: Chromková L. | U198: vychystáno 30.11.Doupovec na2.12.2022 | V198: 2 | W198: 4680 | X198: přefaktur. 4800,- Kč fa 23010391
A199: 44896.27083 | B199: čt | C199: 2022-12-01 | E199: Antolin | F199: vlastní | G199: Lipovka | I199: YETI | J199: PA | K199: 28 | L199: ano | M199: Kyjov | N199: 06:30:00 | O199: 06:35:00 | P199: 06:40:00 | Q199: 07:05:00 | R199: Havránek M. | S199: Dokončeno | T199: Chromková L. | V199: =IF(K199="","",IF(K199<10,1,IF(K199<=25,2,IF(K199<=35,3,IF(K199<=70,4,5))))) -> 3
A200: 44896.27083 | B200: čt | C200: 2022-12-01 | E200: Antolin | F200: vlastní | G200: Lipovka | I200: YETI | J200: PA | K200: 6 | L200: ne | M200: Kyjov | N200: 06:30:00 | O200: 06:35:00 | P200: 06:40:00 | Q200: 07:05:00 | R200: Havránek M. | S200: Dokončeno | T200: Chromková L. | U200: 2.auto/ vychystal Hojač | V200: 1
A201: 44896.29167 | B201: čt | C201: 2022-12-01 | E201: Ekotech | F201: vlastní | G201: Ukrajina | H201: ВС3673СМ / ВС8573ХТ | I201: KPHM | J201: PA | K201: 38 | M201: Kyjov | N201: 07:00:00 | O201: 06:50:00 | P201: 07:10:00 | Q201: 10:30:00 | R201: Kubáček M. | S201: Dokončeno | T201: Kollerová D. | U201: řidič - Bonk Oleh, mobil +380680139874, +48880081442 | V201: 4
... 38 more rows

Sheet 12
D1: ZÁZNAMY NA TOMTO LISTU: 05.12.22 - 30.12.2022 | G1: DNEŠNÍ DATUM: | I1: =+TODAY() -> 2023-02-01 | N1: AKTUÁLNÍ ČAS: | P1: =NOW() -> 44958.55435 | S1: AKTUÁLNÍ MĚSÍC: | U1: =+I1 -> 2023-02-01 | W1: Informace pro NÁKUP
A2: pořadí | B2: Den | C2: Datum | D2: Expedice číslo (PDL ?) | E2: Zákazník | F2: Dopravce | G2: Destinace | H2: SPZ | I2: název výrobku | J2: balení | K2: počet balení | L2: Vratka palet (ano/ne) | M2: místo nakládky | N2: Plán. příjezd | O2: Skutečný příjezd | P2: Start nakládky | Q2: Konec nakládky | R2: Expedoval | S2: Status | T2: Naplánoval | U2: Poznámka | V2: složitost | W2: Cena přepravy | X2: přefaktuace / doplňující informace
A4: =IF(C4="","",IF(N4="",C4+1,C4+N4)) -> 44900.25 | B4: =IF(C4="","",+TEXT(C4,"ddD")) -> po | C4: 2022-12-05 | E4: DF | F4: Hroza | G4: Neubuz | I4: KS-3 | J4: PA | K4: 32 | M4: Kyjov | N4: 06:00:00 | R4: Hojač M. | S4: Dokončeno | T4: Chromková L. | U4: naloženo v pátek | V4: =IF(K4="","",IF(K4<10,1,IF(K4<=25,2,IF(K4<=35,3,IF(K4<=70,4,5))))) -> 3 | W4: 2800 | X4: v ceně
A5: 44900.25 | B5: po | C5: 2022-12-05 | E5: DF | F5: Hroza | G5: Neubuz | I5: PHM | J5: PA | K5: 18 | M5: Kyjov | N5: 06:00:00 | O5: 07:10:00 | P5: 07:20:00 | Q5: 07:30:00 | R5: Hojač M. | S5: Dokončeno | T5: Chromková L. | U5: vychystáno Hojač | V5: 2 | W5: 3700 | X5: v ceně
A6: 44900.25 | B6: po | C6: 2022-12-05 | E6: DF | F6: Hroza | G6: Neubuz | I6: KS-3 | J6: PA | K6: 32 | M6: Kyjov | N6: 06:00:00 | O6: 10:30:00 | P6: 10:35:00 | Q6: 10:55:00 | R6: Hojač M. | S6: Dokončeno | T6: Chromková L. | U6: vychystánoHojač na 6.12. | V6: 3 | W6: 3700 | X6: v ceně
A7: 44900.25 | B7: po | C7: 2022-12-05 | E7: DF | F7: Hroza | G7: Neubuz | I7: PHM-20 AT | J7: PA | K7: 18 | L7: ano | M7: Kyjov | N7: 06:00:00 | O7: 12:00:00 | P7: 12:05:00 | Q7: 12:25:00 | R7: Hojač M. | S7: Dokončeno | T7: Chromková L. | U7: vychystáno Hojač na 6.12. | V7: 2 | W7: 3300 | X7: v ceně
A8: 44900.25 | B8: po | C8: 2022-12-05 | E8: J.P.SK-Duslo | F8: TEZET | G8: Šala SK | I8: KSE-5 | J8: PA | K8: 15 | L8: ano | M8: Kyjov | N8: 06:00:00 | O8: 10:00:00 | P8: 10:05:00 | Q8: 10:30:00 | R8: Hojač M. | S8: Dokončeno | T8: Chromková L. | U8: nakládka na 6.12. | V8: 2 | W8: 4000 | X8: přefaktur. 190eur fa 23020114
A9: 44900.33333 | B9: po | C9: 2022-12-05 | E9: T-Net | F9: MSB | G9: Eloyes | I9: Zeus | J9: PA | K9: 33 | M9: Kyjov | N9: 08:00:00 | O9: 06:30:00 | P9: 06:40:00 | Q9: 07:30:00 | R9: Doupovec R. | S9: Dokončeno | T9: Gajdošová L. | V9: 3
A10: 44900.375 | B10: po | C10: 2022-12-05 | E10: Nufarm | F10: BSG | G10: Linec | I10: KA-5 | J10: PA | K10: 52 | M10: Kyjov | N10: 09:00:00 | O10: 09:15:00 | P10: 09:20:00 | Q10: 10:00:00 | R10: Svoboda L. | S10: Dokončeno | T10: Kollerová D. | U10: vychystáno Svoboda | V10: 4 | X10: v ceně
A11: 44900.41667 | B11: po | C11: 2022-12-05 | E11: Nufarm | F11: Silvan | G11: Linec | I11: KA-5 | J11: PA | K11: 52 | M11: Kyjov | N11: 10:00:00 | O11: 09:30:00 | P11: 09:40:00 | Q11: 10:00:00 | R11: Průša M. | S11: Dokončeno | T11: Kollerová D. | U11: vychystáno Průša | V11: 4 | X11: v ceně
A12: 44900.45833 | B12: po | C12: 2022-12-05 | E12: Nufarm | F12: Silvan | G12: Linec | I12: KA-5 | J12: PA | K12: 52 | M12: Kyjov | N12: 11:00:00 | O12: 10:45:00 | P12: 10:50:00 | Q12: 11:30:00 | R12: Benedík M. | S12: Dokončeno | T12: Kollerová D. | V12: 4 | X12: v ceně
A13: 44900.45833 | B13: po | C13: 2022-12-05 | E13: Lifocolor | F13: Zdeněk Pulpán | G13: Kyjov | I13: barviva | J13: PA | K13: 3 | M13: Kyjov | N13: 11:00:00 | Q13: 14:00:00 | R13: Průša M. | S13: Dokončeno | T13: Bilíček P. | V13: 1
A14: 44900.54167 | B14: po | C14: 2022-12-05 | E14: Plastimex/MAT | F14: vlastní | G14: Prostějov | I14: mix | J14: PA | K14: 3 | M14: Kyjov | N14: 13:00:00 | O14: 12:20:00 | P14: 12:25:00 | Q14: 12:35:00 | R14: Svoboda L. | S14: Dokončeno | T14: Chromková L. | U14: vychystánoí svoboda | V14: 1
A15: 44900.58333 | B15: po | C15: 2022-12-05 | E15: Faurecia | F15: vlastní | G15: Hlohovec | I15: 52X | J15: PA | K15: 13 | L15: ano | M15: Kyjov | N15: 14:00:00 | O15: 13:00:00 | P15: 13:05:00 | Q15: 13:30:00 | R15: Průša M. | S15: Dokončeno | T15: Gajdošová L. | U15: vychystal Průša | V15: 2
A16: 44901 | B16: po | C16: 2022-12-05 | E16: FIlmer | F16: Logmax | G16: Varel | I16: KPHM | J16: PA | K16: 70 | M16: Kyjov | O16: 13:30:00 | P16: 13:40:00 | Q16: 15:15:00 | R16: Svoboda L. | S16: Dokončeno | T16: Kollerová D. | U16: vychystal Kubáček | V16: 4 | X16: v ceně
A17: 44901 | B17: po | C17: 2022-12-05 | E17: Toptrans | F17: Toptrans | I17: mix | J17: PA | K17: 7 | M17: Kyjov | Q17: 14:00:00 | R17: Havránek M. | S17: Dokončeno | T17: Gajdošová L. | U17: vychystal Havránek | V17: 1
A18: 44901.25069 | B18: út | C18: 2022-12-06 | E18: DF | F18: Hroza | G18: Neubuz | I18: KS-3 | J18: PA | K18: 32 | M18: Kyjov | N18: 06:01:00 | O18: 10:00:00 | P18: 10:05:00 | Q18: 10:20:00 | R18: Hojač M. | S18: Dokončeno | T18: Chromková L. | U18: vychystáno Hojač | V18: 3 | W18: 3700 | X18: v ceně
A19: 44901.25069 | B19: út | C19: 2022-12-06 | E19: DF | F19: Hroza | G19: Neubuz | I19: KS-3 | J19: PA | K19: 32 | L19: ano | M19: Kyjov | N19: 06:01:00 | O19: 15:00:00 | P19: 15:10:00 | Q19: 15:35:00 | R19: Průša J. | S19: Dokončeno | T19: Chromková L. | U19: vychystáno Hojač na 7.12. | V19: 3 | W19: 4200 | X19: v ceně
A20: 44901.29167 | B20: út | C20: 2022-12-06 | D20: příjem | E20: BELSHINA | F20: vlastní | G20: Kyjov | H20: 7Z0 1040; 4Z9 2327; Ďurica | I20: 561 EUR palet | J20: PA | K20: 33 | N20: 07:00:00 | O20: 07:30:00 | P20: 07:35:00 | Q20: 08:30:00 | R20: Průša M. | S20: Dokončeno | T20: Bilíček P. | V20: 3
A21: 44901.41667 | B21: út | C21: 2022-12-06 | E21: Toptrans | F21: Toptrans | I21: mix | J21: PA | K21: 16 | M21: Kyjov | N21: 10:00:00 | O21: 12:00:00 | Q21: 12:30:00 | R21: Svoboda L. | S21: Dokončeno | T21: Gajdošová L. | U21: vychystáno Havránek | V21: 2
A22: 44901.4375 | B22: út | C22: 2022-12-06 | E22: TBA | F22: vlastní | G22: Havl.Brod | H22: p.Mazuch | I22: mix | J22: PA | K22: 9 | M22: Kyjov | N22: 10:30:00 | O22: 09:30:00 | P22: 09:40:00 | Q22: 10:00:00 | R22: Svoboda L. | S22: Dokončeno | T22: Chromková L. | U22: vychystáno Doupovec | V22: 1
A23: 44901.5 | B23: út | C23: 2022-12-06 | E23: T-Net | F23: MSB | G23: Eloyes | I23: mix | J23: PA | K23: 33 | M23: Kyjov+Vlkoš | N23: 12:00:00 | O23: 11:30:00 | P23: 11:40:00 | Q23: 13:00:00 | R23: Doupovec R. | S23: Dokončeno | T23: Gajdošová L. | U23: nakládka Vlkoš+Kyjov,Vdoupovec | V23: 3
A24: 44901.5 | B24: út | C24: 2022-12-06 | E24: Ozas-Esab | F24: Schenker | G24: Opole | I24: NDK | J24: PA | K24: 1 | M24: Kyjov | N24: 12:00:00 | O24: 12:45:00 | P24: 12:45:00 | Q24: 12:50:00 | R24: Hojač M. | S24: Dokončeno | T24: Gajdošová L. | U24: vychystáno Havránek | V24: 1
A25: 44901.54167 | B25: út | C25: 2022-12-06 | E25: Flexfill | F25: interkontakt | G25: Lovosice | H25: 8B09033 | I25: KDF-30 | J25: PA | K25: 66 | L25: ne | M25: Kyjov | N25: 13:00:00 | O25: 10:15:00 | P25: 10:30:00 | Q25: 11:15:00 | R25: Havránek M. | S25: Dokončeno | T25: Chromková L. | U25: L452-22 | V25: 4 | X25: v ceně
A26: 44901.58333 | B26: út | C26: 2022-12-06 | D26: příjem | E26: T-NET | F26: T-NET | G26: Kyjov | H26: 2B4 4135 | I26: PCR materiál | J26: PA | K26: 10 | M26: Kyjov | N26: 14:00:00 | O26: 11:30:00 | P26: 11:35:00 | Q26: 12:00:00 | R26: Havránek M. | S26: Dokončeno | T26: Hochman L. | V26: 2
A27: 44901.58333 | B27: út | C27: 2022-12-06 | E27: Faurecia | F27: vlastní | G27: Pardubice | I27: F40 | J27: PA | K27: 29 | L27: ano | M27: Kyjov | N27: 14:00:00 | O27: 08:00:00 | P27: 08:20:00 | Q27: 09:00:00 | R27: Havránek M. | S27: Dokončeno | T27: Gajdošová L. | U27: vychystal Průša | V27: 3
A28: 44901.59028 | B28: út | C28: 2022-12-06 | E28: Faurecie | F28: vlastní | G28: Mladá Boleslav | I28: 194X | J28: PA | K28: 19 | M28: Kyjov | N28: 14:10:00 | O28: 10:15:00 | P28: 10:25:00 | Q28: 10:40:00 | R28: Průša M. | S28: Dokončeno | T28: Gajdošová L. | U28: extra auto | V28: 2
A29: 44902 | B29: út | C29: 2022-12-06 | E29: Faurecie | F29: vlastní | G29: Mladá Boleslav | I29: Defender+SE+BMW | J29: PA | K29: 81 | L29: ano | M29: Kyjov | O29: 11:15:00 | P29: 11:30:00 | Q29: 12:40:00 | R29: Průša M. | S29: Dokončeno | T29: Gajdošová L. | V29: 5
A30: 44902 | B30: út | C30: 2022-12-06 | E30: Nufarm | F30: Silvan | G30: Linz | I30: KA-5 | J30: PA | K30: 52 | M30: Kyjov | O30: 11:45:00 | P30: 11:50:00 | Q30: 12:15:00 | R30: Hojač M. | S30: Dokončeno | T30: Gajdošová L. | V30: 4
A31: 44902 | B31: út | C31: 2022-12-06 | E31: Kopeček | F31: vlastní | G31: Dubňany | I31: KE-15 | J31: PA | K31: 1 | M31: Kyjov | O31: 09:30:00 | P31: 10:00:00 | Q31: 10:15:00 | R31: Svoboda L. | S31: Dokončeno | T31: Chromková L. | V31: 1
A32: 44902 | B32: út | C32: 2022-12-06 | E32: Permedia | F32: SBS | G32: Lublin PL | I32: barva bílá | J32: PA | K32: 1 | M32: Kyjov | O32: 10:30:00 | P32: 10:35:00 | Q32: 10:55:00 | R32: Hojač M. | S32: Dokončeno | T32: Chromková L. | V32: 1
A33: 44902 | B33: út | C33: 2022-12-06 | D33: příjem | E33: Sembodja/ABAMIL | F33: DOBOS | I33: barva bílá | J33: PA | K33: 2 | M33: Kyjov | O33: 15:05:00 | P33: 15:10:00 | Q33: 15:15:00 | R33: Průša J. | S33: Dokončeno | T33: Chromková L. | V33: 1
A34: 44902.25 | B34: st | C34: 2022-12-07 | E34: DF | F34: Hroza | G34: Neubuz | I34: KS-3 | J34: PA | K34: 32 | M34: Kyjov | N34: 06:00:00 | O34: 11:20:00 | P34: 11:25:00 | Q34: 11:50:00 | R34: Hojač M. | S34: Dokončeno | T34: Chromková L. | U34: vychystáno Hojač na | V34: 3 | W34: 3700 | X34: v ceně
A35: 44902.25 | B35: st | C35: 2022-12-07 | E35: DF | F35: Hroza | G35: Neubuz | I35: PHM-20 AT | J35: PA | K35: 18 | M35: Kyjov | N35: 06:00:00 | O35: 13:00:00 | P35: 13:10:00 | Q35: 13:30:00 | R35: Hojač M. | S35: Dokončeno | T35: Chromková L. | U35: vychysstáno Hojač na 7.12. | V35: 2 | W35: 3700 | X35: v ceně
A36: 44902.25694 | B36: st | C36: 2022-12-07 | E36: Antolin | F36: vlastní | G36: Lipovka | I36: SEAT | J36: PA | K36: 37 | M36: Kyjov | N36: 06:10:00 | O36: 06:05:00 | P36: 06:10:00 | Q36: 06:50:00 | R36: Havránek M. | S36: Dokončeno | T36: Chromková L. | U36: na 7.12.2022/mají inventury | V36: 4
A37: 44902.29167 | B37: st | C37: 2022-12-07 | E37: Sedasport | F37: vlastní | G37: Myjava SK | I37: sedak/opěrka | J37: PA | K37: 10 | M37: Kyjov | N37: 07:00:00 | O37: 10:55:00 | P37: 11:20:00 | Q37: 12:00:00 | R37: Havránek M. | S37: Dokončeno | T37: Chromková L. | V37: 2
A38: 44902.33333 | B38: st | C38: 2022-12-07 | E38: Carrier | F38: vlastní | G38: Štěnovice | I38: sifon | J38: KA | K38: 4 | M38: Kyjov | N38: 08:00:00 | O38: 08:35:00 | P38: 08:40:00 | Q38: 08:45:00 | R38: Svoboda L. | S38: Dokončeno | T38: Chromková L. | U38: vychystáno Benedík | V38: 1
A39: 44902.33333 | B39: st | C39: 2022-12-07 | D39: příjem | E39: Model Obaly | F39: vlastní | G39: Kyjov | I39: kartony | J39: PA | K39: 3 | M39: Opava | N39: 08:00:00 | O39: 09:15:00 | P39: 09:20:00 | Q39: 09:30:00 | R39: Doupovec R. | S39: Dokončeno | T39: Bilíček P. | V39: 1
A40: 44902.4375 | B40: st | C40: 2022-12-07 | E40: Kopeček | F40: vlastní | G40: Dubňany | I40: KOSH-50 | J40: PA | K40: 14 | M40: Kyjov | N40: 10:30:00 | O40: 09:15:00 | P40: 09:20:00 | Q40: 09:25:00 | R40: Průša M. | S40: Dokončeno | T40: Gajdošová L. | U40: vychystáno Svoboda 6.12. | V40: 2
A41: 44902.4375 | B41: st | C41: 2022-12-07 | E41: TBA | F41: vlastní | G41: Havl.Brod | H41: Vašák ml. | I41: mix | J41: PA | K41: 9 | M41: Kyjov | N41: 10:30:00 | O41: 13:45:00 | P41: 13:50:00 | Q41: 14:00:00 | R41: Doupovec R. | S41: Dokončeno | T41: Chromková L. | U41: vychystáno Doupovec | V41: 1
A42: 44902.45833 | B42: st | C42: 2022-12-07 | D42: příjem | E42: VYPL | F42: TEZET | G42: Kyjov | I42: LUH-2; LKT-1; LUH-1 | J42: PA | K42: 33 | M42: Rakvice | N42: 11:00:00 | O42: 10:30:00 | P42: 10:35:00 | Q42: 10:50:00 | R42: Kubáček M. | S42: Dokončeno | T42: Bilíček P. | U42: L468-22 | V42: 3 | W42: 3000
A43: 44902.47917 | B43: st | C43: 2022-12-07 | E43: VYPL | F43: TEZET | G43: Rakvice | I43: prázdné palety | J43: PA | K43: 18 | M43: Kyjov | N43: 11:30:00 | O43: 10:30:00 | P43: 10:35:00 | Q43: 10:50:00 | R43: Kubáček M. | S43: Dokončeno | T43: Bilíček P. | U43: vychystáno Kubáček | V43: 2
A44: 44902.5 | B44: st | C44: 2022-12-07 | E44: Bikapack | F44: Logmax | G44: Vídeň | I44: LUH-2 | J44: PA | K44: 33 | M44: Kyjov | N44: 12:00:00 | O44: 09:40:00 | P44: 09:50:00 | Q44: 10:30:00 | R44: Havránek M. | S44: Dokončeno | T44: Gajdošová L. | U44: L-472-22, vychystal Havránek | V44: 3 | X44: v ceně
A45: 44902.58333 | B45: st | C45: 2022-12-07 | E45: Faurecie | F45: vlastní | G45: Mladá Boleslav | I45: Defender+SE+BMW | J45: PA | K45: 82 | L45: ano | M45: Kyjov | N45: 14:00:00 | O45: 11:10:00 | P45: 11:30:00 | Q45: 12:15:00 | R45: Průša M. | S45: Dokončeno | T45: Gajdošová L. | U45: vychystal Průša | V45: 5 | X45: v ceně
A46: 44902.59028 | B46: st | C46: 2022-12-07 | E46: Faurecia | F46: vlastní | G46: Hlohovec | I46: 52X | J46: PA | L46: ano | M46: Kyjov | N46: 14:10:00 | S46: Zrušeno | T46: Gajdošová L. | U46: zrušená nakldáka snížení požad.
A47: 44903 | B47: st | C47: 2022-12-07 | E47: Envirotech | F47: vlastní | I47: KOSH-20 | J47: PA | K47: 1 | M47: Kyjov | O47: 10:30:00 | P47: 10:35:00 | Q47: 10:45:00 | R47: Průša M. | S47: Dokončeno | T47: Kollerová D. | V47: 1
A48: 44903 | B48: st | C48: 2022-12-07 | E48: Toptrans | F48: SBS | I48: LUH-2 | J48: PA | K48: 1 | M48: Kyjov | Q48: 13:00:00 | R48: Havránek M. | S48: Dokončeno | T48: Gajdošová L. | U48: vychystal Svoboda | V48: 1
A49: 44903.25 | B49: čt | C49: 2022-12-08 | E49: DF | F49: Hroza | G49: Neubuz | I49: KS-3 | J49: PA | K49: 32 | L49: ano | M49: Kyjov | N49: 06:00:00 | O49: 06:00:00 | P49: 06:05:00 | Q49: 06:20:00 | R49: Hojač M. | S49: Dokončeno | T49: Chromková L. | V49: 3 | W49: 4200 | X49: v ceně
A50: 44903.25 | B50: čt | C50: 2022-12-08 | E50: DF | F50: TEZET | G50: Neubuz | I50: PHM mix | J50: PA | K50: 15 | M50: Kyjov | N50: 06:00:00 | O50: 12:30:00 | P50: 12:35:00 | Q50: 13:00:00 | R50: Svoboda L. | S50: Dokončeno | T50: Chromková L. | U50: vychystáno Hojač | V50: 2 | X50: v ceně
A51: 44903.25347 | B51: čt | C51: 2022-12-08 | E51: Cormen | F51: TEZET | G51: Bystřice n.P. | I51: KE-20 | J51: PA | K51: 13 | L51: ne | M51: Kyjov | N51: 06:05:00 | O51: 06:00:00 | P51: 06:05:00 | Q51: 06:20:00 | R51: Kubáček M. | S51: Dokončeno | T51: Chromková L. | V51: 2 | W51: 3850 | X51: v ceně
A52: 44903.25694 | B52: čt | C52: 2022-12-08 | E52: Antolin | F52: vlastní | G52: Lipovka | I52: YETI | J52: PA | K52: 36 | L52: ano | M52: Kyjov | N52: 06:10:00 | O52: 06:05:00 | P52: 06:10:00 | Q52: 06:55:00 | R52: Havránek M. | S52: Dokončeno | T52: Chromková L. | V52: 4
A53: 44903.41667 | B53: čt | C53: 2022-12-08 | E53: Kopeček | F53: vlastní | G53: Dubňany | I53: KOSH-50+uz. | J53: PA | K53: 2 | M53: Kyjov | N53: 10:00:00 | O53: 12:35:00 | P53: 13:00:00 | Q53: 13:15:00 | R53: Průša M. | S53: Dokončeno | T53: Chromková L. | U53: zbyytek obj. | V53: 1
A54: 44903.41667 | B54: čt | C54: 2022-12-08 | E54: Agrofaerm | F54: TEZET | G54: Rouchovany | I54: box Sdasport | J54: PA | K54: 30 | M54: Kyjov | N54: 10:00:00 | O54: 12:50:00 | P54: 13:05:00 | Q54: 13:10:00 | R54: Kubáček M. | S54: Dokončeno | T54: Bilíček P. | U54: L-470-22 | V54: 3 | W54: 5000
A55: 44903.4375 | B55: čt | C55: 2022-12-08 | E55: TBA | F55: vlastní | G55: Havl.Brod | H55: Mazuch | I55: mix | J55: PA | K55: 9 | M55: Kyjov | N55: 10:30:00 | O55: 09:55:00 | P55: 10:00:00 | Q55: 10:10:00 | R55: Svoboda L. | S55: Dokončeno | T55: Chromková L. | U55: vychystáno Svoboda | V55: 1
A56: 44903.4375 | B56: čt | C56: 2022-12-08 | E56: Flexfill | F56: interkontakt | G56: Lovosice | H56: 8B0 9033 | I56: KDF-30 | J56: PA | K56: 66 | L56: ne | M56: Kyjov | N56: 10:30:00 | O56: 10:30:00 | P56: 11:00:00 | Q56: 11:30:00 | R56: Průša M. | S56: Dokončeno | T56: Chromková L. | U56: L-457-22 vychystáno Průša M. | V56: 4 | X56: v ceně
A57: 44903.44792 | B57: čt | C57: 2022-12-08 | E57: AMIO - JPPSK | F57: Logmax | G57: Zabrze | H57: SH9578A | I57: KP-5; KPHM-10 | J57: PY | K57: 170 | M57: Kyjov | N57: 10:45:00 | O57: 10:20:00 | P57: 11:10:00 | Q57: 12:10:00 | R57: Kubáček M. | S57: Dokončeno | T57: Bilíček P. | V57: 5 | X57: přefakturace 295 € fa 23020119
A58: 44903.45833 | B58: čt | C58: 2022-12-08 | E58: Alliance | F58: vlastní | G58: Příbor | I58: FlitrTX9 | J58: PA | K58: 2 | M58: Kyjov | N58: 11:00:00 | O58: 10:30:00 | P58: 11:00:00 | Q58: 11:30:00 | R58: Havránek M. | S58: Dokončeno | T58: Chromková L. | U58: vychystáno Havránek | V58: 1
A59: 44903.52083 | B59: čt | C59: 2022-12-08 | D59: příjem | E59: JPPSK | F59: vlastní | G59: Kyjov | I59: mix | J59: PA | K59: 20 | M59: Kyjov | N59: 12:30:00 | O59: 06:30:00 | P59: 06:40:00 | Q59: 08:00:00 | R59: Hojač M. | S59: Dokončeno | T59: Bilíček P. | U59: 8.12.2022-porucha auta | V59: 2
A60: 44903.52083 | B60: čt | C60: 2022-12-08 | E60: JPPSK | F60: vlastní | G60: Prievidza | H60: PS343EY | I60: mix | J60: PA | K60: 30 | M60: Kyjov | N60: 12:30:00 | O60: 06:30:00 | P60: 06:40:00 | Q60: 08:00:00 | R60: Svoboda L. | S60: Dokončeno | T60: Chromková L. | U60: 8.12.2022-porucha auta | V60: 3
A61: 44903.54167 | B61: čt | C61: 2022-12-08 | D61: příjem | E61: Expedience | F61: TEZET | G61: Kyjov | I61: přepravky Sedasport | J61: PA | K61: 26 | M61: Rouchovany | N61: 13:00:00 | O61: 12:45:00 | P61: 12:50:00 | Q61: 13:10:00 | R61: Kubáček M. | S61: Dokončeno | T61: Bilíček P. | V61: 3 | W61: 4150 | X61: v ceně
A62: 44903.58333 | B62: čt | C62: 2022-12-08 | E62: Faurecie | F62: vlastní | G62: Mladá Boleslav | I62: Defender+SE+BMW | J62: PA | K62: 81 | L62: ano | M62: Kyjov | N62: 14:00:00 | O62: 11:15:00 | P62: 12:00:00 | Q62: 13:00:00 | R62: Průša M. | S62: Dokončeno | T62: Gajdošová L. | V62: 5
A63: 44904 | B63: čt | C63: 2022-12-08 | D63: příjem | E63: Gabrielchemie | F63: SBS | G63: Lázně Bohdaneč | I63: barva | J63: PA | K63: 1 | M63: Kyjov | O63: 06:55:00 | P63: 07:00:00 | Q63: 07:00:00 | R63: Havránek M. | S63: Dokončeno | T63: Chromková L. | V63: 1
A64: 44904.25347 | B64: pá | C64: 2022-12-09 | E64: Cheport | F64: TEZET | G64: Vizovice | I64: KE-20 | J64: PA | K64: 30 | L64: ne | M64: Kyjov | N64: 06:05:00 | O64: 04:00:00 | P64: 04:10:00 | Q64: 04:30:00 | R64: Konečný M. | S64: Dokončeno | T64: Chromková L. | U64: přednaložil Kubáček 8.12.2022 | V64: 3 | W64: 4150 | X64: v ceně
A65: 44904.33333 | B65: pá | C65: 2022-12-09 | E65: T-Net | F65: kontejner | G65: Brooks | I65: WTB | J65: PA | K65: 32 | M65: Kyjov | N65: 08:00:00 | O65: 07:30:00 | P65: 07:40:00 | Q65: 08:45:00 | R65: Hojač M. | S65: Dokončeno | T65: Gajdošová L. | V65: 3
A66: 44904.41667 | B66: pá | C66: 2022-12-09 | D66: příjem | E66: Model Obaly | F66: vlastní | G66: Kyjov | I66: kartony | J66: PA | K66: 16 | M66: Kyjov | N66: 10:00:00 | O66: 06:10:00 | P66: 06:15:00 | Q66: 06:50:00 | R66: Havránek M. | S66: Dokončeno | T66: Bilíček P. | V66: 2
A67: 44905 | B67: pá | C67: 2022-12-09 | E67: Filmer | F67: BSG | G67: Varel | I67: KPHM-10 | J67: PA | K67: 66 | M67: Kyjov | O67: 12:15:00 | P67: 12:20:00 | Q67: 13:15:00 | R67: Hojač M. | S67: Dokončeno | T67: Kollerová D. | U67: L-464-22 | V67: 4 | X67: v ceně
A68: =IF(C68="","",IF(N68="",C68+1,C68+N68)) -> 44905 | B68: =IF(C68="","",+TEXT(C68,"ddD")) -> pá | C68: 2022-12-09 | E68: T-Net | F68: Legarde | G68: Eloyes | I68: Zeus | J68: PA | K68: 14 | M68: Kyjov | O68: 12:00:00 | P68: 12:10:00 | Q68: 12:40:00 | R68: Průša M. | S68: Dokončeno | T68: Gajdošová L. | V68: =IF(K68="","",IF(K68<10,1,IF(K68<=25,2,IF(K68<=35,3,IF(K68<=70,4,5))))) -> 2
A69: 44907.25 | B69: po | C69: 2022-12-12 | E69: DF Partner | F69: Hroza | G69: Neubuz | I69: PHM mix | J69: PA | K69: 18 | M69: Kyjov | N69: 06:00:00 | O69: 07:50:00 | P69: 07:55:00 | Q69: 08:10:00 | R69: Průša M. | S69: Dokončeno | T69: Chromková L. | V69: 2 | W69: 3300 | X69: v ceně
A70: 44907.25 | B70: po | C70: 2022-12-12 | E70: DF | F70: Hroza | G70: Neubuz | I70: KS-3 | J70: PA | K70: 32 | L70: ano | M70: Kyjov | N70: 06:00:00 | O70: 14:00:00 | P70: 14:05:00 | Q70: 14:45:00 | R70: Průša M. | S70: Dokončeno | T70: Chromková L. | U70: nakládka na 13.12.2022 | V70: 3 | W70: 3700 | X70: v ceně
A71: 44907.25347 | B71: po | C71: 2022-12-12 | E71: Mmcité | F71: TEZET | G71: Hroznová Lhota | I71: koš | J71: PA | K71: 16 | M71: Kyjov | N71: 06:05:00 | O71: 8.00 | P71: 08:05:00 | Q71: 08:20:00 | R71: Svoboda L. | S71: Dokončeno | T71: Chromková L. | V71: 2 | W71: 3200 | X71: přefaktur.2800,- Kč fa 23010450
A72: 44907.25347 | B72: po | C72: 2022-12-12 | E72: Cheport | F72: TEZET | G72: Vizovice | I72: KE-20 | J72: PA | K72: 30 | M72: Kyjov | N72: 06:05:00 | O72: 13:15:00 | P72: 13:20:00 | Q72: 13:55:00 | R72: Svoboda L. | S72: Dokončeno | T72: Chromková L. | U72: vychystal Svoboda, nakl.na 14.12. | V72: 3 | W72: 4150
A73: 44907.25347 | B73: po | C73: 2022-12-12 | E73: OMA CZ | F73: TEZET | G73: Stráž pod Ralskem | I73: KE-10 | J73: PA | K73: 32 | L73: ne | M73: Kyjov | N73: 06:05:00 | O73: 12:10:00 | P73: 12:15:00 | Q73: 13:00:00 | R73: Havránek M. | S73: Dokončeno | T73: Chromková L. | U73: nakládka na 13.12.2022 | V73: 3 | W73: 12000 | X73: přefak. 12500,- Kč fa 23010456
A74: 44907.25347 | B74: po | C74: 2022-12-12 | E74: ZON | F74: TEZET | G74: Třebíč | I74: mix | J74: PA | K74: 18 | L74: ne | M74: Kyjov | N74: 06:05:00 | O74: 13:30:00 | P74: 13:35:00 | Q74: 14:00:00 | R74: Doupovec R. | S74: Dokončeno | T74: Chromková L. | V74: 2 | W74: 3870 | X74: přefak. 4000,- fa 23010457
A75: 44907.33333 | B75: po | C75: 2022-12-12 | E75: ChemProgres | F75: vlastní | G75: Staré Město Uh. | I75: KSE-5+uz, | J75: PA | K75: 1 | M75: Kyjov | N75: 08:00:00 | P75: 08:30:00 | Q75: 08:55:00 | R75: Průša M. | S75: Dokončeno | T75: Chromková L. | U75: vychystáno Průša M. | V75: 1
A76: 44907.375 | B76: po | C76: 2022-12-12 | E76: Sedata | F76: BSG | G76: PRESSATH !! | I76: KPHM | J76: PA | K76: 33 | L76: ne | M76: Kyjov | N76: 09:00:00 | O76: 10:40:00 | P76: 10:45:00 | Q76: 11:10:00 | R76: Průša M. | S76: Dokončeno | T76: Kollerová D. | U76: vlastní DL! L-465-22, vychystal Průša | V76: 3 | X76: v ceně
A77: 44907.38889 | B77: po | C77: 2022-12-12 | E77: UNI-Ekospol | F77: vlastní | G77: Sokolnice | I77: mix | J77: PA | K77: 3 | M77: Kyjov | N77: 09:20:00 | O77: 11:00:00 | P77: 11:05:00 | Q77: 11:20:00 | R77: Svoboda L. | S77: Dokončeno | T77: Kollerová D. | V77: 1
A78: 44907.39583 | B78: po | C78: 2022-12-12 | E78: Nufarm | F78: SILVAN | G78: Linec | I78: KA-5 | J78: PA | K78: 52 | M78: Kyjov | N78: 09:30:00 | O78: 06:30:00 | P78: 06:40:00 | Q78: 07:30:00 | R78: Havránek M. | S78: Dokončeno | T78: Kollerová D. | U78: L-479-22 | V78: 4
A79: 44907.41667 | B79: po | C79: 2022-12-12 | E79: NUFARM | F79: BSG | G79: Linz | I79: KA-5 | J79: PA | K79: 52 | M79: Kyjov | N79: 10:00:00 | O79: 12:00:00 | P79: 12:05:00 | Q79: 12:50:00 | R79: Průša M. | S79: Dokončeno | T79: Kollerová D. | U79: vychystal Svoboda | V79: 4
A80: 44907.41667 | B80: po | C80: 2022-12-12 | D80: příjem | E80: B2B | F80: SBS | G80: Ostrava-Zábřeh | I80: židle | J80: PA | K80: 2 | M80: Kyjov | N80: 10:00:00 | O80: 09:50:00 | P80: 09:55:00 | Q80: 10:00:00 | R80: Havránek M. | S80: Dokončeno | T80: Bilíček P. | V80: 1
A81: 44907.4375 | B81: po | C81: 2022-12-12 | E81: Nufarm | F81: SILVAN | G81: Linz | I81: KA-5 | J81: PA | K81: 52 | M81: Kyjov | N81: 10:30:00 | O81: 09:30:00 | P81: 09:40:00 | Q81: 10:30:00 | R81: Svoboda L. | S81: Dokončeno | T81: Gajdošová L. | U81: L-476-22 - nevychystáno | V81: 4
A82: 44907.52083 | B82: po | C82: 2022-12-12 | E82: T-Net | F82: MSB | G82: Emmerich | I82: WTB | J82: PA | K82: 48 | M82: Kyjov | N82: 12:30:00 | O82: 13:15:00 | P82: 13:20:00 | Q82: 14:20:00 | R82: Havránek M. | S82: Dokončeno | T82: Gajdošová L. | U82: M182, vychystal Marián P. | V82: 4
A83: 44907.54167 | B83: po | C83: 2022-12-12 | E83: T-Net | F83: MSB | G83: Hungary | I83: WTB | J83: PA | K83: 8 | M83: Kyjov | N83: 13:00:00 | O83: 08:45:00 | P83: 08:50:00 | Q83: 09:00:00 | R83: Havránek M. | S83: Dokončeno | T83: Gajdošová L. | U83: M183, vychystal Havránek 9.12. | V83: 1
A84: 44907.54167 | B84: po | C84: 2022-12-12 | E84: Flexfill | F84: vlastní | G84: Lovosice | H84: 8B09033 | I84: KDF-30 | J84: PA | K84: 66 | L84: ne | M84: Kyjov | N84: 13:00:00 | O84: 11:00:00 | P84: 11:10:00 | Q84: 11:50:00 | R84: Doupovec R. | S84: Dokončeno | T84: Chromková L. | U84: L-458-22 | V84: 4 | W84: 9500 | X84: v ceně
A85: 44907.5625 | B85: po | C85: 2022-12-12 | E85: T-Net | F85: MSB | G85: Eloyes | I85: mix | J85: PA | K85: 66 | M85: Kyjov+ Vlkoš | N85: 13:30:00 | O85: 07:20:00 | P85: 07:30:00 | Q85: 09:30:00 | R85: Doupovec R. | S85: Dokončeno | T85: Gajdošová L. | U85: M179 | V85: 4
A86: 44908 | B86: po | C86: 2022-12-12 | E86: Toptrans | F86: SBS | I86: mix | J86: KA | K86: 10 | M86: Kyjov | Q86: 14:00:00 | R86: Svoboda L. | S86: Dokončeno | T86: Gajdošová L. | U86: vychystáno Svoboda | V86: 2
A87: 44908 | B87: po | C87: 2022-12-12 | D87: příjem | E87: GEFCO | F87: vlastní | I87: boxy Gefco | J87: PA | K87: 32 | M87: Kyjov | O87: 09:10:00 | P87: 09:10:00 | Q87: 09:25:00 | R87: Svoboda L. | S87: Dokončeno | T87: Gajdošová L. | V87: 3
A88: 44908 | B88: po | C88: 2022-12-12 | D88: příjem | E88: Santal | F88: vlastní | G88: Třeboň | I88: box114777 | J88: PA | K88: 58 | M88: Kyjov | O88: 10:20:00 | P88: 10:25:00 | Q88: 10:40:00 | R88: Doupovec R. | S88: Dokončeno | T88: Chromková L. | V88: 4
A89: 44908.25 | B89: út | C89: 2022-12-13 | E89: DF | F89: Hroza | G89: Neubuz | I89: KS-3 | J89: PA | K89: 32 | M89: Kyjov | N89: 06:00:00 | O89: 10:10:00 | P89: 10:20:00 | Q89: 10:50:00 | R89: Doupovec R. | S89: Dokončeno | T89: Chromková L. | U89: vychstáno Doupovec | V89: 3 | W89: 3700 | X89: v ceně
A90: 44908.25 | B90: út | C90: 2022-12-13 | E90: DF | F90: Hroza | G90: Neubuz | I90: KS-3 | J90: PA | K90: 18 | M90: Kyjov | N90: 06:00:00 | O90: 15:00:00 | P90: 15:10:00 | Q90: 15:30:00 | R90: Povolný L. | S90: Dokončeno | T90: Chromková L. | V90: 2 | W90: 2800 | X90: v ceně
A91: 44908.26042 | B91: út | C91: 2022-12-13 | E91: Antolin | F91: vlastní | G91: Libáň | I91: YETI | J91: PA | K91: 5 | L91: ano | M91: Kyjov | N91: 06:15:00 | O91: 11:30:00 | P91: 11:35:00 | Q91: 11:55:00 | R91: Havránek M. | S91: Dokončeno | T91: Chromková L. | V91: 1
A92: 44908.26389 | B92: út | C92: 2022-12-13 | D92: příjem | E92: GEFCO | F92: vlastní | G92: Čerčany | I92: GEFCO box | J92: PA | K92: 48 | M92: Kyjov | N92: 06:20:00 | O92: 07:20:00 | P92: 07:25:00 | Q92: 07:40:00 | R92: Svoboda L. | S92: Dokončeno | T92: Chromková L. | V92: 4
A93: 44908.38542 | B93: út | C93: 2022-12-13 | E93: Filmer | F93: JF Logistic | G93: Melle | I93: KPHM-20 | J93: PA | K93: 64 | M93: Kyjov | N93: 09:15:00 | O93: 08:40:00 | P93: 09:00:00 | Q93: 09:30:00 | R93: Doupovec R. | S93: Dokončeno | T93: Kollerová D. | V93: 4
A94: 44908.41667 | B94: út | C94: 2022-12-13 | E94: TBA | F94: vlastní | G94: Habl.Brod | H94: p.Špiňar | I94: mix | J94: PA | K94: 15 | M94: Kyjov | N94: 10:00:00 | O94: 11:30:00 | P94: 11:35:00 | Q94: 12:00:00 | R94: Svoboda L. | S94: Dokončeno | T94: Gajdošová L. | U94: vychystáno Havránek | V94: 2
A95: 44908.5 | B95: út | C95: 2022-12-13 | E95: Nufarm | F95: SILVAN | G95: Linz | I95: KA-5 | J95: PA | K95: 52 | M95: Kyjov | N95: 12:00:00 | O95: 08:30:00 | P95: 09:30:00 | Q95: 10:15:00 | R95: Svoboda L. | S95: Dokončeno | T95: Gajdošová L. | V95: 4
A96: 44908.53125 | B96: út | C96: 2022-12-13 | E96: Sika PL | F96: Joppa | G96: Varšava | H96: SK254SM, Pawlas | I96: LKN-1 žlutá | J96: PA | K96: 8 | M96: Kyjov | N96: 12:45:00 | O96: 10:15:00 | P96: 10:20:00 | Q96: 10:45:00 | R96: Svoboda L. | S96: Dokončeno | T96: Bilíček P. | U96: L-478-22, vychystal Svoboda | V96: 1 | X96: přefakturace
A97: 44908.54167 | B97: út | C97: 2022-12-13 | E97: Avena | F97: vlastní | G97: Bzenec | I97: SDH-50 | J97: PA | K97: 9 | M97: Kyjov | N97: 13:00:00 | O97: 14:10:00 | P97: 14:15:00 | Q97: 14:25:00 | R97: Svoboda L. | S97: Dokončeno | T97: Chromková L. | U97: vychystáno 9.12.2022 Průša M. | V97: 1
A98: 44908.54861 | B98: út | C98: 2022-12-13 | E98: Filmer | F98: JF Logistic | G98: Halbe | I98: KPHM-20 | J98: PA | K98: 64 | M98: Kyjov | N98: 13:10:00 | O98: 11:30:00 | P98: 11:40:00 | Q98: 12:30:00 | R98: Doupovec R. | S98: Dokončeno | T98: Kollerová D. | V98: 4
A99: 44908.58333 | B99: út | C99: 2022-12-13 | E99: Faurecie MB | F99: vlastní | G99: Mladá Boleslav | I99: Defender+SE+BMW | J99: PA | K99: 99 | L99: ano | M99: Kyjov | N99: 14:00:00 | O99: 11:00:00 | P99: 11:20:00 | Q99: 12:15:00 | R99: Průša M. | S99: Dokončeno | T99: Gajdošová L. | U99: vychystal Průša | V99: 5
A100: 44909 | B100: út | C100: 2022-12-13 | E100: AV Auto | F100: naše | G100: Vlkoš | I100: KE-10 | J100: PA | K100: 1 | M100: Kyjov | R100: Doupovec R. | S100: Dokončeno | T100: Chromková L. | U100: vychystané při převozech zvést doVlkoše | V100: 1
A101: 44909 | B101: út | C101: 2022-12-13 | E101: KOVA | F101: Jopa | G101: Erfurt | I101: KPHM-10 | J101: PA | K101: 30 | M101: Kyjov | P101: 08:00:00 | Q101: 09:00:00 | R101: Průša M. | S101: Dokončeno | T101: Kollerová D. | U101: L-480-22 | V101: 3 | X101: přeúčtovat 1120€
A102: 44909 | B102: út | C102: 2022-12-13 | E102: PK Group | F102: vlastní | G102: Dubňany | I102: mix | J102: PA | K102: 4 | M102: Kyjov | O102: 10:45:00 | P102: 10:50:00 | Q102: 11:10:00 | R102: Doupovec R. | S102: Dokončeno | T102: Gajdošová L. | U102: vychystáno Svoboda | V102: 1
A103: 44909 | B103: út | C103: 2022-12-13 | E103: Toptrans | F103: SBS | I103: Seco | J103: PA | K103: 10 | M103: Kyjov | Q103: 14:30:00 | R103: Svoboda L. | S103: Dokončeno | T103: Gajdošová L. | U103: vychystal Havránek | V103: 2
A104: 44909.25 | B104: st | C104: 2022-12-14 | E104: DF | F104: Hroza | G104: Neubuz | I104: PHMmix | J104: PA | K104: 18 | L104: ano | M104: Kyjov | N104: 06:00:00 | O104: 12:20:00 | P104: 12:25:00 | Q104: 13:00:00 | R104: Průša M. | S104: Dokončeno | T104: Chromková L. | V104: 2 | W104: 3300 | X104: v ceně
A105: 44909.25 | B105: st | C105: 2022-12-14 | E105: Agrimex | F105: Hroza | G105: Kojetice | I105: KE-25 | J105: PA | K105: 18 | M105: Kykjov | N105: 06:00:00 | O105: 15:00:00 | P105: 15:10:00 | Q105: 15:40:00 | R105: Průša J. | S105: Dokončeno | T105: Chromková L. | U105: vychystáno na 15.12.2022 Průsša M. | V105: 2 | W105: 3600 | X105: v ceně
A106: 44909.25347 | B106: st | C106: 2022-12-14 | E106: Fagron | F106: TEZET | G106: Olomouc | I106: mix | J106: PA | K106: 30 | M106: Kyjov | N106: 06:05:00 | O106: 10:15:00 | P106: 10:20:00 | Q106: 11:10:00 | R106: Průša M. | S106: Dokončeno | T106: Chromková L. | V106: 3 | W106: 4170 | X106: přefakt. 5200,- Kč fa23010467
A107: 44909.41667 | B107: st | C107: 2022-12-14 | E107: TBA | F107: vlastní | G107: Havl.Brod | H107: Vašák ml. | I107: mix | J107: PA | K107: 10 | M107: Kyjov | N107: 10:00:00 | O107: 13:15:00 | P107: 13:20:00 | Q107: 13:30:00 | R107: Svoboda L. | S107: Dokončeno | T107: Chromková L. | U107: vychystal Průša | V107: 2
A108: 44909.45833 | B108: st | C108: 2022-12-14 | E108: J.p.SK | F108: vlastní | G108: Prievidza | H108: PD343EY | I108: mix | J108: PA | K108: 33 | M108: Kyjov | N108: 11:00:00 | O108: 11:15:00 | P108: 11:50:00 | Q108: 44909 | R108: Svoboda L. | S108: Dokončeno | T108: Chromková L. | U108: vychystáno Průša M. | V108: 3
A109: 44909.45833 | B109: st | C109: 2022-12-14 | D109: příjem | E109: J.P.SK | F109: vlastní | G109: Prievidza | H109: PD343EY | I109: mix | J109: PA | K109: 10 | M109: Kyjov | N109: 11:00:00 | O109: 11:15:00 | P109: 11:50:00 | Q109: 13:10:00 | R109: Svoboda L. | S109: Dokončeno | T109: Chromková L. | V109: 2
A110: 44909.47917 | B110: st | C110: 2022-12-14 | E110: NOVATO SK | F110: vlastní | G110: Skalica SK | I110: SDH-40 | J110: PA | K110: 1 | M110: Kyjov | N110: 11:30:00 | O110: 10:40:00 | P110: 10:50:00 | Q110: 11:00:00 | R110: Svoboda L. | S110: Dokončeno | T110: Chromková L. | U110: vychystal Svoboda | V110: 1
A111: 44909.5 | B111: st | C111: 2022-12-14 | D111: příjem | E111: Garsys-příjem | F111: vlastní | I111: podstavec Garsys | J111: PA | K111: 12 | M111: Kyjov | N111: 12:00:00 | O111: 08:30:00 | P111: 08:35:00 | Q111: 09:40:00 | R111: Svoboda L. | S111: Dokončeno | T111: Hochman L. | V111: 2
A112: 44909.5 | B112: st | C112: 2022-12-14 | E112: Valum Pro | F112: vlastní | G112: Frenštát | I112: KE-20 | J112: PA | K112: 1 | M112: Kyjov | N112: 12:00:00 | O112: 12:30:00 | P112: 12:30:00 | Q112: 12:40:00 | R112: Průša M. | S112: Dokončeno | T112: Gajdošová L. | U112: vychystal Svoboda | V112: 1
A113: 44909.5 | B113: st | C113: 2022-12-14 | E113: Garsys | F113: vlastní | I113: Nádrž Garys | J113: PA | K113: 15 | M113: Kyjov | N113: 12:00:00 | O113: 08:30:00 | P113: 08:35:00 | Q113: 09:40:00 | R113: Svoboda L. | S113: Dokončeno | T113: Hochman L. | V113: 2
A114: 44909.58333 | B114: st | C114: 2022-12-14 | E114: Faurecie MB | F114: vlastní | G114: Mladá Boleslav | I114: Defender+SE+BMW | J114: PA | K114: 99 | L114: ano | M114: Kyjov | N114: 14:00:00 | O114: 11:30:00 | P114: 11:45:00 | Q114: 12:30:00 | R114: Průša M. | S114: Dokončeno | T114: Gajdošová L. | U114: vychystal Průša | V114: 5
A115: 44909.58333 | B115: st | C115: 2022-12-14 | D115: příjem | E115: GEFCO | F115: vlastní | I115: GEFCO box | J115: PA | K115: 32 | M115: Kyjov | N115: 14:00:00 | O115: 13:30:00 | P115: 13:35:00 | Q115: 13:50:00 | R115: Průša M. | S115: Dokončeno | T115: Gajdošová L. | V115: 3
A116: 44910.25 | B116: čt | C116: 2022-12-15 | E116: DF | F116: Hroza | G116: Neubuz | I116: KS-3 | J116: PA | K116: 32 | M116: Kyjov | N116: 06:00:00 | R116: Svoboda L. | S116: Dokončeno | T116: Chromková L. | U116: vychystáno Svoboda | V116: 3 | W116: 3700 | X116: v ceně
A117: 44910.25 | B117: čt | C117: 2022-12-15 | E117: Cheport | F117: Tezet | G117: Vizovice | H117: Kobzík | I117: mix | J117: PA | K117: 32 | L117: ne | M117: Kyjov | N117: 06:00:00 | O117: 12:10:00 | P117: 12:15:00 | Q117: 12:45:00 | R117: Průša M. | S117: Dokončeno | T117: Chromková L. | V117: 3 | W117: 4150 | X117: v ceně
A118: 44910.25 | B118: čt | C118: 2022-12-15 | E118: Hügli | F118: TEZET | G118: Zásmuky | H118: Chmelař | I118: KSE-5 | J118: PA | K118: 18 | L118: x | M118: Kyjov | N118: 06:00:00 | O118: 14:00:00 | P118: 14:05:00 | Q118: 14:45:00 | R118: Průša M. | S118: Dokončeno | T118: Chromková L. | V118: 2 | W118: 6300 | X118: v ceně
A119: 44910.26042 | B119: čt | C119: 2022-12-15 | E119: Antolin | F119: vlastní | G119: Libáň | I119: YETI | J119: PA | K119: 10 | L119: ano | M119: Kyjov | N119: 06:15:00 | R119: Průša J. | S119: Dokončeno | T119: Chromková L. | U119: vychystáno Průša J. | V119: 2
A120: 44910.29167 | B120: čt | C120: 2022-12-15 | E120: Vypl | F120: Pulpán | G120: Rakvice | I120: liten | J120: PA | K120: 1 | L120: ne | M120: Kyjov | N120: 07:00:00 | O120: 08:10:00 | P120: 08:15:00 | Q120: 08:30:00 | R120: Průša J. | S120: Dokončeno | T120: Chromková L. | V120: 1
A121: 44910.34375 | B121: čt | C121: 2022-12-15 | D121: příjem | E121: Model Obaly | F121: vlastní | G121: Kyjov | I121: kartony Degas | J121: PA | K121: 18 | M121: Opava | N121: 08:15:00 | O121: 08:30:00 | P121: 08:35:00 | Q121: 08:50:00 | R121: Průša J. | S121: Dokončeno | T121: Bilíček P. | U121: N2210661 | V121: 2
A122: 44910.35417 | B122: čt | C122: 2022-12-15 | E122: T-Net | F122: MSB | G122: Eloyes | I122: Degas | J122: PA | K122: 66 | M122: Kyjov + Vlkoš | N122: 08:30:00 | O122: 12:20:00 | P122: 12:30:00 | R122: Doupovec R. | S122: Dokončeno | T122: Gajdošová L. | U122: M187 | V122: 4
A123: 44910.375 | B123: čt | C123: 2022-12-15 | E123: AVX | F123: BMGL | G123: Lanškroun | H123: 2BY 5565 | I123: nástroj | J123: PA | K123: 1 | M123: Kyjov | N123: 09:00:00 | O123: 08:15:00 | P123: 08:20:00 | Q123: 08:30:00 | R123: Průša J. | S123: Dokončeno | T123: Bilíček P. | U123: L-483-22 | V123: 1 | X123: přefakturace 2.650 Kč
A124: 44910.39583 | B124: čt | C124: 2022-12-15 | D124: příjem | E124: Obaly Morava | F124: vlastní | G124: Kyjov | I124: single box WTB Degas | J124: PA | K124: 10 | M124: Otrokovice | N124: 09:30:00 | O124: 09:45:00 | P124: 09:50:00 | Q124: 10:30:00 | R124: Svoboda L. | S124: Dokončeno | T124: Bilíček P. | U124: N2210675 | V124: 2
A125: 44910.4375 | B125: čt | C125: 2022-12-15 | E125: Filmer | F125: JF Logistic | G125: Budenheim | I125: KPHM-20 | J125: PA | K125: 64 | M125: Kyjov | N125: 10:30:00 | O125: 13:00:00 | R125: Havránek M. | S125: Dokončeno | T125: Kollerová D. | U125: L-431-22 | V125: 4
A126: 44910.45833 | B126: čt | C126: 2022-12-15 | D126: příjem | F126: SBS | I126: posypová sůl | J126: PA | K126: 2 | M126: Kyjov | N126: 11:00:00 | R126: Antoš J. | S126: Dokončeno | T126: Chromková L. | U126: obj. Pulpán | V126: 1
A127: 44910.47917 | B127: čt | C127: 2022-12-15 | D127: příjem | E127: Avena | F127: vlastní | G127: Bzenec | I127: palety | J127: PA | K127: 5 | M127: Kyjov | N127: 11:30:00 | O127: 10:45:00 | P127: 10:50:00 | Q127: 11:00:00 | R127: Havránek M. | S127: Dokončeno | T127: Chromková L. | U127: vratka palet z 13.12.2022 | V127: 1
A128: 44910.5 | B128: čt | C128: 2022-12-15 | D128: příjem | E128: MAT | F128: AK servis | G128: Plzeň | I128: palety | J128: PA | K128: 99 | M128: Kyjov | N128: 12:00:00 | O128: 10:20:00 | P128: 10:25:00 | Q128: 10:55:00 | R128: Doupovec R. | S128: Dokončeno | T128: Chromková L. | U128: vratka palet 100 ks | V128: 5
A129: 44910.5 | B129: čt | C129: 2022-12-15 | E129: Toptrans | F129: SBS | J129: PA | K129: 1 | M129: Kyjov | N129: 12:00:00 | R129: Svoboda L. | S129: Dokončeno | T129: Gajdošová L. | U129: vychystal Svoboda | V129: 1
A130: 44910.54167 | B130: čt | C130: 2022-12-15 | E130: Flexfill | F130: interkontakt | G130: Lovosice | H130: 7P35997 | I130: KDF-30 | J130: PA | K130: 66 | M130: Kyjov | N130: 13:00:00 | R130: Doupovec R. | S130: Dokončeno | T130: Chromková L. | U130: L-460-22,vychystáno Průša M. | V130: 4 | W130: 9500 | X130: v ceně
A131: 44910.58333 | B131: čt | C131: 2022-12-15 | E131: Faurecie MB | F131: vlastní | G131: Mladá Boleslav | I131: Defender+SE+BMW | J131: PA | K131: 99 | L131: ano | M131: Kyjov | N131: 14:00:00 | O131: 10:00:00 | P131: 10:05:00 | Q131: 10:45:00 | R131: Průša M. | S131: Dokončeno | T131: Gajdošová L. | U131: vychystal Průša | V131: 5
A132: =IF(C132="","",IF(N132="",C132+1,C132+N132)) -> 44911.25 | B132: =IF(C132="","",+TEXT(C132,"ddD")) -> pá | C132: 2022-12-16 | E132: DF | F132: Hroza | G132: Neubuz | I132: KS-3 | J132: PA | K132: 32 | M132: Kyjov | N132: 06:00:00 | O132: 11:00:00 | P132: 12:00:00 | R132: Svoboda L. | S132: Dokončeno | T132: Chromková L. | V132: =IF(K132="","",IF(K132<10,1,IF(K132<=25,2,IF(K132<=35,3,IF(K132<=70,4,5))))) -> 3 | W132: 3700 | X132: v ceně
A133: 44911.25347 | B133: pá | C133: 2022-12-16 | E133: OMA CZ | F133: TEZET | G133: Černá Hora | H133: Slováček | I133: KE-25+LKZ1 | J133: PA | K133: 30 | L133: ne | M133: Kyjov | N133: 06:05:00 | O133: 06:20:00 | P133: 06:25:00 | Q133: 07:40:00 | R133: Svoboda L. | S133: Dokončeno | T133: Chromková L. | V133: 3 | W133: 4160 | X133: přefakturace 4200,-
A134: 44911.25347 | B134: pá | C134: 2022-12-16 | E134: Aroma | F134: TEZET | G134: Hrobce | I134: mix | J134: PA | K134: 18 | M134: Kyjov | N134: 06:05:00 | R134: Havránek M. | S134: Dokončeno | T134: Chromková L. | U134: dodávka 19.12.2022 | V134: 2 | W134: 8500 | X134: v ceně
A135: 44911.25347 | B135: pá | C135: 2022-12-16 | E135: VYPL | F135: TEZET | G135: Rakvice | H135: Kobzík | I135: mix | J135: PA | K135: 10 | M135: Kyjov | N135: 06:05:00 | O135: 09:10:00 | P135: 09:30:00 | Q135: 09:50:00 | R135: Průša M. | S135: Dokončeno | T135: Chromková L. | V135: 2
A136: 44911.29167 | B136: pá | C136: 2022-12-16 | E136: T-Net | F136: Legarde | G136: Eloyes | I136: Gauguin | J136: PA | K136: 11 | M136: kyjov | N136: 07:00:00 | R136: Doupovec R. | S136: Dokončeno | T136: Gajdošová L. | V136: 2
A137: 44911.3125 | B137: pá | C137: 2022-12-16 | E137: T-Net | F137: MSB | G137: Eloyes | I137: mix | J137: PA | K137: 66 | M137: Kyjov | N137: 07:30:00 | R137: Doupovec R. | S137: Dokončeno | T137: Gajdošová L. | U137: M180 | V137: 4
A138: 44911.33333 | B138: pá | C138: 2022-12-16 | E138: T-Net | F138: MSB | G138: Eloyes | I138: Chagall | J138: PA | K138: 66 | M138: Kyjov + Vlkoš | N138: 08:00:00 | R138: Doupovec R. | S138: Dokončeno | T138: Gajdošová L. | U138: M186 | V138: 4
A139: 44911.33333 | B139: pá | C139: 2022-12-16 | E139: DF | F139: HejdaTransport | G139: Neubuz | H139: 1BK96116 | I139: KS-3 | J139: PA | K139: 33 | M139: Kyjov | N139: 08:00:00 | O139: 08:45:00 | P139: 10:40:00 | Q139: 12:00:00 | R139: Svoboda L. | S139: Dokončeno | T139: Chromková L. | U139: vlastní doprava | V139: 3
A140: 44911.41667 | B140: pá | C140: 2022-12-16 | E140: SPAK | F140: interkontakt | G140: Sušice | I140: LS-2 | J140: PA | K140: 66 | L140: ne | M140: Kyjov | N140: 10:00:00 | O140: 06:05:00 | P140: 06:15:00 | Q140: 08:30:00 | R140: Svoboda L. | S140: Dokončeno | T140: Kollerová D. | V140: 4
A141: 44911.41667 | B141: pá | C141: 2022-12-16 | E141: Trumf | F141: vlastní | G141: Dlní újezd | I141: LUH-1 | J141: PA | K141: 2 | M141: Kyjov | N141: 10:00:00 | R141: Svoboda L. | S141: Dokončeno | T141: Chromková L. | V141: 1
A142: 44911.41667 | B142: pá | C142: 2022-12-16 | E142: TBA | F142: vlastní | G142: Havl.Brod | H142: p.Špiňar | I142: mix | J142: PA | K142: 16 | M142: Kyjov | N142: 10:00:00 | O142: 10:10:00 | P142: 12:40:00 | R142: Havránek M. | S142: Dokončeno | T142: Chromková L. | V142: 2
A143: 44911.41667 | B143: pá | C143: 2022-12-16 | D143: příjem | E143: TBA | F143: vlastní | G143: Havl.Brod | H143: p.Špiňar | I143: palety | J143: PA | K143: 99 | M143: Kyjov | N143: 10:00:00 | R143: Havránek M. | S143: Dokončeno | T143: Chromková L. | U143: dovoz 150 ks palet EUR vratka | V143: 5
A144: 44911.42708 | B144: pá | C144: 2022-12-16 | E144: Chemprogres | F144: vlastní | G144: Staré Město | I144: KE-20 | J144: PA | K144: 5 | M144: Kyjov | N144: 10:15:00 | O144: 08:30:00 | P144: 09:10:00 | Q144: 09:45:00 | R144: Průša M. | S144: Dokončeno | T144: Chromková L. | V144: 1
A145: 44911.4375 | B145: pá | C145: 2022-12-16 | E145: Merlin | F145: vlastní | G145: Hrušky | I145: mix | J145: PA | K145: 4 | M145: Kyjov | N145: 10:30:00 | O145: 10:15:00 | P145: 10:40:00 | R145: Doupovec R. | S145: Dokončeno | T145: Chromková L. | V145: 1
A146: 44911.4375 | B146: pá | C146: 2022-12-16 | E146: Sedasport | F146: vlastní | G146: Myjava | I146: sedáky | J146: PA | K146: 36 | M146: Kyjov | N146: 10:30:00 | R146: Havránek M. | S146: Dokončeno | T146: Chromková L. | V146: 4
A147: 44911.4375 | B147: pá | C147: 2022-12-16 | D147: příjem | E147: Sedasport | F147: vlastní | G147: Myjava | I147: vratka + obaly | J147: PA | K147: 16 | M147: Kyjov | N147: 10:30:00 | R147: Havránek M. | S147: Dokončeno | T147: Chromková L. | V147: 2
A148: 44911.45833 | B148: pá | C148: 2022-12-16 | D148: příjem | E148: VYpl | F148: TEZET | G148: Rakvice | I148: mix | J148: PA | K148: 18 | M148: Kyjov | N148: 11:00:00 | O148: 12:30:00 | R148: Svoboda L. | S148: Dokončeno | T148: Chromková L. | U148: L-482-22 | V148: 2 | W148: 2500
A149: 44911.45833 | B149: pá | C149: 2022-12-16 | E149: DF | F149: HejdaTransport | G149: Neubuz | H149: 1BK96116 | I149: KS-3 | J149: PA | K149: 33 | M149: Kyjov | N149: 11:00:00 | S149: Zrušeno | T149: Chromková L. | U149: vlastní doprava | V149: 3
A150: 44911.54167 | B150: pá | C150: 2022-12-16 | D150: příjem | E150: Arkys | F150: TEZET | G150: Brno | I150: pole rozvaděče | J150: PA | K150: 4 | M150: Kyjov | N150: 13:00:00 | S150: Dokončeno | T150: Chromková L. | U150: pro údržbu L-484-22/skládal KOuřilJiří | V150: 1 | W150: 2000 | X150: 2000,-
A151: 44911.5625 | B151: pá | C151: 2022-12-16 | E151: Ekotech | F151: vlastní | G151: Ukajina | I151: KPHM mix | J151: PA | K151: 38 | M151: Kyjov | N151: 13:30:00 | O151: 06:05:00 | P151: 06:15:00 | Q151: 12:20:00 | R151: Havránek M. | S151: Dokončeno | T151: Kollerová D. | V151: 4
A152: 44914 | B152: po | C152: 2022-12-19 | E152: Filmer | F152: BSG | G152: Malchow | I152: KPHM | J152: PA | K152: 66 | M152: Kyjov | N152: 00:00:00 | S152: Zrušeno | T152: Kollerová D. | V152: 4
A153: 44914.25 | B153: po | C153: 2022-12-19 | E153: DF | F153: Hroza | G153: Neubuz | I153: PHM | J153: PA | K153: 18 | M153: Kyjov | N153: 06:00:00 | O153: 08:40:00 | P153: 08:45:00 | Q153: 09:10:00 | R153: Doupovec R. | S153: Dokončeno | T153: Chromková L. | V153: 2 | W153: 2800 | X153: v ceně
A154: 44914.25 | B154: po | C154: 2022-12-19 | E154: DF | F154: Hroza | G154: Neubuz | I154: KS-3 | J154: PA | K154: 32 | M154: Kyjov | N154: 06:00:00 | O154: 08:00:00 | P154: 08:05:00 | Q154: 08:45:00 | R154: Povolný L. | S154: Dokončeno | T154: Chromková L. | U154: nakládka sobota 17.12.2022 | V154: 3 | W154: 3700 | X154: v ceně
A155: 44914.25347 | B155: po | C155: 2022-12-19 | E155: Alter | F155: TEZET | G155: Hradec Králové | I155: KSE-5 | J155: PA | K155: 32 | M155: Kyjov | N155: 06:05:00 | O155: 13:15:00 | P155: 13:20:00 | Q155: 14:00:00 | R155: Svoboda L. | S155: Dokončeno | T155: Chromková L. | U155: dodávka 20.12.2022 Kubáček | V155: 3 | W155: 6900 | X155: v ceně
A156: 44914.29167 | B156: po | C156: 2022-12-19 | E156: DF | F156: vlastní | G156: Neubuz | I156: KS-3 | J156: PA | K156: 33 | M156: Kyjov | N156: 07:00:00 | O156: 10:00:00 | P156: 10:05:00 | Q156: 11:00:00 | R156: Průša M. | S156: Dokončeno | T156: Chromková L. | V156: 3
A157: 44914.33333 | B157: po | C157: 2022-12-19 | E157: Filmer | F157: JF Logistic | G157: Sstavenhagen | I157: KPHM-20 | J157: PA | K157: 30 | M157: Kyjov | N157: 08:00:00 | O157: 13:15:00 | P157: 13:20:00 | Q157: 14:00:00 | R157: Průša M. | S157: Dokončeno | T157: Kollerová D. | U157: L-466-22 | V157: 3 | X157: v ceně
A158: 44914.45833 | B158: po | C158: 2022-12-19 | E158: Sedata | F158: BSG | G158: Ilmenau | I158: KPHM | J158: PA | K158: 33 | M158: Kyjov | N158: 11:00:00 | O158: 06:15:00 | P158: 06:20:00 | Q158: 07:45:00 | R158: Havránek M. | S158: Dokončeno | T158: Kollerová D. | V158: 3
A159: 44914.47917 | B159: po | C159: 2022-12-19 | D159: příjem | E159: Obaly Morava | F159: vlastní | G159: Kyjov | I159: proložky Renoir, chagall | J159: Pa | K159: 13 | M159: Kyjov | N159: 11:30:00 | O159: 11:30:00 | P159: 11:35:00 | Q159: 12:15:00 | R159: Svoboda L. | S159: Dokončeno | T159: Chromková L. | U159: N2210660 | V159: 2
A160: 44914.59028 | B160: po | C160: 2022-12-19 | E160: Faurecie MB | F160: vlastní | G160: Mladá Boleslav | I160: Defender+SE+UKL | J160: PA | K160: 99 | L160: ano | M160: Kyjov | N160: 14:10:00 | O160: 11:00:00 | P160: 11:30:00 | Q160: 12:15:00 | R160: Průša M. | S160: Dokončeno | T160: Gajdošová L. | V160: 5
A161: 44915.25 | B161: út | C161: 2022-12-20 | E161: DF | F161: Hroza | G161: Neubuz | I161: KS-3 | J161: PA | K161: 32 | M161: Kyjov | N161: 06:00:00 | O161: 06:10:00 | P161: 06:15:00 | Q161: 07:00:00 | R161: Průša M. | S161: Dokončeno | T161: Chromková L. | U161: vychystáno Kubáček/Průša M. | V161: 3 | W161: 3700 | X161: v ceně
A162: 44915.25 | B162: út | C162: 2022-12-20 | E162: DF | F162: vlastní TEZET | G162: Neubuz | I162: KS-3 | J162: PA | K162: 32 | M162: Vlkoš | N162: 06:00:00 | O162: 12:30:00 | P162: 12:35:00 | Q162: 13:00:00 | R162: Doupovec R. | S162: Dokončeno | T162: Chromková L. | V162: 3
A163: 44915.25 | B163: út | C163: 2022-12-20 | E163: DF | F163: Hroza | G163: Neubuz | I163: KS-3 | J163: PA | K163: 32 | M163: Kyjov | N163: 06:00:00 | O163: 16:00:00 | P163: 16:10:00 | Q163: 16:50:00 | R163: Průša M. | S163: Dokončeno | T163: Chromková L. | V163: 3 | W163: 3700 | X163: v ceně
A164: 44915.25347 | B164: út | C164: 2022-12-20 | E164: Atotech | F164: TEZET | G164: Jablonec n.N. | I164: mix | J164: PA | K164: 18 | M164: Kyjov | N164: 06:05:00 | O164: 14:00:00 | P164: 14:10:00 | Q164: 14:40:00 | R164: Průša M. | S164: Dokončeno | T164: Chromková L. | U164: dodávka 21.12.2022 Svoboda | V164: 2 | W164: 9000 | X164: v ceně
A165: 44915.33333 | B165: út | C165: 2022-12-20 | E165: DF | F165: vlastní | G165: Neubuz | I165: KS-3 | J165: PA | K165: 33 | M165: Kyjov | N165: 08:00:00 | O165: 10:45:00 | P165: 11:20:00 | Q165: 13:00:00 | R165: Průša M. | S165: Dokončeno | T165: Chromková L. | V165: 3
A166: 44915.41667 | B166: út | C166: 2022-12-20 | E166: Průmyslová Keramika | F166: vlastní | G166: Rájec-Ještřebí | I166: KE-15 | J166: PA | K166: 14 | M166: Kyjov | N166: 10:00:00 | O166: 10:30:00 | P166: 11:00:00 | Q166: 12:30:00 | R166: Svoboda L. | S166: Dokončeno | T166: Chromková L. | U166: vychystáno 19.12. Průša | V166: 2
A167: 44915.58333 | B167: út | C167: 2022-12-20 | E167: Faurecie MB | F167: vlastní | G167: Mladá Boleslav | I167: Defender+SE+UKL | J167: PA | K167: 99 | M167: Kyjov | N167: 14:00:00 | O167: 11:00:00 | P167: 11:30:00 | Q167: 12:00:00 | R167: Průša M. | S167: Dokončeno | T167: Gajdošová L. | U167: vychystáno Průša | V167: 5
A168: 44915.58333 | B168: út | C168: 2022-12-20 | D168: příjem | E168: MAT | F168: AK servis | G168: Plzeň | I168: palety | J168: PA | K168: 99 | M168: Kyjov | N168: 14:00:00 | O168: 14:05:00 | P168: 14:10:00 | Q168: 14:30:00 | R168: Svoboda L. | S168: Dokončeno | T168: Chromková L. | U168: vratka palet EUR | V168: 5
A169: 44915.59028 | B169: út | C169: 2022-12-20 | E169: Faurecie | F169: vlastní | G169: Pardubice | I169: F40 | J169: PA | K169: 51 | M169: Kyjov | N169: 14:10:00 | O169: 08:45:00 | P169: 09:00:00 | Q169: 10:00:00 | R169: Průša M. | S169: Dokončeno | T169: Gajdošová L. | U169: vychystáno Průša | V169: 4
A170: 44916 | B170: út | C170: 2022-12-20 | E170: FIlmer | F170: JF Logistic | G170: Wustermark | I170: KPHM-20 | J170: PA | K170: 30 | M170: Kyjov | O170: 07:00:00 | P170: 07:10:00 | Q170: 08:30:00 | R170: Průša M. | S170: Dokončeno | T170: Kollerová D. | U170: L-467-22 | V170: 3 | X170: v ceně
A171: 44916.25 | B171: st | C171: 2022-12-21 | E171: DF | F171: Hroza | G171: Neubuz | I171: KPHM | J171: PA | K171: 18 | M171: Kyjov | N171: 06:00:00 | O171: 07:00:00 | P171: 07:05:00 | Q171: 07:30:00 | R171: Průša M. | S171: Dokončeno | T171: Chromková L. | U171: vychystáno Svoboda | V171: 2 | W171: 2800 | X171: v ceně
A172: 44916.25 | B172: st | C172: 2022-12-21 | D172: příjem | E172: Grainer | F172: Hroza | G172: Slušovice | J172: PA | K172: 10 | M172: Kyjov | N172: 06:00:00 | O172: 13:10:00 | P172: 13:15:00 | Q172: 14:00:00 | S172: Dokončeno | T172: Chromková L. | U172: pro údržbu | V172: 2 | W172: 900
A173: 44916.25 | B173: st | C173: 2022-12-21 | E173: DF | F173: Hroza | G173: Neubuz | I173: KS-3 | J173: PA | K173: 32 | M173: Kyjov | N173: 06:00:00 | O173: 14:00:00 | P173: 14:05:00 | Q173: 14:30:00 | R173: Průša M. | S173: Dokončeno | T173: Chromková L. | V173: 3 | W173: 3700 | X173: v ceně
A174: 44916.25347 | B174: st | C174: 2022-12-21 | E174: DF | F174: vlastní | G174: Neubuz | I174: KS-3 | J174: PA | K174: 33 | M174: Kyjov | N174: 06:05:00 | O174: 13:15:00 | P174: 13:20:00 | Q174: 13:50:00 | R174: Průša M. | S174: Dokončeno | T174: Chromková L. | V174: 3
A175: 44916.33333 | B175: st | C175: 2022-12-21 | E175: DF | F175: vlastní | G175: Neubuz | H175: 6Z57801 | I175: KS-3 | J175: PA | K175: 33 | M175: Kyjov | N175: 08:00:00 | O175: 08:15:00 | P175: 08:20:00 | Q175: 09:00:00 | R175: Průša M. | S175: Dokončeno | T175: Chromková L. | V175: 3
A176: 44916.54167 | B176: st | C176: 2022-12-21 | E176: Oma CZ | F176: TEZET | G176: Kolín | I176: KE-10 | J176: PA | K176: 32 | M176: Kyjov | N176: 13:00:00 | O176: 08:30:00 | P176: 08:40:00 | Q176: 10:15:00 | R176: Průša M. | S176: Dokončeno | T176: Chromková L. | U176: dodávka 22.12.2022 | V176: 3 | W176: 7500 | X176: přefakturace 8200,- Kč fa 23010507
A177: 44917.25 | B177: čt | C177: 2022-12-22 | E177: DF | F177: Hroza | G177: Neubuz | I177: KS-3 | J177: PA | K177: 32 | M177: Kyjov | N177: 06:00:00 | O177: 11:00:00 | P177: 11:20:00 | Q177: 12:20:00 | R177: Svoboda L. | S177: Dokončeno | T177: Chromková L. | V177: 3 | W177: 3700 | X177: v ceně
A178: 44917.25347 | B178: čt | C178: 2022-12-22 | E178: Agrimex | F178: TEZET | G178: Kyjov | I178: ke-25 | J178: PA | K178: 30 | M178: Kyjov | N178: 06:05:00 | O178: 11:00:00 | P178: 11:20:00 | Q178: 12:00:00 | R178: Průša M. | S178: Dokončeno | T178: Chromková L. | U178: vykládka 5.1.2023 | V178: 3 | W178: 6100 | X178: v ceně
A179: 44917.25347 | B179: čt | C179: 2022-12-22 | E179: Cheport | F179: TEZET | G179: Kyjov | I179: mix | J179: PA | K179: 30 | M179: Kyjov | N179: 06:05:00 | O179: 11:30:00 | P179: 12:00:00 | Q179: 12:45:00 | R179: Průša M. | S179: Dokončeno | T179: Chromková L. | U179: vykládka 3.1.2023 | V179: 3 | W179: 4100 | X179: v ceně
A180: 44917.33333 | B180: čt | C180: 2022-12-22 | D180: příjem | E180: T-net | F180: MSB | G180: Kyjov | H180: Kováč | I180: palety | J180: PA | K180: 99 | M180: Kyjov | N180: 08:00:00 | O180: 06:00:00 | P180: 06:10:00 | Q180: 07:00:00 | R180: Průša M. | S180: Dokončeno | T180: Gajdošová L. | U180: vratka palet | V180: 5
A181: 44917.41667 | B181: čt | C181: 2022-12-22 | E181: D.I.CHEM | F181: TEZET | G181: Odry | I181: mix | J181: PA | K181: 30 | M181: Kyjov | N181: 10:00:00 | O181: 10:05:00 | P181: 10:10:00 | Q181: 11:20:00 | R181: Svoboda L. | S181: Dokončeno | T181: Chromková L. | U181: vychystáno Svoboda vykl.2.1.2023 | V181: 3 | W181: 4500 | X181: přefakt. 5200- Kč fa 23010509
A182: 44917.5 | B182: čt | C182: 2022-12-22 | D182: příjem | E182: T-NET | F182: vlastní | G182: Kyjov | I182: těsnění Zeus + další | J182: PA | K182: 4 | M182: Kyjov | N182: 12:00:00 | O182: 09:10:00 | P182: 09:15:00 | Q182: 09:25:00 | R182: Průša M. | S182: Dokončeno | T182: Hochman L. | V182: 1
A196: =IF(C196="","",IF(N196="",C196+1,C196+N196)) ->  | B196: =IF(C196="","",+TEXT(C196,"ddD")) ->  | V196: =IF(K196="","",IF(K196<10,1,IF(K196<=25,2,IF(K196<=35,3,IF(K196<=70,4,5))))) -> 
A260: =IF(C260="","",IF(N260="",C260+1,C260+N260)) ->  | B260: =IF(C260="","",+TEXT(C260,"ddD")) ->  | V260: =IF(K260="","",IF(K260<10,1,IF(K260<=25,2,IF(K260<=35,3,IF(K260<=70,4,5))))) -> 
B324: =IF(C324="","",+TEXT(C324,"ddD")) ->  | V324: =IF(K324="","",IF(K324<10,1,IF(K324<=25,2,IF(K324<=35,3,IF(K324<=70,4,5))))) -> 
B388: =IF(C388="","",+TEXT(C388,"ddD")) ->  | V388: =IF(K388="","",IF(K388<10,1,IF(K388<=25,2,IF(K388<=35,3,IF(K388<=70,4,5))))) -> 
B452: =IF(C452="","",+TEXT(C452,"ddD")) ->  | V452: =IF(K452="","",IF(K452<10,1,IF(K452<=25,2,IF(K452<=35,3,IF(K452<=70,4,5))))) -> 
B516: =IF(C516="","",+TEXT(C516,"ddD")) ->  | V516: =IF(K516="","",IF(K516<10,1,IF(K516<=25,2,IF(K516<=35,3,IF(K516<=70,4,5))))) -> 
B580: =IF(C580="","",+TEXT(C580,"ddD")) ->  | V580: =IF(K580="","",IF(K580<10,1,IF(K580<=25,2,IF(K580<=35,3,IF(K580<=70,4,5))))) -> 
B644: =IF(C644="","",+TEXT(C644,"ddD")) ->  | V644: =IF(K644="","",IF(K644<10,1,IF(K644<=25,2,IF(K644<=35,3,IF(K644<=70,4,5))))) -> 

Sheet DataVAR (hidden)
B3: Zákazník | C3: Dopravce | D3: Destinace
B5: OMA | C5: Logmax | D5: Černá Hora | G5: Černá Hora
B6: DF | C6: TEZET | D6: Neubuz | G6: Neubuz
B7: JPP | C7: Hroza | D7: Vlkoš | G7: Vlkoš
B8: Franta | C8: PBM | D8: Eloyes | G8: Eloyes
B9: ECOABC | D9: Polsko | G9: Polsko
B10: T-NET | C10: BMS | D10: Eloyes | G10: Eloyes
B11: n/a | C11: Hroza | D11: Wallersdorf | G11: Wallersdorf
B12: n/a | C12: - | D12: n/a | G12: n/a
B13: T-NET | C13: CarMax | D13: Linz | G13: Linz
B14: TBA | C14: odběratel | D14: Pardubice | G14: Pardubice
B15: n/a | C15: - | D15: n/a | G15: n/a
D16: Vlkoš | G16: Vlkoš
B17: Cheport | C17: TEZET | D17: Lhotsko | G17: Lhotsko

Sheet XX (hidden)
A2: pořadí | B2: Den | C2: Datum | D2: Expedice číslo (PDL ?) | E2: Zákazník | F2: Dopravce | G2: Destinace | H2: SPZ | I2: název výrobku | J2: balení | K2: počet balení | L2: Vratka palet (ano/ne) | M2: místo nakládky | N2: Plán. příjezd | O2: Skutečný příjezd | P2: Start nakládky | Q2: Konec nakládky | R2: Expedoval | S2: Status | T2: Naplánoval | U2: Poznámka | V2: složitost
A4: =IF(C4="","",IF(N4="",C4+1,C4+N4)) ->  | B4: =IF(C4="","",IF(C4>0,C4,0)) ->  | V4: =IF(K4="","",IF(K4<10,1,IF(K4>25,3,2))) -> 
V36: =IF(K36="","",IF(K36<10,1,IF(K36>25,3,2))) -> 
A68: =IF(C68="","",IF(N68="",C68+1,C68+N68)) ->  | B68: =IF(C68="","",IF(C68>0,C68,0)) -> 
A132: =IF(C132="","",IF(N132="",C132+1,C132+N132)) ->  | B132: =IF(C132="","",IF(C132>0,C132,0)) -> 
A196: =IF(C196="","",IF(N196="",C196+1,C196+N196)) ->  | B196: =IF(C196="","",IF(C196>0,C196,0)) -> 
A260: =IF(C260="","",IF(N260="",C260+1,C260+N260)) ->  | B260: =IF(C260="","",IF(C260>0,C260,0)) -> 

Sheet 01.23
D1: 2023-01-02 | E1: ►►►► | F1: 2023-02-03 | G1: DNEŠNÍ DATUM: | I1: =+TODAY() -> 2023-02-01 | O1: AKTUÁLNÍ ČAS: | Q1: =NOW() -> 44958.55435 | T1: AKTUÁLNÍ MĚSÍC: | V1: =+I1 -> 2023-02-01 | W1: Informace pro NÁKUP
A2: pořadí | B2: Den | C2: Datum | D2: Příjem | E2: Zákazník | F2: Destinace | G2: Dopravce | H2: SPZ | I2: název výrobku | J2: balení | K2: počet balení | L2: Obtížnost | M2: vratka palet (ano/ne) | N2: místo nakládky | O2: Plán. příjezd | P2: Skutečný příjezd | Q2: Start nakládky | R2: Konec nakládky | S2: Expedoval / Přijal | T2: Status | U2: Naplánoval | V2: Poznámka | W2: Cena přepravy | X2: přefaktuace/doplňující informace
A4: =IF(C4="","",IF(O4="",C4+1,C4+O4)) -> 44929 | B4: =IF(C4="","",+TEXT(C4,"ddD")) -> po | C4: 2023-01-02
A5: 44929.25 | B5: út | C5: 2023-01-03 | E5: DF | F5: Neubuz | G5: Hroza | I5: KS-3,KE-25 | J5: PA | K5: 30 | M5: ano | N5: Kyjov | O5: 06:00:00 | P5: 06:15:00 | Q5: 06:20:00 | R5: 07:00:00 | S5: Hojač M. | T5: Dokončeno | U5: Chromková L. | X5: v ceně
A6: 44929.29167 | B6: út | C6: 2023-01-03 | E6: Antolin | F6: Libáň | G6: vlastní | I6: YETI | J6: PA | K6: 43 | M6: ano | N6: Kyjov | O6: 07:00:00 | P6: 13:00:00 | Q6: 13:05:00 | R6: 13:50:00 | S6: Havránek M. | T6: Dokončeno | U6: Chromková L.
A7: 44929.33333 | B7: út | C7: 2023-01-03 | E7: INX | F7: HorníPočernice | G7: Logmax | I7: KA-5 | J7: PA | K7: 65 | M7: ne | N7: Kyjov | O7: 08:00:00 | P7: 11:00:00 | Q7: 11:50:00 | R7: 13:15:00 | S7: Svoboda L. | T7: Dokončeno | U7: Chromková L. | W7: 8900 | X7: v ceně
A8: 44929.45833 | B8: út | C8: 2023-01-03 | D8: příjem | E8: Faurecie MB | F8: Mladá Boleslav | G8: vlastní | I8: obaly | J8: PA | N8: Kyjov | O8: 11:00:00 | P8: 11:40:00 | Q8: 12:00:00 | R8: 12:30:00 | S8: Průša M. | T8: Dokončeno | U8: Chromková L.
A9: 44930 | B9: út | C9: 2023-01-03 | E9: T-Net | F9: Eloyes | G9: Legarde | I9: Degas | J9: PA | K9: 4 | M9: ne | N9: Kyjov | P9: 12:30:00 | Q9: 12:35:00 | R9: 12:40:00 | S9: Havránek M. | T9: Dokončeno | U9: Gajdošová L.
A10: 44930 | B10: út | C10: 2023-01-03 | E10: T-Net | F10: Eloyes | G10: MSB | H10: M01 | I10: Chagall | J10: PA | K10: 66 | M10: ne | N10: Kyjov | P10: 07:25:00 | Q10: 07:30:00 | R10: 08:00:00 | S10: Doupovec R. | T10: Dokončeno | U10: Gajdošová L.
A11: 44930 | B11: út | C11: 2023-01-03 | E11: T-Net | F11: Eloyes | G11: MSB | H11: M02 | I11: mix | J11: PA | K11: 66 | M11: ne | N11: Kyjov+Vlkoš | P11: 08:30:00 | Q11: 08:35:00 | R11: 10:00:00 | S11: Svoboda L. | T11: Dokončeno | U11: Gajdošová L.
A12: 44930 | B12: út | C12: 2023-01-03 | E12: T-Net | F12: Eloyes | G12: MSB | H12: M03 | I12: mix | J12: PA | K12: 66 | M12: ne | N12: Vlkoš | P12: 09:00:00 | Q12: 09:45:00 | R12: 10:30:00 | S12: Doupovec R. | T12: Dokončeno | U12: Gajdošová L.
A13: 44930 | B13: út | C13: 2023-01-03 | E13: T-Net | F13: Eloyes | G13: MSB | H13: M04 | I13: mix | J13: PA | K13: 66 | M13: ne | N13: Kyjov+Vlkoš | P13: 09:00:00 | Q13: 10:40:00 | R13: 12:30:00 | S13: Hojač M. | T13: Dokončeno | U13: Gajdošová L.
A14: 44930 | B14: út | C14: 2023-01-03 | D14: příjem | E14: Filmer | F14: Kyjov | I14: palety vratka | J14: PA | K14: 30 | N14: Kyjov | P14: 10:00:00 | Q14: 10:05:00 | R14: 10:15:00 | S14: Havránek M. | T14: Dokončeno | U14: Chromková L. | V14: vratka palet Filmer
A15: 44930 | B15: út | C15: 2023-01-03 | D15: příjem | E15: GAS | F15: Kyjov | G15: vlastní | I15: plyn | N15: Kyjov | P15: 10:15:00 | Q15: 10:15:00 | R15: 10:30:00 | S15: Havránek M. | T15: Dokončeno | U15: Chromková L.
A16: 44930 | B16: út | C16: 2023-01-03 | E16: Faurecie MB | F16: Mladá Boleslav | G16: vlastní | I16: BMW + Defender | J16: PA | K16: 99 | M16: ano | N16: Kyjov | P16: 15:10:00 | Q16: 15:15:00 | R16: 16:00:00 | S16: Průša M. | T16: Dokončeno | U16: Gajdošová L. | X16: v ceně
A17: 44930.25 | B17: st | C17: 2023-01-04 | E17: DF | F17: Neubuz | G17: Hroza | I17: PHM | J17: PA | K17: 18 | N17: Kyjov | O17: 06:00:00 | P17: 13:45:00 | Q17: 14:00:00 | R17: 14:20:00 | S17: Hojač M. | T17: Dokončeno | U17: Chromková L. | V17: vychystáno Hojač,nakládka 3.1.2023 | X17: v ceně
A18: 44930.25347 | B18: st | C18: 2023-01-04 | E18: Bochemie | F18: Bohumín | G18: TEZET | J18: PA | K18: 16 | M18: ano | N18: Vlkoš | O18: 06:05:00 | P18: 11:50:00 | Q18: 12:00:00 | R18: 12:30:00 | S18: Doupovec R. | T18: Dokončeno | U18: Chromková L. | V18: naloženo 3.1.2023 | W18: 5500 | X18: v ceně
A19: 44930.25347 | B19: st | C19: 2023-01-04 | E19: DF | F19: Neubuz | G19: Hroza | I19: KE-25 | J19: PA | K19: 28 | N19: Kyjov | O19: 06:05:00 | P19: 14:00:00 | Q19: 14:20:00 | R19: 14:35:00 | S19: Hojač M. | T19: Dokončeno | U19: Chromková L. | X19: v ceně
A20: 44930.33333 | B20: st | C20: 2023-01-04 | E20: T-Net | F20: NY | G20: kontejer | I20: Degas | J20: PA | K20: 21 | M20: ne | N20: Kyjov | O20: 08:00:00 | P20: 07:45:00 | Q20: 08:15:00 | R20: 09:30:00 | S20: Havránek M. | T20: Dokončeno | U20: Gajdošová L.
A21: 44930.41667 | B21: st | C21: 2023-01-04 | E21: Ozas-Esab | F21: Opole | G21: Schenker | I21: Water tank | J21: PA | K21: 2 | M21: ne | N21: Kyjov | O21: 10:00:00 | P21: 11:20:00 | Q21: 11:35:00 | R21: 11:45:00 | S21: Průša M. | T21: Dokončeno | U21: Gajdošová L.
A22: 44930.41667 | B22: st | C22: 2023-01-04 | E22: Agrimex | F22: Kojetice | G22: vlastní | I22: KE-25 | J22: PA | K22: 10 | N22: Kyjov | O22: 10:00:00 | P22: 08:35:00 | Q22: 08:40:00 | R22: 09:15:00 | S22: Hojač M. | T22: Dokončeno | U22: Chromková L. | X22: v ceneě
A23: 44930.45833 | B23: st | C23: 2023-01-04 | E23: Flexfill | F23: Lovosice | G23: Interkontakt | J23: PA | K23: 66 | M23: ne | N23: Kyjov | O23: 11:00:00 | P23: 11:00:00 | Q23: 11:30:00 | R23: 12:30:00 | S23: Doupovec R. | T23: Dokončeno | U23: Chromková L. | V23: L-490-22 | W23: 9500 | X23: v ceně
A24: 44931 | B24: st | C24: 2023-01-04 | E24: Tichelman | F24: Brnoo | G24: vlastní | I24: pytle | J24: PA | K24: 3 | M24: ano | N24: Kyjov | P24: 10:35:00 | Q24: 10:40:00 | R24: 11:00:00 | S24: Svoboda L. | T24: Dokončeno | U24: Chromková L.
A25: 44931.25 | B25: čt | C25: 2023-01-05 | E25: DF | F25: Neubuz | G25: Hroza | I25: KS-5 | J25: PA | K25: 32 | M25: ano | N25: Kyjov | O25: 06:00:00 | P25: 07:40:00 | Q25: 07:45:00 | R25: 08:20:00 | S25: Hojač M. | T25: Dokončeno | U25: Chromková L. | X25: v ceně
A26: 44931.25347 | B26: čt | C26: 2023-01-05 | E26: Oma | F26: Černá Hora | G26: Tezet | I26: mix | J26: PA | K26: 30 | M26: ne | N26: Kyjov | O26: 06:05:00 | P26: 14:00:00 | Q26: 14:20:00 | R26: 14:35:00 | S26: Hojač M. | T26: Dokončeno | U26: Chromková L. | V26: vychystal Kubáček na 5.1.2023 | W26: 4160 | X26: přefaktur. 4200,- Kč fa 23010529
A27: 44931.25347 | B27: čt | C27: 2023-01-05 | E27: Fagron | F27: Olomouc | G27: TEZET | I27: mix | J27: PA | K27: 32 | M27: ne | N27: Kyjov | O27: 06:05:00 | P27: 11:55:00 | Q27: 11:57:00 | R27: 12:15:00 | S27: Hojač M. | T27: Dokončeno | U27: Chromková L. | V27: vychystáno Hojač,nakládka na 5.1.2023 | W27: 4170 | X27: přefaktur. 5200,- kč 23010526
A28: 44931.41667 | B28: čt | C28: 2023-01-05 | E28: Variant | F28: Všetaty | G28: vlastní | I28: LUH-1 | J28: PA | K28: 3 | M28: ano | N28: Kyjov | O28: 10:00:00 | P28: 10:45:00 | Q28: 10:45:00 | R28: 11:00:00 | S28: Doupovec R. | T28: Dokončeno | U28: Chromková L. | V28: vychystal Svoboda
A29: 44931.41667 | B29: čt | C29: 2023-01-05 | E29: Carrier | F29: Mýto | G29: vlastní | I29: sifon | J29: KA | K29: 3 | M29: ne | N29: Kyjov | O29: 10:00:00 | P29: 08:20:00 | Q29: 08:20:00 | R29: 08:25:00 | S29: Svoboda L. | T29: Dokončeno | U29: Chromková L. | V29: vychystal Průša
A30: 44931.41667 | B30: čt | C30: 2023-01-05 | E30: Transtech tooling | F30: Popůvky u Brna | G30: vlastníí | I30: KE-10 | J30: PA | K30: 2 | M30: ano | N30: Kyjov | O30: 10:00:00 | P30: 4.618055556 | Q30: 10:55:00 | R30: 11:10:00 | S30: Svoboda L. | T30: Dokončeno | U30: Chromková L.
A31: 44931.4375 | B31: čt | C31: 2023-01-05 | D31: příjem | E31: Lopal | F31: Kyjov | G31: vlastní | I31: 700 ks EUR palet | J31: PA | K31: 33 | M31: ne | N31: Uherské Hradiště | O31: 10:30:00 | P31: 10:45:00 | Q31: 11:00:00 | R31: 11:45:00 | S31: Havránek M. | T31: Dokončeno | U31: Bilíček P.
A32: 44931.5 | B32: čt | C32: 2023-01-05 | E32: Bartozs Ratuski | F32: Grodzisk Mazowiecki | G32: vlastní | I32: KE-10, 20, 25 | J32: PA | K32: 33 | M32: ne | N32: Kyjov | O32: 12:00:00 | P32: 10:45:00 | Q32: 10:50:00 | R32: 11:30:00 | S32: Průša M. | T32: Dokončeno | U32: Hochman L.
A33: 44931.58333 | B33: čt | C33: 2023-01-05 | E33: Sait-Gonbein | F33: Prostějov | G33: vlastní | I33: mix | J33: PA | K33: 3 | M33: ne | N33: Kyjov | O33: 14:00:00 | P33: 13:50:00 | Q33: 13:51:00 | R33: 14:00:00 | S33: Svoboda L. | T33: Dokončeno | U33: Chromková L.
A34: 44932 | B34: čt | C34: 2023-01-05 | D34: příjem | E34: GEFCO | G34: vlastní | I34: boxy | J34: PA | K34: 32 | N34: Kyjov | P34: 07:05:00 | Q34: 07:10:00 | R34: 07:30:00 | S34: Svoboda L. | T34: Dokončeno | U34: Gajdošová L.
A35: 44932 | B35: čt | C35: 2023-01-05 | E35: PK Group | F35: Dubňany | G35: vlastní | I35: SOT-120 | J35: PA | K35: 2 | M35: ne | N35: Kyjov | P35: 07:45:00 | Q35: 07:50:00 | R35: 08:15:00 | S35: Svoboda L. | T35: Dokončeno | U35: Gajdošová L.
A36: 44932.25 | B36: pá | C36: 2023-01-06 | E36: DF | F36: Neubuz | G36: Hroza | I36: KS-5 | J36: PA | K36: 32 | M36: ano | N36: Kyjov | O36: 06:00:00 | P36: 13:30:00 | Q36: 13:35:00 | R36: 14:00:00 | S36: Hojač M. | T36: Dokončeno | U36: Chromková L. | X36: v ceně
A37: 44932.25 | B37: pá | C37: 2023-01-06 | E37: DF | F37: Neubuz | G37: Hroza | I37: KS-3 | J37: PA | K37: 32 | N37: Kyjov | O37: 06:00:00 | P37: 10:50:00 | Q37: 11:00:00 | R37: 1140 | S37: Hojač M. | T37: Dokončeno | U37: Chromková L. | X37: v ceně
A38: 44932.25347 | B38: pá | C38: 2023-01-06 | E38: Cheport | F38: Vizovice | G38: TEZET | I38: Mix | J38: PA | K38: 32 | M38: ne | N38: Kyjov | O38: 06:05:00 | P38: 13:00:00 | Q38: 13:05:00 | R38: 13:30:00 | S38: Kubáček M. | T38: Dokončeno | U38: Chromková L. | V38: vychystal Kubáček 5.1., naloženo 5.1. | W38: 4100 | X38: v ceně
A39: 44932.41667 | B39: pá | C39: 2023-01-06 | E39: TBA | F39: Havl. Brod | G39: vlastní | I39: mix | J39: PA | K39: 33 | M39: ne | N39: Kyjov | O39: 10:00:00 | P39: 11:30:00 | Q39: 11:35:00 | R39: 13:10:00 | S39: Doupovec R. | T39: Dokončeno | U39: Chromková L.
A40: 44932.46875 | B40: pá | C40: 2023-01-06 | D40: příjem | E40: TBA | F40: Halv. Brod | G40: 6J74747 | I40: Kyjov | J40: PA | K40: 99 | N40: Kyjov | O40: 11:15:00 | P40: 11:30:00 | Q40: 11:35:00 | R40: 13:10:00 | S40: Havránek M. | T40: Dokončeno | U40: Gajdošová L. | V40: vratla palet 510 ks - byyšpatné
A41: 44933 | B41: pá | C41: 2023-01-06 | E41: Seco Group | F41: Jičín | G41: TEZET | I41: NDK | J41: PA | K41: 34 | M41: ne | N41: Kyjov | P41: 12:00:00 | Q41: 12:05:00 | R41: 12:30:00 | S41: Hojač M. | T41: Dokončeno | U41: Gajdošová L. | V41: vychystal Hojač 4.1.2023, naloženo 5.1. | W41: 7400 | X41: přefak.310,- eur fa 23010534
A42: 44935.25 | B42: po | C42: 2023-01-09 | E42: DF | F42: Neubuz | G42: Hroza | I42: KS-3 | J42: PA | K42: 32 | N42: Kyjov | O42: 06:00:00 | P42: 13:00:00 | Q42: 13:05:00 | R42: 14:00:00 | S42: Průša J. | T42: Dokončeno | U42: Chromková L. | V42: nakládka Sobota ! | X42: v ceně
A43: 44935.25 | B43: po | C43: 2023-01-09 | E43: DF | F43: Neubuz | G43: Hroza | I43: KS-3 | J43: PA | K43: 32 | N43: Kyjov | O43: 06:00:00 | P43: 10:30:00 | Q43: 10:35:00 | R43: 11:15:00 | S43: Hojač M. | T43: Dokončeno | U43: Chromková L. | X43: v ceně
A44: 44935.25278 | B44: po | C44: 2023-01-09 | E44: Rina | F44: Čelákovice | G44: TEZET | I44: mix | J44: PA | K44: 18 | M44: ano | N44: Kyjov | O44: 06:04:00 | P44: 13:30:00 | Q44: 13:35:00 | R44: 14:15:00 | S44: Kubáček M. | T44: Dokončeno | U44: Chromková L. | V44: nakládka v pátek 6.1.2023 | W44: 8100 | X44: v ceně
A45: 44935.25347 | B45: po | C45: 2023-01-09 | E45: Cheport | F45: Vizovice | G45: Tezet | I45: mix | J45: PA | K45: 30 | M45: ne | N45: Kyjov | O45: 06:05:00 | P45: 09:45:00 | Q45: 09:50:00 | R45: 10:05:00 | S45: Kubáček M. | T45: Dokončeno | U45: Chromková L. | V45: vychystal Kubáček, naloženo 6.1. | W45: 4100 | X45: v ceně
A46: 44935.29167 | B46: po | C46: 2023-01-09 | E46: Groshandel | F46: Suhl-Sehmar | I46: KPHM | J46: PA | K46: 38 | M46: ne | N46: Kyjov | O46: 07:00:00 | P46: 13:00:00 | Q46: 13:10:00 | R46: 14:05:00 | S46: Svoboda L. | T46: Dokončeno | U46: Kollerová D. | W46: 21500 | X46: v ceně
A47: 44935.29514 | B47: po | C47: 2023-01-09 | E47: Groshandel | F47: Suhl-Sehmar | I47: mix | J47: PA | K47: 38 | M47: ne | N47: Kyjov | O47: 07:05:00 | P47: 14:50:00 | Q47: 15:00:00 | S47: Svoboda L. | T47: Dokončeno | U47: Kollerová D. | V47: vychystal Havránek | W47: 21500 | X47: v ceně
A48: 44935.33333 | B48: po | C48: 2023-01-09 | E48: Filmer | F48: Malchow | I48: KPHM | J48: PA | K48: 66 | L48: 4 | M48: ne | N48: Kyjov | O48: 08:00:00 | P48: 07:00:00 | Q48: 07:10:00 | R48: 08:20:00 | S48: Průša M. | T48: Dokončeno | U48: Kollerová D. | X48: v ceně
A49: 44935.41667 | B49: po | C49: 2023-01-09 | E49: TBA | F49: Havl.Brod | G49: vlastní | I49: mix | J49: PA | K49: 30 | M49: ne | N49: Kyjov | O49: 10:00:00 | P49: 13:00:00 | Q49: 13:10:00 | R49: 13:50:00 | S49: Havránek M. | T49: Dokončeno | U49: Chromková L.
A50: 44935.45833 | B50: po | C50: 2023-01-09 | E50: Flexfill | F50: Lovosice | G50: Interkontakt | J50: PA | K50: 66 | M50: ne | N50: Kyjov | O50: 11:00:00 | P50: 10:10:00 | Q50: 10:15:00 | R50: 11:10:00 | S50: Kubáček M. | T50: Dokončeno | U50: Chromková L. | V50: L-491-22 | W50: 9500 | X50: v ceně
A51: 44935.46181 | B51: po | C51: 2023-01-09 | E51: Nufarm | F51: Linz | G51: Interkontakt | I51: KA-5 | J51: PA | K51: 52 | M51: ne | N51: Kyjov | O51: 11:05:00 | P51: 11:50:00 | Q51: 12:00:00 | R51: 12:30:00 | S51: Hojač M. | T51: Dokončeno | U51: Gajdošová L. | V51: vychystal Hojač | X51: v ceně
A52: 44935.46528 | B52: po | C52: 2023-01-09 | E52: T-Net | F52: Eloyes | G52: Legarde | H52: Legarde | I52: Degas | J52: PA | K52: 34 | M52: ne | N52: Kyjov+Vlkoš | O52: 11:10:00 | P52: 07:00:00 | Q52: 07:05:00 | R52: 07:30:00 | S52: Doupovec R. | T52: Dokončeno | U52: Gajdošová L. | V52: vychystal Doupovec 5.1.
A53: 44935.46875 | B53: po | C53: 2023-01-09 | E53: MAT | F53: Plzeň | G53: AK Servis | J53: PA | K53: 18 | M53: ano | N53: Kyjov | O53: 11:15:00 | P53: 07:15:00 | Q53: 07:25:00 | R53: 08:10:00 | S53: Svoboda L. | T53: Dokončeno | U53: Chromková L.
A54: 44935.46875 | B54: po | C54: 2023-01-09 | E54: Carier | F54: Mýto | G54: vlastní | J54: KA | K54: 2 | M54: ne | N54: Kyjov | O54: 11:15:00 | P54: 12:55:00 | Q54: 13:00:00 | R54: 13:10:00 | S54: Kubáček M. | T54: Dokončeno | U54: Gajdošová L. | V54: vychystáno
A55: 44935.58333 | B55: po | C55: 2023-01-09 | E55: T-Net | F55: Eloyes | G55: MSB | H55: M08 | I55: mix | J55: PA | K55: 48 | M55: ne | N55: Kyjov+Vlkoš | O55: 14:00:00 | P55: 07:00:00 | Q55: 07:10:00 | R55: 08:30:00 | S55: Hojač M. | T55: Dokončeno | U55: Gajdošová L.
A56: 44935.60417 | B56: po | C56: 2023-01-09 | E56: Toptrans | G56: SBS | I56: mix | J56: PA | K56: 4 | M56: ne | N56: Kyjov | O56: 14:30:00 | R56: 13:00:00 | S56: Kubáček M. | T56: Dokončeno | U56: Gajdošová L. | V56: vychystal Kubáček
A57: 44935.625 | B57: po | C57: 2023-01-09 | E57: Faurecie MB | F57: Mladá Boleslav | G57: vlastní | H57: extra | I57: mix | J57: PA | K57: 7 | M57: ne | N57: Kyjov | O57: 15:00:00 | P57: 14:50:00 | Q57: 14:50:00 | R57: 15:00:00 | S57: Svoboda L. | T57: Dokončeno | U57: Gajdošová L. | V57: vychystal Průša
A58: 44936.25 | B58: út | C58: 2023-01-10 | E58: DF | F58: Neubuz | G58: Hroza | I58: KS-3 | J58: PA | K58: 29 | M58: ne | N58: Kyjov | O58: 06:00:00 | P58: 10:15:00 | Q58: 10:25:00 | R58: 11:30:00 | S58: Hojač M. | T58: Dokončeno | U58: Chromková L. | X58: v ceně
A59: 44936.25 | B59: út | C59: 2023-01-10 | E59: DF | F59: Neubuz | G59: Hroza | I59: PHM | J59: PA | K59: 18 | M59: ano | N59: Kyjov | O59: 06:00:00 | P59: 15:00:00 | Q59: 15:10:00 | R59: 15:45:00 | S59: Antoš J. | T59: Dokončeno | U59: Chromková L. | V59: vychystáno Hojč na 10.1.2023 | X59: v ceně
A60: 44936.25347 | B60: út | C60: 2023-01-10 | E60: Everstar | F60: Šumperk | G60: TEZET | I60: KSE-5 | J60: PA | K60: 32 | M60: ano | N60: Kyjov | O60: 06:05:00 | P60: 13:00:00 | Q60: 13:35:00 | R60: 14:00:00 | S60: Kubáček M. | T60: Dokončeno | U60: Chromková L. | V60: vychystáno,nakládka na 10.1.2023 | W60: 5000 | X60: přefak. 7500,- Kč fa 23010554
A61: 44936.25417 | B61: út | C61: 2023-01-10 | E61: Atotech | F61: Jablonec n.N. | G61: TEZET | I61: mix | J61: PA | K61: 16 | M61: ne | N61: Kyjov | O61: 06:06:00 | P61: 12:50:00 | Q61: 12:55:00 | R61: 13:35:00 | S61: Kubáček M. | T61: Dokončeno | U61: Chromková L. | V61: NAKÁDKA NA 10.1.2023 | W61: 9000 | X61: v ceně
A62: 44936.29167 | B62: út | C62: 2023-01-10 | E62: Antolin | F62: Libáň | G62: vlastní | I62: SEAT | J62: PA | K62: 25 | M62: ano | N62: Kyjov | O62: 07:00:00 | P62: 06:00:00 | Q62: 06:05:00 | R62: 07:00:00 | S62: Havránek M. | T62: Dokončeno | U62: Chromková L.
A63: 44936.45833 | B63: út | C63: 2023-01-10 | E63: JPSK | F63: Prievidza | G63: Legarde | I63: mix | J63: PA | K63: 32 | M63: ne | N63: Kyjov | O63: 11:00:00 | P63: 11:15:00 | Q63: 11:20:00 | R63: 13:35:00 | S63: Doupovec R. | T63: Dokončeno | U63: Chromková L.
A64: 44936.45833 | B64: út | C64: 2023-01-10 | D64: příjem | E64: JPSK | F64: Kyjov | G64: Legarde | I64: mix | J64: PA | K64: 5 | M64: ne | N64: Kyjov | O64: 11:00:00 | P64: 11:15:00 | Q64: 11:25:00 | R64: 12:00:00 | S64: Havránek M. | T64: Dokončeno | U64: Chromková L.
A65: 44936.47917 | B65: út | C65: 2023-01-10 | E65: Blaser | F65: Troubsko | G65: vlastní | I65: KE-25 | J65: PA | K65: 3 | M65: ano | N65: Kyjov | O65: 11:30:00 | P65: 12:55:00 | Q65: 13:00:00 | R65: 13:15:00 | S65: Hojač M. | T65: Dokončeno | U65: Gajdošová L. | V65: vychystal Doupovec
A66: 44936.47917 | B66: út | C66: 2023-01-10 | E66: Avena | F66: Bzenec | G66: vlastní | I66: SDH-50 | J66: PA | K66: 5 | M66: ano | N66: Kyjov | O66: 11:30:00 | P66: 11:30:00 | Q66: 11:35:00 | R66: 12:00:00 | S66: Svoboda L. | T66: Dokončeno | U66: Chromková L.
A67: 44936.48958 | B67: út | C67: 2023-01-10 | E67: Ozas Esab | F67: Opole | G67: Schenker | I67: Water can | J67: KA | K67: 4 | M67: ne | N67: Kyjov | O67: 11:45:00 | P67: 11:50:00 | Q67: 11:55:00 | R67: 12:00:00 | S67: Hojač M. | T67: Dokončeno | U67: Gajdošová L. | V67: vychystal Doupovec
A68: =IF(C68="","",IF(O68="",C68+1,C68+O68)) -> 44936.49306 | B68: =IF(C68="","",+TEXT(C68,"ddD")) -> út | C68: 2023-01-10 | E68: Lipera | F68: Boršice | G68: vlastní | I68: uzávěry | J68: KA | K68: 4 | M68: ne | N68: Kyjov | O68: 11:50:00 | P68: 14:00:00 | Q68: 14:05:00 | R68: 14:10:00 | S68: Doupovec R. | T68: Dokončeno | U68: Gajdošová L. | V68: 2023-01-10
A69: 44936.5 | B69: út | C69: 2023-01-10 | E69: Faurecie | F69: Pardubice | G69: vlastní | I69: Air duct F40 | J69: PA | K69: 33 | M69: ano | N69: Kyjov | O69: 12:00:00 | P69: 06:00:00 | Q69: 06:05:00 | R69: 07:00:00 | S69: Průša M. | T69: Dokončeno | U69: Gajdošová L.
A70: 44936.52083 | B70: út | C70: 2023-01-10 | E70: Faurecie MB | F70: Mladá Boleslav | G70: vlastní | I70: BMW + Defender | J70: PA | K70: 99 | M70: ano | N70: Kyjov | O70: 12:30:00 | P70: 11:00:00 | Q70: 11:15:00 | R70: 12:00:00 | S70: Průša M. | T70: Dokončeno | U70: Gajdošová L.
A71: 44936.54167 | B71: út | C71: 2023-01-10 | E71: Faurecie MB | F71: Mladá Boleslav | G71: vlastní | H71: extra | I71: mix | J71: PA | K71: 28 | M71: ne | N71: Kyjov | O71: 13:00:00 | P71: 12:35:00 | Q71: 12:45:00 | R71: 13:30:00 | S71: Průša M. | T71: Dokončeno | U71: Gajdošová L. | V71: extra auto
A72: 44936.54167 | B72: út | C72: 2023-01-10 | E72: PK Group | F72: Dubňany | G72: vlastní | I72: SOT-120 | J72: PA | K72: 10 | M72: ne | N72: Kyjov | O72: 13:00:00 | P72: 12:45:00 | Q72: 12:50:00 | R72: 13:15:00 | S72: Svoboda L. | T72: Dokončeno | U72: Chromková L.
A73: 44936.58333 | B73: út | C73: 2023-01-10 | E73: Vypl | F73: Rakvice | G73: naše | I73: barva | J73: PY | K73: 2 | M73: ne | N73: Kyjov | O73: 14:00:00 | P73: 14:10:00 | Q73: 14:15:00 | R73: 14:20:00 | S73: Průša M. | T73: Dokončeno | U73: Chromková L.
A74: 44937.25 | B74: st | C74: 2023-01-11 | E74: DF | F74: Neubuz | G74: Hroza | I74: KS-3 | J74: PA | K74: 18 | N74: Kyjov | O74: 06:00:00 | P74: 10:00:00 | Q74: 10:10:00 | R74: 11:00:00 | S74: Hojač M. | T74: Dokončeno | U74: Chromková L. | X74: v ceně
A75: 44937.25 | B75: st | C75: 2023-01-11 | E75: DF | F75: Neubuz | G75: Hroza | I75: PHM | J75: PA | K75: 18 | M75: ano | N75: Kyjov | O75: 06:00:00 | P75: 15:00:00 | Q75: 15:10:00 | R75: 15:50:00 | S75: Povolný L. | T75: Dokončeno | U75: Chromková L. | X75: v ceně
A76: 44937.25347 | B76: st | C76: 2023-01-11 | E76: Cheport | F76: Vizovice | G76: Tezet | I76: mix | J76: PA | K76: 32 | M76: ne | N76: Kyjov | O76: 06:05:00 | P76: 06:00:00 | Q76: 06:05:00 | R76: 06:30:00 | S76: Kubáček M. | T76: Dokončeno | U76: Chromková L. | W76: 4100 | X76: v ceně
A77: 44937.25694 | B77: st | C77: 2023-01-11 | E77: SODO DUO | F77: Nová Ves u Chotěboře | G77: TEZET | J77: PA | K77: 18 | M77: ano | N77: Kyjov | O77: 06:10:00 | P77: 16:30:00 | Q77: 16:35:00 | R77: 17:15:00 | S77: Povolný L. | T77: Dokončeno | U77: Chromková L. | V77: nakládka 10.1.2023 | W77: 5800 | X77: přefaktur. 3200,- Kč fa 23010570
A78: 44937.41667 | B78: st | C78: 2023-01-11 | E78: TBA | F78: Havl.Brod | G78: vlastní | H78: p.Přenosil | I78: mix | J78: PA | K78: 9 | M78: ano | N78: Kyjov | O78: 10:00:00 | P78: 5.104166667 | Q78: 12:35:00 | R78: 13:00:00 | S78: Svoboda L. | T78: Dokončeno | U78: Chromková L.
A79: 44937.45833 | B79: st | C79: 2023-01-11 | E79: JPPSK | F79: Zabrze | G79: dls Trans | I79: KPHM | J79: PY | K79: 33 | M79: ne | N79: Kyjov | O79: 11:00:00 | P79: 10:10:00 | Q79: 10:30:00 | R79: 11:30:00 | S79: Havránek M. | T79: Dokončeno | U79: Kollerová D.
A80: 44937.45833 | B80: st | C80: 2023-01-11 | E80: TBA | F80: Havl.Brod | G80: vlastní | H80: Vašák | I80: mix | J80: PA | K80: 10 | N80: Kyjov | O80: 11:00:00 | P80: 10:35:00 | Q80: 10:40:00 | R80: 11:05:00 | S80: Průša M. | T80: Dokončeno | U80: Chromková L. | V80: vychystal Havránek
A81: 44937.52083 | B81: st | C81: 2023-01-11 | E81: Faurecie MB | F81: Mladá Boleslav | G81: vlastní | I81: BMW + Defender | J81: PA | K81: 99 | M81: ano | N81: Kyjov | O81: 12:30:00 | P81: 11:00:00 | Q81: 11:20:00 | R81: 12:00:00 | S81: Průša M. | T81: Dokončeno | U81: Gajdošová L. | V81: vychystal Průša
A82: 44937.54167 | B82: st | C82: 2023-01-11 | E82: Libros | F82: Ostrava | G82: vlastní | I82: mix | J82: PA | K82: 4 | M82: ano | N82: kyjov | O82: 13:00:00 | P82: 12:25:00 | Q82: 12:30:00 | R82: 13:00:00 | S82: Svoboda L. | T82: Dokončeno | U82: Chromková L.
A83: 44938 | B83: st | C83: 2023-01-11 | E83: Patron | F83: Mělník | G83: vlastní | I83: zámek skládaný | J83: PA | K83: 1 | M83: ne | N83: Kyjov | P83: 07:30:00 | Q83: 07:45:00 | R83: 08:00:00 | S83: Svoboda L. | T83: Dokončeno | U83: Chromková L. | V83: dovoz zboží z JPSK10.1.2023
A84: 44938 | B84: st | C84: 2023-01-11 | E84: Toptrans | G84: SBS | I84: mix | J84: PA | K84: 8 | M84: ne | N84: Kyjov | R84: 13:00:00 | S84: Doupovec R. | T84: Dokončeno | U84: Gajdošová L. | V84: vychystal Doupovec
A85: 44938.25 | B85: čt | C85: 2023-01-12 | E85: Fagron | F85: Olomouc | G85: Tezet | I85: mix | J85: PA | K85: 18 | L85: 2 | M85: ne | N85: Kyjov | O85: 06:00:00 | P85: 13:30:00 | Q85: 13:35:00 | R85: 14:00:00 | S85: Hojač M. | T85: Dokončeno | U85: Kollerová D. | V85: vychystal Kubáček | W85: 3670 | X85: přefak. 4400,- kč fa 23010578
A86: 44938.25 | B86: čt | C86: 2023-01-12 | E86: DF | F86: Neubuz | G86: Hroza | I86: KS-3 | J86: PA | K86: 18 | L86: 2 | N86: Kyjov | O86: 06:00:00 | P86: 06:10:00 | Q86: 06:15:00 | R86: 07:00:00 | S86: Hojač M. | T86: Dokončeno | U86: Chromková L.
A87: 44938.25 | B87: čt | C87: 2023-01-12 | E87: Vypl | F87: Rakvice | G87: Hroza | I87: proložky | J87: PA | K87: 1 | L87: 1 | N87: Kyjov | O87: 06:00:00 | P87: 11:50:00 | Q87: 11:55:00 | R87: 12:10:00 | S87: Hojač M. | T87: Dokončeno | U87: Chromková L.
A88: 44938.25347 | B88: čt | C88: 2023-01-12 | E88: Alter | F88: Hradec Králové | G88: TEZET | I88: miix | J88: PA | K88: 30 | L88: 3 | M88: ne | N88: Kyjov | O88: 06:05:00 | P88: 12:00:00 | Q88: 12:05:00 | R88: 12:50:00 | S88: Kubáček M. | T88: Dokončeno | U88: Chromková L. | V88: nakládka 11.1.2023 | W88: 7500 | X88: v ceně
A89: 44938.29167 | B89: čt | C89: 2023-01-12 | E89: Antolin | F89: Libáň | G89: vlastní | I89: YETI | J89: PA | L89: 5 | M89: ano | N89: Kyjov | O89: 07:00:00 | P89: 06:05:00 | Q89: 06:10:00 | R89: 07:00:00 | S89: Havránek M. | T89: Dokončeno | U89: Chromková L.
A90: 44938.33333 | B90: čt | C90: 2023-01-12 | E90: AV auto | F90: Vlkoš | G90: vlastní | I90: výpust.kohout | J90: KA | K90: 1 | L90: 1 | M90: ne | N90: Kyjov | O90: 08:00:00 | P90: 08:05:00 | Q90: 08:10:00 | R90: 08:15:00 | S90: Doupovec R. | T90: Dokončeno | U90: Chromková L.
A91: 44938.41667 | B91: čt | C91: 2023-01-12 | E91: TBA | F91: Havl.Brod | G91: vlastní | I91: SOT-120 | J91: PA | K91: 10 | L91: 2 | M91: ne | N91: Kyjov | O91: 10:00:00 | P91: 10:30:00 | Q91: 10:35:00 | R91: 11:00:00 | S91: Havránek M. | T91: Dokončeno | U91: Chromková L.
A92: 44938.42014 | B92: čt | C92: 2023-01-12 | E92: Kopeček | F92: Dubňany | G92: vlastní | I92: KE-15 | J92: PA | K92: 1 | L92: 1 | M92: ano | N92: Kyjov | O92: 10:05:00 | P92: 13:40:00 | Q92: 13:45:00 | R92: 13:50:00 | S92: Svoboda L. | T92: Dokončeno | U92: Gajdošová L. | V92: vychystal Doupovec
A93: 44938.42361 | B93: čt | C93: 2023-01-12 | E93: Slovakia Trend | F93: Sobrance | G93: vlastní | I93: mix | J93: PA | K93: 16 | L93: 4 | M93: ano | N93: Kyjov | O93: 10:10:00 | P93: 12:30:00 | Q93: 12:35:00 | R93: 13:00:00 | S93: Kubáček M. | T93: Dokončeno | U93: Chromková L.
A94: 44938.4375 | B94: čt | C94: 2023-01-12 | E94: Stachema | F94: Kolíín | G94: vlastní | I94: mix | J94: PA | K94: 2 | L94: 1 | M94: ne | N94: Kyjov | O94: 10:30:00 | P94: 09:00:00 | Q94: 09:05:00 | R94: 09:20:00 | S94: Svoboda L. | T94: Dokončeno | U94: Chromková L.
A95: 44938.44792 | B95: čt | C95: 2023-01-12 | E95: J.P.Plast | F95: Kyjov | G95: Hroza | I95: LUH-1 | J95: PA | K95: 18 | L95: 3 | M95: ne | N95: Rakvice | O95: 10:45:00 | T95: Dokončeno | U95: Bilíček P. | W95: 1800
A96: 44938.45833 | B96: čt | C96: 2023-01-12 | E96: JPSK | F96: Prievidza | G96: vlastní | I96: PHM | J96: PA | K96: 30 | L96: 5 | M96: ne | N96: Kyjov | O96: 11:00:00 | P96: 10:20:00 | Q96: 10:25:00 | R96: 11:30:00 | S96: Doupovec R. | T96: Dokončeno | U96: Chromková L.
A97: 44938.45833 | B97: čt | C97: 2023-01-12 | E97: TBA | F97: Havl.Brod | G97: vlastní | I97: SOT-220 | J97: PA | K97: 10 | L97: 2 | M97: ne | N97: Kyjov | O97: 11:00:00 | P97: 09:00:00 | Q97: 09:05:00 | R97: 09:45:00 | S97: Havránek M. | T97: Dokončeno | U97: Chromková L.
A98: 44938.47917 | B98: čt | C98: 2023-01-12 | E98: Flexfill | F98: Lovosice | G98: Interkontakt | I98: KCH-5 | J98: PA | K98: 66 | L98: 5 | M98: ne | N98: Kyjov | O98: 11:30:00 | P98: 10:50:00 | Q98: 10:55:00 | R98: 11:20:00 | S98: Kubáček M. | T98: Dokončeno | U98: Chromková L. | V98: L-005-23 | W98: 9500 | X98: v ceně
A99: 44938.5 | B99: čt | C99: 2023-01-12 | E99: TBA | F99: Havl.Brod | G99: vlastní | I99: mix | J99: PA | K99: 15 | L99: 2 | M99: ne | N99: Kyjov | O99: 12:00:00 | P99: 16:00:00 | Q99: 16:05:00 | R99: 16:40:00 | S99: Konečný M. | T99: Dokončeno | U99: Chromková L.
A100: 44938.52083 | B100: čt | C100: 2023-01-12 | E100: Faurecie MB | F100: Mladá Boleslav | G100: vlastní | I100: BMW + Defender | J100: PA | K100: 99 | L100: 5 | M100: ne | N100: Kyjov | O100: 12:30:00 | P100: 12:00:00 | Q100: 12:05:00 | R100: 12:20:00 | S100: Průša M. | T100: Dokončeno | U100: Gajdošová L. | V100: vychystal Průša
A101: 44938.54167 | B101: čt | C101: 2023-01-12 | D101: příjem | E101: Santal | F101: Třeboň | G101: vlastní | I101: obaly | J101: PA | K101: 25 | L101: 3 | N101: Kyjov | O101: 13:00:00 | P101: 10:30:00 | Q101: 10:35:00 | R101: 10:40:00 | S101: Kubáček M. | T101: Dokončeno | U101: Chromková L. | V101: 114777 boxy
A102: 44938.54167 | B102: čt | C102: 2023-01-12 | D102: příjem | E102: JPSK | F102: Prieividza | G102: Vlastní | I102: uzávěry,spirály mix | J102: PA | K102: 5 | L102: 3 | M102: ne | N102: Kyjov | O102: 13:00:00 | P102: 10:20:00 | Q102: 10:25:00 | R102: 11:30:00 | S102: Svoboda L. | T102: Dokončeno | U102: Chromková L.
A103: 44939 | B103: čt | C103: 2023-01-12 | E103: Toptrans | G103: SBS | I103: mix | J103: PA | K103: 5 | L103: 1 | M103: ne | N103: Kyjov | R103: 13:00:00 | S103: Doupovec R. | T103: Dokončeno | U103: Gajdošová L. | V103: vychystal Doupovec
A104: 44939.25 | B104: pá | C104: 2023-01-13 | D104: příjem | E104: VYPL | F104: Rakvice | G104: Hroza | I104: mix | J104: PA | K104: 18 | L104: 3 | N104: Kyjov | O104: 06:00:00 | P104: 06:10:00 | Q104: 06:15:00 | R104: 06:45:00 | S104: Hojač M. | T104: Dokončeno | U104: Chromková L.
A105: 44939.25 | B105: pá | C105: 2023-01-13 | E105: DF | F105: Neubuz | G105: Hroza | I105: kphm-10 | J105: PA | K105: 18 | L105: 2 | M105: ano | N105: Kyjov | O105: 06:00:00 | P105: 06:10:00 | Q105: 06:15:00 | R105: 06:40:00 | S105: Hojač M. | T105: Dokončeno | U105: Chromková L. | V105: vychystal Hojač | X105: v ceně
A106: 44939.25 | B106: pá | C106: 2023-01-13 | E106: DF | F106: Neubuz | G106: Horza | I106: KS-3 | J106: PA | K106: 18 | L106: 2 | N106: Kyjov | O106: 06:00:00 | P106: 11:45:00 | Q106: 11:50:00 | R106: 12:30:00 | S106: Hojač M. | T106: Dokončeno | U106: Chromková L. | V106: vychystal Hojač | X106: v ceně
A107: 44939.25278 | B107: pá | C107: 2023-01-13 | E107: Aroma | F107: Hrobce | G107: TEZET | I107: mix | J107: PA | K107: 16 | L107: 2 | M107: ne | N107: Kyjov | O107: 06:04:00 | P107: 12:10:00 | Q107: 12:15:00 | R107: 12:50:00 | S107: Hojač M. | T107: Dokončeno | U107: Gajdošová L. | V107: naklaádka 12.1.2023 | W107: 8500 | X107: v ceně
A108: 44939.25347 | B108: pá | C108: 2023-01-13 | E108: Oma CZ | F108: Černá Hora | G108: TEZET | I108: KE-25 | J108: PA | K108: 30 | L108: 4 | M108: ne | N108: Kyjov | O108: 06:05:00 | P108: 06:05:00 | Q108: 06:10:00 | R108: 06:35:00 | S108: Kubáček M. | T108: Dokončeno | U108: Chromková L. | W108: 4160 | X108: přefa. 4200,- Kč fa 23010594
A109: 44939.25347 | B109: pá | C109: 2023-01-13 | E109: AV Auto | F109: Vlkoš | G109: Tezet | I109: KE-25 | J109: PA | K109: 1 | L109: 1 | M109: ano | N109: Vlkoš | O109: 06:05:00 | P109: 12:00:00 | Q109: 12:10:00 | R109: 12:30:00 | S109: Doupovec R. | T109: Dokončeno | U109: Chromková L.
A110: 44939.28125 | B110: pá | C110: 2023-01-13 | E110: TRUMF | F110: Dolní Újezd | G110: vlastní | I110: KE-20 | J110: PA | K110: 3 | L110: 1 | M110: ano | N110: Kyjov | O110: 06:45:00 | P110: 06:20:00 | Q110: 06:30:00 | R110: 06:45:00 | S110: Havránek M. | T110: Dokončeno | U110: Chromková L.
A111: 44939.29861 | B111: pá | C111: 2023-01-13 | E111: Birgma | F111: Halmstadt | G111: vlastní | I111: KPHM | J111: PA | K111: 66 | L111: 3 | M111: ne | N111: Kyjov | O111: 07:10:00 | P111: 14:00:00 | Q111: 14:00:00 | R111: 15:00:00 | S111: Průša M. | T111: Dokončeno | U111: Kollerová D. | V111: vychystano 7:50-8:40
A112: 44939.41667 | B112: pá | C112: 2023-01-13 | E112: T-Net | F112: Hungary | G112: MSB | H112: M05 | I112: WTB | J112: PA | K112: 19 | L112: 2 | M112: ne | N112: Kyjov | O112: 10:00:00 | P112: 06:05:00 | Q112: 06:10:00 | R112: 07:55:00 | S112: Doupovec R. | T112: Dokončeno | U112: Gajdošová L.
A113: 44939.5 | B113: pá | C113: 2023-01-13 | E113: PK Group | F113: Dubňany | G113: vlastní | I113: SOT-220 | J113: PA | K113: 10 | L113: 2 | M113: ne | N113: Kyjov | O113: 12:00:00 | P113: 12:10:00 | Q113: 12:10:00 | R113: 12:25:00 | S113: Havránek M. | T113: Dokončeno | U113: Chromková L.
A114: 44939.54167 | B114: pá | C114: 2023-01-13 | D114: příjem | E114: T-NET | F114: Kyjov | G114: T-NET | I114: Materiál | J114: PA | K114: 8 až 10 | L114: 2 | M114: ne | N114: Kyjov | O114: 13:00:00 | P114: 06:05:00 | Q114: 06:10:00 | R114: 06:30:00 | S114: Havránek M. | T114: Dokončeno | U114: Hochman L. | V114: přijede buď 12. nebo 13.1. - bude upřesněno
A115: 44940 | B115: pá | C115: 2023-01-13 | E115: Filmer | F115: Varel | I115: KPHM | J115: PA | K115: 66 | L115: 4 | M115: ne | N115: Kyjov | P115: 10:40:00 | Q115: 10:40:00 | R115: 11:45:00 | S115: Průša M. | T115: Dokončeno | U115: Kollerová D. | V115: vychystano 6:20 -7:40 | X115: v ceně
A116: 44940 | B116: pá | C116: 2023-01-13 | E116: T-NET | F116: Eloyes | G116: Legarde | I116: Zeus | J116: PA | K116: 9 | L116: 1 | M116: ne | N116: Kyjov | P116: 13:15:00 | Q116: 13:20:00 | R116: 13:45:00 | S116: Havránek M. | T116: Dokončeno | U116: Gajdošová L. | V116: vychystal Havránek
A117: 44940 | B117: pá | C117: 2023-01-13 | E117: Tremalin | F117: Holandsko | G117: Wereldo.com | I117: uzávěry | J117: PA | K117: 3 | L117: 2 | M117: ne | N117: Kyjov | P117: 09:30:00 | Q117: 09:35:00 | R117: 09:45:00 | S117: Kubáček M. | T117: Dokončeno | U117: Gajdošová L. | V117: vychystal Kubáček
A118: 44940 | B118: pá | C118: 2023-01-13 | E118: BS Vinařské | F118: Velké Bílovice | G118: vlastní | I118: mix | J118: PA | K118: 3 | L118: 2 | M118: ano | N118: Kyjov | P118: 09:40:00 | Q118: 09:45:00 | R118: 10:00:00 | S118: Svoboda L. | T118: Dokončeno | U118: Chromková L. | V118: Uzávěry Havránek
A119: 44940 | B119: pá | C119: 2023-01-13 | E119: Toptrans | G119: SBS | I119: mix | J119: PA | K119: 7 | L119: 1 | M119: ne | N119: Kyjov | R119: 12:45:00 | S119: Svoboda L. | T119: Dokončeno | U119: Gajdošová L. | V119: vychystal Svoboda
A120: 44942.25 | B120: po | C120: 2023-01-16 | E120: DF | F120: Neubuz | G120: Hroza | I120: PHM-10 l | J120: PA | K120: 18 | L120: 2 | N120: Kyjov | O120: 06:00:00 | P120: 11:55:00 | Q120: 12:00:00 | R120: 12:15:00 | S120: Hojač M. | T120: Dokončeno | U120: Chromková L. | X120: v ceně
A121: 44942.25347 | B121: po | C121: 2023-01-16 | E121: Pěkný Unimex | F121: Humpolec | G121: TEZET | I121: LUH-1 | J121: PA | K121: 18 | L121: 2 | M121: ani | N121: Rakvice | O121: 06:05:00 | P121: 06:05:00 | Q121: 06:10:00 | R121: 06:25:00 | S121: Kubáček M. | T121: Dokončeno | U121: Chromková L. | V121: vychystal Kubáček | W121: 4750 | X121: v ceně
A122: 44942.25347 | B122: po | C122: 2023-01-16 | E122: Bochemie | F122: Bohuín | G122: TEZET | I122: mix | J122: PA | K122: 16 | L122: 3 | M122: ano | N122: Kyjov/Vlkoš | O122: 06:05:00 | P122: 11:10:00 | Q122: 11:15:00 | R122: 12:10:00 | S122: Doupovec R. | T122: Dokončeno | U122: Chromková L. | V122: nakádka na 13.1.2023 | W122: 5500 | X122: v ceně
A123: 44942.33333 | B123: po | C123: 2023-01-16 | E123: Garsys | F123: Karviná | G123: vlastní | I123: Filt. Nádoba 30L | J123: PA | K123: 15 | L123: 2 | M123: ne | N123: Kyjov | O123: 08:00:00 | P123: 07:57:00 | Q123: 08:15:00 | R123: 08:40:00 | S123: Svoboda L. | T123: Dokončeno | U123: Hochman L.
A124: 44942.41667 | B124: po | C124: 2023-01-16 | E124: TBA | F124: havl.Brod | G124: vlastní | I124: mix | J124: PA | K124: 17 | L124: 3 | M124: ne | N124: Kyjov | O124: 10:00:00 | P124: 12:30:00 | Q124: 12:35:00 | R124: 12:50:00 | S124: Havránek M. | T124: Dokončeno | U124: Chromková L. | V124: vychystal Havránek
A125: 44942.47917 | B125: po | C125: 2023-01-16 | E125: Avena | F125: Bzenec | G125: vlasstní | I125: SHD-50 | J125: PA | K125: 5 | L125: 1 | M125: ano | N125: Kyjov | O125: 11:30:00 | P125: 12:00:00 | Q125: 12:05:00 | R125: 12:15:00 | S125: Kubáček M. | T125: Dokončeno | U125: Chromková L. | V125: uzávěry Doupovec
A126: 44942.52083 | B126: po | C126: 2023-01-16 | E126: Toptrans | G126: SBS | I126: mix | J126: PA | K126: 9 | L126: 1 | N126: Kyjov | O126: 12:30:00 | P126: 12:35:00 | Q126: 12:40:00 | R126: 12:45:00 | S126: Kubáček M. | T126: Dokončeno | U126: Gajdošová L. | V126: vychystal Kubáček
A127: 44942.54167 | B127: po | C127: 2023-01-16 | E127: M.A.T. | F127: Plzeň | G127: vlastní | I127: mix | J127: PA | K127: 18 | L127: 5 | M127: ne | N127: Kyjov | O127: 13:00:00 | P127: 12:55:00 | Q127: 13:05:00 | R127: 13:35:00 | S127: Svoboda L. | T127: Dokončeno | U127: Chromková L.
A128: 44942.5625 | B128: po | C128: 2023-01-16 | D128: příjem | E128: BELSHINA | F128: Kyjov | G128: vlastní | I128: prázdné palety | J128: PA | K128: 36 | L128: 2 | M128: ne | N128: Kyjov | O128: 13:30:00 | P128: 08:10:00 | Q128: 08:30:00 | R128: 09:25:00 | S128: Doupovec R. | T128: Dokončeno | U128: Bilíček P.
A129: 44943 | B129: po | C129: 2023-01-16 | E129: Faurecie MB | F129: Mladá Boleslav | G129: vlastní | I129: Defender +SE | J129: PA | K129: 99 | L129: 5 | M129: ano | N129: Kyjov | P129: 11:15:00 | Q129: 11:20:00 | R129: 11:50:00 | S129: Havránek M. | T129: Dokončeno | U129: Gajdošová L. | V129: vychystal Kubáček
A130: 44943 | B130: po | C130: 2023-01-16 | E130: T-Net | F130: Eloyes | G130: MSB | H130: M09 | I130: Zeus | J130: PA | K130: 38 | L130: 3 | M130: ne | N130: Kyjov | P130: 06:00:00 | Q130: 06:30:00 | R130: 07:30:00 | S130: Doupovec R. | T130: Dokončeno | U130: Gajdošová L.
A131: 44943 | B131: po | C131: 2023-01-16 | E131: PMB industris | F131: Pazardzhik BE | G131: SBS | I131: granulát | J131: PA | K131: 1 | L131: 1 | M131: ne | N131: Kyjov | P131: 06:10:00 | Q131: 06:15:00 | R131: 06:25:00 | S131: Havránek M. | T131: Dokončeno | U131: Chromková L.
A132: =IF(C132="","",IF(O132="",C132+1,C132+O132)) -> 44943 | B132: =IF(C132="","",+TEXT(C132,"ddD")) -> po | C132: 2023-01-16 | E132: Synthesia | F132: Pardubice | G132: SBS | I132: barva modráRA | J132: PA | K132: 1 | L132: 1 | M132: ne | N132: Kyjov | P132: 06:50:00 | Q132: 06:55:00 | R132: 07:00:00 | S132: Hojač M. | T132: Dokončeno | U132: Chromková L.
A133: 44943 | B133: po | C133: 2023-01-16 | D133: příjem | E133: Alter | F133: Hradec Králové | G133: vlastní | I133: palety | J133: PA | K133: 119 | L133: 1 | M133: ne | N133: Kyjov | P133: 07:20:00 | Q133: 07:25:00 | R133: 07:45:00 | S133: Havránek M. | T133: Dokončeno | U133: Chromková L.
A134: 44943.25 | B134: út | C134: 2023-01-17 | E134: Filmer | F134: Melle | G134: JF LOG | I134: KPHM 10 | J134: PA | K134: 66 | L134: 4 | M134: ne | N134: Kyjov | O134: 06:00:00 | P134: 06:00:00 | Q134: 06:20:00 | R134: 07:40:00 | S134: Doupovec R. | T134: Dokončeno | U134: Kollerová D. | V134: Doupovec | W134: 27900 | X134: v ceně
A135: 44943.25 | B135: út | C135: 2023-01-17 | E135: DF | F135: Neubuz | G135: Hroza | I135: kphm-mix | J135: PA | K135: 18 | L135: 2 | N135: Kyjov | O135: 06:00:00 | P135: 12:15:00 | Q135: 12:20:00 | R135: 12:50:00 | S135: Hojač M. | T135: Dokončeno | U135: Chromková L. | V135: nakádka 16.1.2023 | X135: v ceně
A136: 44943.25347 | B136: út | C136: 2023-01-17 | E136: Cheport | F136: Vizovice | G136: TEZET | I136: mix | J136: PA | K136: 30 | L136: 3 | M136: ne | N136: Kyjov | O136: 06:05:00 | P136: 11:45:00 | Q136: 11:50:00 | R136: 12:25:00 | S136: Hojač M. | T136: Dokončeno | U136: Chromková L. | V136: nakládka 16.1.2023/+svoboda L. | W136: 4100 | X136: v ceně
A137: 44943.27083 | B137: út | C137: 2023-01-17 | E137: Antolin | F137: Libáň | G137: vlastní | I137: SEAT | J137: PA | K137: 42 | L137: 3 | M137: ne | N137: Kyjov | O137: 06:30:00 | P137: 10:10:00 | Q137: 10:15:00 | R137: 11:00:00 | S137: Hojač M. | T137: Dokončeno | U137: Chromková L.
A138: 44943.29167 | B138: út | C138: 2023-01-17 | D138: příjem | E138: syncreon Slovakia | F138: Nitra | G138: vlastní | I138: GEFCO Box | J138: PA | K138: 32 | L138: 2 | M138: ne | N138: Kyjov | O138: 07:00:00 | P138: 07:00:00 | Q138: 07:05:00 | R138: 07:20:00 | S138: Havránek M. | T138: Dokončeno | U138: Chromková L.
A139: 44943.33333 | B139: út | C139: 2023-01-17 | E139: T-Net | F139: NY | G139: kontejner | I139: mix | J139: PA | K139: 21 | L139: 4 | M139: ne | N139: Kyjov | O139: 08:00:00 | P139: 08:10:00 | Q139: 08:15:00 | R139: 10:25:00 | S139: Doupovec R. | T139: Dokončeno | U139: Gajdošová L. | V139: Havránek
A140: 44943.375 | B140: út | C140: 2023-01-17 | E140: Blaser | F140: Troubsko | G140: vlastní | I140: mix | J140: PA | K140: 3 | L140: 1 | M140: ano | N140: Kyjov | O140: 09:00:00 | P140: 12:05:00 | Q140: 12:10:00 | R140: 12:20:00 | S140: Hojač M. | T140: Dokončeno | U140: Gajdošová L. | V140: vychystal Svoboda
A141: 44943.42014 | B141: út | C141: 2023-01-17 | E141: TBA | F141: Havl.Brod | G141: vlastní | I141: kosh-50 | J141: PA | K141: 10 | L141: 2 | M141: ne | N141: Kyjov | O141: 10:05:00 | P141: 10:30:00 | Q141: 10:35:00 | R141: 10:45:00 | S141: Havránek M. | T141: Dokončeno | U141: Chromková L. | V141: pro VDP,vychystal Svooboda
A142: 44943.4375 | B142: út | C142: 2023-01-17 | E142: TREF | F142: Znojmo | G142: vlastní | I142: mix | J142: PA | K142: 7 | L142: 2 | M142: ne | N142: Kyjov | O142: 10:30:00 | P142: 11:55:00 | Q142: 12:00:00 | R142: 12:15:00 | S142: Havránek M. | T142: Dokončeno | U142: Chromková L. | V142: výpomoc Svoboda
A143: 44943.45833 | B143: út | C143: 2023-01-17 | D143: příjem | E143: Greiner | F143: Slušovice | G143: TEZET | I143: mix | J143: PA | L143: 3 | M143: ne | N143: Kyjov | O143: 11:00:00 | P143: 11:15:00 | Q143: 11:20:00 | R143: 12:00:00 | T143: Dokončeno | U143: Chromková L. | V143: údržba skládal Jiří Kouřil údržba | W143: 4200
A144: 44943.47917 | B144: út | C144: 2023-01-17 | E144: PK Group | F144: Čáslav | G144: Augustin Hložek | I144: KOSH-50 | J144: PA | K144: 16 | L144: 2 | M144: ano | N144: Kyjov | O144: 11:30:00 | P144: 11:35:00 | Q144: 11:40:00 | R144: 12:15:00 | S144: Hojač M. | T144: Dokončeno | U144: Chromková L.
A145: 44943.5 | B145: út | C145: 2023-01-17 | E145: Kopeček | F145: Dubňany | G145: vlastní | I145: KOSH-30 | J145: PA | K145: 2 | L145: 1 | M145: ano | N145: Kyjov | O145: 12:00:00 | P145: 09:30:00 | Q145: 09:35:00 | R145: 09:50:00 | S145: Svoboda L. | T145: Dokončeno | U145: Gajdošová L. | V145: porucha auta, odloženo nakládka bude upřesněna
A146: 44943.51042 | B146: út | C146: 2023-01-17 | E146: Antolin | F146: Libáň | G146: vlastní | I146: SEAT/YETI | J146: PA | K146: 6 | L146: 3 | M146: ano | N146: Kyjov | O146: 12:15:00 | P146: 12:20:00 | Q146: 12:25:00 | R146: 13:20:00 | S146: Doupovec R. | T146: Dokončeno | U146: Chromková L. | V146: dokládka zbytku dílů z původní nakl.
A147: 44944 | B147: út | C147: 2023-01-17 | E147: Faurecie | F147: Pardubice | G147: vlastní | I147: F40 | J147: PA | K147: 37 | L147: 2 | M147: ne | N147: Kyjov | P147: 10:45:00 | Q147: 10:50:00 | R147: 11:10:00 | S147: Kubáček M. | T147: Dokončeno | U147: Gajdošová L. | V147: vychystal:Kubáček
A148: 44944 | B148: út | C148: 2023-01-17 | E148: Faurecie MB | F148: Mladá Boleslav | G148: vlastní | I148: Defender +SE | J148: PA | K148: 99 | L148: 5 | M148: ano | N148: Kyjov | P148: 15:00:00 | Q148: 15:05:00 | R148: 15:45:00 | S148: Antoš J. | T148: Dokončeno | U148: Gajdošová L. | V148: vychystal:Kubáček
A149: 44944 | B149: út | C149: 2023-01-17 | E149: Toptrans | G149: SBS | I149: mix | J149: PA | K149: 9 | L149: 2 | M149: ne | N149: Kyjov | P149: 12:30:00 | Q149: 12:35:00 | R149: 12:45:00 | S149: Svoboda L. | T149: Dokončeno | U149: Gajdošová L. | V149: vychystal Havránek
A150: 44944 | B150: út | C150: 2023-01-17 | E150: PK Group | F150: Dubňany | G150: vlastní | I150: SOT-220 | J150: 2 | L150: 1 | M150: ano | N150: Kyjov | P150: 13:30:00 | Q150: 13:30:00 | R150: 13:45:00 | S150: Havránek M. | T150: Dokončeno | U150: Gajdošová L.
A151: 44944 | B151: út | C151: 2023-01-17 | D151: příjem | E151: Tichelmann | G151: vlastní | I151: Folie průtažná | J151: PA | K151: 3 | L151: 1 | M151: ne | N151: Kyjov | P151: 14:00:00 | Q151: 14:05:00 | R151: 14:20:00 | S151: Svoboda L. | T151: Dokončeno | U151: Pomichálek J.
A152: 44944.25 | B152: st | C152: 2023-01-18 | E152: DF | F152: Neubuz | G152: Hroza | I152: PHM-mix | J152: PA | K152: 18 | L152: 2 | N152: Kyjov | O152: 06:00:00 | P152: 10:30:00 | Q152: 10:35:00 | R152: 11:00:00 | S152: Svoboda L. | T152: Dokončeno | U152: Chromková L. | V152: vychystal Hojač nakládka 17.1.2023 | X152: v ceně
A153: 44944.25278 | B153: st | C153: 2023-01-18 | E153: LB Cemix | F153: Čebín | G153: TEZET | I153: KE-10+KSE-5 | J153: PA | K153: 30 | L153: 3 | M153: ne | N153: Kyjov | O153: 06:04:00 | P153: 04:00:00 | Q153: 04:10:00 | R153: 04:30:00 | S153: Průša J. | T153: Dokončeno | U153: Gajdošová L. | V153: vychystal Hojač nakádka 17.1.2023 | W153: 4500 | X153: v ceně
A154: 44944.25347 | B154: st | C154: 2023-01-18 | E154: Mmcité | F154: Hroznová Lhota | G154: TEZET | I154: koše | J154: PA | K154: 24 | L154: 3 | M154: ne | N154: Kyjov | O154: 06:05:00 | P154: 09:10:00 | Q154: 09:15:00 | R154: 09:58:00 | S154: Hojač M. | T154: Dokončeno | U154: Chromková L. | V154: vychystal Hojač | W154: 3500 | X154: přefakturace 4100,- kč/600 čekačka 12/22
A155: 44944.29167 | B155: st | C155: 2023-01-18 | D155: příjem | E155: Faurecie | F155: Pardubice | G155: vlastní | I155: boxy | J155: PA | K155: 26 | L155: 2 | N155: Kyjov | O155: 07:00:00 | P155: 07:15:00 | Q155: 07:20:00 | R155: 07:30:00 | S155: Kubáček M. | T155: Dokončeno | U155: Chromková L.
A156: 44944.33333 | B156: st | C156: 2023-01-18 | E156: D.I.Chem | F156: Šternberk | G156: vlastní TT | I156: mix | J156: PA | K156: 33 | L156: 3 | M156: ne | N156: Kyjov | O156: 08:00:00 | P156: 09:20:00 | Q156: 09:45:00 | R156: 10:50:00 | S156: Havránek M. | T156: Dokončeno | U156: Gajdošová L. | V156: uzávěry Svoboda,vzorky Kubáček
A157: 44944.35417 | B157: st | C157: 2023-01-18 | E157: Filmer | F157: Melle | G157: JF LOG | I157: KPHM-5 | J157: PA | K157: 66 | L157: 4 | N157: Kyjov | O157: 08:30:00 | P157: 06:10:00 | Q157: 06:20:00 | R157: 07:40:00 | S157: Havránek M. | T157: Dokončeno | U157: Kollerová D. | W157: 17800 | X157: v ceně
A158: 44944.375 | B158: st | C158: 2023-01-18 | E158: Stachema | F158: Mělník | G158: vlastní | I158: SHD-40 | J158: PA | K158: 12 | L158: 2 | M158: ne | N158: Kyjov | O158: 09:00:00 | P158: 07:55:00 | Q158: 08:00:00 | R158: 08:26:00 | S158: Svoboda L. | T158: Dokončeno | U158: Chromková L.
A159: 44944.39583 | B159: st | C159: 2023-01-18 | E159: OZAS-ESAB | F159: Opole | G159: Scheker | I159: Esab NDK | J159: KA | K159: 6 | L159: 2 | M159: ne | N159: Kyjov | O159: 09:30:00 | P159: 09:20:00 | Q159: 09:25:00 | R159: 09:29:00 | S159: Svoboda L. | T159: Dokončeno | U159: Gajdošová L. | V159: vychystal Svoboda
A160: 44944.4375 | B160: st | C160: 2023-01-18 | E160: TBA | F160: Havl.Brod | G160: vlastní | I160: mix | J160: PA | K160: 10 | L160: 2 | M160: ano | N160: Kyjov | O160: 10:30:00 | P160: 10:00:00 | Q160: 10:05:00 | R160: 10:30:00 | S160: Průša M. | T160: Dokončeno | U160: Chromková L. | V160: vychystal Doupoevec
A161: 44944.4375 | B161: st | C161: 2023-01-18 | E161: TBA | F161: Havl.Brod | G161: vlastní | I161: SOT-120 | J161: PA | K161: 16 | L161: 3 | M161: ne | N161: Kyjov | O161: 10:30:00 | P161: 12:55:00 | Q161: 13:07:00 | R161: 13:31:00 | S161: Průša M. | T161: Dokončeno | U161: Chromková L. | V161: vychystal Kubaček ložil Svoboda
A162: 44944.45833 | B162: st | C162: 2023-01-18 | E162: JPSK | F162: Prievidza SK | G162: Legarde | I162: mix | J162: PA | K162: 33 | L162: 3 | M162: ne | N162: Kyjov | O162: 11:00:00 | P162: 10:30:00 | Q162: 10:35:00 | R162: 13:30:00 | S162: Doupovec R. | T162: Dokončeno | U162: Chromková L. | V162: uzávěry Svoboda
A163: 44944.45833 | B163: st | C163: 2023-01-18 | D163: příjem | E163: JPSK | F163: Prievidza SK | G163: Legarde | I163: mix | J163: PA | K163: 12 | L163: 3 | M163: ne | N163: Kyjov | O163: 11:00:00 | P163: 10:30:00 | Q163: 10:35:00 | R163: 13:30:00 | S163: Doupovec R. | T163: Dokončeno | U163: Chromková L.
A164: 44944.52431 | B164: st | C164: 2023-01-18 | E164: PK Group | F164: Dubňany | G164: vlastní | I164: SOT-220 | J164: PA | K164: 4 | L164: 1 | M164: ne | N164: Kyjov | O164: 12:35:00 | P164: 12:35:00 | Q164: 12:40:00 | R164: 13:00:00 | S164: Průša M. | T164: Dokončeno | U164: Chromková L.
A165: 44945 | B165: st | C165: 2023-01-18 | E165: Walser | F165: Gallin | G165: vlastní | I165: KPHM | J165: PA | K165: 32 | N165: Kyjov | T165: Přeplánováno | U165: Kollerová D.
A166: 44945 | B166: st | C166: 2023-01-18 | E166: Faurecie MB | F166: Mladá Boleslav | G166: vlastní | I166: Defender +SE | J166: PA | K166: 99 | L166: 5 | M166: ano | N166: Kyjov | P166: 12:00:00 | Q166: 12:10:00 | R166: 13:00:00 | S166: Průša M. | T166: Dokončeno | U166: Gajdošová L. | V166: vychystal Průša
A167: 44945 | B167: st | C167: 2023-01-18 | E167: Toptrans | G167: SBS | I167: mix | J167: PA | K167: 6 | L167: 1 | M167: ne | N167: Kyjov | S167: Doupovec R. | T167: Dokončeno | U167: Gajdošová L. | V167: vychystal Doupovec
A168: 44945.25 | B168: čt | C168: 2023-01-19 | E168: DF | F168: Neubuz | G168: Hroza | I168: KWT | J168: PA | K168: 18 | N168: Kyjov | O168: 06:00:00 | T168: Zrušeno | U168: Chromková L. | V168: nejsou KWT komplety | X168: v ceně
A169: 44945.25347 | B169: čt | C169: 2023-01-19 | E169: Cheport | F169: Vizovice | G169: TEZET | I169: mix | J169: PA | K169: 30 | L169: 2 | M169: ne | N169: Kyjov | O169: 06:05:00 | P169: 12:35:00 | Q169: 12:40:00 | R169: 13:00:00 | S169: Svoboda L. | T169: Dokončeno | U169: Chromková L. | V169: vychystal Hojač NAKLÁDKA18.1.2023 | W169: 4100 | X169: v ceně
A170: 44945.25347 | B170: čt | C170: 2023-01-19 | E170: Alter | F170: Hradec Králové | G170: TEZET | I170: mix | J170: PA | K170: 30 | L170: 2 | M170: ne | N170: Kyjov | O170: 06:05:00 | P170: 13:30:00 | Q170: 13:40:00 | R170: 14:06:00 | S170: Průša M. | T170: Dokončeno | U170: Chromková L. | V170: vychystal Hojač nakládka 18.1.2023 | W170: 7500 | X170: v ceně
A171: 44945.25347 | B171: čt | C171: 2023-01-19 | E171: Vypl | F171: Rakvice | G171: TEZET | I171: barva | J171: PY | K171: 1 | L171: 1 | M171: ne | N171: Kyjov | O171: 06:05:00 | P171: 13:30:00 | Q171: 13:40:00 | R171: 14:00:00 | S171: Průša M. | T171: Dokončeno | U171: Chromková L. | V171: vychystal Kubáček nakládka 18.1.2023
A172: 44945.25347 | B172: čt | C172: 2023-01-19 | D172: příjem | E172: VYPL | F172: Rakvice | G172: TEZET | I172: mix | J172: PA | K172: 33 | L172: 3 | M172: ne | N172: Kyjov | O172: 06:05:00 | P172: 12:30:00 | Q172: 12:40:00 | R172: 14:10:00 | S172: Kubáček M. | T172: Dokončeno | U172: Chromková L. | V172: L-027-23 fa232000031 | W172: 3500
A173: 44945.25347 | B173: čt | C173: 2023-01-19 | E173: Via-Rek | F173: Rájec-Jestřebí | G173: Hroza | I173: SDH40+50 | J173: PA | K173: 24 | L173: 3 | M173: ano | N173: Kyjov | O173: 06:05:00 | P173: 10:20:00 | Q173: 10:26:00 | R173: 10:55:00 | S173: Hojač M. | T173: Dokončeno | U173: Chromková L. | V173: vychystal Hojač nakládka na 19.1.2023 | W173: 4200 | X173: v ceně
A174: 44945.27083 | B174: čt | C174: 2023-01-19 | E174: Antolin | F174: Libáň | G174: vlastní | I174: YETI | J174: PA | K174: 42 | L174: 3 | M174: ano | N174: Kyjov | O174: 06:30:00 | P174: 06:05:00 | Q174: 06:15:00 | R174: 07:15:00 | S174: Havránek M. | T174: Dokončeno | U174: Chromková L.
A175: 44945.29167 | B175: čt | C175: 2023-01-19 | E175: Bartosz Ratuski | F175: Grodzisk Mazowiecki | G175: vlastní | H175: Wci 13975/wci yp40 | I175: KE-10 mod./nat. | J175: PA | K175: 33 | L175: 3 | M175: ne | N175: Kyjov | O175: 07:00:00 | P175: 13:30:00 | Q175: 13:35:00 | R175: 14:30:00 | S175: Průša M. | T175: Dokončeno | U175: Chromková L.
A176: 44945.35764 | B176: čt | C176: 2023-01-19 | D176: příjem | E176: Belshima | F176: Piešťany | G176: vlastní | I176: palety | J176: PA | K176: 544 | L176: 5 | M176: ne | N176: Kyjov | O176: 08:35:00 | P176: 08:30:00 | Q176: 08:40:00 | R176: 09:40:00 | S176: Hojač M. | T176: Dokončeno | U176: Chromková L.
A177: 44945.39583 | B177: čt | C177: 2023-01-19 | E177: Model Obaly | F177: Kyjov | G177: vlastní | I177: kartony | J177: Pa | K177: 12 | L177: 2 | M177: ne | N177: Opava | O177: 09:30:00 | P177: 09:00:00 | Q177: 09:10:00 | R177: 09:35:00 | S177: Průša M. | T177: Dokončeno | U177: Bilíček P. | V177: 12 palet
A178: 44945.4375 | B178: čt | C178: 2023-01-19 | E178: TBA | F178: Havl.Brod | G178: vlastní | H178: Vašák st. | I178: SOT-220 | J178: PA | K178: 18 | L178: 3 | N178: Kyjov | O178: 10:30:00 | P178: 13:10:00 | Q178: 13:15:00 | R178: 14:00:00 | S178: Svoboda L. | T178: Dokončeno | U178: Chromková L. | V178: vychystal Doupovec,Svoboda
A179: 44945.4375 | B179: čt | C179: 2023-01-19 | E179: TBA | F179: Havl.Brod | G179: vlastní | H179: Vašák ml. | I179: mix | J179: PA | K179: 10 | L179: 3 | N179: Kyjov | O179: 10:30:00 | P179: 10:15:00 | Q179: 10:20:00 | R179: 10:30:00 | S179: Havránek M. | T179: Dokončeno | U179: Chromková L. | V179: vychystal Havránek
A180: 44945.4375 | B180: čt | C180: 2023-01-19 | E180: TBA | F180: Havl.Brod | G180: vlastní | H180: Mazuch | I180: SOT120+KOSH-50 | J180: PA | K180: 10 | L180: 2 | N180: Kyjov | O180: 10:30:00 | P180: 10:30:00 | Q180: 10:34:00 | R180: 11:05:00 | S180: Svoboda L. | T180: Dokončeno | U180: Chromková L. | V180: vychystal Svoboda
A181: 44945.47917 | B181: čt | C181: 2023-01-19 | E181: Filmer | F181: Halbe | G181: Ewals | I181: KPHM-10 | J181: PA | K181: 66 | L181: 4 | M181: ano | N181: Kyjov | O181: 11:30:00 | P181: 11:25:00 | Q181: 11263.47917 | R181: 12:40:00 | S181: Doupovec R. | T181: Dokončeno | U181: Kollerová D. | V181: vychystal Doupovec | W181: 17800 | X181: v ceně
A182: 44945.47917 | B182: čt | C182: 2023-01-19 | E182: Sedasport | F182: Myjava | G182: vlastní | I182: sedáky | J182: PA | L182: 4 | N182: Kyjov | O182: 11:30:00 | P182: 10:15:00 | Q182: 10:20:00 | R182: 12:20:00 | S182: Kubáček M. | T182: Dokončeno | U182: Chromková L. | V182: exp. 3. KT2023 načítal:Svoboda
A183: 44945.5 | B183: čt | C183: 2023-01-19 | E183: Novato | F183: Skalica SK | G183: Toptrans-vlastní | I183: SDH-40 | J183: PA | K183: 1 | L183: 1 | M183: ne | N183: Kyjov | O183: 12:00:00 | R183: 13:00:00 | S183: Hojač M. | T183: Dokončeno | U183: Chromková L. | V183: vychystal Hojač
A184: 44945.55208 | B184: čt | C184: 2023-01-19 | E184: PK Group | F184: Dubňany | G184: vlastní | I184: SOT 220 | L184: 3 | N184: Kyjov | O184: 13:15:00 | P184: 13:15:00 | Q184: 13:25:00 | R184: 14:15:00 | S184: Hojač M. | T184: Dokončeno | U184: Chromková L. | V184: Svoboda, Doupovec
A185: 44946 | B185: čt | C185: 2023-01-19 | E185: Faurecie MB | F185: Mladá Boleslav | G185: vlastní | I185: Defender +SE | J185: PA | K185: 99 | L185: 5 | M185: ano | N185: Kyjov | P185: 11:00:00 | Q185: 11:30:00 | R185: 12:03:00 | S185: Průša M. | T185: Dokončeno | U185: Gajdošová L. | V185: vychystal Průša
A186: 44946 | B186: čt | C186: 2023-01-19 | D186: příjem | E186: T-Net | F186: Eloyes | G186: MSB | I186: palety | J186: PA | K186: 306 | L186: 3 | N186: Kyjov | P186: 07:00:00 | Q186: 07:05:00 | R186: 08:00:00 | S186: Hojač M. | T186: Dokončeno | U186: Gajdošová L.
A187: 44946 | B187: čt | C187: 2023-01-19 | E187: Toptrans | G187: SBS | I187: mix | J187: PA | K187: 3 | L187: 1 | M187: ne | N187: Kyjov | R187: 13:00:00 | S187: Hojač M. | T187: Dokončeno | U187: Gajdošová L. | V187: vychystal Hojač
A188: 44946 | B188: čt | C188: 2023-01-19 | D188: příjem | E188: GEFCO | G188: vlastní | I188: boxy Gefco | J188: PA | K188: 32 | L188: 1 | N188: Kyjov | P188: 13:45:00 | Q188: 13:45:00 | R188: 14:00:00 | S188: Doupovec R. | T188: Dokončeno | U188: Gajdošová L.
A189: 44946.25347 | B189: pá | C189: 2023-01-20 | E189: Atotech | F189: Jablonec n.N. | G189: TEZET | I189: mix | J189: PA | K189: 16 | L189: 3 | M189: ne | N189: Kyjov | O189: 06:05:00 | P189: 12:30:00 | Q189: 12:35:00 | R189: 13:00:00 | S189: Kubáček M. | T189: Dokončeno | U189: Chromková L. | V189: vychystal:Kubáček | W189: 9000 | X189: v ceně
A190: 44946.27083 | B190: pá | C190: 2023-01-20 | E190: OZAS-ESAB | F190: Opole | G190: Scheker | I190: Water tank | J190: KA | K190: 3 | L190: 1 | M190: ne | N190: Kyjov | O190: 06:30:00 | P190: 10:00:00 | Q190: 10:05:00 | R190: 10:10:00 | S190: Průša M. | T190: Dokončeno | U190: Gajdošová L. | V190: vychystal Průša M.
A191: 44946.32292 | B191: pá | C191: 2023-01-20 | D191: příjem | E191: Milan Michalec | F191: Rokytnice | G191: vlastní | I191: náústky | J191: PA | K191: 1 | L191: 2 | M191: ne | N191: Kyjov | O191: 07:45:00 | P191: 07:45:00 | Q191: 07:50:00 | R191: 08:10:00 | S191: Svoboda L. | T191: Dokončeno | U191: Chromková L.
A192: 44946.33333 | B192: pá | C192: 2023-01-20 | E192: T-Net | F192: Eloyes | G192: Legarde | I192: Degas | J192: PA | K192: 11 | L192: 1 | M192: ne | N192: Kyjov | O192: 08:00:00 | P192: 12:30:00 | Q192: 12:40:00 | R192: 13:00:00 | S192: Doupovec R. | T192: Dokončeno | U192: Gajdošová L. | V192: vychystal doupovec
A193: 44946.41667 | B193: pá | C193: 2023-01-20 | E193: KOVA | F193: Erfurt | G193: Joppa | I193: KPHM-20 | J193: PA | K193: 38 | L193: 3 | M193: ano | N193: Kyjov | O193: 10:00:00 | P193: 06:55:00 | Q193: 07:00:00 | R193: 08:10:00 | S193: Hojač M. | T193: Dokončeno | U193: Kollerová D. | V193: L-019-23 | W193: 27000 | X193: přeúčtovat
A194: 44946.45833 | B194: pá | C194: 2023-01-20 | E194: TBA | F194: Havl.Brod | G194: vlastní | H194: p.Špiňar | I194: mix | J194: PA | K194: 15 | L194: 2 | M194: ano | N194: Kyjov | O194: 11:00:00 | P194: 10:15:00 | Q194: 10:20:00 | R194: 10:55:00 | S194: Havránek M. | T194: Dokončeno | U194: Chromková L. | V194: Vychystal Havránek
A195: 44946.54167 | B195: pá | C195: 2023-01-20 | D195: příjem | E195: M.A.T. | F195: Plzeň | G195: AK Servis | I195: palety | J195: PA | L195: 2 | N195: Kyjov | O195: 13:00:00 | P195: 13:40:00 | Q195: 13:45:00 | R195: 14:00:00 | S195: Svoboda L. | T195: Dokončeno | U195: Chromková L. | V195: vratka palet eur
A196: =IF(C196="","",IF(O196="",C196+1,C196+O196)) -> 44946.5625 | B196: =IF(C196="","",+TEXT(C196,"ddD")) -> pá | C196: 2023-01-20 | E196: Těsmat | F196: Zubří | G196: vlastní | I196: mix | J196: PA | K196: 3 | L196: 2 | M196: ano | N196: Kyjov | O196: 13:30:00 | P196: 13:00:00 | Q196: 13:05:00 | R196: 13:30:00 | S196: Svoboda L. | T196: Dokončeno | U196: Chromková L.
A197: 44947 | B197: pá | C197: 2023-01-20 | E197: Faurecie BOB | F197: Boblingen | G197: FEDEX | I197: Luftkanal | J197: KA | K197: 1 | L197: 2 | M197: ne | N197: Vlkoš | R197: 11:00:00 | S197: Doupovec R. | T197: Dokončeno | U197: Gajdošová L. | V197: vychystal Doupovec
A198: 44947 | B198: pá | C198: 2023-01-20 | E198: T-Net | F198: Eloyes | G198: MSB | H198: M10 | I198: mix | J198: PA | K198: 76 | L198: 4 | M198: ne | N198: Kyjov+Vlkoš | P198: 06:30:00 | Q198: 06:30:00 | R198: 09:00:00 | S198: Kubáček M. | T198: Dokončeno | U198: Gajdošová L. | V198: Expedoval:Doupovec(V) a Kubáček(K)
A199: 44947 | B199: pá | C199: 2023-01-20 | D199: příjem | E199: T-Net | G199: vlastní | I199: těsnění Zeus | J199: PA | K199: 2 | L199: 1 | M199: ne | N199: Kyjov | P199: 13:00:00 | Q199: 13:05:00 | R199: 13:15:00 | S199: Kubáček M. | T199: Dokončeno | U199: Gajdošová L.
A200: 44949.25 | B200: po | C200: 2023-01-23 | E200: DF | F200: Neubuz | G200: Hroza | I200: PHM-mix | J200: PA | K200: 18 | L200: 2 | N200: Kyjov | O200: 06:00:00 | P200: 07:05:00 | Q200: 07:10:00 | R200: 07:30:00 | S200: Hojač M. | T200: Dokončeno | U200: Chromková L.
A201: 44949.25347 | B201: po | C201: 2023-01-23 | E201: Cheport | F201: Vizovice | G201: TEZET | I201: mix | J201: PA | K201: 30 | L201: 3 | M201: ne | N201: Kyjov | O201: 06:05:00 | P201: 12:15:00 | Q201: 12:20:00 | R201: 13:00:00 | S201: Hojač M. | T201: Dokončeno | U201: Chromková L. | V201: naloženo 19.1.2023 | X201: v ceně
... 150 more rows

Sheet 02.23
D1: 2023-02-06 | E1: ►►►► | F1: 2023-03-03 | G1: DNEŠNÍ DATUM: | I1: =+TODAY() -> 2023-02-01 | O1: AKTUÁLNÍ ČAS: | Q1: =NOW() -> 44958.55435 | T1: AKTUÁLNÍ MĚSÍC: | V1: =+I1 -> 2023-02-01 | W1: Informace pro NÁKUP
A2: pořadí | B2: Den | C2: Datum | D2: Příjem | E2: Zákazník | F2: Destinace | G2: Dopravce | H2: SPZ | I2: název výrobku | J2: balení | K2: počet balení | L2: Obtížnost | M2: vratka palet (ano/ne) | N2: místo nakládky | O2: Plán. příjezd | P2: Skutečný příjezd | Q2: Start nakládky | R2: Konec nakládky | S2: Expedoval | T2: Status | U2: Naplánoval | V2: Poznámka | W2: Cena přepravy | X2: přefaktuace / doplňující informace
A4: =IF(C4="","",IF(O4="",C4+1,C4+O4)) -> 44963.25347 | B4: =IF(C4="","",+TEXT(C4,"ddD")) -> po | C4: 2023-02-06 | E4: DF | F4: Neubuz | G4: Hroza | I4: mix | J4: PA | K4: 32 | L4: 2 | N4: Kyjov | O4: 06:05:00 | T4: Naplánováno | U4: Chromková L. | X4: v ceneě
A5: 44963.33333 | B5: po | C5: 2023-02-06 | E5: NUfarm | F5: Linz | G5: Maco Trans | I5: KA-5 | J5: PA | K5: 52 | L5: 3 | M5: ne | N5: Kyjov | O5: 08:00:00 | T5: Naplánováno | U5: Kollerová D. | X5: v ceně
A6: 44963.47917 | B6: po | C6: 2023-02-06 | E6: Garsys | F6: Karviná | G6: vlastní | I6: nadoba 30 l | J6: PA | K6: 15 | L6: 2 | M6: ne | N6: Kyjov | O6: 11:30:00 | T6: Naplánováno | U6: Chromková L.
A7: 44964 | B7: po | C7: 2023-02-06 | E7: Nufarm | F7: Linz | G7: Maco Trans | I7: KA-5 | J7: PA | K7: 52 | L7: 3 | M7: ne | N7: Kyjov | T7: Naplánováno | U7: Kollerová D. | X7: v ceně
A8: 44964 | B8: po | C8: 2023-02-06 | E8: Groshandel | F8: Suhl-Sehmar | G8: Ewals | I8: KPHM | J8: PA | K8: 38 | L8: 4 | M8: ne | N8: Kyjov | T8: Naplánováno | U8: Kollerová D. | X8: v ceně
A9: 44964 | B9: po | C9: 2023-02-06 | E9: Groshandel | F9: Suhl-Sehmar | G9: Ewals | I9: KPHM | J9: PA | K9: 38 | L9: 4 | M9: ne | N9: Kyjov | T9: Naplánováno | U9: Kollerová D. | X9: v ceně
A10: 44964 | B10: po | C10: 2023-02-06 | E10: KOVA | F10: Erfurt | G10: Joppa | I10: PHM | J10: PA | K10: 38 | L10: 4 | M10: ano | N10: Kyjov | T10: Naplánováno | U10: Kollerová D. | W10: 27000 | X10: přeúčtovat 1120 €
A11: 44964 | B11: po | C11: 2023-02-06 | E11: T-Net | F11: Eloyes | G11: MSB | H11: Laďa | I11: Zeus | J11: PA | K11: 38 | L11: 3 | M11: ne | N11: Kyjov | T11: Naplánováno | U11: Gajdošová L.
A12: 44964 | B12: po | C12: 2023-02-06 | E12: T-Net | F12: Emmerich | G12: MSB | H12: M15 | I12: WTB | J12: PA | K12: 2 | L12: 1 | M12: ne | N12: Kyjov | T12: Naplánováno | U12: Gajdošová L.
A13: 44964.25347 | B13: út | C13: 2023-02-07 | E13: OQEMA | F13: Slatiňany | G13: TEZET | I13: SDH-50 | J13: PA | K13: 30 | L13: 2 | M13: ne | N13: Kyjov | O13: 06:05:00 | T13: Naplánováno | U13: Chromková L. | X13: přefakturovat 7100,-
A14: 44965 | B14: út | C14: 2023-02-07 | E14: Nufarm | F14: Linz | G14: Fercam | I14: KA-5 | J14: PA | K14: 52 | L14: 3 | M14: ne | N14: Kyjov | T14: Naplánováno | U14: Kollerová D. | X14: v ceně
A15: 44966 | B15: st | C15: 2023-02-08 | E15: Nufarm | F15: Linz | G15: Fercam | I15: KA-5 | J15: PA | K15: 52 | L15: 3 | M15: ne | N15: Kyjov | T15: Naplánováno | U15: Kollerová D. | X15: v ceně
A16: 44966.33333 | B16: čt | C16: 2023-02-09 | E16: Nufarm | F16: Linz | G16: Fercam | I16: KA-5 | J16: PA | K16: 52 | L16: 3 | M16: ne | N16: Kyjov | O16: 08:00:00 | T16: Naplánováno | U16: Kollerová D. | X16: v ceně
A17: 44967 | B17: čt | C17: 2023-02-09 | E17: SPAK | F17: Sušice | G17: Joppa | I17: LS-2 | J17: PA | K17: 66 | L17: 3 | M17: ne | N17: Kyjov | T17: Naplánováno | U17: Kollerová D. | X17: v ceně
A18: 44967.5 | B18: pá | C18: 2023-02-10 | E18: TRUMF | F18: Dolní Újezd | G18: vlastní | H18: 6M80805 | I18: KSE-5 | J18: PA | K18: 14 | L18: 2 | M18: ano | N18: Kyjov | O18: 12:00:00 | T18: Naplánováno | U18: Chromková L.
A19: 44970.33333 | B19: po | C19: 2023-02-13 | E19: Nufarm | F19: Linz | G19: Maco Trans | I19: KA-5 | J19: PA | K19: 52 | L19: 3 | M19: ne | N19: Kyjov | O19: 08:00:00 | T19: Naplánováno | U19: Kollerová D. | X19: v ceně
A20: 44970.33333 | B20: po | C20: 2023-02-13 | E20: Nufarm | F20: Linz | G20: Maco Trans | I20: KA-5 | J20: PA | K20: 52 | L20: 3 | M20: ne | N20: Kyjov | O20: 08:00:00 | T20: Naplánováno | U20: Kollerová D. | X20: v ceně
A21: 44971.33333 | B21: út | C21: 2023-02-14 | E21: Nufarm | F21: Linz | G21: Fercam | I21: KA-5 | J21: PA | K21: 52 | L21: 3 | M21: ne | N21: Kyjov | O21: 08:00:00 | T21: Naplánováno | U21: Kollerová D. | X21: v ceně
A22: 44971.41667 | B22: út | C22: 2023-02-14 | E22: Carrier | F22: Mýto | G22: vlastní SBS | I22: sifony | J22: KA | K22: 3 | L22: 1 | M22: ne | N22: Kyjov | O22: 10:00:00 | T22: Naplánováno | U22: Chromková L.
A23: 44972 | B23: út | C23: 2023-02-14 | E23: Filmer | F23: Stavenhagen | G23: Ewals | I23: KPHM | J23: PA | K23: 30 | L23: 3 | M23: ano | N23: Kyjov | T23: Naplánováno | U23: Kollerová D. | X23: v ceně
A24: 44972.33333 | B24: st | C24: 2023-02-15 | E24: Nufarm | F24: Linz | G24: Fercam | I24: KA-5 | J24: PA | K24: 52 | L24: 3 | M24: ne | N24: Kyjov | O24: 08:00:00 | T24: Naplánováno | U24: Kollerová D. | X24: v ceně
A25: 44973 | B25: st | C25: 2023-02-15 | E25: FIlmer | F25: Wustermark | G25: Ewals | I25: KPHM | J25: PA | K25: 30 | L25: 3 | M25: ano | N25: Kyjov | T25: Naplánováno | U25: Kollerová D. | X25: v ceně
A26: 44974 | B26: čt | C26: 2023-02-16 | E26: Filmer | F26: Budenheim | G26: Ewals | I26: PHM | J26: PA | K26: 66 | L26: 3 | M26: ne | N26: Kyjov | T26: Naplánováno | U26: Kollerová D.
A27: 44977.25347 | B27: po | C27: 2023-02-20 | E27: DF | F27: Neubuz | G27: Hroza | I27: PHM | J27: PA | K27: 18 | L27: 3 | N27: Kyjov | O27: 06:05:00 | T27: Naplánováno | U27: Chromková L. | X27: v ceně
A28: 44978.25 | B28: út | C28: 2023-02-21 | E28: Fagron | F28: Olomouc | G28: Tezet | I28: kanystry | J28: PA | K28: 18 | L28: 2 | M28: ne | N28: Kyjov | O28: 06:00:00 | T28: Naplánováno | U28: Kollerová D. | X28: přeúčtovat
A29: 44985.25 | B29: út | C29: 2023-02-28 | E29: Pěkný Umimex | F29: Humpolec | G29: Hroza | I29: LUH-1 | J29: PA | K29: 18 | L29: 2 | M29: ano | N29: Kyjov | O29: 06:00:00 | T29: Naplánováno | U29: Kollerová D. | X29: v ceně
A68: =IF(C68="","",IF(O68="",C68+1,C68+O68)) ->  | B68: =IF(C68="","",+TEXT(C68,"ddD")) -> 
A132: =IF(C132="","",IF(O132="",C132+1,C132+O132)) ->  | B132: =IF(C132="","",+TEXT(C132,"ddD")) -> 
A196: =IF(C196="","",IF(O196="",C196+1,C196+O196)) ->  | B196: =IF(C196="","",+TEXT(C196,"ddD")) -> 
A260: =IF(C260="","",IF(O260="",C260+1,C260+O260)) ->  | B260: =IF(C260="","",+TEXT(C260,"ddD")) -> 
B324: =IF(C324="","",+TEXT(C324,"ddD")) -> 
B388: =IF(C388="","",+TEXT(C388,"ddD")) -> 
B452: =IF(C452="","",+TEXT(C452,"ddD")) -> 
B516: =IF(C516="","",+TEXT(C516,"ddD")) -> 
B580: =IF(C580="","",+TEXT(C580,"ddD")) -> 
B644: =IF(C644="","",+TEXT(C644,"ddD")) -> 

Sheet 03.23
D1: 2023-03-06 | E1: ►►►► | F1: 2023-03-31 | G1: DNEŠNÍ DATUM: | I1: =+TODAY() -> 2023-02-01 | O1: AKTUÁLNÍ ČAS: | Q1: =NOW() -> 44958.55435 | T1: AKTUÁLNÍ MĚSÍC: | V1: =+I1 -> 2023-02-01 | W1: Informace pro NÁKUP
A2: pořadí | B2: Den | C2: Datum | D2: Příjem | E2: Zákazník | F2: Destinace | G2: Dopravce | H2: SPZ | I2: název výrobku | J2: balení | K2: počet balení | L2: Obtížnost | M2: vratka palet (ano/ne) | N2: místo nakládky | O2: Plán. příjezd | P2: Skutečný příjezd | Q2: Start nakládky | R2: Konec nakládky | S2: Expedoval | T2: Status | U2: Naplánoval | V2: Poznámka | W2: Cena přepravy | X2: přefaktuace / doplňující informace
A4: =IF(C4="","",IF(O4="",C4+1,C4+O4)) -> 44992 | B4: =IF(C4="","",+TEXT(C4,"ddD")) -> po | C4: 2023-03-06
A68: =IF(C68="","",IF(O68="",C68+1,C68+O68)) ->  | B68: =IF(C68="","",+TEXT(C68,"ddD")) -> 
A132: =IF(C132="","",IF(O132="",C132+1,C132+O132)) ->  | B132: =IF(C132="","",+TEXT(C132,"ddD")) -> 
A196: =IF(C196="","",IF(O196="",C196+1,C196+O196)) ->  | B196: =IF(C196="","",+TEXT(C196,"ddD")) -> 
A260: =IF(C260="","",IF(O260="",C260+1,C260+O260)) ->  | B260: =IF(C260="","",+TEXT(C260,"ddD")) -> 
B324: =IF(C324="","",+TEXT(C324,"ddD")) -> 
B388: =IF(C388="","",+TEXT(C388,"ddD")) -> 
B452: =IF(C452="","",+TEXT(C452,"ddD")) -> 
B516: =IF(C516="","",+TEXT(C516,"ddD")) -> 
B580: =IF(C580="","",+TEXT(C580,"ddD")) -> 
B644: =IF(C644="","",+TEXT(C644,"ddD")) -> 

Sheet Screen
E1: PLÁN NAKLÁDEK / VYKLÁDEK - PŘEHLED | N1: DNEŠNÍ DATUM: | Q1: =+TODAY() -> 2023-02-01 | Z1: =+IF(AF2=0,"AKTUÁLNÍ MĚSÍC:","ZOBRAZENÝ MĚSÍC:") -> ZOBRAZENÝ MĚSÍC: | AB1: =+AI3 -> 2023-01-06 | AH1: Kalendářní týden | AI1: =+WEEKNUM(Q1,1) -> 5
AB2: =TEXT(Q1,"MMMM") -> únor | AF2: =+IF(AB2=AG2,0,1) -> 1 | AG2: =TEXT(AI3,"MMMM") -> leden
A3: =+Q1 -> 44958 | E3: pondělí | G3: =+zdroj!B3 -> 2023-01-02 | L3: Úterý | N3: =+G3+1 -> 2023-01-03 | O3: Středa | U3: =+N3+1 -> 2023-01-04 | V3: Čtvrtek | AB3: =+U3+1 -> 2023-01-05 | AC3: Pátek | AI3: =+AB3+1 -> 2023-01-06
A4: =+CONCATENATE(E3," ",TEXT(G3,"DD.MM.RR")) -> pondělí 02.01.23 | H4: =+CONCATENATE(L3," ",TEXT(N3,"DD.MM.RR")) -> Úterý 03.01.23 | O4: =+CONCATENATE(O3," ",TEXT(U3,"DD.MM.RR")) -> Středa 04.01.23 | V4: =+CONCATENATE(V3," ",TEXT(AB3,"DD.MM.RR")) -> Čtvrtek 05.01.23 | AC4: =+CONCATENATE(AC3," ",TEXT(AI3,"DD.MM.RR")) -> Pátek 06.01.23
A5: hodina | C5: =+COUNTIFS(zdroj!$B$3:$B$700,Screen!G3) -> 1 | D5: =+SUM(D6:D35) -> 0 | E5: Zákazník | F5: Dopravce | G5: Status | I5: =+LOOKUP(N3,DataFIX!$F$3:$F$41,DataFIX!$G$3:$G$41) -> 30 | J5: =+COUNTIFS(zdroj!$B$3:$B$700,Screen!N3) -> 12 | K5: =+SUM(K6:K35) -> 0 | L5: Zákazník | M5: Dopravce | N5: Status | O5: hodina | P5: =+LOOKUP(U3,DataFIX!$F$3:$F$41,DataFIX!$G$3:$G$41) -> 60 | Q5: =+COUNTIFS(zdroj!$B$3:$B$700,Screen!U3) -> 8 | R5: =+SUM(R6:R35) -> 0 | S5: Zákazník | T5: Dopravce | U5: Status | V5: hodina | W5: =+LOOKUP(AB3,DataFIX!$F$3:$F$41,DataFIX!$G$3:$G$41) -> 90 | X5: =+COUNTIFS(zdroj!$B$3:$B$700,Screen!AB3) -> 11 | Y5: =+SUM(Y6:Y35) -> 0 | Z5: Zákazník | AA5: Dopravce | AB5: Status | AC5: hodina | AD5: =+LOOKUP(AI3,DataFIX!$F$3:$F$41,DataFIX!$G$3:$G$41) -> 120 | AE5: =+COUNTIFS(zdroj!$B$3:$B$700,Screen!AI3) -> 6 | AF5: =+SUM(AF6:AF35) -> 0 | AG5: Zákazník | AH5: Dopravce | AI5: Status
A6: =IF(C6="","",LOOKUP(C6,zdroj!$E$3:$E$201,zdroj!$F$3:$F$201)) -> 00:00:00 | B6: =+IF(C5=0,"",1) -> 1 | C6: =+IF(C5=0,"",1) -> 1 | D6: =IF(C6="","",LOOKUP(C6,zdroj!$E$3:$E$700,zdroj!$L$3:$L$700)) -> 0 | E6: =IF(C6="","",LOOKUP(C6,zdroj!$E$3:$E$700,zdroj!$G$3:$G$700)) -> 0 | F6: =IF(C6="","",LOOKUP(C6,zdroj!$E$3:$E$700,zdroj!$H$3:$H$700)) -> 0 | G6: =+IF(C6="","",LOOKUP(C6,zdroj!$E$3:$E$700,zdroj!$I$3:$I$700)) -> 0 | H6: =IF(J6="","",LOOKUP(J6,zdroj!$E$3:$E$700,zdroj!$F$3:$F$700)) -> 06:00:00 | I6: =+IF(J5=0,"",1) -> 1 | J6: =+IF(I6="","",I6+I$5) -> 31 | K6: =IF(J6="","",LOOKUP(J6,zdroj!$E$3:$E$700,zdroj!$L$3:$L$700)) -> 0 | L6: =IF(J6="","",LOOKUP(J6,zdroj!$E$3:$E$700,zdroj!$G$3:$G$700)) -> DF | M6: =IF(J6="","",LOOKUP(J6,zdroj!$E$3:$E$700,zdroj!$H$3:$H$700)) -> Hroza | N6: =+IF(J6="","",LOOKUP(J6,zdroj!$E$3:$E$700,zdroj!$I$3:$I$700)) -> Dokončeno | O6: =IF(Q6="","",LOOKUP(Q6,zdroj!$E$3:$E$700,zdroj!$F$3:$F$700)) -> 06:00:00 | P6: =+IF(Q5=0,"",1) -> 1 | Q6: =+IF(P6="","",P6+P$5) -> 61 | R6: =IF(Q6="","",LOOKUP(Q6,zdroj!$E$3:$E$700,zdroj!$L$3:$L$700)) -> 0 | S6: =IF(Q6="","",LOOKUP(Q6,zdroj!$E$3:$E$700,zdroj!$G$3:$G$700)) -> DF | T6: =IF(Q6="","",LOOKUP(Q6,zdroj!$E$3:$E$700,zdroj!$H$3:$H$700)) -> Hroza | U6: =+IF(Q6="","",LOOKUP(Q6,zdroj!$E$3:$E$700,zdroj!$I$3:$I$700)) -> Dokončeno | V6: =IF(X6="","",LOOKUP(X6,zdroj!$E$3:$E$700,zdroj!$F$3:$F$700)) -> 06:00:00 | W6: =+IF(X5=0,"",1) -> 1 | X6: =+IF(W6="","",W6+W$5) -> 91 | Y6: =IF(X6="","",LOOKUP(X6,zdroj!$E$3:$E$700,zdroj!$L$3:$L$700)) -> 0 | Z6: =IF(X6="","",LOOKUP(X6,zdroj!$E$3:$E$700,zdroj!$G$3:$G$700)) -> DF | AA6: =IF(X6="","",LOOKUP(X6,zdroj!$E$3:$E$700,zdroj!$H$3:$H$700)) -> Hroza | AB6: =+IF(X6="","",LOOKUP(X6,zdroj!$E$3:$E$700,zdroj!$I$3:$I$700)) -> Dokončeno | AC6: =IF(AE6="","",LOOKUP(AE6,zdroj!$E$3:$E$700,zdroj!$F$3:$F$700)) -> 06:00:00 | AD6: =+IF(AE5=0,"",1) -> 1 | AE6: =+IF(AD6="","",AD6+AD$5) -> 121 | AF6: =IF(AE6="","",LOOKUP(AE6,zdroj!$E$3:$E$700,zdroj!$L$3:$L$700)) -> 0 | AG6: =IF(AE6="","",LOOKUP(AE6,zdroj!$E$3:$E$700,zdroj!$G$3:$G$700)) -> DF | AH6: =IF(AE6="","",LOOKUP(AE6,zdroj!$E$3:$E$700,zdroj!$H$3:$H$700)) -> Hroza | AI6: =+IF(AE6="","",LOOKUP(AE6,zdroj!$E$3:$E$700,zdroj!$I$3:$I$700)) -> Dokončeno
A7: =IF(C7="","",LOOKUP(C7,zdroj!$E$3:$E$201,zdroj!$F$3:$F$201)) ->  | B7: =+IF(C$5>B6,B6+1,"") ->  | C7: =+IF(C$5>C6,C6+1,"") ->  | D7: =IF(C7="","",LOOKUP(C7,zdroj!$E$3:$E$700,zdroj!$L$3:$L$700)) ->  | E7: =IF(C7="","",LOOKUP(C7,zdroj!$E$3:$E$700,zdroj!$G$3:$G$700)) ->  | F7: =IF(C7="","",LOOKUP(C7,zdroj!$E$3:$E$700,zdroj!$H$3:$H$700)) ->  | G7: =+IF(C7="","",LOOKUP(C7,zdroj!$E$3:$E$700,zdroj!$I$3:$I$700)) ->  | H7: =IF(J7="","",LOOKUP(J7,zdroj!$E$3:$E$700,zdroj!$F$3:$F$700)) -> 07:00:00 | I7: =+IF(J$5>I6,I6+1,"") -> 2 | J7: =+IF(I7="","",I7+I$5) -> 32 | K7: =IF(J7="","",LOOKUP(J7,zdroj!$E$3:$E$700,zdroj!$L$3:$L$700)) -> 0 | L7: =IF(J7="","",LOOKUP(J7,zdroj!$E$3:$E$700,zdroj!$G$3:$G$700)) -> Antolin | M7: =IF(J7="","",LOOKUP(J7,zdroj!$E$3:$E$700,zdroj!$H$3:$H$700)) -> vlastní | N7: =+IF(J7="","",LOOKUP(J7,zdroj!$E$3:$E$700,zdroj!$I$3:$I$700)) -> Dokončeno | O7: =IF(Q7="","",LOOKUP(Q7,zdroj!$E$3:$E$700,zdroj!$F$3:$F$700)) -> 06:05:00 | P7: =+IF(Q$5>P6,P6+1,"") -> 2 | Q7: =+IF(P7="","",P7+P$5) -> 62 | R7: =IF(Q7="","",LOOKUP(Q7,zdroj!$E$3:$E$700,zdroj!$L$3:$L$700)) -> 0 | S7: =IF(Q7="","",LOOKUP(Q7,zdroj!$E$3:$E$700,zdroj!$G$3:$G$700)) -> Bochemie | T7: =IF(Q7="","",LOOKUP(Q7,zdroj!$E$3:$E$700,zdroj!$H$3:$H$700)) -> TEZET | U7: =+IF(Q7="","",LOOKUP(Q7,zdroj!$E$3:$E$700,zdroj!$I$3:$I$700)) -> Dokončeno | V7: =IF(X7="","",LOOKUP(X7,zdroj!$E$3:$E$700,zdroj!$F$3:$F$700)) -> 06:05:00 | W7: =+IF(X$5>W6,W6+1,"") -> 2 | X7: =+IF(W7="","",W7+W$5) -> 92 | Y7: =IF(X7="","",LOOKUP(X7,zdroj!$E$3:$E$700,zdroj!$L$3:$L$700)) -> 0 | Z7: =IF(X7="","",LOOKUP(X7,zdroj!$E$3:$E$700,zdroj!$G$3:$G$700)) -> Oma | AA7: =IF(X7="","",LOOKUP(X7,zdroj!$E$3:$E$700,zdroj!$H$3:$H$700)) -> Tezet | AB7: =+IF(X7="","",LOOKUP(X7,zdroj!$E$3:$E$700,zdroj!$I$3:$I$700)) -> Dokončeno | AC7: =IF(AE7="","",LOOKUP(AE7,zdroj!$E$3:$E$700,zdroj!$F$3:$F$700)) -> 06:00:00 | AD7: =+IF(AE$5>AD6,AD6+1,"") -> 2 | AE7: =+IF(AD7="","",AD7+AD$5) -> 122 | AF7: =IF(AE7="","",LOOKUP(AE7,zdroj!$E$3:$E$700,zdroj!$L$3:$L$700)) -> 0 | AG7: =IF(AE7="","",LOOKUP(AE7,zdroj!$E$3:$E$700,zdroj!$G$3:$G$700)) -> DF | AH7: =IF(AE7="","",LOOKUP(AE7,zdroj!$E$3:$E$700,zdroj!$H$3:$H$700)) -> Hroza | AI7: =+IF(AE7="","",LOOKUP(AE7,zdroj!$E$3:$E$700,zdroj!$I$3:$I$700)) -> Dokončeno
A8: =IF(C8="","",LOOKUP(C8,zdroj!$E$3:$E$201,zdroj!$F$3:$F$201)) ->  | B8: =+IF(C$5>B7,B7+1,"") ->  | C8: =+IF(C$5>C7,C7+1,"") ->  | D8: =IF(C8="","",LOOKUP(C8,zdroj!$E$3:$E$700,zdroj!$L$3:$L$700)) ->  | E8: =IF(C8="","",LOOKUP(C8,zdroj!$E$3:$E$700,zdroj!$G$3:$G$700)) ->  | F8: =IF(C8="","",LOOKUP(C8,zdroj!$E$3:$E$700,zdroj!$H$3:$H$700)) ->  | G8: =+IF(C8="","",LOOKUP(C8,zdroj!$E$3:$E$700,zdroj!$I$3:$I$700)) ->  | H8: =IF(J8="","",LOOKUP(J8,zdroj!$E$3:$E$700,zdroj!$F$3:$F$700)) -> 08:00:00 | I8: =+IF(J$5>I7,I7+1,"") -> 3 | J8: =+IF(I8="","",I8+I$5) -> 33 | K8: =IF(J8="","",LOOKUP(J8,zdroj!$E$3:$E$700,zdroj!$L$3:$L$700)) -> 0 | L8: =IF(J8="","",LOOKUP(J8,zdroj!$E$3:$E$700,zdroj!$G$3:$G$700)) -> INX | M8: =IF(J8="","",LOOKUP(J8,zdroj!$E$3:$E$700,zdroj!$H$3:$H$700)) -> Logmax | N8: =+IF(J8="","",LOOKUP(J8,zdroj!$E$3:$E$700,zdroj!$I$3:$I$700)) -> Dokončeno | O8: =IF(Q8="","",LOOKUP(Q8,zdroj!$E$3:$E$700,zdroj!$F$3:$F$700)) -> 06:05:00 | P8: =+IF(Q$5>P7,P7+1,"") -> 3 | Q8: =+IF(P8="","",P8+P$5) -> 63 | R8: =IF(Q8="","",LOOKUP(Q8,zdroj!$E$3:$E$700,zdroj!$L$3:$L$700)) -> 0 | S8: =IF(Q8="","",LOOKUP(Q8,zdroj!$E$3:$E$700,zdroj!$G$3:$G$700)) -> DF | T8: =IF(Q8="","",LOOKUP(Q8,zdroj!$E$3:$E$700,zdroj!$H$3:$H$700)) -> Hroza | U8: =+IF(Q8="","",LOOKUP(Q8,zdroj!$E$3:$E$700,zdroj!$I$3:$I$700)) -> Dokončeno | V8: =IF(X8="","",LOOKUP(X8,zdroj!$E$3:$E$700,zdroj!$F$3:$F$700)) -> 06:05:00 | W8: =+IF(X$5>W7,W7+1,"") -> 3 | X8: =+IF(W8="","",W8+W$5) -> 93 | Y8: =IF(X8="","",LOOKUP(X8,zdroj!$E$3:$E$700,zdroj!$L$3:$L$700)) -> 0 | Z8: =IF(X8="","",LOOKUP(X8,zdroj!$E$3:$E$700,zdroj!$G$3:$G$700)) -> Fagron | AA8: =IF(X8="","",LOOKUP(X8,zdroj!$E$3:$E$700,zdroj!$H$3:$H$700)) -> TEZET | AB8: =+IF(X8="","",LOOKUP(X8,zdroj!$E$3:$E$700,zdroj!$I$3:$I$700)) -> Dokončeno | AC8: =IF(AE8="","",LOOKUP(AE8,zdroj!$E$3:$E$700,zdroj!$F$3:$F$700)) -> 06:05:00 | AD8: =+IF(AE$5>AD7,AD7+1,"") -> 3 | AE8: =+IF(AD8="","",AD8+AD$5) -> 123 | AF8: =IF(AE8="","",LOOKUP(AE8,zdroj!$E$3:$E$700,zdroj!$L$3:$L$700)) -> 0 | AG8: =IF(AE8="","",LOOKUP(AE8,zdroj!$E$3:$E$700,zdroj!$G$3:$G$700)) -> Cheport | AH8: =IF(AE8="","",LOOKUP(AE8,zdroj!$E$3:$E$700,zdroj!$H$3:$H$700)) -> TEZET | AI8: =+IF(AE8="","",LOOKUP(AE8,zdroj!$E$3:$E$700,zdroj!$I$3:$I$700)) -> Dokončeno
A9: =IF(C9="","",LOOKUP(C9,zdroj!$E$3:$E$201,zdroj!$F$3:$F$201)) ->  | D9: =IF(C9="","",LOOKUP(C9,zdroj!$E$3:$E$700,zdroj!$L$3:$L$700)) ->  | E9: =IF(C9="","",LOOKUP(C9,zdroj!$E$3:$E$700,zdroj!$G$3:$G$700)) ->  | F9: =IF(C9="","",LOOKUP(C9,zdroj!$E$3:$E$700,zdroj!$H$3:$H$700)) ->  | G9: =+IF(C9="","",LOOKUP(C9,zdroj!$E$3:$E$700,zdroj!$I$3:$I$700)) ->  | H9: =IF(J9="","",LOOKUP(J9,zdroj!$E$3:$E$700,zdroj!$F$3:$F$700)) -> 11:00:00 | I9: 4 | J9: 34 | K9: =IF(J9="","",LOOKUP(J9,zdroj!$E$3:$E$700,zdroj!$L$3:$L$700)) -> 0 | L9: =IF(J9="","",LOOKUP(J9,zdroj!$E$3:$E$700,zdroj!$G$3:$G$700)) -> Faurecie MB | M9: =IF(J9="","",LOOKUP(J9,zdroj!$E$3:$E$700,zdroj!$H$3:$H$700)) -> vlastní | N9: =+IF(J9="","",LOOKUP(J9,zdroj!$E$3:$E$700,zdroj!$I$3:$I$700)) -> Dokončeno | O9: =IF(Q9="","",LOOKUP(Q9,zdroj!$E$3:$E$700,zdroj!$F$3:$F$700)) -> 08:00:00 | P9: 4 | Q9: 64 | R9: =IF(Q9="","",LOOKUP(Q9,zdroj!$E$3:$E$700,zdroj!$L$3:$L$700)) -> 0 | S9: =IF(Q9="","",LOOKUP(Q9,zdroj!$E$3:$E$700,zdroj!$G$3:$G$700)) -> T-Net | T9: =IF(Q9="","",LOOKUP(Q9,zdroj!$E$3:$E$700,zdroj!$H$3:$H$700)) -> kontejer | U9: =+IF(Q9="","",LOOKUP(Q9,zdroj!$E$3:$E$700,zdroj!$I$3:$I$700)) -> Dokončeno | V9: =IF(X9="","",LOOKUP(X9,zdroj!$E$3:$E$700,zdroj!$F$3:$F$700)) -> 10:00:00 | W9: 4 | X9: 94 | Y9: =IF(X9="","",LOOKUP(X9,zdroj!$E$3:$E$700,zdroj!$L$3:$L$700)) -> 0 | Z9: =IF(X9="","",LOOKUP(X9,zdroj!$E$3:$E$700,zdroj!$G$3:$G$700)) -> Variant | AA9: =IF(X9="","",LOOKUP(X9,zdroj!$E$3:$E$700,zdroj!$H$3:$H$700)) -> vlastní | AB9: =+IF(X9="","",LOOKUP(X9,zdroj!$E$3:$E$700,zdroj!$I$3:$I$700)) -> Dokončeno | AC9: =IF(AE9="","",LOOKUP(AE9,zdroj!$E$3:$E$700,zdroj!$F$3:$F$700)) -> 10:00:00 | AD9: 4 | AE9: 124 | AF9: =IF(AE9="","",LOOKUP(AE9,zdroj!$E$3:$E$700,zdroj!$L$3:$L$700)) -> 0 | AG9: =IF(AE9="","",LOOKUP(AE9,zdroj!$E$3:$E$700,zdroj!$G$3:$G$700)) -> TBA | AH9: =IF(AE9="","",LOOKUP(AE9,zdroj!$E$3:$E$700,zdroj!$H$3:$H$700)) -> vlastní | AI9: =+IF(AE9="","",LOOKUP(AE9,zdroj!$E$3:$E$700,zdroj!$I$3:$I$700)) -> Dokončeno
A10: =IF(C10="","",LOOKUP(C10,zdroj!$E$3:$E$201,zdroj!$F$3:$F$201)) ->  | D10: =IF(C10="","",LOOKUP(C10,zdroj!$E$3:$E$700,zdroj!$L$3:$L$700)) ->  | E10: =IF(C10="","",LOOKUP(C10,zdroj!$E$3:$E$700,zdroj!$G$3:$G$700)) ->  | F10: =IF(C10="","",LOOKUP(C10,zdroj!$E$3:$E$700,zdroj!$H$3:$H$700)) ->  | G10: =+IF(C10="","",LOOKUP(C10,zdroj!$E$3:$E$700,zdroj!$I$3:$I$700)) ->  | H10: =IF(J10="","",LOOKUP(J10,zdroj!$E$3:$E$700,zdroj!$F$3:$F$700)) -> 00:00:00 | I10: 5 | J10: 35 | K10: =IF(J10="","",LOOKUP(J10,zdroj!$E$3:$E$700,zdroj!$L$3:$L$700)) -> 0 | L10: =IF(J10="","",LOOKUP(J10,zdroj!$E$3:$E$700,zdroj!$G$3:$G$700)) -> T-Net | M10: =IF(J10="","",LOOKUP(J10,zdroj!$E$3:$E$700,zdroj!$H$3:$H$700)) -> Legarde | N10: =+IF(J10="","",LOOKUP(J10,zdroj!$E$3:$E$700,zdroj!$I$3:$I$700)) -> Dokončeno | O10: =IF(Q10="","",LOOKUP(Q10,zdroj!$E$3:$E$700,zdroj!$F$3:$F$700)) -> 10:00:00 | P10: 5 | Q10: 65 | R10: =IF(Q10="","",LOOKUP(Q10,zdroj!$E$3:$E$700,zdroj!$L$3:$L$700)) -> 0 | S10: =IF(Q10="","",LOOKUP(Q10,zdroj!$E$3:$E$700,zdroj!$G$3:$G$700)) -> Ozas-Esab | T10: =IF(Q10="","",LOOKUP(Q10,zdroj!$E$3:$E$700,zdroj!$H$3:$H$700)) -> Schenker | U10: =+IF(Q10="","",LOOKUP(Q10,zdroj!$E$3:$E$700,zdroj!$I$3:$I$700)) -> Dokončeno | V10: =IF(X10="","",LOOKUP(X10,zdroj!$E$3:$E$700,zdroj!$F$3:$F$700)) -> 10:00:00 | W10: 5 | X10: 95 | Y10: =IF(X10="","",LOOKUP(X10,zdroj!$E$3:$E$700,zdroj!$L$3:$L$700)) -> 0 | Z10: =IF(X10="","",LOOKUP(X10,zdroj!$E$3:$E$700,zdroj!$G$3:$G$700)) -> Carrier | AA10: =IF(X10="","",LOOKUP(X10,zdroj!$E$3:$E$700,zdroj!$H$3:$H$700)) -> vlastní | AB10: =+IF(X10="","",LOOKUP(X10,zdroj!$E$3:$E$700,zdroj!$I$3:$I$700)) -> Dokončeno | AC10: =IF(AE10="","",LOOKUP(AE10,zdroj!$E$3:$E$700,zdroj!$F$3:$F$700)) -> 11:15:00 | AD10: 5 | AE10: 125 | AF10: =IF(AE10="","",LOOKUP(AE10,zdroj!$E$3:$E$700,zdroj!$L$3:$L$700)) -> 0 | AG10: =IF(AE10="","",LOOKUP(AE10,zdroj!$E$3:$E$700,zdroj!$G$3:$G$700)) -> TBA | AH10: =IF(AE10="","",LOOKUP(AE10,zdroj!$E$3:$E$700,zdroj!$H$3:$H$700)) -> 6J74747 | AI10: =+IF(AE10="","",LOOKUP(AE10,zdroj!$E$3:$E$700,zdroj!$I$3:$I$700)) -> Dokončeno
A11: =IF(C11="","",LOOKUP(C11,zdroj!$E$3:$E$201,zdroj!$F$3:$F$201)) ->  | B11: =+IF(C$5>B10,B10+1,"") ->  | D11: =IF(C11="","",LOOKUP(C11,zdroj!$E$3:$E$700,zdroj!$L$3:$L$700)) ->  | E11: =IF(C11="","",LOOKUP(C11,zdroj!$E$3:$E$700,zdroj!$G$3:$G$700)) ->  | F11: =IF(C11="","",LOOKUP(C11,zdroj!$E$3:$E$700,zdroj!$H$3:$H$700)) ->  | G11: =+IF(C11="","",LOOKUP(C11,zdroj!$E$3:$E$700,zdroj!$I$3:$I$700)) ->  | H11: =IF(J11="","",LOOKUP(J11,zdroj!$E$3:$E$700,zdroj!$F$3:$F$700)) -> 00:00:00 | I11: =+IF(J$5>I10,I10+1,"") -> 6 | J11: =+IF(I11="","",I11+I$5) -> 36 | K11: =IF(J11="","",LOOKUP(J11,zdroj!$E$3:$E$700,zdroj!$L$3:$L$700)) -> 0 | L11: =IF(J11="","",LOOKUP(J11,zdroj!$E$3:$E$700,zdroj!$G$3:$G$700)) -> T-Net | M11: =IF(J11="","",LOOKUP(J11,zdroj!$E$3:$E$700,zdroj!$H$3:$H$700)) -> MSB | N11: =+IF(J11="","",LOOKUP(J11,zdroj!$E$3:$E$700,zdroj!$I$3:$I$700)) -> Dokončeno | O11: =IF(Q11="","",LOOKUP(Q11,zdroj!$E$3:$E$700,zdroj!$F$3:$F$700)) -> 10:00:00 | P11: =+IF(Q$5>P10,P10+1,"") -> 6 | Q11: =+IF(P11="","",P11+P$5) -> 66 | R11: =IF(Q11="","",LOOKUP(Q11,zdroj!$E$3:$E$700,zdroj!$L$3:$L$700)) -> 0 | S11: =IF(Q11="","",LOOKUP(Q11,zdroj!$E$3:$E$700,zdroj!$G$3:$G$700)) -> Agrimex | T11: =IF(Q11="","",LOOKUP(Q11,zdroj!$E$3:$E$700,zdroj!$H$3:$H$700)) -> vlastní | U11: =+IF(Q11="","",LOOKUP(Q11,zdroj!$E$3:$E$700,zdroj!$I$3:$I$700)) -> Dokončeno | V11: =IF(X11="","",LOOKUP(X11,zdroj!$E$3:$E$700,zdroj!$F$3:$F$700)) -> 10:00:00 | W11: =+IF(X$5>W10,W10+1,"") -> 6 | X11: =+IF(W11="","",W11+W$5) -> 96 | Y11: =IF(X11="","",LOOKUP(X11,zdroj!$E$3:$E$700,zdroj!$L$3:$L$700)) -> 0 | Z11: =IF(X11="","",LOOKUP(X11,zdroj!$E$3:$E$700,zdroj!$G$3:$G$700)) -> Transtech tooling | AA11: =IF(X11="","",LOOKUP(X11,zdroj!$E$3:$E$700,zdroj!$H$3:$H$700)) -> vlastníí | AB11: =+IF(X11="","",LOOKUP(X11,zdroj!$E$3:$E$700,zdroj!$I$3:$I$700)) -> Dokončeno | AC11: =IF(AE11="","",LOOKUP(AE11,zdroj!$E$3:$E$700,zdroj!$F$3:$F$700)) -> 00:00:00 | AD11: =+IF(AE$5>AD10,AD10+1,"") -> 6 | AE11: =+IF(AD11="","",AD11+AD$5) -> 126 | AF11: =IF(AE11="","",LOOKUP(AE11,zdroj!$E$3:$E$700,zdroj!$L$3:$L$700)) -> 0 | AG11: =IF(AE11="","",LOOKUP(AE11,zdroj!$E$3:$E$700,zdroj!$G$3:$G$700)) -> Seco Group | AH11: =IF(AE11="","",LOOKUP(AE11,zdroj!$E$3:$E$700,zdroj!$H$3:$H$700)) -> TEZET | AI11: =+IF(AE11="","",LOOKUP(AE11,zdroj!$E$3:$E$700,zdroj!$I$3:$I$700)) -> Dokončeno
A12: =IF(C12="","",LOOKUP(C12,zdroj!$E$3:$E$201,zdroj!$F$3:$F$201)) ->  | D12: =IF(C12="","",LOOKUP(C12,zdroj!$E$3:$E$700,zdroj!$L$3:$L$700)) ->  | E12: =IF(C12="","",LOOKUP(C12,zdroj!$E$3:$E$700,zdroj!$G$3:$G$700)) ->  | F12: =IF(C12="","",LOOKUP(C12,zdroj!$E$3:$E$700,zdroj!$H$3:$H$700)) ->  | G12: =+IF(C12="","",LOOKUP(C12,zdroj!$E$3:$E$700,zdroj!$I$3:$I$700)) ->  | H12: =IF(J12="","",LOOKUP(J12,zdroj!$E$3:$E$700,zdroj!$F$3:$F$700)) -> 00:00:00 | I12: 7 | J12: 37 | K12: =IF(J12="","",LOOKUP(J12,zdroj!$E$3:$E$700,zdroj!$L$3:$L$700)) -> 0 | L12: =IF(J12="","",LOOKUP(J12,zdroj!$E$3:$E$700,zdroj!$G$3:$G$700)) -> T-Net | M12: =IF(J12="","",LOOKUP(J12,zdroj!$E$3:$E$700,zdroj!$H$3:$H$700)) -> MSB | N12: =+IF(J12="","",LOOKUP(J12,zdroj!$E$3:$E$700,zdroj!$I$3:$I$700)) -> Dokončeno | O12: =IF(Q12="","",LOOKUP(Q12,zdroj!$E$3:$E$700,zdroj!$F$3:$F$700)) -> 11:00:00 | P12: 7 | Q12: 67 | R12: =IF(Q12="","",LOOKUP(Q12,zdroj!$E$3:$E$700,zdroj!$L$3:$L$700)) -> 0 | S12: =IF(Q12="","",LOOKUP(Q12,zdroj!$E$3:$E$700,zdroj!$G$3:$G$700)) -> Flexfill | T12: =IF(Q12="","",LOOKUP(Q12,zdroj!$E$3:$E$700,zdroj!$H$3:$H$700)) -> Interkontakt | U12: =+IF(Q12="","",LOOKUP(Q12,zdroj!$E$3:$E$700,zdroj!$I$3:$I$700)) -> Dokončeno | V12: =IF(X12="","",LOOKUP(X12,zdroj!$E$3:$E$700,zdroj!$F$3:$F$700)) -> 10:30:00 | W12: 7 | X12: 97 | Y12: =IF(X12="","",LOOKUP(X12,zdroj!$E$3:$E$700,zdroj!$L$3:$L$700)) -> 0 | Z12: =IF(X12="","",LOOKUP(X12,zdroj!$E$3:$E$700,zdroj!$G$3:$G$700)) -> Lopal | AA12: =IF(X12="","",LOOKUP(X12,zdroj!$E$3:$E$700,zdroj!$H$3:$H$700)) -> vlastní | AB12: =+IF(X12="","",LOOKUP(X12,zdroj!$E$3:$E$700,zdroj!$I$3:$I$700)) -> Dokončeno | AC12: =IF(AE12="","",LOOKUP(AE12,zdroj!$E$3:$E$700,zdroj!$F$3:$F$700)) ->  | AF12: =IF(AE12="","",LOOKUP(AE12,zdroj!$E$3:$E$700,zdroj!$L$3:$L$700)) ->  | AG12: =IF(AE12="","",LOOKUP(AE12,zdroj!$E$3:$E$700,zdroj!$G$3:$G$700)) ->  | AH12: =IF(AE12="","",LOOKUP(AE12,zdroj!$E$3:$E$700,zdroj!$H$3:$H$700)) ->  | AI12: =+IF(AE12="","",LOOKUP(AE12,zdroj!$E$3:$E$700,zdroj!$I$3:$I$700)) -> 
A13: =IF(C13="","",LOOKUP(C13,zdroj!$E$3:$E$201,zdroj!$F$3:$F$201)) ->  | D13: =IF(C13="","",LOOKUP(C13,zdroj!$E$3:$E$700,zdroj!$L$3:$L$700)) ->  | E13: =IF(C13="","",LOOKUP(C13,zdroj!$E$3:$E$700,zdroj!$G$3:$G$700)) ->  | F13: =IF(C13="","",LOOKUP(C13,zdroj!$E$3:$E$700,zdroj!$H$3:$H$700)) ->  | G13: =+IF(C13="","",LOOKUP(C13,zdroj!$E$3:$E$700,zdroj!$I$3:$I$700)) ->  | H13: =IF(J13="","",LOOKUP(J13,zdroj!$E$3:$E$700,zdroj!$F$3:$F$700)) -> 00:00:00 | I13: 8 | J13: 38 | K13: =IF(J13="","",LOOKUP(J13,zdroj!$E$3:$E$700,zdroj!$L$3:$L$700)) -> 0 | L13: =IF(J13="","",LOOKUP(J13,zdroj!$E$3:$E$700,zdroj!$G$3:$G$700)) -> T-Net | M13: =IF(J13="","",LOOKUP(J13,zdroj!$E$3:$E$700,zdroj!$H$3:$H$700)) -> MSB | N13: =+IF(J13="","",LOOKUP(J13,zdroj!$E$3:$E$700,zdroj!$I$3:$I$700)) -> Dokončeno | O13: =IF(Q13="","",LOOKUP(Q13,zdroj!$E$3:$E$700,zdroj!$F$3:$F$700)) -> 00:00:00 | P13: 8 | Q13: 68 | R13: =IF(Q13="","",LOOKUP(Q13,zdroj!$E$3:$E$700,zdroj!$L$3:$L$700)) -> 0 | S13: =IF(Q13="","",LOOKUP(Q13,zdroj!$E$3:$E$700,zdroj!$G$3:$G$700)) -> Tichelman | T13: =IF(Q13="","",LOOKUP(Q13,zdroj!$E$3:$E$700,zdroj!$H$3:$H$700)) -> vlastní | U13: =+IF(Q13="","",LOOKUP(Q13,zdroj!$E$3:$E$700,zdroj!$I$3:$I$700)) -> Dokončeno | V13: =IF(X13="","",LOOKUP(X13,zdroj!$E$3:$E$700,zdroj!$F$3:$F$700)) -> 12:00:00 | W13: 8 | X13: 98 | Y13: =IF(X13="","",LOOKUP(X13,zdroj!$E$3:$E$700,zdroj!$L$3:$L$700)) -> 0 | Z13: =IF(X13="","",LOOKUP(X13,zdroj!$E$3:$E$700,zdroj!$G$3:$G$700)) -> Bartozs Ratuski | AA13: =IF(X13="","",LOOKUP(X13,zdroj!$E$3:$E$700,zdroj!$H$3:$H$700)) -> vlastní | AB13: =+IF(X13="","",LOOKUP(X13,zdroj!$E$3:$E$700,zdroj!$I$3:$I$700)) -> Dokončeno | AC13: =IF(AE13="","",LOOKUP(AE13,zdroj!$E$3:$E$700,zdroj!$F$3:$F$700)) ->  | AF13: =IF(AE13="","",LOOKUP(AE13,zdroj!$E$3:$E$700,zdroj!$L$3:$L$700)) ->  | AG13: =IF(AE13="","",LOOKUP(AE13,zdroj!$E$3:$E$700,zdroj!$G$3:$G$700)) ->  | AH13: =IF(AE13="","",LOOKUP(AE13,zdroj!$E$3:$E$700,zdroj!$H$3:$H$700)) ->  | AI13: =+IF(AE13="","",LOOKUP(AE13,zdroj!$E$3:$E$700,zdroj!$I$3:$I$700)) -> 
A14: =IF(C14="","",LOOKUP(C14,zdroj!$E$3:$E$201,zdroj!$F$3:$F$201)) ->  | D14: =IF(C14="","",LOOKUP(C14,zdroj!$E$3:$E$700,zdroj!$L$3:$L$700)) ->  | E14: =IF(C14="","",LOOKUP(C14,zdroj!$E$3:$E$700,zdroj!$G$3:$G$700)) ->  | F14: =IF(C14="","",LOOKUP(C14,zdroj!$E$3:$E$700,zdroj!$H$3:$H$700)) ->  | G14: =+IF(C14="","",LOOKUP(C14,zdroj!$E$3:$E$700,zdroj!$I$3:$I$700)) ->  | H14: =IF(J14="","",LOOKUP(J14,zdroj!$E$3:$E$700,zdroj!$F$3:$F$700)) -> 00:00:00 | I14: 9 | J14: 39 | K14: =IF(J14="","",LOOKUP(J14,zdroj!$E$3:$E$700,zdroj!$L$3:$L$700)) -> 0 | L14: =IF(J14="","",LOOKUP(J14,zdroj!$E$3:$E$700,zdroj!$G$3:$G$700)) -> T-Net | M14: =IF(J14="","",LOOKUP(J14,zdroj!$E$3:$E$700,zdroj!$H$3:$H$700)) -> MSB | N14: =+IF(J14="","",LOOKUP(J14,zdroj!$E$3:$E$700,zdroj!$I$3:$I$700)) -> Dokončeno | O14: =IF(Q14="","",LOOKUP(Q14,zdroj!$E$3:$E$700,zdroj!$F$3:$F$700)) ->  | R14: =IF(Q14="","",LOOKUP(Q14,zdroj!$E$3:$E$700,zdroj!$L$3:$L$700)) ->  | S14: =IF(Q14="","",LOOKUP(Q14,zdroj!$E$3:$E$700,zdroj!$G$3:$G$700)) ->  | T14: =IF(Q14="","",LOOKUP(Q14,zdroj!$E$3:$E$700,zdroj!$H$3:$H$700)) ->  | U14: =+IF(Q14="","",LOOKUP(Q14,zdroj!$E$3:$E$700,zdroj!$I$3:$I$700)) ->  | V14: =IF(X14="","",LOOKUP(X14,zdroj!$E$3:$E$700,zdroj!$F$3:$F$700)) -> 14:00:00 | W14: 9 | X14: 99 | Y14: =IF(X14="","",LOOKUP(X14,zdroj!$E$3:$E$700,zdroj!$L$3:$L$700)) -> 0 | Z14: =IF(X14="","",LOOKUP(X14,zdroj!$E$3:$E$700,zdroj!$G$3:$G$700)) -> Sait-Gonbein | AA14: =IF(X14="","",LOOKUP(X14,zdroj!$E$3:$E$700,zdroj!$H$3:$H$700)) -> vlastní | AB14: =+IF(X14="","",LOOKUP(X14,zdroj!$E$3:$E$700,zdroj!$I$3:$I$700)) -> Dokončeno | AC14: =IF(AE14="","",LOOKUP(AE14,zdroj!$E$3:$E$700,zdroj!$F$3:$F$700)) ->  | AF14: =IF(AE14="","",LOOKUP(AE14,zdroj!$E$3:$E$700,zdroj!$L$3:$L$700)) ->  | AG14: =IF(AE14="","",LOOKUP(AE14,zdroj!$E$3:$E$700,zdroj!$G$3:$G$700)) ->  | AH14: =IF(AE14="","",LOOKUP(AE14,zdroj!$E$3:$E$700,zdroj!$H$3:$H$700)) ->  | AI14: =+IF(AE14="","",LOOKUP(AE14,zdroj!$E$3:$E$700,zdroj!$I$3:$I$700)) -> 
A15: =IF(C15="","",LOOKUP(C15,zdroj!$E$3:$E$201,zdroj!$F$3:$F$201)) ->  | D15: =IF(C15="","",LOOKUP(C15,zdroj!$E$3:$E$700,zdroj!$L$3:$L$700)) ->  | E15: =IF(C15="","",LOOKUP(C15,zdroj!$E$3:$E$700,zdroj!$G$3:$G$700)) ->  | F15: =IF(C15="","",LOOKUP(C15,zdroj!$E$3:$E$700,zdroj!$H$3:$H$700)) ->  | G15: =+IF(C15="","",LOOKUP(C15,zdroj!$E$3:$E$700,zdroj!$I$3:$I$700)) ->  | H15: =IF(J15="","",LOOKUP(J15,zdroj!$E$3:$E$700,zdroj!$F$3:$F$700)) -> 00:00:00 | I15: 10 | J15: 40 | K15: =IF(J15="","",LOOKUP(J15,zdroj!$E$3:$E$700,zdroj!$L$3:$L$700)) -> 0 | L15: =IF(J15="","",LOOKUP(J15,zdroj!$E$3:$E$700,zdroj!$G$3:$G$700)) -> Filmer | M15: =IF(J15="","",LOOKUP(J15,zdroj!$E$3:$E$700,zdroj!$H$3:$H$700)) -> 0 | N15: =+IF(J15="","",LOOKUP(J15,zdroj!$E$3:$E$700,zdroj!$I$3:$I$700)) -> Dokončeno | O15: =IF(Q15="","",LOOKUP(Q15,zdroj!$E$3:$E$700,zdroj!$F$3:$F$700)) ->  | R15: =IF(Q15="","",LOOKUP(Q15,zdroj!$E$3:$E$700,zdroj!$L$3:$L$700)) ->  | S15: =IF(Q15="","",LOOKUP(Q15,zdroj!$E$3:$E$700,zdroj!$G$3:$G$700)) ->  | T15: =IF(Q15="","",LOOKUP(Q15,zdroj!$E$3:$E$700,zdroj!$H$3:$H$700)) ->  | U15: =+IF(Q15="","",LOOKUP(Q15,zdroj!$E$3:$E$700,zdroj!$I$3:$I$700)) ->  | V15: =IF(X15="","",LOOKUP(X15,zdroj!$E$3:$E$700,zdroj!$F$3:$F$700)) -> 00:00:00 | W15: 10 | X15: 100 | Y15: =IF(X15="","",LOOKUP(X15,zdroj!$E$3:$E$700,zdroj!$L$3:$L$700)) -> 0 | Z15: =IF(X15="","",LOOKUP(X15,zdroj!$E$3:$E$700,zdroj!$G$3:$G$700)) -> GEFCO | AA15: =IF(X15="","",LOOKUP(X15,zdroj!$E$3:$E$700,zdroj!$H$3:$H$700)) -> vlastní | AB15: =+IF(X15="","",LOOKUP(X15,zdroj!$E$3:$E$700,zdroj!$I$3:$I$700)) -> Dokončeno | AC15: =IF(AE15="","",LOOKUP(AE15,zdroj!$E$3:$E$700,zdroj!$F$3:$F$700)) ->  | AF15: =IF(AE15="","",LOOKUP(AE15,zdroj!$E$3:$E$700,zdroj!$L$3:$L$700)) ->  | AG15: =IF(AE15="","",LOOKUP(AE15,zdroj!$E$3:$E$700,zdroj!$G$3:$G$700)) ->  | AH15: =IF(AE15="","",LOOKUP(AE15,zdroj!$E$3:$E$700,zdroj!$H$3:$H$700)) ->  | AI15: =+IF(AE15="","",LOOKUP(AE15,zdroj!$E$3:$E$700,zdroj!$I$3:$I$700)) -> 
A16: =IF(C16="","",LOOKUP(C16,zdroj!$E$3:$E$201,zdroj!$F$3:$F$201)) ->  | D16: =IF(C16="","",LOOKUP(C16,zdroj!$E$3:$E$700,zdroj!$L$3:$L$700)) ->  | E16: =IF(C16="","",LOOKUP(C16,zdroj!$E$3:$E$700,zdroj!$G$3:$G$700)) ->  | F16: =IF(C16="","",LOOKUP(C16,zdroj!$E$3:$E$700,zdroj!$H$3:$H$700)) ->  | G16: =+IF(C16="","",LOOKUP(C16,zdroj!$E$3:$E$700,zdroj!$I$3:$I$700)) ->  | H16: =IF(J16="","",LOOKUP(J16,zdroj!$E$3:$E$700,zdroj!$F$3:$F$700)) -> 00:00:00 | I16: 11 | J16: 41 | K16: =IF(J16="","",LOOKUP(J16,zdroj!$E$3:$E$700,zdroj!$L$3:$L$700)) -> 0 | L16: =IF(J16="","",LOOKUP(J16,zdroj!$E$3:$E$700,zdroj!$G$3:$G$700)) -> GAS | M16: =IF(J16="","",LOOKUP(J16,zdroj!$E$3:$E$700,zdroj!$H$3:$H$700)) -> vlastní | N16: =+IF(J16="","",LOOKUP(J16,zdroj!$E$3:$E$700,zdroj!$I$3:$I$700)) -> Dokončeno | O16: =IF(Q16="","",LOOKUP(Q16,zdroj!$E$3:$E$700,zdroj!$F$3:$F$700)) ->  | R16: =IF(Q16="","",LOOKUP(Q16,zdroj!$E$3:$E$700,zdroj!$L$3:$L$700)) ->  | S16: =IF(Q16="","",LOOKUP(Q16,zdroj!$E$3:$E$700,zdroj!$G$3:$G$700)) ->  | T16: =IF(Q16="","",LOOKUP(Q16,zdroj!$E$3:$E$700,zdroj!$H$3:$H$700)) ->  | U16: =+IF(Q16="","",LOOKUP(Q16,zdroj!$E$3:$E$700,zdroj!$I$3:$I$700)) ->  | V16: =IF(X16="","",LOOKUP(X16,zdroj!$E$3:$E$700,zdroj!$F$3:$F$700)) -> 00:00:00 | W16: 11 | X16: 101 | Y16: =IF(X16="","",LOOKUP(X16,zdroj!$E$3:$E$700,zdroj!$L$3:$L$700)) -> 0 | Z16: =IF(X16="","",LOOKUP(X16,zdroj!$E$3:$E$700,zdroj!$G$3:$G$700)) -> PK Group | AA16: =IF(X16="","",LOOKUP(X16,zdroj!$E$3:$E$700,zdroj!$H$3:$H$700)) -> vlastní | AB16: =+IF(X16="","",LOOKUP(X16,zdroj!$E$3:$E$700,zdroj!$I$3:$I$700)) -> Dokončeno | AC16: =IF(AE16="","",LOOKUP(AE16,zdroj!$E$3:$E$700,zdroj!$F$3:$F$700)) ->  | AF16: =IF(AE16="","",LOOKUP(AE16,zdroj!$E$3:$E$700,zdroj!$L$3:$L$700)) ->  | AG16: =IF(AE16="","",LOOKUP(AE16,zdroj!$E$3:$E$700,zdroj!$G$3:$G$700)) ->  | AH16: =IF(AE16="","",LOOKUP(AE16,zdroj!$E$3:$E$700,zdroj!$H$3:$H$700)) ->  | AI16: =+IF(AE16="","",LOOKUP(AE16,zdroj!$E$3:$E$700,zdroj!$I$3:$I$700)) -> 
A17: =IF(C17="","",LOOKUP(C17,zdroj!$E$3:$E$201,zdroj!$F$3:$F$201)) ->  | D17: =IF(C17="","",LOOKUP(C17,zdroj!$E$3:$E$700,zdroj!$L$3:$L$700)) ->  | E17: =IF(C17="","",LOOKUP(C17,zdroj!$E$3:$E$700,zdroj!$G$3:$G$700)) ->  | F17: =IF(C17="","",LOOKUP(C17,zdroj!$E$3:$E$700,zdroj!$H$3:$H$700)) ->  | G17: =+IF(C17="","",LOOKUP(C17,zdroj!$E$3:$E$700,zdroj!$I$3:$I$700)) ->  | H17: =IF(J17="","",LOOKUP(J17,zdroj!$E$3:$E$700,zdroj!$F$3:$F$700)) -> 00:00:00 | I17: 12 | J17: 42 | K17: =IF(J17="","",LOOKUP(J17,zdroj!$E$3:$E$700,zdroj!$L$3:$L$700)) -> 0 | L17: =IF(J17="","",LOOKUP(J17,zdroj!$E$3:$E$700,zdroj!$G$3:$G$700)) -> Faurecie MB | M17: =IF(J17="","",LOOKUP(J17,zdroj!$E$3:$E$700,zdroj!$H$3:$H$700)) -> vlastní | N17: =+IF(J17="","",LOOKUP(J17,zdroj!$E$3:$E$700,zdroj!$I$3:$I$700)) -> Dokončeno | O17: =IF(Q17="","",LOOKUP(Q17,zdroj!$E$3:$E$700,zdroj!$F$3:$F$700)) ->  | R17: =IF(Q17="","",LOOKUP(Q17,zdroj!$E$3:$E$700,zdroj!$L$3:$L$700)) ->  | S17: =IF(Q17="","",LOOKUP(Q17,zdroj!$E$3:$E$700,zdroj!$G$3:$G$700)) ->  | T17: =IF(Q17="","",LOOKUP(Q17,zdroj!$E$3:$E$700,zdroj!$H$3:$H$700)) ->  | U17: =+IF(Q17="","",LOOKUP(Q17,zdroj!$E$3:$E$700,zdroj!$I$3:$I$700)) ->  | V17: =IF(X17="","",LOOKUP(X17,zdroj!$E$3:$E$700,zdroj!$F$3:$F$700)) ->  | Y17: =IF(X17="","",LOOKUP(X17,zdroj!$E$3:$E$700,zdroj!$L$3:$L$700)) ->  | Z17: =IF(X17="","",LOOKUP(X17,zdroj!$E$3:$E$700,zdroj!$G$3:$G$700)) ->  | AA17: =IF(X17="","",LOOKUP(X17,zdroj!$E$3:$E$700,zdroj!$H$3:$H$700)) ->  | AB17: =+IF(X17="","",LOOKUP(X17,zdroj!$E$3:$E$700,zdroj!$I$3:$I$700)) ->  | AC17: =IF(AE17="","",LOOKUP(AE17,zdroj!$E$3:$E$700,zdroj!$F$3:$F$700)) ->  | AF17: =IF(AE17="","",LOOKUP(AE17,zdroj!$E$3:$E$700,zdroj!$L$3:$L$700)) ->  | AG17: =IF(AE17="","",LOOKUP(AE17,zdroj!$E$3:$E$700,zdroj!$G$3:$G$700)) ->  | AH17: =IF(AE17="","",LOOKUP(AE17,zdroj!$E$3:$E$700,zdroj!$H$3:$H$700)) ->  | AI17: =+IF(AE17="","",LOOKUP(AE17,zdroj!$E$3:$E$700,zdroj!$I$3:$I$700)) -> 
A18: =IF(C18="","",LOOKUP(C18,zdroj!$E$3:$E$201,zdroj!$F$3:$F$201)) ->  | D18: =IF(C18="","",LOOKUP(C18,zdroj!$E$3:$E$700,zdroj!$L$3:$L$700)) ->  | E18: =IF(C18="","",LOOKUP(C18,zdroj!$E$3:$E$700,zdroj!$G$3:$G$700)) ->  | F18: =IF(C18="","",LOOKUP(C18,zdroj!$E$3:$E$700,zdroj!$H$3:$H$700)) ->  | G18: =+IF(C18="","",LOOKUP(C18,zdroj!$E$3:$E$700,zdroj!$I$3:$I$700)) ->  | H18: =IF(J18="","",LOOKUP(J18,zdroj!$E$3:$E$700,zdroj!$F$3:$F$700)) ->  | K18: =IF(J18="","",LOOKUP(J18,zdroj!$E$3:$E$700,zdroj!$L$3:$L$700)) ->  | L18: =IF(J18="","",LOOKUP(J18,zdroj!$E$3:$E$700,zdroj!$G$3:$G$700)) ->  | M18: =IF(J18="","",LOOKUP(J18,zdroj!$E$3:$E$700,zdroj!$H$3:$H$700)) ->  | N18: =+IF(J18="","",LOOKUP(J18,zdroj!$E$3:$E$700,zdroj!$I$3:$I$700)) ->  | O18: =IF(Q18="","",LOOKUP(Q18,zdroj!$E$3:$E$700,zdroj!$F$3:$F$700)) ->  | R18: =IF(Q18="","",LOOKUP(Q18,zdroj!$E$3:$E$700,zdroj!$L$3:$L$700)) ->  | S18: =IF(Q18="","",LOOKUP(Q18,zdroj!$E$3:$E$700,zdroj!$G$3:$G$700)) ->  | T18: =IF(Q18="","",LOOKUP(Q18,zdroj!$E$3:$E$700,zdroj!$H$3:$H$700)) ->  | U18: =+IF(Q18="","",LOOKUP(Q18,zdroj!$E$3:$E$700,zdroj!$I$3:$I$700)) ->  | V18: =IF(X18="","",LOOKUP(X18,zdroj!$E$3:$E$700,zdroj!$F$3:$F$700)) ->  | Y18: =IF(X18="","",LOOKUP(X18,zdroj!$E$3:$E$700,zdroj!$L$3:$L$700)) ->  | Z18: =IF(X18="","",LOOKUP(X18,zdroj!$E$3:$E$700,zdroj!$G$3:$G$700)) ->  | AA18: =IF(X18="","",LOOKUP(X18,zdroj!$E$3:$E$700,zdroj!$H$3:$H$700)) ->  | AB18: =+IF(X18="","",LOOKUP(X18,zdroj!$E$3:$E$700,zdroj!$I$3:$I$700)) ->  | AC18: =IF(AE18="","",LOOKUP(AE18,zdroj!$E$3:$E$700,zdroj!$F$3:$F$700)) ->  | AF18: =IF(AE18="","",LOOKUP(AE18,zdroj!$E$3:$E$700,zdroj!$L$3:$L$700)) ->  | AG18: =IF(AE18="","",LOOKUP(AE18,zdroj!$E$3:$E$700,zdroj!$G$3:$G$700)) ->  | AH18: =IF(AE18="","",LOOKUP(AE18,zdroj!$E$3:$E$700,zdroj!$H$3:$H$700)) ->  | AI18: =+IF(AE18="","",LOOKUP(AE18,zdroj!$E$3:$E$700,zdroj!$I$3:$I$700)) -> 
A19: =IF(C19="","",LOOKUP(C19,zdroj!$E$3:$E$201,zdroj!$F$3:$F$201)) ->  | D19: =IF(C19="","",LOOKUP(C19,zdroj!$E$3:$E$700,zdroj!$L$3:$L$700)) ->  | E19: =IF(C19="","",LOOKUP(C19,zdroj!$E$3:$E$700,zdroj!$G$3:$G$700)) ->  | F19: =IF(C19="","",LOOKUP(C19,zdroj!$E$3:$E$700,zdroj!$H$3:$H$700)) ->  | G19: =+IF(C19="","",LOOKUP(C19,zdroj!$E$3:$E$700,zdroj!$I$3:$I$700)) ->  | H19: =IF(J19="","",LOOKUP(J19,zdroj!$E$3:$E$700,zdroj!$F$3:$F$700)) ->  | K19: =IF(J19="","",LOOKUP(J19,zdroj!$E$3:$E$700,zdroj!$L$3:$L$700)) ->  | L19: =IF(J19="","",LOOKUP(J19,zdroj!$E$3:$E$700,zdroj!$G$3:$G$700)) ->  | M19: =IF(J19="","",LOOKUP(J19,zdroj!$E$3:$E$700,zdroj!$H$3:$H$700)) ->  | N19: =+IF(J19="","",LOOKUP(J19,zdroj!$E$3:$E$700,zdroj!$I$3:$I$700)) ->  | O19: =IF(Q19="","",LOOKUP(Q19,zdroj!$E$3:$E$700,zdroj!$F$3:$F$700)) ->  | R19: =IF(Q19="","",LOOKUP(Q19,zdroj!$E$3:$E$700,zdroj!$L$3:$L$700)) ->  | S19: =IF(Q19="","",LOOKUP(Q19,zdroj!$E$3:$E$700,zdroj!$G$3:$G$700)) ->  | T19: =IF(Q19="","",LOOKUP(Q19,zdroj!$E$3:$E$700,zdroj!$H$3:$H$700)) ->  | U19: =+IF(Q19="","",LOOKUP(Q19,zdroj!$E$3:$E$700,zdroj!$I$3:$I$700)) ->  | V19: =IF(X19="","",LOOKUP(X19,zdroj!$E$3:$E$700,zdroj!$F$3:$F$700)) ->  | Y19: =IF(X19="","",LOOKUP(X19,zdroj!$E$3:$E$700,zdroj!$L$3:$L$700)) ->  | Z19: =IF(X19="","",LOOKUP(X19,zdroj!$E$3:$E$700,zdroj!$G$3:$G$700)) ->  | AA19: =IF(X19="","",LOOKUP(X19,zdroj!$E$3:$E$700,zdroj!$H$3:$H$700)) ->  | AB19: =+IF(X19="","",LOOKUP(X19,zdroj!$E$3:$E$700,zdroj!$I$3:$I$700)) ->  | AC19: =IF(AE19="","",LOOKUP(AE19,zdroj!$E$3:$E$700,zdroj!$F$3:$F$700)) ->  | AF19: =IF(AE19="","",LOOKUP(AE19,zdroj!$E$3:$E$700,zdroj!$L$3:$L$700)) ->  | AG19: =IF(AE19="","",LOOKUP(AE19,zdroj!$E$3:$E$700,zdroj!$G$3:$G$700)) ->  | AH19: =IF(AE19="","",LOOKUP(AE19,zdroj!$E$3:$E$700,zdroj!$H$3:$H$700)) ->  | AI19: =+IF(AE19="","",LOOKUP(AE19,zdroj!$E$3:$E$700,zdroj!$I$3:$I$700)) -> 
A20: =IF(C20="","",LOOKUP(C20,zdroj!$E$3:$E$201,zdroj!$F$3:$F$201)) ->  | D20: =IF(C20="","",LOOKUP(C20,zdroj!$E$3:$E$700,zdroj!$L$3:$L$700)) ->  | E20: =IF(C20="","",LOOKUP(C20,zdroj!$E$3:$E$700,zdroj!$G$3:$G$700)) ->  | F20: =IF(C20="","",LOOKUP(C20,zdroj!$E$3:$E$700,zdroj!$H$3:$H$700)) ->  | G20: =+IF(C20="","",LOOKUP(C20,zdroj!$E$3:$E$700,zdroj!$I$3:$I$700)) ->  | H20: =IF(J20="","",LOOKUP(J20,zdroj!$E$3:$E$700,zdroj!$F$3:$F$700)) ->  | K20: =IF(J20="","",LOOKUP(J20,zdroj!$E$3:$E$700,zdroj!$L$3:$L$700)) ->  | L20: =IF(J20="","",LOOKUP(J20,zdroj!$E$3:$E$700,zdroj!$G$3:$G$700)) ->  | M20: =IF(J20="","",LOOKUP(J20,zdroj!$E$3:$E$700,zdroj!$H$3:$H$700)) ->  | N20: =+IF(J20="","",LOOKUP(J20,zdroj!$E$3:$E$700,zdroj!$I$3:$I$700)) ->  | O20: =IF(Q20="","",LOOKUP(Q20,zdroj!$E$3:$E$700,zdroj!$F$3:$F$700)) ->  | R20: =IF(Q20="","",LOOKUP(Q20,zdroj!$E$3:$E$700,zdroj!$L$3:$L$700)) ->  | S20: =IF(Q20="","",LOOKUP(Q20,zdroj!$E$3:$E$700,zdroj!$G$3:$G$700)) ->  | T20: =IF(Q20="","",LOOKUP(Q20,zdroj!$E$3:$E$700,zdroj!$H$3:$H$700)) ->  | U20: =+IF(Q20="","",LOOKUP(Q20,zdroj!$E$3:$E$700,zdroj!$I$3:$I$700)) ->  | V20: =IF(X20="","",LOOKUP(X20,zdroj!$E$3:$E$700,zdroj!$F$3:$F$700)) ->  | Y20: =IF(X20="","",LOOKUP(X20,zdroj!$E$3:$E$700,zdroj!$L$3:$L$700)) ->  | Z20: =IF(X20="","",LOOKUP(X20,zdroj!$E$3:$E$700,zdroj!$G$3:$G$700)) ->  | AA20: =IF(X20="","",LOOKUP(X20,zdroj!$E$3:$E$700,zdroj!$H$3:$H$700)) ->  | AB20: =+IF(X20="","",LOOKUP(X20,zdroj!$E$3:$E$700,zdroj!$I$3:$I$700)) ->  | AC20: =IF(AE20="","",LOOKUP(AE20,zdroj!$E$3:$E$700,zdroj!$F$3:$F$700)) ->  | AF20: =IF(AE20="","",LOOKUP(AE20,zdroj!$E$3:$E$700,zdroj!$L$3:$L$700)) ->  | AG20: =IF(AE20="","",LOOKUP(AE20,zdroj!$E$3:$E$700,zdroj!$G$3:$G$700)) ->  | AH20: =IF(AE20="","",LOOKUP(AE20,zdroj!$E$3:$E$700,zdroj!$H$3:$H$700)) ->  | AI20: =+IF(AE20="","",LOOKUP(AE20,zdroj!$E$3:$E$700,zdroj!$I$3:$I$700)) -> 
A21: =IF(C21="","",LOOKUP(C21,zdroj!$E$3:$E$201,zdroj!$F$3:$F$201)) ->  | D21: =IF(C21="","",LOOKUP(C21,zdroj!$E$3:$E$700,zdroj!$L$3:$L$700)) ->  | E21: =IF(C21="","",LOOKUP(C21,zdroj!$E$3:$E$700,zdroj!$G$3:$G$700)) ->  | F21: =IF(C21="","",LOOKUP(C21,zdroj!$E$3:$E$700,zdroj!$H$3:$H$700)) ->  | G21: =+IF(C21="","",LOOKUP(C21,zdroj!$E$3:$E$700,zdroj!$I$3:$I$700)) ->  | H21: =IF(J21="","",LOOKUP(J21,zdroj!$E$3:$E$700,zdroj!$F$3:$F$700)) ->  | K21: =IF(J21="","",LOOKUP(J21,zdroj!$E$3:$E$700,zdroj!$L$3:$L$700)) ->  | L21: =IF(J21="","",LOOKUP(J21,zdroj!$E$3:$E$700,zdroj!$G$3:$G$700)) ->  | M21: =IF(J21="","",LOOKUP(J21,zdroj!$E$3:$E$700,zdroj!$H$3:$H$700)) ->  | N21: =+IF(J21="","",LOOKUP(J21,zdroj!$E$3:$E$700,zdroj!$I$3:$I$700)) ->  | O21: =IF(Q21="","",LOOKUP(Q21,zdroj!$E$3:$E$700,zdroj!$F$3:$F$700)) ->  | R21: =IF(Q21="","",LOOKUP(Q21,zdroj!$E$3:$E$700,zdroj!$L$3:$L$700)) ->  | S21: =IF(Q21="","",LOOKUP(Q21,zdroj!$E$3:$E$700,zdroj!$G$3:$G$700)) ->  | T21: =IF(Q21="","",LOOKUP(Q21,zdroj!$E$3:$E$700,zdroj!$H$3:$H$700)) ->  | U21: =+IF(Q21="","",LOOKUP(Q21,zdroj!$E$3:$E$700,zdroj!$I$3:$I$700)) ->  | V21: =IF(X21="","",LOOKUP(X21,zdroj!$E$3:$E$700,zdroj!$F$3:$F$700)) ->  | Y21: =IF(X21="","",LOOKUP(X21,zdroj!$E$3:$E$700,zdroj!$L$3:$L$700)) ->  | Z21: =IF(X21="","",LOOKUP(X21,zdroj!$E$3:$E$700,zdroj!$G$3:$G$700)) ->  | AA21: =IF(X21="","",LOOKUP(X21,zdroj!$E$3:$E$700,zdroj!$H$3:$H$700)) ->  | AB21: =+IF(X21="","",LOOKUP(X21,zdroj!$E$3:$E$700,zdroj!$I$3:$I$700)) ->  | AC21: =IF(AE21="","",LOOKUP(AE21,zdroj!$E$3:$E$700,zdroj!$F$3:$F$700)) ->  | AF21: =IF(AE21="","",LOOKUP(AE21,zdroj!$E$3:$E$700,zdroj!$L$3:$L$700)) ->  | AG21: =IF(AE21="","",LOOKUP(AE21,zdroj!$E$3:$E$700,zdroj!$G$3:$G$700)) ->  | AH21: =IF(AE21="","",LOOKUP(AE21,zdroj!$E$3:$E$700,zdroj!$H$3:$H$700)) ->  | AI21: =+IF(AE21="","",LOOKUP(AE21,zdroj!$E$3:$E$700,zdroj!$I$3:$I$700)) -> 
A22: =IF(C22="","",LOOKUP(C22,zdroj!$E$3:$E$201,zdroj!$F$3:$F$201)) ->  | D22: =IF(C22="","",LOOKUP(C22,zdroj!$E$3:$E$700,zdroj!$L$3:$L$700)) ->  | E22: =IF(C22="","",LOOKUP(C22,zdroj!$E$3:$E$700,zdroj!$G$3:$G$700)) ->  | F22: =IF(C22="","",LOOKUP(C22,zdroj!$E$3:$E$700,zdroj!$H$3:$H$700)) ->  | G22: =+IF(C22="","",LOOKUP(C22,zdroj!$E$3:$E$700,zdroj!$I$3:$I$700)) ->  | H22: =IF(J22="","",LOOKUP(J22,zdroj!$E$3:$E$700,zdroj!$F$3:$F$700)) ->  | K22: =IF(J22="","",LOOKUP(J22,zdroj!$E$3:$E$700,zdroj!$L$3:$L$700)) ->  | L22: =IF(J22="","",LOOKUP(J22,zdroj!$E$3:$E$700,zdroj!$G$3:$G$700)) ->  | M22: =IF(J22="","",LOOKUP(J22,zdroj!$E$3:$E$700,zdroj!$H$3:$H$700)) ->  | N22: =+IF(J22="","",LOOKUP(J22,zdroj!$E$3:$E$700,zdroj!$I$3:$I$700)) ->  | O22: =IF(Q22="","",LOOKUP(Q22,zdroj!$E$3:$E$700,zdroj!$F$3:$F$700)) ->  | R22: =IF(Q22="","",LOOKUP(Q22,zdroj!$E$3:$E$700,zdroj!$L$3:$L$700)) ->  | S22: =IF(Q22="","",LOOKUP(Q22,zdroj!$E$3:$E$700,zdroj!$G$3:$G$700)) ->  | T22: =IF(Q22="","",LOOKUP(Q22,zdroj!$E$3:$E$700,zdroj!$H$3:$H$700)) ->  | U22: =+IF(Q22="","",LOOKUP(Q22,zdroj!$E$3:$E$700,zdroj!$I$3:$I$700)) ->  | V22: =IF(X22="","",LOOKUP(X22,zdroj!$E$3:$E$700,zdroj!$F$3:$F$700)) ->  | Y22: =IF(X22="","",LOOKUP(X22,zdroj!$E$3:$E$700,zdroj!$L$3:$L$700)) ->  | Z22: =IF(X22="","",LOOKUP(X22,zdroj!$E$3:$E$700,zdroj!$G$3:$G$700)) ->  | AA22: =IF(X22="","",LOOKUP(X22,zdroj!$E$3:$E$700,zdroj!$H$3:$H$700)) ->  | AB22: =+IF(X22="","",LOOKUP(X22,zdroj!$E$3:$E$700,zdroj!$I$3:$I$700)) ->  | AC22: =IF(AE22="","",LOOKUP(AE22,zdroj!$E$3:$E$700,zdroj!$F$3:$F$700)) ->  | AF22: =IF(AE22="","",LOOKUP(AE22,zdroj!$E$3:$E$700,zdroj!$L$3:$L$700)) ->  | AG22: =IF(AE22="","",LOOKUP(AE22,zdroj!$E$3:$E$700,zdroj!$G$3:$G$700)) ->  | AH22: =IF(AE22="","",LOOKUP(AE22,zdroj!$E$3:$E$700,zdroj!$H$3:$H$700)) ->  | AI22: =+IF(AE22="","",LOOKUP(AE22,zdroj!$E$3:$E$700,zdroj!$I$3:$I$700)) -> 
A23: =IF(C23="","",LOOKUP(C23,zdroj!$E$3:$E$201,zdroj!$F$3:$F$201)) ->  | D23: =IF(C23="","",LOOKUP(C23,zdroj!$E$3:$E$700,zdroj!$L$3:$L$700)) ->  | E23: =IF(C23="","",LOOKUP(C23,zdroj!$E$3:$E$700,zdroj!$G$3:$G$700)) ->  | F23: =IF(C23="","",LOOKUP(C23,zdroj!$E$3:$E$700,zdroj!$H$3:$H$700)) ->  | G23: =+IF(C23="","",LOOKUP(C23,zdroj!$E$3:$E$700,zdroj!$I$3:$I$700)) ->  | H23: =IF(J23="","",LOOKUP(J23,zdroj!$E$3:$E$700,zdroj!$F$3:$F$700)) ->  | K23: =IF(J23="","",LOOKUP(J23,zdroj!$E$3:$E$700,zdroj!$L$3:$L$700)) ->  | L23: =IF(J23="","",LOOKUP(J23,zdroj!$E$3:$E$700,zdroj!$G$3:$G$700)) ->  | M23: =IF(J23="","",LOOKUP(J23,zdroj!$E$3:$E$700,zdroj!$H$3:$H$700)) ->  | N23: =+IF(J23="","",LOOKUP(J23,zdroj!$E$3:$E$700,zdroj!$I$3:$I$700)) ->  | O23: =IF(Q23="","",LOOKUP(Q23,zdroj!$E$3:$E$700,zdroj!$F$3:$F$700)) ->  | R23: =IF(Q23="","",LOOKUP(Q23,zdroj!$E$3:$E$700,zdroj!$L$3:$L$700)) ->  | S23: =IF(Q23="","",LOOKUP(Q23,zdroj!$E$3:$E$700,zdroj!$G$3:$G$700)) ->  | T23: =IF(Q23="","",LOOKUP(Q23,zdroj!$E$3:$E$700,zdroj!$H$3:$H$700)) ->  | U23: =+IF(Q23="","",LOOKUP(Q23,zdroj!$E$3:$E$700,zdroj!$I$3:$I$700)) ->  | V23: =IF(X23="","",LOOKUP(X23,zdroj!$E$3:$E$700,zdroj!$F$3:$F$700)) ->  | Y23: =IF(X23="","",LOOKUP(X23,zdroj!$E$3:$E$700,zdroj!$L$3:$L$700)) ->  | Z23: =IF(X23="","",LOOKUP(X23,zdroj!$E$3:$E$700,zdroj!$G$3:$G$700)) ->  | AA23: =IF(X23="","",LOOKUP(X23,zdroj!$E$3:$E$700,zdroj!$H$3:$H$700)) ->  | AB23: =+IF(X23="","",LOOKUP(X23,zdroj!$E$3:$E$700,zdroj!$I$3:$I$700)) ->  | AC23: =IF(AE23="","",LOOKUP(AE23,zdroj!$E$3:$E$700,zdroj!$F$3:$F$700)) ->  | AF23: =IF(AE23="","",LOOKUP(AE23,zdroj!$E$3:$E$700,zdroj!$L$3:$L$700)) ->  | AG23: =IF(AE23="","",LOOKUP(AE23,zdroj!$E$3:$E$700,zdroj!$G$3:$G$700)) ->  | AH23: =IF(AE23="","",LOOKUP(AE23,zdroj!$E$3:$E$700,zdroj!$H$3:$H$700)) ->  | AI23: =+IF(AE23="","",LOOKUP(AE23,zdroj!$E$3:$E$700,zdroj!$I$3:$I$700)) -> 
A24: =IF(C24="","",LOOKUP(C24,zdroj!$E$3:$E$201,zdroj!$F$3:$F$201)) ->  | D24: =IF(C24="","",LOOKUP(C24,zdroj!$E$3:$E$700,zdroj!$L$3:$L$700)) ->  | E24: =IF(C24="","",LOOKUP(C24,zdroj!$E$3:$E$700,zdroj!$G$3:$G$700)) ->  | F24: =IF(C24="","",LOOKUP(C24,zdroj!$E$3:$E$700,zdroj!$H$3:$H$700)) ->  | G24: =+IF(C24="","",LOOKUP(C24,zdroj!$E$3:$E$700,zdroj!$I$3:$I$700)) ->  | H24: =IF(J24="","",LOOKUP(J24,zdroj!$E$3:$E$700,zdroj!$F$3:$F$700)) ->  | K24: =IF(J24="","",LOOKUP(J24,zdroj!$E$3:$E$700,zdroj!$L$3:$L$700)) ->  | L24: =IF(J24="","",LOOKUP(J24,zdroj!$E$3:$E$700,zdroj!$G$3:$G$700)) ->  | M24: =IF(J24="","",LOOKUP(J24,zdroj!$E$3:$E$700,zdroj!$H$3:$H$700)) ->  | N24: =+IF(J24="","",LOOKUP(J24,zdroj!$E$3:$E$700,zdroj!$I$3:$I$700)) ->  | O24: =IF(Q24="","",LOOKUP(Q24,zdroj!$E$3:$E$700,zdroj!$F$3:$F$700)) ->  | R24: =IF(Q24="","",LOOKUP(Q24,zdroj!$E$3:$E$700,zdroj!$L$3:$L$700)) ->  | S24: =IF(Q24="","",LOOKUP(Q24,zdroj!$E$3:$E$700,zdroj!$G$3:$G$700)) ->  | T24: =IF(Q24="","",LOOKUP(Q24,zdroj!$E$3:$E$700,zdroj!$H$3:$H$700)) ->  | U24: =+IF(Q24="","",LOOKUP(Q24,zdroj!$E$3:$E$700,zdroj!$I$3:$I$700)) ->  | V24: =IF(X24="","",LOOKUP(X24,zdroj!$E$3:$E$700,zdroj!$F$3:$F$700)) ->  | Y24: =IF(X24="","",LOOKUP(X24,zdroj!$E$3:$E$700,zdroj!$L$3:$L$700)) ->  | Z24: =IF(X24="","",LOOKUP(X24,zdroj!$E$3:$E$700,zdroj!$G$3:$G$700)) ->  | AA24: =IF(X24="","",LOOKUP(X24,zdroj!$E$3:$E$700,zdroj!$H$3:$H$700)) ->  | AB24: =+IF(X24="","",LOOKUP(X24,zdroj!$E$3:$E$700,zdroj!$I$3:$I$700)) ->  | AC24: =IF(AE24="","",LOOKUP(AE24,zdroj!$E$3:$E$700,zdroj!$F$3:$F$700)) ->  | AF24: =IF(AE24="","",LOOKUP(AE24,zdroj!$E$3:$E$700,zdroj!$L$3:$L$700)) ->  | AG24: =IF(AE24="","",LOOKUP(AE24,zdroj!$E$3:$E$700,zdroj!$G$3:$G$700)) ->  | AH24: =IF(AE24="","",LOOKUP(AE24,zdroj!$E$3:$E$700,zdroj!$H$3:$H$700)) ->  | AI24: =+IF(AE24="","",LOOKUP(AE24,zdroj!$E$3:$E$700,zdroj!$I$3:$I$700)) -> 
A25: =IF(C25="","",LOOKUP(C25,zdroj!$E$3:$E$201,zdroj!$F$3:$F$201)) ->  | D25: =IF(C25="","",LOOKUP(C25,zdroj!$E$3:$E$700,zdroj!$L$3:$L$700)) ->  | E25: =IF(C25="","",LOOKUP(C25,zdroj!$E$3:$E$700,zdroj!$G$3:$G$700)) ->  | F25: =IF(C25="","",LOOKUP(C25,zdroj!$E$3:$E$700,zdroj!$H$3:$H$700)) ->  | G25: =+IF(C25="","",LOOKUP(C25,zdroj!$E$3:$E$700,zdroj!$I$3:$I$700)) ->  | H25: =IF(J25="","",LOOKUP(J25,zdroj!$E$3:$E$700,zdroj!$F$3:$F$700)) ->  | K25: =IF(J25="","",LOOKUP(J25,zdroj!$E$3:$E$700,zdroj!$L$3:$L$700)) ->  | L25: =IF(J25="","",LOOKUP(J25,zdroj!$E$3:$E$700,zdroj!$G$3:$G$700)) ->  | M25: =IF(J25="","",LOOKUP(J25,zdroj!$E$3:$E$700,zdroj!$H$3:$H$700)) ->  | N25: =+IF(J25="","",LOOKUP(J25,zdroj!$E$3:$E$700,zdroj!$I$3:$I$700)) ->  | O25: =IF(Q25="","",LOOKUP(Q25,zdroj!$E$3:$E$700,zdroj!$F$3:$F$700)) ->  | R25: =IF(Q25="","",LOOKUP(Q25,zdroj!$E$3:$E$700,zdroj!$L$3:$L$700)) ->  | S25: =IF(Q25="","",LOOKUP(Q25,zdroj!$E$3:$E$700,zdroj!$G$3:$G$700)) ->  | T25: =IF(Q25="","",LOOKUP(Q25,zdroj!$E$3:$E$700,zdroj!$H$3:$H$700)) ->  | U25: =+IF(Q25="","",LOOKUP(Q25,zdroj!$E$3:$E$700,zdroj!$I$3:$I$700)) ->  | V25: =IF(X25="","",LOOKUP(X25,zdroj!$E$3:$E$700,zdroj!$F$3:$F$700)) ->  | Y25: =IF(X25="","",LOOKUP(X25,zdroj!$E$3:$E$700,zdroj!$L$3:$L$700)) ->  | Z25: =IF(X25="","",LOOKUP(X25,zdroj!$E$3:$E$700,zdroj!$G$3:$G$700)) ->  | AA25: =IF(X25="","",LOOKUP(X25,zdroj!$E$3:$E$700,zdroj!$H$3:$H$700)) ->  | AB25: =+IF(X25="","",LOOKUP(X25,zdroj!$E$3:$E$700,zdroj!$I$3:$I$700)) ->  | AC25: =IF(AE25="","",LOOKUP(AE25,zdroj!$E$3:$E$700,zdroj!$F$3:$F$700)) ->  | AF25: =IF(AE25="","",LOOKUP(AE25,zdroj!$E$3:$E$700,zdroj!$L$3:$L$700)) ->  | AG25: =IF(AE25="","",LOOKUP(AE25,zdroj!$E$3:$E$700,zdroj!$G$3:$G$700)) ->  | AH25: =IF(AE25="","",LOOKUP(AE25,zdroj!$E$3:$E$700,zdroj!$H$3:$H$700)) ->  | AI25: =+IF(AE25="","",LOOKUP(AE25,zdroj!$E$3:$E$700,zdroj!$I$3:$I$700)) -> 
A26: =IF(C26="","",LOOKUP(C26,zdroj!$E$3:$E$201,zdroj!$F$3:$F$201)) ->  | D26: =IF(C26="","",LOOKUP(C26,zdroj!$E$3:$E$700,zdroj!$L$3:$L$700)) ->  | E26: =IF(C26="","",LOOKUP(C26,zdroj!$E$3:$E$700,zdroj!$G$3:$G$700)) ->  | F26: =IF(C26="","",LOOKUP(C26,zdroj!$E$3:$E$700,zdroj!$H$3:$H$700)) ->  | G26: =+IF(C26="","",LOOKUP(C26,zdroj!$E$3:$E$700,zdroj!$I$3:$I$700)) ->  | H26: =IF(J26="","",LOOKUP(J26,zdroj!$E$3:$E$700,zdroj!$F$3:$F$700)) ->  | K26: =IF(J26="","",LOOKUP(J26,zdroj!$E$3:$E$700,zdroj!$L$3:$L$700)) ->  | L26: =IF(J26="","",LOOKUP(J26,zdroj!$E$3:$E$700,zdroj!$G$3:$G$700)) ->  | M26: =IF(J26="","",LOOKUP(J26,zdroj!$E$3:$E$700,zdroj!$H$3:$H$700)) ->  | N26: =+IF(J26="","",LOOKUP(J26,zdroj!$E$3:$E$700,zdroj!$I$3:$I$700)) ->  | O26: =IF(Q26="","",LOOKUP(Q26,zdroj!$E$3:$E$700,zdroj!$F$3:$F$700)) ->  | R26: =IF(Q26="","",LOOKUP(Q26,zdroj!$E$3:$E$700,zdroj!$L$3:$L$700)) ->  | S26: =IF(Q26="","",LOOKUP(Q26,zdroj!$E$3:$E$700,zdroj!$G$3:$G$700)) ->  | T26: =IF(Q26="","",LOOKUP(Q26,zdroj!$E$3:$E$700,zdroj!$H$3:$H$700)) ->  | U26: =+IF(Q26="","",LOOKUP(Q26,zdroj!$E$3:$E$700,zdroj!$I$3:$I$700)) ->  | V26: =IF(X26="","",LOOKUP(X26,zdroj!$E$3:$E$700,zdroj!$F$3:$F$700)) ->  | Y26: =IF(X26="","",LOOKUP(X26,zdroj!$E$3:$E$700,zdroj!$L$3:$L$700)) ->  | Z26: =IF(X26="","",LOOKUP(X26,zdroj!$E$3:$E$700,zdroj!$G$3:$G$700)) ->  | AA26: =IF(X26="","",LOOKUP(X26,zdroj!$E$3:$E$700,zdroj!$H$3:$H$700)) ->  | AB26: =+IF(X26="","",LOOKUP(X26,zdroj!$E$3:$E$700,zdroj!$I$3:$I$700)) ->  | AC26: =IF(AE26="","",LOOKUP(AE26,zdroj!$E$3:$E$700,zdroj!$F$3:$F$700)) ->  | AF26: =IF(AE26="","",LOOKUP(AE26,zdroj!$E$3:$E$700,zdroj!$L$3:$L$700)) ->  | AG26: =IF(AE26="","",LOOKUP(AE26,zdroj!$E$3:$E$700,zdroj!$G$3:$G$700)) ->  | AH26: =IF(AE26="","",LOOKUP(AE26,zdroj!$E$3:$E$700,zdroj!$H$3:$H$700)) ->  | AI26: =+IF(AE26="","",LOOKUP(AE26,zdroj!$E$3:$E$700,zdroj!$I$3:$I$700)) -> 
A27: =IF(C27="","",LOOKUP(C27,zdroj!$E$3:$E$201,zdroj!$F$3:$F$201)) ->  | D27: =IF(C27="","",LOOKUP(C27,zdroj!$E$3:$E$700,zdroj!$L$3:$L$700)) ->  | E27: =IF(C27="","",LOOKUP(C27,zdroj!$E$3:$E$700,zdroj!$G$3:$G$700)) ->  | F27: =IF(C27="","",LOOKUP(C27,zdroj!$E$3:$E$700,zdroj!$H$3:$H$700)) ->  | G27: =+IF(C27="","",LOOKUP(C27,zdroj!$E$3:$E$700,zdroj!$I$3:$I$700)) ->  | H27: =IF(J27="","",LOOKUP(J27,zdroj!$E$3:$E$700,zdroj!$F$3:$F$700)) ->  | K27: =IF(J27="","",LOOKUP(J27,zdroj!$E$3:$E$700,zdroj!$L$3:$L$700)) ->  | L27: =IF(J27="","",LOOKUP(J27,zdroj!$E$3:$E$700,zdroj!$G$3:$G$700)) ->  | M27: =IF(J27="","",LOOKUP(J27,zdroj!$E$3:$E$700,zdroj!$H$3:$H$700)) ->  | N27: =+IF(J27="","",LOOKUP(J27,zdroj!$E$3:$E$700,zdroj!$I$3:$I$700)) ->  | O27: =IF(Q27="","",LOOKUP(Q27,zdroj!$E$3:$E$700,zdroj!$F$3:$F$700)) ->  | R27: =IF(Q27="","",LOOKUP(Q27,zdroj!$E$3:$E$700,zdroj!$L$3:$L$700)) ->  | S27: =IF(Q27="","",LOOKUP(Q27,zdroj!$E$3:$E$700,zdroj!$G$3:$G$700)) ->  | T27: =IF(Q27="","",LOOKUP(Q27,zdroj!$E$3:$E$700,zdroj!$H$3:$H$700)) ->  | U27: =+IF(Q27="","",LOOKUP(Q27,zdroj!$E$3:$E$700,zdroj!$I$3:$I$700)) ->  | V27: =IF(X27="","",LOOKUP(X27,zdroj!$E$3:$E$700,zdroj!$F$3:$F$700)) ->  | Y27: =IF(X27="","",LOOKUP(X27,zdroj!$E$3:$E$700,zdroj!$L$3:$L$700)) ->  | Z27: =IF(X27="","",LOOKUP(X27,zdroj!$E$3:$E$700,zdroj!$G$3:$G$700)) ->  | AA27: =IF(X27="","",LOOKUP(X27,zdroj!$E$3:$E$700,zdroj!$H$3:$H$700)) ->  | AB27: =+IF(X27="","",LOOKUP(X27,zdroj!$E$3:$E$700,zdroj!$I$3:$I$700)) ->  | AC27: =IF(AE27="","",LOOKUP(AE27,zdroj!$E$3:$E$700,zdroj!$F$3:$F$700)) ->  | AF27: =IF(AE27="","",LOOKUP(AE27,zdroj!$E$3:$E$700,zdroj!$L$3:$L$700)) ->  | AG27: =IF(AE27="","",LOOKUP(AE27,zdroj!$E$3:$E$700,zdroj!$G$3:$G$700)) ->  | AH27: =IF(AE27="","",LOOKUP(AE27,zdroj!$E$3:$E$700,zdroj!$H$3:$H$700)) ->  | AI27: =+IF(AE27="","",LOOKUP(AE27,zdroj!$E$3:$E$700,zdroj!$I$3:$I$700)) -> 
A28: =IF(C28="","",LOOKUP(C28,zdroj!$E$3:$E$201,zdroj!$F$3:$F$201)) ->  | D28: =IF(C28="","",LOOKUP(C28,zdroj!$E$3:$E$700,zdroj!$L$3:$L$700)) ->  | E28: =IF(C28="","",LOOKUP(C28,zdroj!$E$3:$E$700,zdroj!$G$3:$G$700)) ->  | F28: =IF(C28="","",LOOKUP(C28,zdroj!$E$3:$E$700,zdroj!$H$3:$H$700)) ->  | G28: =+IF(C28="","",LOOKUP(C28,zdroj!$E$3:$E$700,zdroj!$I$3:$I$700)) ->  | H28: =IF(J28="","",LOOKUP(J28,zdroj!$E$3:$E$700,zdroj!$F$3:$F$700)) ->  | K28: =IF(J28="","",LOOKUP(J28,zdroj!$E$3:$E$700,zdroj!$L$3:$L$700)) ->  | L28: =IF(J28="","",LOOKUP(J28,zdroj!$E$3:$E$700,zdroj!$G$3:$G$700)) ->  | M28: =IF(J28="","",LOOKUP(J28,zdroj!$E$3:$E$700,zdroj!$H$3:$H$700)) ->  | N28: =+IF(J28="","",LOOKUP(J28,zdroj!$E$3:$E$700,zdroj!$I$3:$I$700)) ->  | O28: =IF(Q28="","",LOOKUP(Q28,zdroj!$E$3:$E$700,zdroj!$F$3:$F$700)) ->  | R28: =IF(Q28="","",LOOKUP(Q28,zdroj!$E$3:$E$700,zdroj!$L$3:$L$700)) ->  | S28: =IF(Q28="","",LOOKUP(Q28,zdroj!$E$3:$E$700,zdroj!$G$3:$G$700)) ->  | T28: =IF(Q28="","",LOOKUP(Q28,zdroj!$E$3:$E$700,zdroj!$H$3:$H$700)) ->  | U28: =+IF(Q28="","",LOOKUP(Q28,zdroj!$E$3:$E$700,zdroj!$I$3:$I$700)) ->  | V28: =IF(X28="","",LOOKUP(X28,zdroj!$E$3:$E$700,zdroj!$F$3:$F$700)) ->  | Y28: =IF(X28="","",LOOKUP(X28,zdroj!$E$3:$E$700,zdroj!$L$3:$L$700)) ->  | Z28: =IF(X28="","",LOOKUP(X28,zdroj!$E$3:$E$700,zdroj!$G$3:$G$700)) ->  | AA28: =IF(X28="","",LOOKUP(X28,zdroj!$E$3:$E$700,zdroj!$H$3:$H$700)) ->  | AB28: =+IF(X28="","",LOOKUP(X28,zdroj!$E$3:$E$700,zdroj!$I$3:$I$700)) ->  | AC28: =IF(AE28="","",LOOKUP(AE28,zdroj!$E$3:$E$700,zdroj!$F$3:$F$700)) ->  | AF28: =IF(AE28="","",LOOKUP(AE28,zdroj!$E$3:$E$700,zdroj!$L$3:$L$700)) ->  | AG28: =IF(AE28="","",LOOKUP(AE28,zdroj!$E$3:$E$700,zdroj!$G$3:$G$700)) ->  | AH28: =IF(AE28="","",LOOKUP(AE28,zdroj!$E$3:$E$700,zdroj!$H$3:$H$700)) ->  | AI28: =+IF(AE28="","",LOOKUP(AE28,zdroj!$E$3:$E$700,zdroj!$I$3:$I$700)) -> 
A29: =IF(C29="","",LOOKUP(C29,zdroj!$E$3:$E$201,zdroj!$F$3:$F$201)) ->  | D29: =IF(C29="","",LOOKUP(C29,zdroj!$E$3:$E$700,zdroj!$L$3:$L$700)) ->  | E29: =IF(C29="","",LOOKUP(C29,zdroj!$E$3:$E$700,zdroj!$G$3:$G$700)) ->  | F29: =IF(C29="","",LOOKUP(C29,zdroj!$E$3:$E$700,zdroj!$H$3:$H$700)) ->  | G29: =+IF(C29="","",LOOKUP(C29,zdroj!$E$3:$E$700,zdroj!$I$3:$I$700)) ->  | H29: =IF(J29="","",LOOKUP(J29,zdroj!$E$3:$E$700,zdroj!$F$3:$F$700)) ->  | K29: =IF(J29="","",LOOKUP(J29,zdroj!$E$3:$E$700,zdroj!$L$3:$L$700)) ->  | L29: =IF(J29="","",LOOKUP(J29,zdroj!$E$3:$E$700,zdroj!$G$3:$G$700)) ->  | M29: =IF(J29="","",LOOKUP(J29,zdroj!$E$3:$E$700,zdroj!$H$3:$H$700)) ->  | N29: =+IF(J29="","",LOOKUP(J29,zdroj!$E$3:$E$700,zdroj!$I$3:$I$700)) ->  | O29: =IF(Q29="","",LOOKUP(Q29,zdroj!$E$3:$E$700,zdroj!$F$3:$F$700)) ->  | R29: =IF(Q29="","",LOOKUP(Q29,zdroj!$E$3:$E$700,zdroj!$L$3:$L$700)) ->  | S29: =IF(Q29="","",LOOKUP(Q29,zdroj!$E$3:$E$700,zdroj!$G$3:$G$700)) ->  | T29: =IF(Q29="","",LOOKUP(Q29,zdroj!$E$3:$E$700,zdroj!$H$3:$H$700)) ->  | U29: =+IF(Q29="","",LOOKUP(Q29,zdroj!$E$3:$E$700,zdroj!$I$3:$I$700)) ->  | V29: =IF(X29="","",LOOKUP(X29,zdroj!$E$3:$E$700,zdroj!$F$3:$F$700)) ->  | Y29: =IF(X29="","",LOOKUP(X29,zdroj!$E$3:$E$700,zdroj!$L$3:$L$700)) ->  | Z29: =IF(X29="","",LOOKUP(X29,zdroj!$E$3:$E$700,zdroj!$G$3:$G$700)) ->  | AA29: =IF(X29="","",LOOKUP(X29,zdroj!$E$3:$E$700,zdroj!$H$3:$H$700)) ->  | AB29: =+IF(X29="","",LOOKUP(X29,zdroj!$E$3:$E$700,zdroj!$I$3:$I$700)) ->  | AC29: =IF(AE29="","",LOOKUP(AE29,zdroj!$E$3:$E$700,zdroj!$F$3:$F$700)) ->  | AF29: =IF(AE29="","",LOOKUP(AE29,zdroj!$E$3:$E$700,zdroj!$L$3:$L$700)) ->  | AG29: =IF(AE29="","",LOOKUP(AE29,zdroj!$E$3:$E$700,zdroj!$G$3:$G$700)) ->  | AH29: =IF(AE29="","",LOOKUP(AE29,zdroj!$E$3:$E$700,zdroj!$H$3:$H$700)) ->  | AI29: =+IF(AE29="","",LOOKUP(AE29,zdroj!$E$3:$E$700,zdroj!$I$3:$I$700)) -> 
A30: =IF(C30="","",LOOKUP(C30,zdroj!$E$3:$E$201,zdroj!$F$3:$F$201)) ->  | D30: =IF(C30="","",LOOKUP(C30,zdroj!$E$3:$E$700,zdroj!$L$3:$L$700)) ->  | E30: =IF(C30="","",LOOKUP(C30,zdroj!$E$3:$E$700,zdroj!$G$3:$G$700)) ->  | F30: =IF(C30="","",LOOKUP(C30,zdroj!$E$3:$E$700,zdroj!$H$3:$H$700)) ->  | G30: =+IF(C30="","",LOOKUP(C30,zdroj!$E$3:$E$700,zdroj!$I$3:$I$700)) ->  | H30: =IF(J30="","",LOOKUP(J30,zdroj!$E$3:$E$700,zdroj!$F$3:$F$700)) ->  | K30: =IF(J30="","",LOOKUP(J30,zdroj!$E$3:$E$700,zdroj!$L$3:$L$700)) ->  | L30: =IF(J30="","",LOOKUP(J30,zdroj!$E$3:$E$700,zdroj!$G$3:$G$700)) ->  | M30: =IF(J30="","",LOOKUP(J30,zdroj!$E$3:$E$700,zdroj!$H$3:$H$700)) ->  | N30: =+IF(J30="","",LOOKUP(J30,zdroj!$E$3:$E$700,zdroj!$I$3:$I$700)) ->  | O30: =IF(Q30="","",LOOKUP(Q30,zdroj!$E$3:$E$700,zdroj!$F$3:$F$700)) ->  | R30: =IF(Q30="","",LOOKUP(Q30,zdroj!$E$3:$E$700,zdroj!$L$3:$L$700)) ->  | S30: =IF(Q30="","",LOOKUP(Q30,zdroj!$E$3:$E$700,zdroj!$G$3:$G$700)) ->  | T30: =IF(Q30="","",LOOKUP(Q30,zdroj!$E$3:$E$700,zdroj!$H$3:$H$700)) ->  | U30: =+IF(Q30="","",LOOKUP(Q30,zdroj!$E$3:$E$700,zdroj!$I$3:$I$700)) ->  | V30: =IF(X30="","",LOOKUP(X30,zdroj!$E$3:$E$700,zdroj!$F$3:$F$700)) ->  | Y30: =IF(X30="","",LOOKUP(X30,zdroj!$E$3:$E$700,zdroj!$L$3:$L$700)) ->  | Z30: =IF(X30="","",LOOKUP(X30,zdroj!$E$3:$E$700,zdroj!$G$3:$G$700)) ->  | AA30: =IF(X30="","",LOOKUP(X30,zdroj!$E$3:$E$700,zdroj!$H$3:$H$700)) ->  | AB30: =+IF(X30="","",LOOKUP(X30,zdroj!$E$3:$E$700,zdroj!$I$3:$I$700)) ->  | AC30: =IF(AE30="","",LOOKUP(AE30,zdroj!$E$3:$E$700,zdroj!$F$3:$F$700)) ->  | AF30: =IF(AE30="","",LOOKUP(AE30,zdroj!$E$3:$E$700,zdroj!$L$3:$L$700)) ->  | AG30: =IF(AE30="","",LOOKUP(AE30,zdroj!$E$3:$E$700,zdroj!$G$3:$G$700)) ->  | AH30: =IF(AE30="","",LOOKUP(AE30,zdroj!$E$3:$E$700,zdroj!$H$3:$H$700)) ->  | AI30: =+IF(AE30="","",LOOKUP(AE30,zdroj!$E$3:$E$700,zdroj!$I$3:$I$700)) -> 
A31: =IF(C31="","",LOOKUP(C31,zdroj!$E$3:$E$201,zdroj!$F$3:$F$201)) ->  | D31: =IF(C31="","",LOOKUP(C31,zdroj!$E$3:$E$700,zdroj!$L$3:$L$700)) ->  | E31: =IF(C31="","",LOOKUP(C31,zdroj!$E$3:$E$700,zdroj!$G$3:$G$700)) ->  | F31: =IF(C31="","",LOOKUP(C31,zdroj!$E$3:$E$700,zdroj!$H$3:$H$700)) ->  | G31: =+IF(C31="","",LOOKUP(C31,zdroj!$E$3:$E$700,zdroj!$I$3:$I$700)) ->  | H31: =IF(J31="","",LOOKUP(J31,zdroj!$E$3:$E$700,zdroj!$F$3:$F$700)) ->  | K31: =IF(J31="","",LOOKUP(J31,zdroj!$E$3:$E$700,zdroj!$L$3:$L$700)) ->  | L31: =IF(J31="","",LOOKUP(J31,zdroj!$E$3:$E$700,zdroj!$G$3:$G$700)) ->  | M31: =IF(J31="","",LOOKUP(J31,zdroj!$E$3:$E$700,zdroj!$H$3:$H$700)) ->  | N31: =+IF(J31="","",LOOKUP(J31,zdroj!$E$3:$E$700,zdroj!$I$3:$I$700)) ->  | O31: =IF(Q31="","",LOOKUP(Q31,zdroj!$E$3:$E$700,zdroj!$F$3:$F$700)) ->  | R31: =IF(Q31="","",LOOKUP(Q31,zdroj!$E$3:$E$700,zdroj!$L$3:$L$700)) ->  | S31: =IF(Q31="","",LOOKUP(Q31,zdroj!$E$3:$E$700,zdroj!$G$3:$G$700)) ->  | T31: =IF(Q31="","",LOOKUP(Q31,zdroj!$E$3:$E$700,zdroj!$H$3:$H$700)) ->  | U31: =+IF(Q31="","",LOOKUP(Q31,zdroj!$E$3:$E$700,zdroj!$I$3:$I$700)) ->  | V31: =IF(X31="","",LOOKUP(X31,zdroj!$E$3:$E$700,zdroj!$F$3:$F$700)) ->  | Y31: =IF(X31="","",LOOKUP(X31,zdroj!$E$3:$E$700,zdroj!$L$3:$L$700)) ->  | Z31: =IF(X31="","",LOOKUP(X31,zdroj!$E$3:$E$700,zdroj!$G$3:$G$700)) ->  | AA31: =IF(X31="","",LOOKUP(X31,zdroj!$E$3:$E$700,zdroj!$H$3:$H$700)) ->  | AB31: =+IF(X31="","",LOOKUP(X31,zdroj!$E$3:$E$700,zdroj!$I$3:$I$700)) ->  | AC31: =IF(AE31="","",LOOKUP(AE31,zdroj!$E$3:$E$700,zdroj!$F$3:$F$700)) ->  | AF31: =IF(AE31="","",LOOKUP(AE31,zdroj!$E$3:$E$700,zdroj!$L$3:$L$700)) ->  | AG31: =IF(AE31="","",LOOKUP(AE31,zdroj!$E$3:$E$700,zdroj!$G$3:$G$700)) ->  | AH31: =IF(AE31="","",LOOKUP(AE31,zdroj!$E$3:$E$700,zdroj!$H$3:$H$700)) ->  | AI31: =+IF(AE31="","",LOOKUP(AE31,zdroj!$E$3:$E$700,zdroj!$I$3:$I$700)) -> 
A32: =IF(C32="","",LOOKUP(C32,zdroj!$E$3:$E$201,zdroj!$F$3:$F$201)) ->  | D32: =IF(C32="","",LOOKUP(C32,zdroj!$E$3:$E$700,zdroj!$L$3:$L$700)) ->  | E32: =IF(C32="","",LOOKUP(C32,zdroj!$E$3:$E$700,zdroj!$G$3:$G$700)) ->  | F32: =IF(C32="","",LOOKUP(C32,zdroj!$E$3:$E$700,zdroj!$H$3:$H$700)) ->  | G32: =+IF(C32="","",LOOKUP(C32,zdroj!$E$3:$E$700,zdroj!$I$3:$I$700)) ->  | H32: =IF(J32="","",LOOKUP(J32,zdroj!$E$3:$E$700,zdroj!$F$3:$F$700)) ->  | K32: =IF(J32="","",LOOKUP(J32,zdroj!$E$3:$E$700,zdroj!$L$3:$L$700)) ->  | L32: =IF(J32="","",LOOKUP(J32,zdroj!$E$3:$E$700,zdroj!$G$3:$G$700)) ->  | M32: =IF(J32="","",LOOKUP(J32,zdroj!$E$3:$E$700,zdroj!$H$3:$H$700)) ->  | N32: =+IF(J32="","",LOOKUP(J32,zdroj!$E$3:$E$700,zdroj!$I$3:$I$700)) ->  | O32: =IF(Q32="","",LOOKUP(Q32,zdroj!$E$3:$E$700,zdroj!$F$3:$F$700)) ->  | R32: =IF(Q32="","",LOOKUP(Q32,zdroj!$E$3:$E$700,zdroj!$L$3:$L$700)) ->  | S32: =IF(Q32="","",LOOKUP(Q32,zdroj!$E$3:$E$700,zdroj!$G$3:$G$700)) ->  | T32: =IF(Q32="","",LOOKUP(Q32,zdroj!$E$3:$E$700,zdroj!$H$3:$H$700)) ->  | U32: =+IF(Q32="","",LOOKUP(Q32,zdroj!$E$3:$E$700,zdroj!$I$3:$I$700)) ->  | V32: =IF(X32="","",LOOKUP(X32,zdroj!$E$3:$E$700,zdroj!$F$3:$F$700)) ->  | Y32: =IF(X32="","",LOOKUP(X32,zdroj!$E$3:$E$700,zdroj!$L$3:$L$700)) ->  | Z32: =IF(X32="","",LOOKUP(X32,zdroj!$E$3:$E$700,zdroj!$G$3:$G$700)) ->  | AA32: =IF(X32="","",LOOKUP(X32,zdroj!$E$3:$E$700,zdroj!$H$3:$H$700)) ->  | AB32: =+IF(X32="","",LOOKUP(X32,zdroj!$E$3:$E$700,zdroj!$I$3:$I$700)) ->  | AC32: =IF(AE32="","",LOOKUP(AE32,zdroj!$E$3:$E$700,zdroj!$F$3:$F$700)) ->  | AF32: =IF(AE32="","",LOOKUP(AE32,zdroj!$E$3:$E$700,zdroj!$L$3:$L$700)) ->  | AG32: =IF(AE32="","",LOOKUP(AE32,zdroj!$E$3:$E$700,zdroj!$G$3:$G$700)) ->  | AH32: =IF(AE32="","",LOOKUP(AE32,zdroj!$E$3:$E$700,zdroj!$H$3:$H$700)) ->  | AI32: =+IF(AE32="","",LOOKUP(AE32,zdroj!$E$3:$E$700,zdroj!$I$3:$I$700)) -> 
A33: =IF(C33="","",LOOKUP(C33,zdroj!$E$3:$E$201,zdroj!$F$3:$F$201)) ->  | D33: =IF(C33="","",LOOKUP(C33,zdroj!$E$3:$E$700,zdroj!$L$3:$L$700)) ->  | E33: =IF(C33="","",LOOKUP(C33,zdroj!$E$3:$E$700,zdroj!$G$3:$G$700)) ->  | F33: =IF(C33="","",LOOKUP(C33,zdroj!$E$3:$E$700,zdroj!$H$3:$H$700)) ->  | G33: =+IF(C33="","",LOOKUP(C33,zdroj!$E$3:$E$700,zdroj!$I$3:$I$700)) ->  | H33: =IF(J33="","",LOOKUP(J33,zdroj!$E$3:$E$700,zdroj!$F$3:$F$700)) ->  | K33: =IF(J33="","",LOOKUP(J33,zdroj!$E$3:$E$700,zdroj!$L$3:$L$700)) ->  | L33: =IF(J33="","",LOOKUP(J33,zdroj!$E$3:$E$700,zdroj!$G$3:$G$700)) ->  | M33: =IF(J33="","",LOOKUP(J33,zdroj!$E$3:$E$700,zdroj!$H$3:$H$700)) ->  | N33: =+IF(J33="","",LOOKUP(J33,zdroj!$E$3:$E$700,zdroj!$I$3:$I$700)) ->  | O33: =IF(Q33="","",LOOKUP(Q33,zdroj!$E$3:$E$700,zdroj!$F$3:$F$700)) ->  | R33: =IF(Q33="","",LOOKUP(Q33,zdroj!$E$3:$E$700,zdroj!$L$3:$L$700)) ->  | S33: =IF(Q33="","",LOOKUP(Q33,zdroj!$E$3:$E$700,zdroj!$G$3:$G$700)) ->  | T33: =IF(Q33="","",LOOKUP(Q33,zdroj!$E$3:$E$700,zdroj!$H$3:$H$700)) ->  | U33: =+IF(Q33="","",LOOKUP(Q33,zdroj!$E$3:$E$700,zdroj!$I$3:$I$700)) ->  | V33: =IF(X33="","",LOOKUP(X33,zdroj!$E$3:$E$700,zdroj!$F$3:$F$700)) ->  | Y33: =IF(X33="","",LOOKUP(X33,zdroj!$E$3:$E$700,zdroj!$L$3:$L$700)) ->  | Z33: =IF(X33="","",LOOKUP(X33,zdroj!$E$3:$E$700,zdroj!$G$3:$G$700)) ->  | AA33: =IF(X33="","",LOOKUP(X33,zdroj!$E$3:$E$700,zdroj!$H$3:$H$700)) ->  | AB33: =+IF(X33="","",LOOKUP(X33,zdroj!$E$3:$E$700,zdroj!$I$3:$I$700)) ->  | AC33: =IF(AE33="","",LOOKUP(AE33,zdroj!$E$3:$E$700,zdroj!$F$3:$F$700)) ->  | AF33: =IF(AE33="","",LOOKUP(AE33,zdroj!$E$3:$E$700,zdroj!$L$3:$L$700)) ->  | AG33: =IF(AE33="","",LOOKUP(AE33,zdroj!$E$3:$E$700,zdroj!$G$3:$G$700)) ->  | AH33: =IF(AE33="","",LOOKUP(AE33,zdroj!$E$3:$E$700,zdroj!$H$3:$H$700)) ->  | AI33: =+IF(AE33="","",LOOKUP(AE33,zdroj!$E$3:$E$700,zdroj!$I$3:$I$700)) -> 
A34: =IF(C34="","",LOOKUP(C34,zdroj!$E$3:$E$201,zdroj!$F$3:$F$201)) ->  | D34: =IF(C34="","",LOOKUP(C34,zdroj!$E$3:$E$700,zdroj!$L$3:$L$700)) ->  | E34: =IF(C34="","",LOOKUP(C34,zdroj!$E$3:$E$700,zdroj!$G$3:$G$700)) ->  | F34: =IF(C34="","",LOOKUP(C34,zdroj!$E$3:$E$700,zdroj!$H$3:$H$700)) ->  | G34: =+IF(C34="","",LOOKUP(C34,zdroj!$E$3:$E$700,zdroj!$I$3:$I$700)) ->  | H34: =IF(J34="","",LOOKUP(J34,zdroj!$E$3:$E$700,zdroj!$F$3:$F$700)) ->  | K34: =IF(J34="","",LOOKUP(J34,zdroj!$E$3:$E$700,zdroj!$L$3:$L$700)) ->  | L34: =IF(J34="","",LOOKUP(J34,zdroj!$E$3:$E$700,zdroj!$G$3:$G$700)) ->  | M34: =IF(J34="","",LOOKUP(J34,zdroj!$E$3:$E$700,zdroj!$H$3:$H$700)) ->  | N34: =+IF(J34="","",LOOKUP(J34,zdroj!$E$3:$E$700,zdroj!$I$3:$I$700)) ->  | O34: =IF(Q34="","",LOOKUP(Q34,zdroj!$E$3:$E$700,zdroj!$F$3:$F$700)) ->  | R34: =IF(Q34="","",LOOKUP(Q34,zdroj!$E$3:$E$700,zdroj!$L$3:$L$700)) ->  | S34: =IF(Q34="","",LOOKUP(Q34,zdroj!$E$3:$E$700,zdroj!$G$3:$G$700)) ->  | T34: =IF(Q34="","",LOOKUP(Q34,zdroj!$E$3:$E$700,zdroj!$H$3:$H$700)) ->  | U34: =+IF(Q34="","",LOOKUP(Q34,zdroj!$E$3:$E$700,zdroj!$I$3:$I$700)) ->  | V34: =IF(X34="","",LOOKUP(X34,zdroj!$E$3:$E$700,zdroj!$F$3:$F$700)) ->  | Y34: =IF(X34="","",LOOKUP(X34,zdroj!$E$3:$E$700,zdroj!$L$3:$L$700)) ->  | Z34: =IF(X34="","",LOOKUP(X34,zdroj!$E$3:$E$700,zdroj!$G$3:$G$700)) ->  | AA34: =IF(X34="","",LOOKUP(X34,zdroj!$E$3:$E$700,zdroj!$H$3:$H$700)) ->  | AB34: =+IF(X34="","",LOOKUP(X34,zdroj!$E$3:$E$700,zdroj!$I$3:$I$700)) ->  | AC34: =IF(AE34="","",LOOKUP(AE34,zdroj!$E$3:$E$700,zdroj!$F$3:$F$700)) ->  | AF34: =IF(AE34="","",LOOKUP(AE34,zdroj!$E$3:$E$700,zdroj!$L$3:$L$700)) ->  | AG34: =IF(AE34="","",LOOKUP(AE34,zdroj!$E$3:$E$700,zdroj!$G$3:$G$700)) ->  | AH34: =IF(AE34="","",LOOKUP(AE34,zdroj!$E$3:$E$700,zdroj!$H$3:$H$700)) ->  | AI34: =+IF(AE34="","",LOOKUP(AE34,zdroj!$E$3:$E$700,zdroj!$I$3:$I$700)) -> 
A35: =IF(C35="","",LOOKUP(C35,zdroj!$E$3:$E$201,zdroj!$F$3:$F$201)) ->  | D35: =IF(C35="","",LOOKUP(C35,zdroj!$E$3:$E$700,zdroj!$L$3:$L$700)) ->  | E35: =IF(C35="","",LOOKUP(C35,zdroj!$E$3:$E$700,zdroj!$G$3:$G$700)) ->  | F35: =IF(C35="","",LOOKUP(C35,zdroj!$E$3:$E$700,zdroj!$H$3:$H$700)) ->  | G35: =+IF(C35="","",LOOKUP(C35,zdroj!$E$3:$E$700,zdroj!$I$3:$I$700)) ->  | H35: =IF(J35="","",LOOKUP(J35,zdroj!$E$3:$E$700,zdroj!$F$3:$F$700)) ->  | K35: =IF(J35="","",LOOKUP(J35,zdroj!$E$3:$E$700,zdroj!$L$3:$L$700)) ->  | L35: =IF(J35="","",LOOKUP(J35,zdroj!$E$3:$E$700,zdroj!$G$3:$G$700)) ->  | M35: =IF(J35="","",LOOKUP(J35,zdroj!$E$3:$E$700,zdroj!$H$3:$H$700)) ->  | N35: =+IF(J35="","",LOOKUP(J35,zdroj!$E$3:$E$700,zdroj!$I$3:$I$700)) ->  | O35: =IF(Q35="","",LOOKUP(Q35,zdroj!$E$3:$E$700,zdroj!$F$3:$F$700)) ->  | R35: =IF(Q35="","",LOOKUP(Q35,zdroj!$E$3:$E$700,zdroj!$L$3:$L$700)) ->  | S35: =IF(Q35="","",LOOKUP(Q35,zdroj!$E$3:$E$700,zdroj!$G$3:$G$700)) ->  | T35: =IF(Q35="","",LOOKUP(Q35,zdroj!$E$3:$E$700,zdroj!$H$3:$H$700)) ->  | U35: =+IF(Q35="","",LOOKUP(Q35,zdroj!$E$3:$E$700,zdroj!$I$3:$I$700)) ->  | V35: =IF(X35="","",LOOKUP(X35,zdroj!$E$3:$E$700,zdroj!$F$3:$F$700)) ->  | Y35: =IF(X35="","",LOOKUP(X35,zdroj!$E$3:$E$700,zdroj!$L$3:$L$700)) ->  | Z35: =IF(X35="","",LOOKUP(X35,zdroj!$E$3:$E$700,zdroj!$G$3:$G$700)) ->  | AA35: =IF(X35="","",LOOKUP(X35,zdroj!$E$3:$E$700,zdroj!$H$3:$H$700)) ->  | AB35: =+IF(X35="","",LOOKUP(X35,zdroj!$E$3:$E$700,zdroj!$I$3:$I$700)) ->  | AC35: =IF(AE35="","",LOOKUP(AE35,zdroj!$E$3:$E$700,zdroj!$F$3:$F$700)) ->  | AF35: =IF(AE35="","",LOOKUP(AE35,zdroj!$E$3:$E$700,zdroj!$L$3:$L$700)) ->  | AG35: =IF(AE35="","",LOOKUP(AE35,zdroj!$E$3:$E$700,zdroj!$G$3:$G$700)) ->  | AH35: =IF(AE35="","",LOOKUP(AE35,zdroj!$E$3:$E$700,zdroj!$H$3:$H$700)) ->  | AI35: =+IF(AE35="","",LOOKUP(AE35,zdroj!$E$3:$E$700,zdroj!$I$3:$I$700)) -> 
A36: TÝDEN | B36: =+AI1 -> 5
A37: =+A3 -> 44958 | E37: pondělí | G37: =+AI3+3 -> 2023-01-09 | L37: Úterý | N37: =+G37+1 -> 2023-01-10 | O37: Středa | U37: =+N37+1 -> 2023-01-11 | V37: Čtvrtek | AB37: =+U37+1 -> 2023-01-12 | AC37: Pátek | AI37: =+AB37+1 -> 2023-01-13
A38: =+CONCATENATE(E37," ",TEXT(G37,"DD.MM.RR")) -> pondělí 09.01.23 | H38: =+CONCATENATE(L37," ",TEXT(N37,"DD.MM.RR")) -> Úterý 10.01.23 | O38: =+CONCATENATE(O37," ",TEXT(U37,"DD.MM.RR")) -> Středa 11.01.23 | V38: =+CONCATENATE(V37," ",TEXT(AB37,"DD.MM.RR")) -> Čtvrtek 12.01.23 | AC38: =+CONCATENATE(AC37," ",TEXT(AI37,"DD.MM.RR")) -> Pátek 13.01.23
A39: hodina | B39: =+LOOKUP(G37,DataFIX!$F$3:$F$41,DataFIX!$G$3:$G$41) -> 210 | C39: =+COUNTIFS(zdroj!$B$3:$B$700,Screen!G37) -> 16 | D39: =+SUM(D40:D69) -> 4 | E39: Zákazník | F39: Dopravce | G39: Status | I39: =+LOOKUP(N37,DataFIX!$F$3:$F$41,DataFIX!$G$3:$G$41) -> 240 | J39: =+COUNTIFS(zdroj!$B$3:$B$700,Screen!N37) -> 16 | K39: =+SUM(K40:K69) -> 0 | L39: Zákazník | M39: Dopravce | N39: Status | O39: hodina | P39: =+LOOKUP(U37,DataFIX!$F$3:$F$41,DataFIX!$G$3:$G$41) -> 270 | Q39: =+COUNTIFS(zdroj!$B$3:$B$700,Screen!U37) -> 11 | R39: =+SUM(R40:R69) -> 0 | S39: Zákazník | T39: Dopravce | U39: Status | V39: hodina | W39: =+LOOKUP(AB37,DataFIX!$F$3:$F$41,DataFIX!$G$3:$G$41) -> 300 | X39: =+COUNTIFS(zdroj!$B$3:$B$700,Screen!AB37) -> 19 | Y39: =+SUM(Y40:Y69) -> 51 | Z39: Zákazník | AA39: Dopravce | AB39: Status | AC39: hodina | AD39: =+LOOKUP(AI37,DataFIX!$F$3:$F$41,DataFIX!$G$3:$G$41) -> 330 | AE39: =+COUNTIFS(zdroj!$B$3:$B$700,Screen!AI37) -> 16 | AF39: =+SUM(AF40:AF69) -> 34 | AG39: Zákazník | AH39: Dopravce | AI39: Status
A40: =IF(C40="","",LOOKUP(C40,zdroj!$E$3:$E$700,zdroj!$F$3:$F$700)) -> 06:00:00 | B40: =+IF(C$39="","",IF(C39=0,"",1)) -> 1 | C40: =+IF(B40="","",B40+B$39) -> 211 | D40: =IF(C40="","",LOOKUP(C40,zdroj!$E$3:$E$700,zdroj!$L$3:$L$700)) -> 0 | E40: =IF(C40="","",LOOKUP(C40,zdroj!$E$3:$E$700,zdroj!$G$3:$G$700)) -> DF | F40: =IF(C40="","",LOOKUP(C40,zdroj!$E$3:$E$700,zdroj!$H$3:$H$700)) -> Hroza | G40: =+IF(C40="","",LOOKUP(C40,zdroj!$E$3:$E$700,zdroj!$I$3:$I$700)) -> Dokončeno | H40: =IF(J40="","",LOOKUP(J40,zdroj!$E$3:$E$700,zdroj!$F$3:$F$700)) -> 06:00:00 | I40: =+IF(J$39="","",IF(J39=0,"",1)) -> 1 | J40: =+IF(I40="","",I40+I$39) -> 241 | K40: =IF(J40="","",LOOKUP(J40,zdroj!$E$3:$E$700,zdroj!$L$3:$L$700)) -> 0 | L40: =IF(J40="","",LOOKUP(J40,zdroj!$E$3:$E$700,zdroj!$G$3:$G$700)) -> DF | M40: =IF(J40="","",LOOKUP(J40,zdroj!$E$3:$E$700,zdroj!$H$3:$H$700)) -> Hroza | N40: =+IF(J40="","",LOOKUP(J40,zdroj!$E$3:$E$700,zdroj!$I$3:$I$700)) -> Dokončeno | O40: =IF(Q40="","",LOOKUP(Q40,zdroj!$E$3:$E$700,zdroj!$F$3:$F$700)) -> 06:00:00 | P40: =+IF(Q$39="","",IF(Q39=0,"",1)) -> 1 | Q40: =+IF(P40="","",P40+P$39) -> 271 | R40: =IF(Q40="","",LOOKUP(Q40,zdroj!$E$3:$E$700,zdroj!$L$3:$L$700)) -> 0 | S40: =IF(Q40="","",LOOKUP(Q40,zdroj!$E$3:$E$700,zdroj!$G$3:$G$700)) -> DF | T40: =IF(Q40="","",LOOKUP(Q40,zdroj!$E$3:$E$700,zdroj!$H$3:$H$700)) -> Hroza | U40: =+IF(Q40="","",LOOKUP(Q40,zdroj!$E$3:$E$700,zdroj!$I$3:$I$700)) -> Dokončeno | V40: =IF(X40="","",LOOKUP(X40,zdroj!$E$3:$E$700,zdroj!$F$3:$F$700)) -> 06:00:00 | W40: =+IF(X$39="","",IF(X39=0,"",1)) -> 1 | X40: =+IF(W40="","",W40+W$39) -> 301 | Y40: =IF(X40="","",LOOKUP(X40,zdroj!$E$3:$E$700,zdroj!$L$3:$L$700)) -> 2 | Z40: =IF(X40="","",LOOKUP(X40,zdroj!$E$3:$E$700,zdroj!$G$3:$G$700)) -> Fagron | AA40: =IF(X40="","",LOOKUP(X40,zdroj!$E$3:$E$700,zdroj!$H$3:$H$700)) -> Tezet | AB40: =+IF(X40="","",LOOKUP(X40,zdroj!$E$3:$E$700,zdroj!$I$3:$I$700)) -> Dokončeno | AC40: =IF(AE40="","",LOOKUP(AE40,zdroj!$E$3:$E$700,zdroj!$F$3:$F$700)) -> 06:00:00 | AD40: =+IF(AE$39="","",IF(AE39=0,"",1)) -> 1 | AE40: =+IF(AD40="","",AD40+AD$39) -> 331 | AF40: =IF(AE40="","",LOOKUP(AE40,zdroj!$E$3:$E$700,zdroj!$L$3:$L$700)) -> 3 | AG40: =IF(AE40="","",LOOKUP(AE40,zdroj!$E$3:$E$700,zdroj!$G$3:$G$700)) -> VYPL | AH40: =IF(AE40="","",LOOKUP(AE40,zdroj!$E$3:$E$700,zdroj!$H$3:$H$700)) -> Hroza | AI40: =+IF(AE40="","",LOOKUP(AE40,zdroj!$E$3:$E$700,zdroj!$I$3:$I$700)) -> Dokončeno
A41: =IF(C41="","",LOOKUP(C41,zdroj!$E$3:$E$700,zdroj!$F$3:$F$700)) -> 06:00:00 | B41: =+IF(C$39>B40,B40+1,"") -> 2 | C41: 212 | D41: =IF(C41="","",LOOKUP(C41,zdroj!$E$3:$E$700,zdroj!$L$3:$L$700)) -> 0 | E41: =IF(C41="","",LOOKUP(C41,zdroj!$E$3:$E$700,zdroj!$G$3:$G$700)) -> DF | F41: =IF(C41="","",LOOKUP(C41,zdroj!$E$3:$E$700,zdroj!$H$3:$H$700)) -> Hroza | G41: =+IF(C41="","",LOOKUP(C41,zdroj!$E$3:$E$700,zdroj!$I$3:$I$700)) -> Dokončeno | H41: =IF(J41="","",LOOKUP(J41,zdroj!$E$3:$E$700,zdroj!$F$3:$F$700)) -> 06:00:00 | I41: =+IF(J$39>I40,I40+1,"") -> 2 | J41: =+IF(I41="","",I41+I$39) -> 242 | K41: =IF(J41="","",LOOKUP(J41,zdroj!$E$3:$E$700,zdroj!$L$3:$L$700)) -> 0 | L41: =IF(J41="","",LOOKUP(J41,zdroj!$E$3:$E$700,zdroj!$G$3:$G$700)) -> DF | M41: =IF(J41="","",LOOKUP(J41,zdroj!$E$3:$E$700,zdroj!$H$3:$H$700)) -> Hroza | N41: =+IF(J41="","",LOOKUP(J41,zdroj!$E$3:$E$700,zdroj!$I$3:$I$700)) -> Dokončeno | O41: =IF(Q41="","",LOOKUP(Q41,zdroj!$E$3:$E$700,zdroj!$F$3:$F$700)) -> 06:00:00 | P41: =+IF(Q$39>P40,P40+1,"") -> 2 | Q41: =+IF(P41="","",P41+P$39) -> 272 | R41: =IF(Q41="","",LOOKUP(Q41,zdroj!$E$3:$E$700,zdroj!$L$3:$L$700)) -> 0 | S41: =IF(Q41="","",LOOKUP(Q41,zdroj!$E$3:$E$700,zdroj!$G$3:$G$700)) -> DF | T41: =IF(Q41="","",LOOKUP(Q41,zdroj!$E$3:$E$700,zdroj!$H$3:$H$700)) -> Hroza | U41: =+IF(Q41="","",LOOKUP(Q41,zdroj!$E$3:$E$700,zdroj!$I$3:$I$700)) -> Dokončeno | V41: =IF(X41="","",LOOKUP(X41,zdroj!$E$3:$E$700,zdroj!$F$3:$F$700)) -> 06:00:00 | W41: =+IF(X$39>W40,W40+1,"") -> 2 | X41: =+IF(W41="","",W41+W$39) -> 302 | Y41: =IF(X41="","",LOOKUP(X41,zdroj!$E$3:$E$700,zdroj!$L$3:$L$700)) -> 2 | Z41: =IF(X41="","",LOOKUP(X41,zdroj!$E$3:$E$700,zdroj!$G$3:$G$700)) -> DF | AA41: =IF(X41="","",LOOKUP(X41,zdroj!$E$3:$E$700,zdroj!$H$3:$H$700)) -> Hroza | AB41: =+IF(X41="","",LOOKUP(X41,zdroj!$E$3:$E$700,zdroj!$I$3:$I$700)) -> Dokončeno | AC41: =IF(AE41="","",LOOKUP(AE41,zdroj!$E$3:$E$700,zdroj!$F$3:$F$700)) -> 06:00:00 | AD41: =+IF(AE$39>AD40,AD40+1,"") -> 2 | AE41: =+IF(AD41="","",AD41+AD$39) -> 332 | AF41: =IF(AE41="","",LOOKUP(AE41,zdroj!$E$3:$E$700,zdroj!$L$3:$L$700)) -> 2 | AG41: =IF(AE41="","",LOOKUP(AE41,zdroj!$E$3:$E$700,zdroj!$G$3:$G$700)) -> DF | AH41: =IF(AE41="","",LOOKUP(AE41,zdroj!$E$3:$E$700,zdroj!$H$3:$H$700)) -> Hroza | AI41: =+IF(AE41="","",LOOKUP(AE41,zdroj!$E$3:$E$700,zdroj!$I$3:$I$700)) -> Dokončeno
A42: =IF(C42="","",LOOKUP(C42,zdroj!$E$3:$E$700,zdroj!$F$3:$F$700)) -> 06:04:00 | B42: =+IF(C$39>B41,B41+1,"") -> 3 | C42: 213 | D42: =IF(C42="","",LOOKUP(C42,zdroj!$E$3:$E$700,zdroj!$L$3:$L$700)) -> 0 | E42: =IF(C42="","",LOOKUP(C42,zdroj!$E$3:$E$700,zdroj!$G$3:$G$700)) -> Rina | F42: =IF(C42="","",LOOKUP(C42,zdroj!$E$3:$E$700,zdroj!$H$3:$H$700)) -> TEZET | G42: =+IF(C42="","",LOOKUP(C42,zdroj!$E$3:$E$700,zdroj!$I$3:$I$700)) -> Dokončeno | H42: =IF(J42="","",LOOKUP(J42,zdroj!$E$3:$E$700,zdroj!$F$3:$F$700)) -> 06:05:00 | I42: =+IF(J$39>I41,I41+1,"") -> 3 | J42: 243 | K42: =IF(J42="","",LOOKUP(J42,zdroj!$E$3:$E$700,zdroj!$L$3:$L$700)) -> 0 | L42: =IF(J42="","",LOOKUP(J42,zdroj!$E$3:$E$700,zdroj!$G$3:$G$700)) -> Everstar | M42: =IF(J42="","",LOOKUP(J42,zdroj!$E$3:$E$700,zdroj!$H$3:$H$700)) -> TEZET | N42: =+IF(J42="","",LOOKUP(J42,zdroj!$E$3:$E$700,zdroj!$I$3:$I$700)) -> Dokončeno | O42: =IF(Q42="","",LOOKUP(Q42,zdroj!$E$3:$E$700,zdroj!$F$3:$F$700)) -> 06:05:00 | P42: =+IF(Q$39>P41,P41+1,"") -> 3 | Q42: 273 | R42: =IF(Q42="","",LOOKUP(Q42,zdroj!$E$3:$E$700,zdroj!$L$3:$L$700)) -> 0 | S42: =IF(Q42="","",LOOKUP(Q42,zdroj!$E$3:$E$700,zdroj!$G$3:$G$700)) -> Cheport | T42: =IF(Q42="","",LOOKUP(Q42,zdroj!$E$3:$E$700,zdroj!$H$3:$H$700)) -> Tezet | U42: =+IF(Q42="","",LOOKUP(Q42,zdroj!$E$3:$E$700,zdroj!$I$3:$I$700)) -> Dokončeno | V42: =IF(X42="","",LOOKUP(X42,zdroj!$E$3:$E$700,zdroj!$F$3:$F$700)) -> 06:00:00 | W42: =+IF(X$39>W41,W41+1,"") -> 3 | X42: 303 | Y42: =IF(X42="","",LOOKUP(X42,zdroj!$E$3:$E$700,zdroj!$L$3:$L$700)) -> 1 | Z42: =IF(X42="","",LOOKUP(X42,zdroj!$E$3:$E$700,zdroj!$G$3:$G$700)) -> Vypl | AA42: =IF(X42="","",LOOKUP(X42,zdroj!$E$3:$E$700,zdroj!$H$3:$H$700)) -> Hroza | AB42: =+IF(X42="","",LOOKUP(X42,zdroj!$E$3:$E$700,zdroj!$I$3:$I$700)) -> Dokončeno | AC42: =IF(AE42="","",LOOKUP(AE42,zdroj!$E$3:$E$700,zdroj!$F$3:$F$700)) -> 06:00:00 | AD42: =+IF(AE$39>AD41,AD41+1,"") -> 3 | AE42: 333 | AF42: =IF(AE42="","",LOOKUP(AE42,zdroj!$E$3:$E$700,zdroj!$L$3:$L$700)) -> 2 | AG42: =IF(AE42="","",LOOKUP(AE42,zdroj!$E$3:$E$700,zdroj!$G$3:$G$700)) -> DF | AH42: =IF(AE42="","",LOOKUP(AE42,zdroj!$E$3:$E$700,zdroj!$H$3:$H$700)) -> Horza | AI42: =+IF(AE42="","",LOOKUP(AE42,zdroj!$E$3:$E$700,zdroj!$I$3:$I$700)) -> Dokončeno
A43: =IF(C43="","",LOOKUP(C43,zdroj!$E$3:$E$700,zdroj!$F$3:$F$700)) -> 06:05:00 | B43: 4 | C43: 214 | D43: =IF(C43="","",LOOKUP(C43,zdroj!$E$3:$E$700,zdroj!$L$3:$L$700)) -> 0 | E43: =IF(C43="","",LOOKUP(C43,zdroj!$E$3:$E$700,zdroj!$G$3:$G$700)) -> Cheport | F43: =IF(C43="","",LOOKUP(C43,zdroj!$E$3:$E$700,zdroj!$H$3:$H$700)) -> Tezet | G43: =+IF(C43="","",LOOKUP(C43,zdroj!$E$3:$E$700,zdroj!$I$3:$I$700)) -> Dokončeno | H43: =IF(J43="","",LOOKUP(J43,zdroj!$E$3:$E$700,zdroj!$F$3:$F$700)) -> 06:06:00 | I43: 4 | J43: 244 | K43: =IF(J43="","",LOOKUP(J43,zdroj!$E$3:$E$700,zdroj!$L$3:$L$700)) -> 0 | L43: =IF(J43="","",LOOKUP(J43,zdroj!$E$3:$E$700,zdroj!$G$3:$G$700)) -> Atotech | M43: =IF(J43="","",LOOKUP(J43,zdroj!$E$3:$E$700,zdroj!$H$3:$H$700)) -> TEZET | N43: =+IF(J43="","",LOOKUP(J43,zdroj!$E$3:$E$700,zdroj!$I$3:$I$700)) -> Dokončeno | O43: =IF(Q43="","",LOOKUP(Q43,zdroj!$E$3:$E$700,zdroj!$F$3:$F$700)) -> 06:10:00 | P43: 4 | Q43: 274 | R43: =IF(Q43="","",LOOKUP(Q43,zdroj!$E$3:$E$700,zdroj!$L$3:$L$700)) -> 0 | S43: =IF(Q43="","",LOOKUP(Q43,zdroj!$E$3:$E$700,zdroj!$G$3:$G$700)) -> SODO DUO | T43: =IF(Q43="","",LOOKUP(Q43,zdroj!$E$3:$E$700,zdroj!$H$3:$H$700)) -> TEZET | U43: =+IF(Q43="","",LOOKUP(Q43,zdroj!$E$3:$E$700,zdroj!$I$3:$I$700)) -> Dokončeno | V43: =IF(X43="","",LOOKUP(X43,zdroj!$E$3:$E$700,zdroj!$F$3:$F$700)) -> 06:05:00 | W43: 4 | X43: 304 | Y43: =IF(X43="","",LOOKUP(X43,zdroj!$E$3:$E$700,zdroj!$L$3:$L$700)) -> 3 | Z43: =IF(X43="","",LOOKUP(X43,zdroj!$E$3:$E$700,zdroj!$G$3:$G$700)) -> Alter | AA43: =IF(X43="","",LOOKUP(X43,zdroj!$E$3:$E$700,zdroj!$H$3:$H$700)) -> TEZET | AB43: =+IF(X43="","",LOOKUP(X43,zdroj!$E$3:$E$700,zdroj!$I$3:$I$700)) -> Dokončeno | AC43: =IF(AE43="","",LOOKUP(AE43,zdroj!$E$3:$E$700,zdroj!$F$3:$F$700)) -> 06:04:00 | AD43: 4 | AE43: 334 | AF43: =IF(AE43="","",LOOKUP(AE43,zdroj!$E$3:$E$700,zdroj!$L$3:$L$700)) -> 2 | AG43: =IF(AE43="","",LOOKUP(AE43,zdroj!$E$3:$E$700,zdroj!$G$3:$G$700)) -> Aroma | AH43: =IF(AE43="","",LOOKUP(AE43,zdroj!$E$3:$E$700,zdroj!$H$3:$H$700)) -> TEZET | AI43: =+IF(AE43="","",LOOKUP(AE43,zdroj!$E$3:$E$700,zdroj!$I$3:$I$700)) -> Dokončeno
A44: =IF(C44="","",LOOKUP(C44,zdroj!$E$3:$E$700,zdroj!$F$3:$F$700)) -> 07:00:00 | B44: 5 | C44: 215 | D44: =IF(C44="","",LOOKUP(C44,zdroj!$E$3:$E$700,zdroj!$L$3:$L$700)) -> 0 | E44: =IF(C44="","",LOOKUP(C44,zdroj!$E$3:$E$700,zdroj!$G$3:$G$700)) -> Groshandel | F44: =IF(C44="","",LOOKUP(C44,zdroj!$E$3:$E$700,zdroj!$H$3:$H$700)) -> 0 | G44: =+IF(C44="","",LOOKUP(C44,zdroj!$E$3:$E$700,zdroj!$I$3:$I$700)) -> Dokončeno | H44: =IF(J44="","",LOOKUP(J44,zdroj!$E$3:$E$700,zdroj!$F$3:$F$700)) -> 07:00:00 | I44: 5 | J44: 245 | K44: =IF(J44="","",LOOKUP(J44,zdroj!$E$3:$E$700,zdroj!$L$3:$L$700)) -> 0 | L44: =IF(J44="","",LOOKUP(J44,zdroj!$E$3:$E$700,zdroj!$G$3:$G$700)) -> Antolin | M44: =IF(J44="","",LOOKUP(J44,zdroj!$E$3:$E$700,zdroj!$H$3:$H$700)) -> vlastní | N44: =+IF(J44="","",LOOKUP(J44,zdroj!$E$3:$E$700,zdroj!$I$3:$I$700)) -> Dokončeno | O44: =IF(Q44="","",LOOKUP(Q44,zdroj!$E$3:$E$700,zdroj!$F$3:$F$700)) -> 10:00:00 | P44: 5 | Q44: 275 | R44: =IF(Q44="","",LOOKUP(Q44,zdroj!$E$3:$E$700,zdroj!$L$3:$L$700)) -> 0 | S44: =IF(Q44="","",LOOKUP(Q44,zdroj!$E$3:$E$700,zdroj!$G$3:$G$700)) -> TBA | T44: =IF(Q44="","",LOOKUP(Q44,zdroj!$E$3:$E$700,zdroj!$H$3:$H$700)) -> vlastní | U44: =+IF(Q44="","",LOOKUP(Q44,zdroj!$E$3:$E$700,zdroj!$I$3:$I$700)) -> Dokončeno | V44: =IF(X44="","",LOOKUP(X44,zdroj!$E$3:$E$700,zdroj!$F$3:$F$700)) -> 07:00:00 | W44: 5 | X44: 305 | Y44: =IF(X44="","",LOOKUP(X44,zdroj!$E$3:$E$700,zdroj!$L$3:$L$700)) -> 5 | Z44: =IF(X44="","",LOOKUP(X44,zdroj!$E$3:$E$700,zdroj!$G$3:$G$700)) -> Antolin | AA44: =IF(X44="","",LOOKUP(X44,zdroj!$E$3:$E$700,zdroj!$H$3:$H$700)) -> vlastní | AB44: =+IF(X44="","",LOOKUP(X44,zdroj!$E$3:$E$700,zdroj!$I$3:$I$700)) -> Dokončeno | AC44: =IF(AE44="","",LOOKUP(AE44,zdroj!$E$3:$E$700,zdroj!$F$3:$F$700)) -> 06:05:00 | AD44: 5 | AE44: 335 | AF44: =IF(AE44="","",LOOKUP(AE44,zdroj!$E$3:$E$700,zdroj!$L$3:$L$700)) -> 4 | AG44: =IF(AE44="","",LOOKUP(AE44,zdroj!$E$3:$E$700,zdroj!$G$3:$G$700)) -> Oma CZ | AH44: =IF(AE44="","",LOOKUP(AE44,zdroj!$E$3:$E$700,zdroj!$H$3:$H$700)) -> TEZET | AI44: =+IF(AE44="","",LOOKUP(AE44,zdroj!$E$3:$E$700,zdroj!$I$3:$I$700)) -> Dokončeno
A45: =IF(C45="","",LOOKUP(C45,zdroj!$E$3:$E$700,zdroj!$F$3:$F$700)) -> 07:05:00 | B45: 6 | C45: 216 | D45: =IF(C45="","",LOOKUP(C45,zdroj!$E$3:$E$700,zdroj!$L$3:$L$700)) -> 0 | E45: =IF(C45="","",LOOKUP(C45,zdroj!$E$3:$E$700,zdroj!$G$3:$G$700)) -> Groshandel | F45: =IF(C45="","",LOOKUP(C45,zdroj!$E$3:$E$700,zdroj!$H$3:$H$700)) -> 0 | G45: =+IF(C45="","",LOOKUP(C45,zdroj!$E$3:$E$700,zdroj!$I$3:$I$700)) -> Dokončeno | H45: =IF(J45="","",LOOKUP(J45,zdroj!$E$3:$E$700,zdroj!$F$3:$F$700)) -> 11:00:00 | I45: 6 | J45: 246 | K45: =IF(J45="","",LOOKUP(J45,zdroj!$E$3:$E$700,zdroj!$L$3:$L$700)) -> 0 | L45: =IF(J45="","",LOOKUP(J45,zdroj!$E$3:$E$700,zdroj!$G$3:$G$700)) -> JPSK | M45: =IF(J45="","",LOOKUP(J45,zdroj!$E$3:$E$700,zdroj!$H$3:$H$700)) -> Legarde | N45: =+IF(J45="","",LOOKUP(J45,zdroj!$E$3:$E$700,zdroj!$I$3:$I$700)) -> Dokončeno | O45: =IF(Q45="","",LOOKUP(Q45,zdroj!$E$3:$E$700,zdroj!$F$3:$F$700)) -> 11:00:00 | P45: 6 | Q45: 276 | R45: =IF(Q45="","",LOOKUP(Q45,zdroj!$E$3:$E$700,zdroj!$L$3:$L$700)) -> 0 | S45: =IF(Q45="","",LOOKUP(Q45,zdroj!$E$3:$E$700,zdroj!$G$3:$G$700)) -> JPPSK | T45: =IF(Q45="","",LOOKUP(Q45,zdroj!$E$3:$E$700,zdroj!$H$3:$H$700)) -> dls Trans | U45: =+IF(Q45="","",LOOKUP(Q45,zdroj!$E$3:$E$700,zdroj!$I$3:$I$700)) -> Dokončeno | V45: =IF(X45="","",LOOKUP(X45,zdroj!$E$3:$E$700,zdroj!$F$3:$F$700)) -> 08:00:00 | W45: 6 | X45: 306 | Y45: =IF(X45="","",LOOKUP(X45,zdroj!$E$3:$E$700,zdroj!$L$3:$L$700)) -> 1 | Z45: =IF(X45="","",LOOKUP(X45,zdroj!$E$3:$E$700,zdroj!$G$3:$G$700)) -> AV auto | AA45: =IF(X45="","",LOOKUP(X45,zdroj!$E$3:$E$700,zdroj!$H$3:$H$700)) -> vlastní | AB45: =+IF(X45="","",LOOKUP(X45,zdroj!$E$3:$E$700,zdroj!$I$3:$I$700)) -> Dokončeno | AC45: =IF(AE45="","",LOOKUP(AE45,zdroj!$E$3:$E$700,zdroj!$F$3:$F$700)) -> 06:05:00 | AD45: 6 | AE45: 336 | AF45: =IF(AE45="","",LOOKUP(AE45,zdroj!$E$3:$E$700,zdroj!$L$3:$L$700)) -> 1 | AG45: =IF(AE45="","",LOOKUP(AE45,zdroj!$E$3:$E$700,zdroj!$G$3:$G$700)) -> AV Auto | AH45: =IF(AE45="","",LOOKUP(AE45,zdroj!$E$3:$E$700,zdroj!$H$3:$H$700)) -> Tezet | AI45: =+IF(AE45="","",LOOKUP(AE45,zdroj!$E$3:$E$700,zdroj!$I$3:$I$700)) -> Dokončeno
A46: =IF(C46="","",LOOKUP(C46,zdroj!$E$3:$E$700,zdroj!$F$3:$F$700)) -> 08:00:00 | B46: =+IF(C$39>B45,B45+1,"") -> 7 | C46: =+IF(B46="","",B46+B$39) -> 217 | D46: =IF(C46="","",LOOKUP(C46,zdroj!$E$3:$E$700,zdroj!$L$3:$L$700)) -> 4 | E46: =IF(C46="","",LOOKUP(C46,zdroj!$E$3:$E$700,zdroj!$G$3:$G$700)) -> Filmer | F46: =IF(C46="","",LOOKUP(C46,zdroj!$E$3:$E$700,zdroj!$H$3:$H$700)) -> 0 | G46: =+IF(C46="","",LOOKUP(C46,zdroj!$E$3:$E$700,zdroj!$I$3:$I$700)) -> Dokončeno | H46: =IF(J46="","",LOOKUP(J46,zdroj!$E$3:$E$700,zdroj!$F$3:$F$700)) -> 11:00:00 | I46: =+IF(J$39>I45,I45+1,"") -> 7 | J46: =+IF(I46="","",I46+I$39) -> 247 | K46: =IF(J46="","",LOOKUP(J46,zdroj!$E$3:$E$700,zdroj!$L$3:$L$700)) -> 0 | L46: =IF(J46="","",LOOKUP(J46,zdroj!$E$3:$E$700,zdroj!$G$3:$G$700)) -> JPSK | M46: =IF(J46="","",LOOKUP(J46,zdroj!$E$3:$E$700,zdroj!$H$3:$H$700)) -> Legarde | N46: =+IF(J46="","",LOOKUP(J46,zdroj!$E$3:$E$700,zdroj!$I$3:$I$700)) -> Dokončeno | O46: =IF(Q46="","",LOOKUP(Q46,zdroj!$E$3:$E$700,zdroj!$F$3:$F$700)) -> 11:00:00 | P46: =+IF(Q$39>P45,P45+1,"") -> 7 | Q46: =+IF(P46="","",P46+P$39) -> 277 | R46: =IF(Q46="","",LOOKUP(Q46,zdroj!$E$3:$E$700,zdroj!$L$3:$L$700)) -> 0 | S46: =IF(Q46="","",LOOKUP(Q46,zdroj!$E$3:$E$700,zdroj!$G$3:$G$700)) -> TBA | T46: =IF(Q46="","",LOOKUP(Q46,zdroj!$E$3:$E$700,zdroj!$H$3:$H$700)) -> vlastní | U46: =+IF(Q46="","",LOOKUP(Q46,zdroj!$E$3:$E$700,zdroj!$I$3:$I$700)) -> Dokončeno | V46: =IF(X46="","",LOOKUP(X46,zdroj!$E$3:$E$700,zdroj!$F$3:$F$700)) -> 10:00:00 | W46: =+IF(X$39>W45,W45+1,"") -> 7 | X46: =+IF(W46="","",W46+W$39) -> 307 | Y46: =IF(X46="","",LOOKUP(X46,zdroj!$E$3:$E$700,zdroj!$L$3:$L$700)) -> 2 | Z46: =IF(X46="","",LOOKUP(X46,zdroj!$E$3:$E$700,zdroj!$G$3:$G$700)) -> TBA | AA46: =IF(X46="","",LOOKUP(X46,zdroj!$E$3:$E$700,zdroj!$H$3:$H$700)) -> vlastní | AB46: =+IF(X46="","",LOOKUP(X46,zdroj!$E$3:$E$700,zdroj!$I$3:$I$700)) -> Dokončeno | AC46: =IF(AE46="","",LOOKUP(AE46,zdroj!$E$3:$E$700,zdroj!$F$3:$F$700)) -> 06:45:00 | AD46: =+IF(AE$39>AD45,AD45+1,"") -> 7 | AE46: =+IF(AD46="","",AD46+AD$39) -> 337 | AF46: =IF(AE46="","",LOOKUP(AE46,zdroj!$E$3:$E$700,zdroj!$L$3:$L$700)) -> 1 | AG46: =IF(AE46="","",LOOKUP(AE46,zdroj!$E$3:$E$700,zdroj!$G$3:$G$700)) -> TRUMF | AH46: =IF(AE46="","",LOOKUP(AE46,zdroj!$E$3:$E$700,zdroj!$H$3:$H$700)) -> vlastní | AI46: =+IF(AE46="","",LOOKUP(AE46,zdroj!$E$3:$E$700,zdroj!$I$3:$I$700)) -> Dokončeno
A47: =IF(C47="","",LOOKUP(C47,zdroj!$E$3:$E$700,zdroj!$F$3:$F$700)) -> 10:00:00 | B47: 8 | C47: 218 | D47: =IF(C47="","",LOOKUP(C47,zdroj!$E$3:$E$700,zdroj!$L$3:$L$700)) -> 0 | E47: =IF(C47="","",LOOKUP(C47,zdroj!$E$3:$E$700,zdroj!$G$3:$G$700)) -> TBA | F47: =IF(C47="","",LOOKUP(C47,zdroj!$E$3:$E$700,zdroj!$H$3:$H$700)) -> vlastní | G47: =+IF(C47="","",LOOKUP(C47,zdroj!$E$3:$E$700,zdroj!$I$3:$I$700)) -> Dokončeno | H47: =IF(J47="","",LOOKUP(J47,zdroj!$E$3:$E$700,zdroj!$F$3:$F$700)) -> 11:30:00 | I47: 8 | J47: 248 | K47: =IF(J47="","",LOOKUP(J47,zdroj!$E$3:$E$700,zdroj!$L$3:$L$700)) -> 0 | L47: =IF(J47="","",LOOKUP(J47,zdroj!$E$3:$E$700,zdroj!$G$3:$G$700)) -> Blaser | M47: =IF(J47="","",LOOKUP(J47,zdroj!$E$3:$E$700,zdroj!$H$3:$H$700)) -> vlastní | N47: =+IF(J47="","",LOOKUP(J47,zdroj!$E$3:$E$700,zdroj!$I$3:$I$700)) -> Dokončeno | O47: =IF(Q47="","",LOOKUP(Q47,zdroj!$E$3:$E$700,zdroj!$F$3:$F$700)) -> 12:30:00 | P47: 8 | Q47: 278 | R47: =IF(Q47="","",LOOKUP(Q47,zdroj!$E$3:$E$700,zdroj!$L$3:$L$700)) -> 0 | S47: =IF(Q47="","",LOOKUP(Q47,zdroj!$E$3:$E$700,zdroj!$G$3:$G$700)) -> Faurecie MB | T47: =IF(Q47="","",LOOKUP(Q47,zdroj!$E$3:$E$700,zdroj!$H$3:$H$700)) -> vlastní | U47: =+IF(Q47="","",LOOKUP(Q47,zdroj!$E$3:$E$700,zdroj!$I$3:$I$700)) -> Dokončeno | V47: =IF(X47="","",LOOKUP(X47,zdroj!$E$3:$E$700,zdroj!$F$3:$F$700)) -> 10:05:00 | W47: 8 | X47: 308 | Y47: =IF(X47="","",LOOKUP(X47,zdroj!$E$3:$E$700,zdroj!$L$3:$L$700)) -> 1 | Z47: =IF(X47="","",LOOKUP(X47,zdroj!$E$3:$E$700,zdroj!$G$3:$G$700)) -> Kopeček | AA47: =IF(X47="","",LOOKUP(X47,zdroj!$E$3:$E$700,zdroj!$H$3:$H$700)) -> vlastní | AB47: =+IF(X47="","",LOOKUP(X47,zdroj!$E$3:$E$700,zdroj!$I$3:$I$700)) -> Dokončeno | AC47: =IF(AE47="","",LOOKUP(AE47,zdroj!$E$3:$E$700,zdroj!$F$3:$F$700)) -> 07:10:00 | AD47: 8 | AE47: 338 | AF47: =IF(AE47="","",LOOKUP(AE47,zdroj!$E$3:$E$700,zdroj!$L$3:$L$700)) -> 3 | AG47: =IF(AE47="","",LOOKUP(AE47,zdroj!$E$3:$E$700,zdroj!$G$3:$G$700)) -> Birgma | AH47: =IF(AE47="","",LOOKUP(AE47,zdroj!$E$3:$E$700,zdroj!$H$3:$H$700)) -> vlastní | AI47: =+IF(AE47="","",LOOKUP(AE47,zdroj!$E$3:$E$700,zdroj!$I$3:$I$700)) -> Dokončeno
A48: =IF(C48="","",LOOKUP(C48,zdroj!$E$3:$E$700,zdroj!$F$3:$F$700)) -> 11:00:00 | B48: 9 | C48: 219 | D48: =IF(C48="","",LOOKUP(C48,zdroj!$E$3:$E$700,zdroj!$L$3:$L$700)) -> 0 | E48: =IF(C48="","",LOOKUP(C48,zdroj!$E$3:$E$700,zdroj!$G$3:$G$700)) -> Flexfill | F48: =IF(C48="","",LOOKUP(C48,zdroj!$E$3:$E$700,zdroj!$H$3:$H$700)) -> Interkontakt | G48: =+IF(C48="","",LOOKUP(C48,zdroj!$E$3:$E$700,zdroj!$I$3:$I$700)) -> Dokončeno | H48: =IF(J48="","",LOOKUP(J48,zdroj!$E$3:$E$700,zdroj!$F$3:$F$700)) -> 11:30:00 | I48: 9 | J48: 249 | K48: =IF(J48="","",LOOKUP(J48,zdroj!$E$3:$E$700,zdroj!$L$3:$L$700)) -> 0 | L48: =IF(J48="","",LOOKUP(J48,zdroj!$E$3:$E$700,zdroj!$G$3:$G$700)) -> Avena | M48: =IF(J48="","",LOOKUP(J48,zdroj!$E$3:$E$700,zdroj!$H$3:$H$700)) -> vlastní | N48: =+IF(J48="","",LOOKUP(J48,zdroj!$E$3:$E$700,zdroj!$I$3:$I$700)) -> Dokončeno | O48: =IF(Q48="","",LOOKUP(Q48,zdroj!$E$3:$E$700,zdroj!$F$3:$F$700)) -> 13:00:00 | P48: 9 | Q48: 279 | R48: =IF(Q48="","",LOOKUP(Q48,zdroj!$E$3:$E$700,zdroj!$L$3:$L$700)) -> 0 | S48: =IF(Q48="","",LOOKUP(Q48,zdroj!$E$3:$E$700,zdroj!$G$3:$G$700)) -> Libros | T48: =IF(Q48="","",LOOKUP(Q48,zdroj!$E$3:$E$700,zdroj!$H$3:$H$700)) -> vlastní | U48: =+IF(Q48="","",LOOKUP(Q48,zdroj!$E$3:$E$700,zdroj!$I$3:$I$700)) -> Dokončeno | V48: =IF(X48="","",LOOKUP(X48,zdroj!$E$3:$E$700,zdroj!$F$3:$F$700)) -> 10:10:00 | W48: 9 | X48: 309 | Y48: =IF(X48="","",LOOKUP(X48,zdroj!$E$3:$E$700,zdroj!$L$3:$L$700)) -> 4 | Z48: =IF(X48="","",LOOKUP(X48,zdroj!$E$3:$E$700,zdroj!$G$3:$G$700)) -> Slovakia Trend | AA48: =IF(X48="","",LOOKUP(X48,zdroj!$E$3:$E$700,zdroj!$H$3:$H$700)) -> vlastní | AB48: =+IF(X48="","",LOOKUP(X48,zdroj!$E$3:$E$700,zdroj!$I$3:$I$700)) -> Dokončeno | AC48: =IF(AE48="","",LOOKUP(AE48,zdroj!$E$3:$E$700,zdroj!$F$3:$F$700)) -> 10:00:00 | AD48: 9 | AE48: 339 | AF48: =IF(AE48="","",LOOKUP(AE48,zdroj!$E$3:$E$700,zdroj!$L$3:$L$700)) -> 2 | AG48: =IF(AE48="","",LOOKUP(AE48,zdroj!$E$3:$E$700,zdroj!$G$3:$G$700)) -> T-Net | AH48: =IF(AE48="","",LOOKUP(AE48,zdroj!$E$3:$E$700,zdroj!$H$3:$H$700)) -> MSB | AI48: =+IF(AE48="","",LOOKUP(AE48,zdroj!$E$3:$E$700,zdroj!$I$3:$I$700)) -> Dokončeno
A49: =IF(C49="","",LOOKUP(C49,zdroj!$E$3:$E$700,zdroj!$F$3:$F$700)) -> 11:05:00 | B49: 10 | C49: 220 | D49: =IF(C49="","",LOOKUP(C49,zdroj!$E$3:$E$700,zdroj!$L$3:$L$700)) -> 0 | E49: =IF(C49="","",LOOKUP(C49,zdroj!$E$3:$E$700,zdroj!$G$3:$G$700)) -> Nufarm | F49: =IF(C49="","",LOOKUP(C49,zdroj!$E$3:$E$700,zdroj!$H$3:$H$700)) -> Interkontakt | G49: =+IF(C49="","",LOOKUP(C49,zdroj!$E$3:$E$700,zdroj!$I$3:$I$700)) -> Dokončeno | H49: =IF(J49="","",LOOKUP(J49,zdroj!$E$3:$E$700,zdroj!$F$3:$F$700)) -> 11:45:00 | I49: 10 | J49: 250 | K49: =IF(J49="","",LOOKUP(J49,zdroj!$E$3:$E$700,zdroj!$L$3:$L$700)) -> 0 | L49: =IF(J49="","",LOOKUP(J49,zdroj!$E$3:$E$700,zdroj!$G$3:$G$700)) -> Ozas Esab | M49: =IF(J49="","",LOOKUP(J49,zdroj!$E$3:$E$700,zdroj!$H$3:$H$700)) -> Schenker | N49: =+IF(J49="","",LOOKUP(J49,zdroj!$E$3:$E$700,zdroj!$I$3:$I$700)) -> Dokončeno | O49: =IF(Q49="","",LOOKUP(Q49,zdroj!$E$3:$E$700,zdroj!$F$3:$F$700)) -> 00:00:00 | P49: 10 | Q49: 280 | R49: =IF(Q49="","",LOOKUP(Q49,zdroj!$E$3:$E$700,zdroj!$L$3:$L$700)) -> 0 | S49: =IF(Q49="","",LOOKUP(Q49,zdroj!$E$3:$E$700,zdroj!$G$3:$G$700)) -> Patron | T49: =IF(Q49="","",LOOKUP(Q49,zdroj!$E$3:$E$700,zdroj!$H$3:$H$700)) -> vlastní | U49: =+IF(Q49="","",LOOKUP(Q49,zdroj!$E$3:$E$700,zdroj!$I$3:$I$700)) -> Dokončeno | V49: =IF(X49="","",LOOKUP(X49,zdroj!$E$3:$E$700,zdroj!$F$3:$F$700)) -> 10:30:00 | W49: 10 | X49: 310 | Y49: =IF(X49="","",LOOKUP(X49,zdroj!$E$3:$E$700,zdroj!$L$3:$L$700)) -> 1 | Z49: =IF(X49="","",LOOKUP(X49,zdroj!$E$3:$E$700,zdroj!$G$3:$G$700)) -> Stachema | AA49: =IF(X49="","",LOOKUP(X49,zdroj!$E$3:$E$700,zdroj!$H$3:$H$700)) -> vlastní | AB49: =+IF(X49="","",LOOKUP(X49,zdroj!$E$3:$E$700,zdroj!$I$3:$I$700)) -> Dokončeno | AC49: =IF(AE49="","",LOOKUP(AE49,zdroj!$E$3:$E$700,zdroj!$F$3:$F$700)) -> 12:00:00 | AD49: 10 | AE49: 340 | AF49: =IF(AE49="","",LOOKUP(AE49,zdroj!$E$3:$E$700,zdroj!$L$3:$L$700)) -> 2 | AG49: =IF(AE49="","",LOOKUP(AE49,zdroj!$E$3:$E$700,zdroj!$G$3:$G$700)) -> PK Group | AH49: =IF(AE49="","",LOOKUP(AE49,zdroj!$E$3:$E$700,zdroj!$H$3:$H$700)) -> vlastní | AI49: =+IF(AE49="","",LOOKUP(AE49,zdroj!$E$3:$E$700,zdroj!$I$3:$I$700)) -> Dokončeno
A50: =IF(C50="","",LOOKUP(C50,zdroj!$E$3:$E$700,zdroj!$F$3:$F$700)) -> 11:10:00 | B50: 11 | C50: 221 | D50: =IF(C50="","",LOOKUP(C50,zdroj!$E$3:$E$700,zdroj!$L$3:$L$700)) -> 0 | E50: =IF(C50="","",LOOKUP(C50,zdroj!$E$3:$E$700,zdroj!$G$3:$G$700)) -> T-Net | F50: =IF(C50="","",LOOKUP(C50,zdroj!$E$3:$E$700,zdroj!$H$3:$H$700)) -> Legarde | G50: =+IF(C50="","",LOOKUP(C50,zdroj!$E$3:$E$700,zdroj!$I$3:$I$700)) -> Dokončeno | H50: =IF(J50="","",LOOKUP(J50,zdroj!$E$3:$E$700,zdroj!$F$3:$F$700)) -> 11:50:00 | I50: 11 | J50: 251 | K50: =IF(J50="","",LOOKUP(J50,zdroj!$E$3:$E$700,zdroj!$L$3:$L$700)) -> 0 | L50: =IF(J50="","",LOOKUP(J50,zdroj!$E$3:$E$700,zdroj!$G$3:$G$700)) -> Lipera | M50: =IF(J50="","",LOOKUP(J50,zdroj!$E$3:$E$700,zdroj!$H$3:$H$700)) -> vlastní | N50: =+IF(J50="","",LOOKUP(J50,zdroj!$E$3:$E$700,zdroj!$I$3:$I$700)) -> Dokončeno | O50: =IF(Q50="","",LOOKUP(Q50,zdroj!$E$3:$E$700,zdroj!$F$3:$F$700)) -> 00:00:00 | P50: 11 | Q50: 281 | R50: =IF(Q50="","",LOOKUP(Q50,zdroj!$E$3:$E$700,zdroj!$L$3:$L$700)) -> 0 | S50: =IF(Q50="","",LOOKUP(Q50,zdroj!$E$3:$E$700,zdroj!$G$3:$G$700)) -> Toptrans | T50: =IF(Q50="","",LOOKUP(Q50,zdroj!$E$3:$E$700,zdroj!$H$3:$H$700)) -> SBS | U50: =+IF(Q50="","",LOOKUP(Q50,zdroj!$E$3:$E$700,zdroj!$I$3:$I$700)) -> Dokončeno | V50: =IF(X50="","",LOOKUP(X50,zdroj!$E$3:$E$700,zdroj!$F$3:$F$700)) -> 10:45:00 | W50: 11 | X50: 311 | Y50: =IF(X50="","",LOOKUP(X50,zdroj!$E$3:$E$700,zdroj!$L$3:$L$700)) -> 3 | Z50: =IF(X50="","",LOOKUP(X50,zdroj!$E$3:$E$700,zdroj!$G$3:$G$700)) -> J.P.Plast | AA50: =IF(X50="","",LOOKUP(X50,zdroj!$E$3:$E$700,zdroj!$H$3:$H$700)) -> Hroza | AB50: =+IF(X50="","",LOOKUP(X50,zdroj!$E$3:$E$700,zdroj!$I$3:$I$700)) -> Dokončeno | AC50: =IF(AE50="","",LOOKUP(AE50,zdroj!$E$3:$E$700,zdroj!$F$3:$F$700)) -> 13:00:00 | AD50: 11 | AE50: 341 | AF50: =IF(AE50="","",LOOKUP(AE50,zdroj!$E$3:$E$700,zdroj!$L$3:$L$700)) -> 2 | AG50: =IF(AE50="","",LOOKUP(AE50,zdroj!$E$3:$E$700,zdroj!$G$3:$G$700)) -> T-NET | AH50: =IF(AE50="","",LOOKUP(AE50,zdroj!$E$3:$E$700,zdroj!$H$3:$H$700)) -> T-NET | AI50: =+IF(AE50="","",LOOKUP(AE50,zdroj!$E$3:$E$700,zdroj!$I$3:$I$700)) -> Dokončeno
A51: =IF(C51="","",LOOKUP(C51,zdroj!$E$3:$E$700,zdroj!$F$3:$F$700)) -> 11:15:00 | B51: 12 | C51: 222 | D51: =IF(C51="","",LOOKUP(C51,zdroj!$E$3:$E$700,zdroj!$L$3:$L$700)) -> 0 | E51: =IF(C51="","",LOOKUP(C51,zdroj!$E$3:$E$700,zdroj!$G$3:$G$700)) -> MAT | F51: =IF(C51="","",LOOKUP(C51,zdroj!$E$3:$E$700,zdroj!$H$3:$H$700)) -> AK Servis | G51: =+IF(C51="","",LOOKUP(C51,zdroj!$E$3:$E$700,zdroj!$I$3:$I$700)) -> Dokončeno | H51: =IF(J51="","",LOOKUP(J51,zdroj!$E$3:$E$700,zdroj!$F$3:$F$700)) -> 12:00:00 | I51: 12 | J51: 252 | K51: =IF(J51="","",LOOKUP(J51,zdroj!$E$3:$E$700,zdroj!$L$3:$L$700)) -> 0 | L51: =IF(J51="","",LOOKUP(J51,zdroj!$E$3:$E$700,zdroj!$G$3:$G$700)) -> Faurecie | M51: =IF(J51="","",LOOKUP(J51,zdroj!$E$3:$E$700,zdroj!$H$3:$H$700)) -> vlastní | N51: =+IF(J51="","",LOOKUP(J51,zdroj!$E$3:$E$700,zdroj!$I$3:$I$700)) -> Dokončeno | O51: =IF(Q51="","",LOOKUP(Q51,zdroj!$E$3:$E$700,zdroj!$F$3:$F$700)) ->  | R51: =IF(Q51="","",LOOKUP(Q51,zdroj!$E$3:$E$700,zdroj!$L$3:$L$700)) ->  | S51: =IF(Q51="","",LOOKUP(Q51,zdroj!$E$3:$E$700,zdroj!$G$3:$G$700)) ->  | T51: =IF(Q51="","",LOOKUP(Q51,zdroj!$E$3:$E$700,zdroj!$H$3:$H$700)) ->  | U51: =+IF(Q51="","",LOOKUP(Q51,zdroj!$E$3:$E$700,zdroj!$I$3:$I$700)) ->  | V51: =IF(X51="","",LOOKUP(X51,zdroj!$E$3:$E$700,zdroj!$F$3:$F$700)) -> 11:00:00 | W51: 12 | X51: 312 | Y51: =IF(X51="","",LOOKUP(X51,zdroj!$E$3:$E$700,zdroj!$L$3:$L$700)) -> 5 | Z51: =IF(X51="","",LOOKUP(X51,zdroj!$E$3:$E$700,zdroj!$G$3:$G$700)) -> JPSK | AA51: =IF(X51="","",LOOKUP(X51,zdroj!$E$3:$E$700,zdroj!$H$3:$H$700)) -> vlastní | AB51: =+IF(X51="","",LOOKUP(X51,zdroj!$E$3:$E$700,zdroj!$I$3:$I$700)) -> Dokončeno | AC51: =IF(AE51="","",LOOKUP(AE51,zdroj!$E$3:$E$700,zdroj!$F$3:$F$700)) -> 00:00:00 | AD51: 12 | AE51: 342 | AF51: =IF(AE51="","",LOOKUP(AE51,zdroj!$E$3:$E$700,zdroj!$L$3:$L$700)) -> 4 | AG51: =IF(AE51="","",LOOKUP(AE51,zdroj!$E$3:$E$700,zdroj!$G$3:$G$700)) -> Filmer | AH51: =IF(AE51="","",LOOKUP(AE51,zdroj!$E$3:$E$700,zdroj!$H$3:$H$700)) -> 0 | AI51: =+IF(AE51="","",LOOKUP(AE51,zdroj!$E$3:$E$700,zdroj!$I$3:$I$700)) -> Dokončeno
A52: =IF(C52="","",LOOKUP(C52,zdroj!$E$3:$E$700,zdroj!$F$3:$F$700)) -> 11:15:00 | B52: 13 | C52: 223 | D52: =IF(C52="","",LOOKUP(C52,zdroj!$E$3:$E$700,zdroj!$L$3:$L$700)) -> 0 | E52: =IF(C52="","",LOOKUP(C52,zdroj!$E$3:$E$700,zdroj!$G$3:$G$700)) -> Carier | F52: =IF(C52="","",LOOKUP(C52,zdroj!$E$3:$E$700,zdroj!$H$3:$H$700)) -> vlastní | G52: =+IF(C52="","",LOOKUP(C52,zdroj!$E$3:$E$700,zdroj!$I$3:$I$700)) -> Dokončeno | H52: =IF(J52="","",LOOKUP(J52,zdroj!$E$3:$E$700,zdroj!$F$3:$F$700)) -> 12:30:00 | I52: 13 | J52: 253 | K52: =IF(J52="","",LOOKUP(J52,zdroj!$E$3:$E$700,zdroj!$L$3:$L$700)) -> 0 | L52: =IF(J52="","",LOOKUP(J52,zdroj!$E$3:$E$700,zdroj!$G$3:$G$700)) -> Faurecie MB | M52: =IF(J52="","",LOOKUP(J52,zdroj!$E$3:$E$700,zdroj!$H$3:$H$700)) -> vlastní | N52: =+IF(J52="","",LOOKUP(J52,zdroj!$E$3:$E$700,zdroj!$I$3:$I$700)) -> Dokončeno | O52: =IF(Q52="","",LOOKUP(Q52,zdroj!$E$3:$E$700,zdroj!$F$3:$F$700)) ->  | R52: =IF(Q52="","",LOOKUP(Q52,zdroj!$E$3:$E$700,zdroj!$L$3:$L$700)) ->  | S52: =IF(Q52="","",LOOKUP(Q52,zdroj!$E$3:$E$700,zdroj!$G$3:$G$700)) ->  | T52: =IF(Q52="","",LOOKUP(Q52,zdroj!$E$3:$E$700,zdroj!$H$3:$H$700)) ->  | U52: =+IF(Q52="","",LOOKUP(Q52,zdroj!$E$3:$E$700,zdroj!$I$3:$I$700)) ->  | V52: =IF(X52="","",LOOKUP(X52,zdroj!$E$3:$E$700,zdroj!$F$3:$F$700)) -> 11:00:00 | W52: 13 | X52: 313 | Y52: =IF(X52="","",LOOKUP(X52,zdroj!$E$3:$E$700,zdroj!$L$3:$L$700)) -> 2 | Z52: =IF(X52="","",LOOKUP(X52,zdroj!$E$3:$E$700,zdroj!$G$3:$G$700)) -> TBA | AA52: =IF(X52="","",LOOKUP(X52,zdroj!$E$3:$E$700,zdroj!$H$3:$H$700)) -> vlastní | AB52: =+IF(X52="","",LOOKUP(X52,zdroj!$E$3:$E$700,zdroj!$I$3:$I$700)) -> Dokončeno | AC52: =IF(AE52="","",LOOKUP(AE52,zdroj!$E$3:$E$700,zdroj!$F$3:$F$700)) -> 00:00:00 | AD52: 13 | AE52: 343 | AF52: =IF(AE52="","",LOOKUP(AE52,zdroj!$E$3:$E$700,zdroj!$L$3:$L$700)) -> 1 | AG52: =IF(AE52="","",LOOKUP(AE52,zdroj!$E$3:$E$700,zdroj!$G$3:$G$700)) -> T-NET | AH52: =IF(AE52="","",LOOKUP(AE52,zdroj!$E$3:$E$700,zdroj!$H$3:$H$700)) -> Legarde | AI52: =+IF(AE52="","",LOOKUP(AE52,zdroj!$E$3:$E$700,zdroj!$I$3:$I$700)) -> Dokončeno
A53: =IF(C53="","",LOOKUP(C53,zdroj!$E$3:$E$700,zdroj!$F$3:$F$700)) -> 14:00:00 | B53: 14 | C53: 224 | D53: =IF(C53="","",LOOKUP(C53,zdroj!$E$3:$E$700,zdroj!$L$3:$L$700)) -> 0 | E53: =IF(C53="","",LOOKUP(C53,zdroj!$E$3:$E$700,zdroj!$G$3:$G$700)) -> T-Net | F53: =IF(C53="","",LOOKUP(C53,zdroj!$E$3:$E$700,zdroj!$H$3:$H$700)) -> MSB | G53: =+IF(C53="","",LOOKUP(C53,zdroj!$E$3:$E$700,zdroj!$I$3:$I$700)) -> Dokončeno | H53: =IF(J53="","",LOOKUP(J53,zdroj!$E$3:$E$700,zdroj!$F$3:$F$700)) -> 13:00:00 | I53: 14 | J53: 254 | K53: =IF(J53="","",LOOKUP(J53,zdroj!$E$3:$E$700,zdroj!$L$3:$L$700)) -> 0 | L53: =IF(J53="","",LOOKUP(J53,zdroj!$E$3:$E$700,zdroj!$G$3:$G$700)) -> Faurecie MB | M53: =IF(J53="","",LOOKUP(J53,zdroj!$E$3:$E$700,zdroj!$H$3:$H$700)) -> vlastní | N53: =+IF(J53="","",LOOKUP(J53,zdroj!$E$3:$E$700,zdroj!$I$3:$I$700)) -> Dokončeno | O53: =IF(Q53="","",LOOKUP(Q53,zdroj!$E$3:$E$700,zdroj!$F$3:$F$700)) ->  | R53: =IF(Q53="","",LOOKUP(Q53,zdroj!$E$3:$E$700,zdroj!$L$3:$L$700)) ->  | S53: =IF(Q53="","",LOOKUP(Q53,zdroj!$E$3:$E$700,zdroj!$G$3:$G$700)) ->  | T53: =IF(Q53="","",LOOKUP(Q53,zdroj!$E$3:$E$700,zdroj!$H$3:$H$700)) ->  | U53: =+IF(Q53="","",LOOKUP(Q53,zdroj!$E$3:$E$700,zdroj!$I$3:$I$700)) ->  | V53: =IF(X53="","",LOOKUP(X53,zdroj!$E$3:$E$700,zdroj!$F$3:$F$700)) -> 11:30:00 | W53: 14 | X53: 314 | Y53: =IF(X53="","",LOOKUP(X53,zdroj!$E$3:$E$700,zdroj!$L$3:$L$700)) -> 5 | Z53: =IF(X53="","",LOOKUP(X53,zdroj!$E$3:$E$700,zdroj!$G$3:$G$700)) -> Flexfill | AA53: =IF(X53="","",LOOKUP(X53,zdroj!$E$3:$E$700,zdroj!$H$3:$H$700)) -> Interkontakt | AB53: =+IF(X53="","",LOOKUP(X53,zdroj!$E$3:$E$700,zdroj!$I$3:$I$700)) -> Dokončeno | AC53: =IF(AE53="","",LOOKUP(AE53,zdroj!$E$3:$E$700,zdroj!$F$3:$F$700)) -> 00:00:00 | AD53: 14 | AE53: 344 | AF53: =IF(AE53="","",LOOKUP(AE53,zdroj!$E$3:$E$700,zdroj!$L$3:$L$700)) -> 2 | AG53: =IF(AE53="","",LOOKUP(AE53,zdroj!$E$3:$E$700,zdroj!$G$3:$G$700)) -> Tremalin | AH53: =IF(AE53="","",LOOKUP(AE53,zdroj!$E$3:$E$700,zdroj!$H$3:$H$700)) -> Wereldo.com | AI53: =+IF(AE53="","",LOOKUP(AE53,zdroj!$E$3:$E$700,zdroj!$I$3:$I$700)) -> Dokončeno
A54: =IF(C54="","",LOOKUP(C54,zdroj!$E$3:$E$700,zdroj!$F$3:$F$700)) -> 14:30:00 | B54: 15 | C54: 225 | D54: =IF(C54="","",LOOKUP(C54,zdroj!$E$3:$E$700,zdroj!$L$3:$L$700)) -> 0 | E54: =IF(C54="","",LOOKUP(C54,zdroj!$E$3:$E$700,zdroj!$G$3:$G$700)) -> Toptrans | F54: =IF(C54="","",LOOKUP(C54,zdroj!$E$3:$E$700,zdroj!$H$3:$H$700)) -> SBS | G54: =+IF(C54="","",LOOKUP(C54,zdroj!$E$3:$E$700,zdroj!$I$3:$I$700)) -> Dokončeno | H54: =IF(J54="","",LOOKUP(J54,zdroj!$E$3:$E$700,zdroj!$F$3:$F$700)) -> 13:00:00 | I54: 15 | J54: 255 | K54: =IF(J54="","",LOOKUP(J54,zdroj!$E$3:$E$700,zdroj!$L$3:$L$700)) -> 0 | L54: =IF(J54="","",LOOKUP(J54,zdroj!$E$3:$E$700,zdroj!$G$3:$G$700)) -> PK Group | M54: =IF(J54="","",LOOKUP(J54,zdroj!$E$3:$E$700,zdroj!$H$3:$H$700)) -> vlastní | N54: =+IF(J54="","",LOOKUP(J54,zdroj!$E$3:$E$700,zdroj!$I$3:$I$700)) -> Dokončeno | O54: =IF(Q54="","",LOOKUP(Q54,zdroj!$E$3:$E$700,zdroj!$F$3:$F$700)) ->  | R54: =IF(Q54="","",LOOKUP(Q54,zdroj!$E$3:$E$700,zdroj!$L$3:$L$700)) ->  | S54: =IF(Q54="","",LOOKUP(Q54,zdroj!$E$3:$E$700,zdroj!$G$3:$G$700)) ->  | T54: =IF(Q54="","",LOOKUP(Q54,zdroj!$E$3:$E$700,zdroj!$H$3:$H$700)) ->  | U54: =+IF(Q54="","",LOOKUP(Q54,zdroj!$E$3:$E$700,zdroj!$I$3:$I$700)) ->  | V54: =IF(X54="","",LOOKUP(X54,zdroj!$E$3:$E$700,zdroj!$F$3:$F$700)) -> 12:00:00 | W54: 15 | X54: 315 | Y54: =IF(X54="","",LOOKUP(X54,zdroj!$E$3:$E$700,zdroj!$L$3:$L$700)) -> 2 | Z54: =IF(X54="","",LOOKUP(X54,zdroj!$E$3:$E$700,zdroj!$G$3:$G$700)) -> TBA | AA54: =IF(X54="","",LOOKUP(X54,zdroj!$E$3:$E$700,zdroj!$H$3:$H$700)) -> vlastní | AB54: =+IF(X54="","",LOOKUP(X54,zdroj!$E$3:$E$700,zdroj!$I$3:$I$700)) -> Dokončeno | AC54: =IF(AE54="","",LOOKUP(AE54,zdroj!$E$3:$E$700,zdroj!$F$3:$F$700)) -> 00:00:00 | AD54: 15 | AE54: 345 | AF54: =IF(AE54="","",LOOKUP(AE54,zdroj!$E$3:$E$700,zdroj!$L$3:$L$700)) -> 2 | AG54: =IF(AE54="","",LOOKUP(AE54,zdroj!$E$3:$E$700,zdroj!$G$3:$G$700)) -> BS Vinařské | AH54: =IF(AE54="","",LOOKUP(AE54,zdroj!$E$3:$E$700,zdroj!$H$3:$H$700)) -> vlastní | AI54: =+IF(AE54="","",LOOKUP(AE54,zdroj!$E$3:$E$700,zdroj!$I$3:$I$700)) -> Dokončeno
A55: =IF(C55="","",LOOKUP(C55,zdroj!$E$3:$E$700,zdroj!$F$3:$F$700)) -> 15:00:00 | B55: 16 | C55: 226 | D55: =IF(C55="","",LOOKUP(C55,zdroj!$E$3:$E$700,zdroj!$L$3:$L$700)) -> 0 | E55: =IF(C55="","",LOOKUP(C55,zdroj!$E$3:$E$700,zdroj!$G$3:$G$700)) -> Faurecie MB | F55: =IF(C55="","",LOOKUP(C55,zdroj!$E$3:$E$700,zdroj!$H$3:$H$700)) -> vlastní | G55: =+IF(C55="","",LOOKUP(C55,zdroj!$E$3:$E$700,zdroj!$I$3:$I$700)) -> Dokončeno | H55: =IF(J55="","",LOOKUP(J55,zdroj!$E$3:$E$700,zdroj!$F$3:$F$700)) -> 14:00:00 | I55: 16 | J55: 256 | K55: =IF(J55="","",LOOKUP(J55,zdroj!$E$3:$E$700,zdroj!$L$3:$L$700)) -> 0 | L55: =IF(J55="","",LOOKUP(J55,zdroj!$E$3:$E$700,zdroj!$G$3:$G$700)) -> Vypl | M55: =IF(J55="","",LOOKUP(J55,zdroj!$E$3:$E$700,zdroj!$H$3:$H$700)) -> naše | N55: =+IF(J55="","",LOOKUP(J55,zdroj!$E$3:$E$700,zdroj!$I$3:$I$700)) -> Dokončeno | O55: =IF(Q55="","",LOOKUP(Q55,zdroj!$E$3:$E$700,zdroj!$F$3:$F$700)) ->  | R55: =IF(Q55="","",LOOKUP(Q55,zdroj!$E$3:$E$700,zdroj!$L$3:$L$700)) ->  | S55: =IF(Q55="","",LOOKUP(Q55,zdroj!$E$3:$E$700,zdroj!$G$3:$G$700)) ->  | T55: =IF(Q55="","",LOOKUP(Q55,zdroj!$E$3:$E$700,zdroj!$H$3:$H$700)) ->  | U55: =+IF(Q55="","",LOOKUP(Q55,zdroj!$E$3:$E$700,zdroj!$I$3:$I$700)) ->  | V55: =IF(X55="","",LOOKUP(X55,zdroj!$E$3:$E$700,zdroj!$F$3:$F$700)) -> 12:30:00 | W55: 16 | X55: 316 | Y55: =IF(X55="","",LOOKUP(X55,zdroj!$E$3:$E$700,zdroj!$L$3:$L$700)) -> 5 | Z55: =IF(X55="","",LOOKUP(X55,zdroj!$E$3:$E$700,zdroj!$G$3:$G$700)) -> Faurecie MB | AA55: =IF(X55="","",LOOKUP(X55,zdroj!$E$3:$E$700,zdroj!$H$3:$H$700)) -> vlastní | AB55: =+IF(X55="","",LOOKUP(X55,zdroj!$E$3:$E$700,zdroj!$I$3:$I$700)) -> Dokončeno | AC55: =IF(AE55="","",LOOKUP(AE55,zdroj!$E$3:$E$700,zdroj!$F$3:$F$700)) -> 00:00:00 | AD55: 16 | AE55: 346 | AF55: =IF(AE55="","",LOOKUP(AE55,zdroj!$E$3:$E$700,zdroj!$L$3:$L$700)) -> 1 | AG55: =IF(AE55="","",LOOKUP(AE55,zdroj!$E$3:$E$700,zdroj!$G$3:$G$700)) -> Toptrans | AH55: =IF(AE55="","",LOOKUP(AE55,zdroj!$E$3:$E$700,zdroj!$H$3:$H$700)) -> SBS | AI55: =+IF(AE55="","",LOOKUP(AE55,zdroj!$E$3:$E$700,zdroj!$I$3:$I$700)) -> Dokončeno
A56: =IF(C56="","",LOOKUP(C56,zdroj!$E$3:$E$700,zdroj!$F$3:$F$700)) ->  | D56: =IF(C56="","",LOOKUP(C56,zdroj!$E$3:$E$700,zdroj!$L$3:$L$700)) ->  | E56: =IF(C56="","",LOOKUP(C56,zdroj!$E$3:$E$700,zdroj!$G$3:$G$700)) ->  | F56: =IF(C56="","",LOOKUP(C56,zdroj!$E$3:$E$700,zdroj!$H$3:$H$700)) ->  | G56: =+IF(C56="","",LOOKUP(C56,zdroj!$E$3:$E$700,zdroj!$I$3:$I$700)) ->  | H56: =IF(J56="","",LOOKUP(J56,zdroj!$E$3:$E$700,zdroj!$F$3:$F$700)) ->  | K56: =IF(J56="","",LOOKUP(J56,zdroj!$E$3:$E$700,zdroj!$L$3:$L$700)) ->  | L56: =IF(J56="","",LOOKUP(J56,zdroj!$E$3:$E$700,zdroj!$G$3:$G$700)) ->  | M56: =IF(J56="","",LOOKUP(J56,zdroj!$E$3:$E$700,zdroj!$H$3:$H$700)) ->  | N56: =+IF(J56="","",LOOKUP(J56,zdroj!$E$3:$E$700,zdroj!$I$3:$I$700)) ->  | O56: =IF(Q56="","",LOOKUP(Q56,zdroj!$E$3:$E$700,zdroj!$F$3:$F$700)) ->  | R56: =IF(Q56="","",LOOKUP(Q56,zdroj!$E$3:$E$700,zdroj!$L$3:$L$700)) ->  | S56: =IF(Q56="","",LOOKUP(Q56,zdroj!$E$3:$E$700,zdroj!$G$3:$G$700)) ->  | T56: =IF(Q56="","",LOOKUP(Q56,zdroj!$E$3:$E$700,zdroj!$H$3:$H$700)) ->  | U56: =+IF(Q56="","",LOOKUP(Q56,zdroj!$E$3:$E$700,zdroj!$I$3:$I$700)) ->  | V56: =IF(X56="","",LOOKUP(X56,zdroj!$E$3:$E$700,zdroj!$F$3:$F$700)) -> 13:00:00 | W56: 17 | X56: 317 | Y56: =IF(X56="","",LOOKUP(X56,zdroj!$E$3:$E$700,zdroj!$L$3:$L$700)) -> 3 | Z56: =IF(X56="","",LOOKUP(X56,zdroj!$E$3:$E$700,zdroj!$G$3:$G$700)) -> Santal | AA56: =IF(X56="","",LOOKUP(X56,zdroj!$E$3:$E$700,zdroj!$H$3:$H$700)) -> vlastní | AB56: =+IF(X56="","",LOOKUP(X56,zdroj!$E$3:$E$700,zdroj!$I$3:$I$700)) -> Dokončeno | AC56: =IF(AE56="","",LOOKUP(AE56,zdroj!$E$3:$E$700,zdroj!$F$3:$F$700)) ->  | AF56: =IF(AE56="","",LOOKUP(AE56,zdroj!$E$3:$E$700,zdroj!$L$3:$L$700)) ->  | AG56: =IF(AE56="","",LOOKUP(AE56,zdroj!$E$3:$E$700,zdroj!$G$3:$G$700)) ->  | AH56: =IF(AE56="","",LOOKUP(AE56,zdroj!$E$3:$E$700,zdroj!$H$3:$H$700)) ->  | AI56: =+IF(AE56="","",LOOKUP(AE56,zdroj!$E$3:$E$700,zdroj!$I$3:$I$700)) -> 
A57: =IF(C57="","",LOOKUP(C57,zdroj!$E$3:$E$700,zdroj!$F$3:$F$700)) ->  | D57: =IF(C57="","",LOOKUP(C57,zdroj!$E$3:$E$700,zdroj!$L$3:$L$700)) ->  | E57: =IF(C57="","",LOOKUP(C57,zdroj!$E$3:$E$700,zdroj!$G$3:$G$700)) ->  | F57: =IF(C57="","",LOOKUP(C57,zdroj!$E$3:$E$700,zdroj!$H$3:$H$700)) ->  | G57: =+IF(C57="","",LOOKUP(C57,zdroj!$E$3:$E$700,zdroj!$I$3:$I$700)) ->  | H57: =IF(J57="","",LOOKUP(J57,zdroj!$E$3:$E$700,zdroj!$F$3:$F$700)) ->  | K57: =IF(J57="","",LOOKUP(J57,zdroj!$E$3:$E$700,zdroj!$L$3:$L$700)) ->  | L57: =IF(J57="","",LOOKUP(J57,zdroj!$E$3:$E$700,zdroj!$G$3:$G$700)) ->  | M57: =IF(J57="","",LOOKUP(J57,zdroj!$E$3:$E$700,zdroj!$H$3:$H$700)) ->  | N57: =+IF(J57="","",LOOKUP(J57,zdroj!$E$3:$E$700,zdroj!$I$3:$I$700)) ->  | O57: =IF(Q57="","",LOOKUP(Q57,zdroj!$E$3:$E$700,zdroj!$F$3:$F$700)) ->  | R57: =IF(Q57="","",LOOKUP(Q57,zdroj!$E$3:$E$700,zdroj!$L$3:$L$700)) ->  | S57: =IF(Q57="","",LOOKUP(Q57,zdroj!$E$3:$E$700,zdroj!$G$3:$G$700)) ->  | T57: =IF(Q57="","",LOOKUP(Q57,zdroj!$E$3:$E$700,zdroj!$H$3:$H$700)) ->  | U57: =+IF(Q57="","",LOOKUP(Q57,zdroj!$E$3:$E$700,zdroj!$I$3:$I$700)) ->  | V57: =IF(X57="","",LOOKUP(X57,zdroj!$E$3:$E$700,zdroj!$F$3:$F$700)) -> 13:00:00 | W57: 18 | X57: 318 | Y57: =IF(X57="","",LOOKUP(X57,zdroj!$E$3:$E$700,zdroj!$L$3:$L$700)) -> 3 | Z57: =IF(X57="","",LOOKUP(X57,zdroj!$E$3:$E$700,zdroj!$G$3:$G$700)) -> JPSK | AA57: =IF(X57="","",LOOKUP(X57,zdroj!$E$3:$E$700,zdroj!$H$3:$H$700)) -> Vlastní | AB57: =+IF(X57="","",LOOKUP(X57,zdroj!$E$3:$E$700,zdroj!$I$3:$I$700)) -> Dokončeno | AC57: =IF(AE57="","",LOOKUP(AE57,zdroj!$E$3:$E$700,zdroj!$F$3:$F$700)) ->  | AF57: =IF(AE57="","",LOOKUP(AE57,zdroj!$E$3:$E$700,zdroj!$L$3:$L$700)) ->  | AG57: =IF(AE57="","",LOOKUP(AE57,zdroj!$E$3:$E$700,zdroj!$G$3:$G$700)) ->  | AH57: =IF(AE57="","",LOOKUP(AE57,zdroj!$E$3:$E$700,zdroj!$H$3:$H$700)) ->  | AI57: =+IF(AE57="","",LOOKUP(AE57,zdroj!$E$3:$E$700,zdroj!$I$3:$I$700)) -> 
A58: =IF(C58="","",LOOKUP(C58,zdroj!$E$3:$E$700,zdroj!$F$3:$F$700)) ->  | D58: =IF(C58="","",LOOKUP(C58,zdroj!$E$3:$E$700,zdroj!$L$3:$L$700)) ->  | E58: =IF(C58="","",LOOKUP(C58,zdroj!$E$3:$E$700,zdroj!$G$3:$G$700)) ->  | F58: =IF(C58="","",LOOKUP(C58,zdroj!$E$3:$E$700,zdroj!$H$3:$H$700)) ->  | G58: =+IF(C58="","",LOOKUP(C58,zdroj!$E$3:$E$700,zdroj!$I$3:$I$700)) ->  | H58: =IF(J58="","",LOOKUP(J58,zdroj!$E$3:$E$700,zdroj!$F$3:$F$700)) ->  | K58: =IF(J58="","",LOOKUP(J58,zdroj!$E$3:$E$700,zdroj!$L$3:$L$700)) ->  | L58: =IF(J58="","",LOOKUP(J58,zdroj!$E$3:$E$700,zdroj!$G$3:$G$700)) ->  | M58: =IF(J58="","",LOOKUP(J58,zdroj!$E$3:$E$700,zdroj!$H$3:$H$700)) ->  | N58: =+IF(J58="","",LOOKUP(J58,zdroj!$E$3:$E$700,zdroj!$I$3:$I$700)) ->  | O58: =IF(Q58="","",LOOKUP(Q58,zdroj!$E$3:$E$700,zdroj!$F$3:$F$700)) ->  | R58: =IF(Q58="","",LOOKUP(Q58,zdroj!$E$3:$E$700,zdroj!$L$3:$L$700)) ->  | S58: =IF(Q58="","",LOOKUP(Q58,zdroj!$E$3:$E$700,zdroj!$G$3:$G$700)) ->  | T58: =IF(Q58="","",LOOKUP(Q58,zdroj!$E$3:$E$700,zdroj!$H$3:$H$700)) ->  | U58: =+IF(Q58="","",LOOKUP(Q58,zdroj!$E$3:$E$700,zdroj!$I$3:$I$700)) ->  | V58: =IF(X58="","",LOOKUP(X58,zdroj!$E$3:$E$700,zdroj!$F$3:$F$700)) -> 00:00:00 | W58: 19 | X58: 319 | Y58: =IF(X58="","",LOOKUP(X58,zdroj!$E$3:$E$700,zdroj!$L$3:$L$700)) -> 1 | Z58: =IF(X58="","",LOOKUP(X58,zdroj!$E$3:$E$700,zdroj!$G$3:$G$700)) -> Toptrans | AA58: =IF(X58="","",LOOKUP(X58,zdroj!$E$3:$E$700,zdroj!$H$3:$H$700)) -> SBS | AB58: =+IF(X58="","",LOOKUP(X58,zdroj!$E$3:$E$700,zdroj!$I$3:$I$700)) -> Dokončeno | AC58: =IF(AE58="","",LOOKUP(AE58,zdroj!$E$3:$E$700,zdroj!$F$3:$F$700)) ->  | AF58: =IF(AE58="","",LOOKUP(AE58,zdroj!$E$3:$E$700,zdroj!$L$3:$L$700)) ->  | AG58: =IF(AE58="","",LOOKUP(AE58,zdroj!$E$3:$E$700,zdroj!$G$3:$G$700)) ->  | AH58: =IF(AE58="","",LOOKUP(AE58,zdroj!$E$3:$E$700,zdroj!$H$3:$H$700)) ->  | AI58: =+IF(AE58="","",LOOKUP(AE58,zdroj!$E$3:$E$700,zdroj!$I$3:$I$700)) -> 
A59: =IF(C59="","",LOOKUP(C59,zdroj!$E$3:$E$700,zdroj!$F$3:$F$700)) ->  | D59: =IF(C59="","",LOOKUP(C59,zdroj!$E$3:$E$700,zdroj!$L$3:$L$700)) ->  | E59: =IF(C59="","",LOOKUP(C59,zdroj!$E$3:$E$700,zdroj!$G$3:$G$700)) ->  | F59: =IF(C59="","",LOOKUP(C59,zdroj!$E$3:$E$700,zdroj!$H$3:$H$700)) ->  | G59: =+IF(C59="","",LOOKUP(C59,zdroj!$E$3:$E$700,zdroj!$I$3:$I$700)) ->  | H59: =IF(J59="","",LOOKUP(J59,zdroj!$E$3:$E$700,zdroj!$F$3:$F$700)) ->  | K59: =IF(J59="","",LOOKUP(J59,zdroj!$E$3:$E$700,zdroj!$L$3:$L$700)) ->  | L59: =IF(J59="","",LOOKUP(J59,zdroj!$E$3:$E$700,zdroj!$G$3:$G$700)) ->  | M59: =IF(J59="","",LOOKUP(J59,zdroj!$E$3:$E$700,zdroj!$H$3:$H$700)) ->  | N59: =+IF(J59="","",LOOKUP(J59,zdroj!$E$3:$E$700,zdroj!$I$3:$I$700)) ->  | O59: =IF(Q59="","",LOOKUP(Q59,zdroj!$E$3:$E$700,zdroj!$F$3:$F$700)) ->  | R59: =IF(Q59="","",LOOKUP(Q59,zdroj!$E$3:$E$700,zdroj!$L$3:$L$700)) ->  | S59: =IF(Q59="","",LOOKUP(Q59,zdroj!$E$3:$E$700,zdroj!$G$3:$G$700)) ->  | T59: =IF(Q59="","",LOOKUP(Q59,zdroj!$E$3:$E$700,zdroj!$H$3:$H$700)) ->  | U59: =+IF(Q59="","",LOOKUP(Q59,zdroj!$E$3:$E$700,zdroj!$I$3:$I$700)) ->  | V59: =IF(X59="","",LOOKUP(X59,zdroj!$E$3:$E$700,zdroj!$F$3:$F$700)) ->  | Y59: =IF(X59="","",LOOKUP(X59,zdroj!$E$3:$E$700,zdroj!$L$3:$L$700)) ->  | Z59: =IF(X59="","",LOOKUP(X59,zdroj!$E$3:$E$700,zdroj!$G$3:$G$700)) ->  | AA59: =IF(X59="","",LOOKUP(X59,zdroj!$E$3:$E$700,zdroj!$H$3:$H$700)) ->  | AB59: =+IF(X59="","",LOOKUP(X59,zdroj!$E$3:$E$700,zdroj!$I$3:$I$700)) ->  | AC59: =IF(AE59="","",LOOKUP(AE59,zdroj!$E$3:$E$700,zdroj!$F$3:$F$700)) ->  | AF59: =IF(AE59="","",LOOKUP(AE59,zdroj!$E$3:$E$700,zdroj!$L$3:$L$700)) ->  | AG59: =IF(AE59="","",LOOKUP(AE59,zdroj!$E$3:$E$700,zdroj!$G$3:$G$700)) ->  | AH59: =IF(AE59="","",LOOKUP(AE59,zdroj!$E$3:$E$700,zdroj!$H$3:$H$700)) ->  | AI59: =+IF(AE59="","",LOOKUP(AE59,zdroj!$E$3:$E$700,zdroj!$I$3:$I$700)) -> 
A60: =IF(C60="","",LOOKUP(C60,zdroj!$E$3:$E$700,zdroj!$F$3:$F$700)) ->  | D60: =IF(C60="","",LOOKUP(C60,zdroj!$E$3:$E$700,zdroj!$L$3:$L$700)) ->  | E60: =IF(C60="","",LOOKUP(C60,zdroj!$E$3:$E$700,zdroj!$G$3:$G$700)) ->  | F60: =IF(C60="","",LOOKUP(C60,zdroj!$E$3:$E$700,zdroj!$H$3:$H$700)) ->  | G60: =+IF(C60="","",LOOKUP(C60,zdroj!$E$3:$E$700,zdroj!$I$3:$I$700)) ->  | H60: =IF(J60="","",LOOKUP(J60,zdroj!$E$3:$E$700,zdroj!$F$3:$F$700)) ->  | K60: =IF(J60="","",LOOKUP(J60,zdroj!$E$3:$E$700,zdroj!$L$3:$L$700)) ->  | L60: =IF(J60="","",LOOKUP(J60,zdroj!$E$3:$E$700,zdroj!$G$3:$G$700)) ->  | M60: =IF(J60="","",LOOKUP(J60,zdroj!$E$3:$E$700,zdroj!$H$3:$H$700)) ->  | N60: =+IF(J60="","",LOOKUP(J60,zdroj!$E$3:$E$700,zdroj!$I$3:$I$700)) ->  | O60: =IF(Q60="","",LOOKUP(Q60,zdroj!$E$3:$E$700,zdroj!$F$3:$F$700)) ->  | R60: =IF(Q60="","",LOOKUP(Q60,zdroj!$E$3:$E$700,zdroj!$L$3:$L$700)) ->  | S60: =IF(Q60="","",LOOKUP(Q60,zdroj!$E$3:$E$700,zdroj!$G$3:$G$700)) ->  | T60: =IF(Q60="","",LOOKUP(Q60,zdroj!$E$3:$E$700,zdroj!$H$3:$H$700)) ->  | U60: =+IF(Q60="","",LOOKUP(Q60,zdroj!$E$3:$E$700,zdroj!$I$3:$I$700)) ->  | V60: =IF(X60="","",LOOKUP(X60,zdroj!$E$3:$E$700,zdroj!$F$3:$F$700)) ->  | Y60: =IF(X60="","",LOOKUP(X60,zdroj!$E$3:$E$700,zdroj!$L$3:$L$700)) ->  | Z60: =IF(X60="","",LOOKUP(X60,zdroj!$E$3:$E$700,zdroj!$G$3:$G$700)) ->  | AA60: =IF(X60="","",LOOKUP(X60,zdroj!$E$3:$E$700,zdroj!$H$3:$H$700)) ->  | AB60: =+IF(X60="","",LOOKUP(X60,zdroj!$E$3:$E$700,zdroj!$I$3:$I$700)) ->  | AC60: =IF(AE60="","",LOOKUP(AE60,zdroj!$E$3:$E$700,zdroj!$F$3:$F$700)) ->  | AF60: =IF(AE60="","",LOOKUP(AE60,zdroj!$E$3:$E$700,zdroj!$L$3:$L$700)) ->  | AG60: =IF(AE60="","",LOOKUP(AE60,zdroj!$E$3:$E$700,zdroj!$G$3:$G$700)) ->  | AH60: =IF(AE60="","",LOOKUP(AE60,zdroj!$E$3:$E$700,zdroj!$H$3:$H$700)) ->  | AI60: =+IF(AE60="","",LOOKUP(AE60,zdroj!$E$3:$E$700,zdroj!$I$3:$I$700)) -> 
A61: =IF(C61="","",LOOKUP(C61,zdroj!$E$3:$E$700,zdroj!$F$3:$F$700)) ->  | D61: =IF(C61="","",LOOKUP(C61,zdroj!$E$3:$E$700,zdroj!$L$3:$L$700)) ->  | E61: =IF(C61="","",LOOKUP(C61,zdroj!$E$3:$E$700,zdroj!$G$3:$G$700)) ->  | F61: =IF(C61="","",LOOKUP(C61,zdroj!$E$3:$E$700,zdroj!$H$3:$H$700)) ->  | G61: =+IF(C61="","",LOOKUP(C61,zdroj!$E$3:$E$700,zdroj!$I$3:$I$700)) ->  | H61: =IF(J61="","",LOOKUP(J61,zdroj!$E$3:$E$700,zdroj!$F$3:$F$700)) ->  | K61: =IF(J61="","",LOOKUP(J61,zdroj!$E$3:$E$700,zdroj!$L$3:$L$700)) ->  | L61: =IF(J61="","",LOOKUP(J61,zdroj!$E$3:$E$700,zdroj!$G$3:$G$700)) ->  | M61: =IF(J61="","",LOOKUP(J61,zdroj!$E$3:$E$700,zdroj!$H$3:$H$700)) ->  | N61: =+IF(J61="","",LOOKUP(J61,zdroj!$E$3:$E$700,zdroj!$I$3:$I$700)) ->  | O61: =IF(Q61="","",LOOKUP(Q61,zdroj!$E$3:$E$700,zdroj!$F$3:$F$700)) ->  | R61: =IF(Q61="","",LOOKUP(Q61,zdroj!$E$3:$E$700,zdroj!$L$3:$L$700)) ->  | S61: =IF(Q61="","",LOOKUP(Q61,zdroj!$E$3:$E$700,zdroj!$G$3:$G$700)) ->  | T61: =IF(Q61="","",LOOKUP(Q61,zdroj!$E$3:$E$700,zdroj!$H$3:$H$700)) ->  | U61: =+IF(Q61="","",LOOKUP(Q61,zdroj!$E$3:$E$700,zdroj!$I$3:$I$700)) ->  | V61: =IF(X61="","",LOOKUP(X61,zdroj!$E$3:$E$700,zdroj!$F$3:$F$700)) ->  | Y61: =IF(X61="","",LOOKUP(X61,zdroj!$E$3:$E$700,zdroj!$L$3:$L$700)) ->  | Z61: =IF(X61="","",LOOKUP(X61,zdroj!$E$3:$E$700,zdroj!$G$3:$G$700)) ->  | AA61: =IF(X61="","",LOOKUP(X61,zdroj!$E$3:$E$700,zdroj!$H$3:$H$700)) ->  | AB61: =+IF(X61="","",LOOKUP(X61,zdroj!$E$3:$E$700,zdroj!$I$3:$I$700)) ->  | AC61: =IF(AE61="","",LOOKUP(AE61,zdroj!$E$3:$E$700,zdroj!$F$3:$F$700)) ->  | AF61: =IF(AE61="","",LOOKUP(AE61,zdroj!$E$3:$E$700,zdroj!$L$3:$L$700)) ->  | AG61: =IF(AE61="","",LOOKUP(AE61,zdroj!$E$3:$E$700,zdroj!$G$3:$G$700)) ->  | AH61: =IF(AE61="","",LOOKUP(AE61,zdroj!$E$3:$E$700,zdroj!$H$3:$H$700)) ->  | AI61: =+IF(AE61="","",LOOKUP(AE61,zdroj!$E$3:$E$700,zdroj!$I$3:$I$700)) -> 
A62: =IF(C62="","",LOOKUP(C62,zdroj!$E$3:$E$700,zdroj!$F$3:$F$700)) ->  | D62: =IF(C62="","",LOOKUP(C62,zdroj!$E$3:$E$700,zdroj!$L$3:$L$700)) ->  | E62: =IF(C62="","",LOOKUP(C62,zdroj!$E$3:$E$700,zdroj!$G$3:$G$700)) ->  | F62: =IF(C62="","",LOOKUP(C62,zdroj!$E$3:$E$700,zdroj!$H$3:$H$700)) ->  | G62: =+IF(C62="","",LOOKUP(C62,zdroj!$E$3:$E$700,zdroj!$I$3:$I$700)) ->  | H62: =IF(J62="","",LOOKUP(J62,zdroj!$E$3:$E$700,zdroj!$F$3:$F$700)) ->  | K62: =IF(J62="","",LOOKUP(J62,zdroj!$E$3:$E$700,zdroj!$L$3:$L$700)) ->  | L62: =IF(J62="","",LOOKUP(J62,zdroj!$E$3:$E$700,zdroj!$G$3:$G$700)) ->  | M62: =IF(J62="","",LOOKUP(J62,zdroj!$E$3:$E$700,zdroj!$H$3:$H$700)) ->  | N62: =+IF(J62="","",LOOKUP(J62,zdroj!$E$3:$E$700,zdroj!$I$3:$I$700)) ->  | O62: =IF(Q62="","",LOOKUP(Q62,zdroj!$E$3:$E$700,zdroj!$F$3:$F$700)) ->  | R62: =IF(Q62="","",LOOKUP(Q62,zdroj!$E$3:$E$700,zdroj!$L$3:$L$700)) ->  | S62: =IF(Q62="","",LOOKUP(Q62,zdroj!$E$3:$E$700,zdroj!$G$3:$G$700)) ->  | T62: =IF(Q62="","",LOOKUP(Q62,zdroj!$E$3:$E$700,zdroj!$H$3:$H$700)) ->  | U62: =+IF(Q62="","",LOOKUP(Q62,zdroj!$E$3:$E$700,zdroj!$I$3:$I$700)) ->  | V62: =IF(X62="","",LOOKUP(X62,zdroj!$E$3:$E$700,zdroj!$F$3:$F$700)) ->  | Y62: =IF(X62="","",LOOKUP(X62,zdroj!$E$3:$E$700,zdroj!$L$3:$L$700)) ->  | Z62: =IF(X62="","",LOOKUP(X62,zdroj!$E$3:$E$700,zdroj!$G$3:$G$700)) ->  | AA62: =IF(X62="","",LOOKUP(X62,zdroj!$E$3:$E$700,zdroj!$H$3:$H$700)) ->  | AB62: =+IF(X62="","",LOOKUP(X62,zdroj!$E$3:$E$700,zdroj!$I$3:$I$700)) ->  | AC62: =IF(AE62="","",LOOKUP(AE62,zdroj!$E$3:$E$700,zdroj!$F$3:$F$700)) ->  | AF62: =IF(AE62="","",LOOKUP(AE62,zdroj!$E$3:$E$700,zdroj!$L$3:$L$700)) ->  | AG62: =IF(AE62="","",LOOKUP(AE62,zdroj!$E$3:$E$700,zdroj!$G$3:$G$700)) ->  | AH62: =IF(AE62="","",LOOKUP(AE62,zdroj!$E$3:$E$700,zdroj!$H$3:$H$700)) ->  | AI62: =+IF(AE62="","",LOOKUP(AE62,zdroj!$E$3:$E$700,zdroj!$I$3:$I$700)) -> 
